Workbook

Sheet Startseite
E2: exactfinance 2020 | G2: Aktueller Monat | H2: März
G3: Aktuelles Jahr | H3: 2020
G4: Start Jahr | H4: 2015
C8: Kontenplan importieren
C10: Der Kontenplan muss einmalig importiert werden. Anschliessend nur noch, wenn neue Konti vorhanden sind.
C13: Journal aller Buchungen importieren
C15: Das Journal sollte sämtliche Jahre enthalten, welche analysiert werden möchten.
C18: Dashboard
C20: Übersicht (Umsatz, Bruttogewinn, Gewinn) anzeigen.
C23: Erfolgsrechnungsdetails anzeigen
C25: Hier wird die gesamte Erfolgsrechnung aller Jahre und Monate angezeigt.
C28: Erfolgsrechnung - Jahres- und Periodenvergleiche
C30: Mittels dieser Funktion kann die gesamte Erfolgrechnung mit Vorperioden verglichen werden.
C33: Datenblatt
C35: Hier werden sämtliche Buchungen angezeigt. Das Datenblatt ist die Basis für sämtliche Auswertungen.
C38: Budgetplanung
C40: Hier erfassen Sie Ihre Budgetzahlen pro Konto auf Monatsbasis.
C43: Kontogruppe und Logo
C45: Hier können Sie für den Export Logos einfügen und die Kontogruppen selbst mit den Abschnitten in der Erfolgsrechnung verknüpfen.
B50: © exact construct GmbH | H50: Version 2021 können Sie hier herunterladen

Sheet Dashboard
K3: Anzeigeart auswählen | L3: Nicht kumuliert
B11: Umsatzentwicklung
C13: =DATE(jahr,1,1) -> 2020-01-01 | D13: =EOMONTH(C13,0)+1 -> 2020-02-01 | E13: =EOMONTH(D13,0)+1 -> 2020-03-01 | F13: 2020-04-01 | G13: 2020-05-01 | H13: 2020-06-01 | I13: 2020-07-01 | J13: 2020-08-01 | K13: 2020-09-01 | L13: 2020-10-01 | M13: 2020-11-01 | N13: 2020-12-01 | P13: ="YTD " & IF(INDEX(tblMonate[Nr],MATCH(monat,tblMonate[Monate],0))<> 1, Einstellungen!$AY$8 &" bis " & monat,Einstellungen!$AY$8) -> YTD Januar bis März | Q13: Total
B14: =B15-1 -> 2014 | C14: =IFERROR( SUMIF(INDIRECT(dshbrdrng_umsatzentwicklung),"<>", INDEX(INDIRECT(dshbrdrng_umsatzentwicklung2),0,MATCH(DATE($B14,MONTH(C$13),1),Erfolgsrechnung_Detail!$O$8:$DF$8,0))), "") ->  | D14: =IFERROR( IF(INDEX(tblUmsatzFltr[Nr],MATCH(filter_umsatz,tblUmsatzFltr[Umsatz Filter],0)) = 1, SUMIF(INDIRECT(dshbrdrng_umsatzentwicklung),"<>", INDEX(INDIRECT(dshbrdrng_umsatzentwicklung2),0,MATCH(DATE($B14,MONTH(D$13),1),Erfolgsrechnung_Detail!$O$8:$DF$8,0))), SUMIF(INDIRECT(dshbrdrng_umsatzentwicklung),"<>", INDEX(INDIRECT(dshbrdrng_umsatzentwicklung2),0,MATCH(DATE($B14,MONTH(D$13),1),Erfolgsrechnung_Detail!$O$8:$DF$8,0)))+C14),"") ->  | E14: =IFERROR( IF(INDEX(tblUmsatzFltr[Nr],MATCH(filter_umsatz,tblUmsatzFltr[Umsatz Filter],0)) = 1, SUMIF(INDIRECT(dshbrdrng_umsatzentwicklung),"<>", INDEX(INDIRECT(dshbrdrng_umsatzentwicklung2),0,MATCH(DATE($B14,MONTH(E$13),1),Erfolgsrechnung_Detail!$O$8:$DF$8,0))), SUMIF(INDIRECT(dshbrdrng_umsatzentwicklung),"<>", INDEX(INDIRECT(dshbrdrng_umsatzentwicklung2),0,MATCH(DATE($B14,MONTH(E$13),1),Erfolgsrechnung_Detail!$O$8:$DF$8,0)))+D14),"") ->  | F14: =IFERROR( IF(INDEX(tblUmsatzFltr[Nr],MATCH(filter_umsatz,tblUmsatzFltr[Umsatz Filter],0)) = 1, SUMIF(INDIRECT(dshbrdrng_umsatzentwicklung),"<>", INDEX(INDIRECT(dshbrdrng_umsatzentwicklung2),0,MATCH(DATE($B14,MONTH(F$13),1),Erfolgsrechnung_Detail!$O$8:$DF$8,0))), SUMIF(INDIRECT(dshbrdrng_umsatzentwicklung),"<>", INDEX(INDIRECT(dshbrdrng_umsatzentwicklung2),0,MATCH(DATE($B14,MONTH(F$13),1),Erfolgsrechnung_Detail!$O$8:$DF$8,0)))+E14),"") ->  | G14: =IFERROR( IF(INDEX(tblUmsatzFltr[Nr],MATCH(filter_umsatz,tblUmsatzFltr[Umsatz Filter],0)) = 1, SUMIF(INDIRECT(dshbrdrng_umsatzentwicklung),"<>", INDEX(INDIRECT(dshbrdrng_umsatzentwicklung2),0,MATCH(DATE($B14,MONTH(G$13),1),Erfolgsrechnung_Detail!$O$8:$DF$8,0))), SUMIF(INDIRECT(dshbrdrng_umsatzentwicklung),"<>", INDEX(INDIRECT(dshbrdrng_umsatzentwicklung2),0,MATCH(DATE($B14,MONTH(G$13),1),Erfolgsrechnung_Detail!$O$8:$DF$8,0)))+F14),"") ->  | H14: =IFERROR( IF(INDEX(tblUmsatzFltr[Nr],MATCH(filter_umsatz,tblUmsatzFltr[Umsatz Filter],0)) = 1, SUMIF(INDIRECT(dshbrdrng_umsatzentwicklung),"<>", INDEX(INDIRECT(dshbrdrng_umsatzentwicklung2),0,MATCH(DATE($B14,MONTH(H$13),1),Erfolgsrechnung_Detail!$O$8:$DF$8,0))), SUMIF(INDIRECT(dshbrdrng_umsatzentwicklung),"<>", INDEX(INDIRECT(dshbrdrng_umsatzentwicklung2),0,MATCH(DATE($B14,MONTH(H$13),1),Erfolgsrechnung_Detail!$O$8:$DF$8,0)))+G14),"") ->  | I14: =IFERROR( IF(INDEX(tblUmsatzFltr[Nr],MATCH(filter_umsatz,tblUmsatzFltr[Umsatz Filter],0)) = 1, SUMIF(INDIRECT(dshbrdrng_umsatzentwicklung),"<>", INDEX(INDIRECT(dshbrdrng_umsatzentwicklung2),0,MATCH(DATE($B14,MONTH(I$13),1),Erfolgsrechnung_Detail!$O$8:$DF$8,0))), SUMIF(INDIRECT(dshbrdrng_umsatzentwicklung),"<>", INDEX(INDIRECT(dshbrdrng_umsatzentwicklung2),0,MATCH(DATE($B14,MONTH(I$13),1),Erfolgsrechnung_Detail!$O$8:$DF$8,0)))+H14),"") ->  | J14: =IFERROR( IF(INDEX(tblUmsatzFltr[Nr],MATCH(filter_umsatz,tblUmsatzFltr[Umsatz Filter],0)) = 1, SUMIF(INDIRECT(dshbrdrng_umsatzentwicklung),"<>", INDEX(INDIRECT(dshbrdrng_umsatzentwicklung2),0,MATCH(DATE($B14,MONTH(J$13),1),Erfolgsrechnung_Detail!$O$8:$DF$8,0))), SUMIF(INDIRECT(dshbrdrng_umsatzentwicklung),"<>", INDEX(INDIRECT(dshbrdrng_umsatzentwicklung2),0,MATCH(DATE($B14,MONTH(J$13),1),Erfolgsrechnung_Detail!$O$8:$DF$8,0)))+I14),"") ->  | K14: =IFERROR( IF(INDEX(tblUmsatzFltr[Nr],MATCH(filter_umsatz,tblUmsatzFltr[Umsatz Filter],0)) = 1, SUMIF(INDIRECT(dshbrdrng_umsatzentwicklung),"<>", INDEX(INDIRECT(dshbrdrng_umsatzentwicklung2),0,MATCH(DATE($B14,MONTH(K$13),1),Erfolgsrechnung_Detail!$O$8:$DF$8,0))), SUMIF(INDIRECT(dshbrdrng_umsatzentwicklung),"<>", INDEX(INDIRECT(dshbrdrng_umsatzentwicklung2),0,MATCH(DATE($B14,MONTH(K$13),1),Erfolgsrechnung_Detail!$O$8:$DF$8,0)))+J14),"") ->  | L14: =IFERROR( IF(INDEX(tblUmsatzFltr[Nr],MATCH(filter_umsatz,tblUmsatzFltr[Umsatz Filter],0)) = 1, SUMIF(INDIRECT(dshbrdrng_umsatzentwicklung),"<>", INDEX(INDIRECT(dshbrdrng_umsatzentwicklung2),0,MATCH(DATE($B14,MONTH(L$13),1),Erfolgsrechnung_Detail!$O$8:$DF$8,0))), SUMIF(INDIRECT(dshbrdrng_umsatzentwicklung),"<>", INDEX(INDIRECT(dshbrdrng_umsatzentwicklung2),0,MATCH(DATE($B14,MONTH(L$13),1),Erfolgsrechnung_Detail!$O$8:$DF$8,0)))+K14),"") ->  | M14: =IFERROR( IF(INDEX(tblUmsatzFltr[Nr],MATCH(filter_umsatz,tblUmsatzFltr[Umsatz Filter],0)) = 1, SUMIF(INDIRECT(dshbrdrng_umsatzentwicklung),"<>", INDEX(INDIRECT(dshbrdrng_umsatzentwicklung2),0,MATCH(DATE($B14,MONTH(M$13),1),Erfolgsrechnung_Detail!$O$8:$DF$8,0))), SUMIF(INDIRECT(dshbrdrng_umsatzentwicklung),"<>", INDEX(INDIRECT(dshbrdrng_umsatzentwicklung2),0,MATCH(DATE($B14,MONTH(M$13),1),Erfolgsrechnung_Detail!$O$8:$DF$8,0)))+L14),"") ->  | N14: =IFERROR( IF(INDEX(tblUmsatzFltr[Nr],MATCH(filter_umsatz,tblUmsatzFltr[Umsatz Filter],0)) = 1, SUMIF(INDIRECT(dshbrdrng_umsatzentwicklung),"<>", INDEX(INDIRECT(dshbrdrng_umsatzentwicklung2),0,MATCH(DATE($B14,MONTH(N$13),1),Erfolgsrechnung_Detail!$O$8:$DF$8,0))), SUMIF(INDIRECT(dshbrdrng_umsatzentwicklung),"<>", INDEX(INDIRECT(dshbrdrng_umsatzentwicklung2),0,MATCH(DATE($B14,MONTH(N$13),1),Erfolgsrechnung_Detail!$O$8:$DF$8,0)))+M14),"") ->  | P14: =IFERROR(IF( INDEX(tblUmsatzFltr[Nr],MATCH(filter_umsatz,tblUmsatzFltr[Umsatz Filter],0))=1, SUM($C14:INDEX($C14:$N14,1,selectedmonat_num)), INDEX($C14:$N14,0,MATCH(monat,tblMonate[Monate],0))),"") -> 0 | Q14: =IFERROR( IF(INDEX(tblUmsatzFltr[Nr],MATCH(filter_umsatz,tblUmsatzFltr[Umsatz Filter],0))=1, SUM(C14:$N14),N14),"") -> 0
B15: 2015 | C15: =IFERROR( SUMIF(INDIRECT(dshbrdrng_umsatzentwicklung),"<>", INDEX(INDIRECT(dshbrdrng_umsatzentwicklung2),0,MATCH(DATE($B15,MONTH(C$13),1),Erfolgsrechnung_Detail!$O$8:$DF$8,0))), "") -> 16632.22039 | D15: =IFERROR( IF(INDEX(tblUmsatzFltr[Nr],MATCH(filter_umsatz,tblUmsatzFltr[Umsatz Filter],0)) = 1, SUMIF(INDIRECT(dshbrdrng_umsatzentwicklung),"<>", INDEX(INDIRECT(dshbrdrng_umsatzentwicklung2),0,MATCH(DATE($B15,MONTH(D$13),1),Erfolgsrechnung_Detail!$O$8:$DF$8,0))), SUMIF(INDIRECT(dshbrdrng_umsatzentwicklung),"<>", INDEX(INDIRECT(dshbrdrng_umsatzentwicklung2),0,MATCH(DATE($B15,MONTH(D$13),1),Erfolgsrechnung_Detail!$O$8:$DF$8,0)))+C15),"") -> 14935.65143 | E15: =IFERROR( IF(INDEX(tblUmsatzFltr[Nr],MATCH(filter_umsatz,tblUmsatzFltr[Umsatz Filter],0)) = 1, SUMIF(INDIRECT(dshbrdrng_umsatzentwicklung),"<>", INDEX(INDIRECT(dshbrdrng_umsatzentwicklung2),0,MATCH(DATE($B15,MONTH(E$13),1),Erfolgsrechnung_Detail!$O$8:$DF$8,0))), SUMIF(INDIRECT(dshbrdrng_umsatzentwicklung),"<>", INDEX(INDIRECT(dshbrdrng_umsatzentwicklung2),0,MATCH(DATE($B15,MONTH(E$13),1),Erfolgsrechnung_Detail!$O$8:$DF$8,0)))+D15),"") -> 4955.145481 | F15: =IFERROR( IF(INDEX(tblUmsatzFltr[Nr],MATCH(filter_umsatz,tblUmsatzFltr[Umsatz Filter],0)) = 1, SUMIF(INDIRECT(dshbrdrng_umsatzentwicklung),"<>", INDEX(INDIRECT(dshbrdrng_umsatzentwicklung2),0,MATCH(DATE($B15,MONTH(F$13),1),Erfolgsrechnung_Detail!$O$8:$DF$8,0))), SUMIF(INDIRECT(dshbrdrng_umsatzentwicklung),"<>", INDEX(INDIRECT(dshbrdrng_umsatzentwicklung2),0,MATCH(DATE($B15,MONTH(F$13),1),Erfolgsrechnung_Detail!$O$8:$DF$8,0)))+E15),"") -> 6792.649595 | G15: =IFERROR( IF(INDEX(tblUmsatzFltr[Nr],MATCH(filter_umsatz,tblUmsatzFltr[Umsatz Filter],0)) = 1, SUMIF(INDIRECT(dshbrdrng_umsatzentwicklung),"<>", INDEX(INDIRECT(dshbrdrng_umsatzentwicklung2),0,MATCH(DATE($B15,MONTH(G$13),1),Erfolgsrechnung_Detail!$O$8:$DF$8,0))), SUMIF(INDIRECT(dshbrdrng_umsatzentwicklung),"<>", INDEX(INDIRECT(dshbrdrng_umsatzentwicklung2),0,MATCH(DATE($B15,MONTH(G$13),1),Erfolgsrechnung_Detail!$O$8:$DF$8,0)))+F15),"") -> 13019.58976 | H15: =IFERROR( IF(INDEX(tblUmsatzFltr[Nr],MATCH(filter_umsatz,tblUmsatzFltr[Umsatz Filter],0)) = 1, SUMIF(INDIRECT(dshbrdrng_umsatzentwicklung),"<>", INDEX(INDIRECT(dshbrdrng_umsatzentwicklung2),0,MATCH(DATE($B15,MONTH(H$13),1),Erfolgsrechnung_Detail!$O$8:$DF$8,0))), SUMIF(INDIRECT(dshbrdrng_umsatzentwicklung),"<>", INDEX(INDIRECT(dshbrdrng_umsatzentwicklung2),0,MATCH(DATE($B15,MONTH(H$13),1),Erfolgsrechnung_Detail!$O$8:$DF$8,0)))+G15),"") -> 18691.31154 | I15: =IFERROR( IF(INDEX(tblUmsatzFltr[Nr],MATCH(filter_umsatz,tblUmsatzFltr[Umsatz Filter],0)) = 1, SUMIF(INDIRECT(dshbrdrng_umsatzentwicklung),"<>", INDEX(INDIRECT(dshbrdrng_umsatzentwicklung2),0,MATCH(DATE($B15,MONTH(I$13),1),Erfolgsrechnung_Detail!$O$8:$DF$8,0))), SUMIF(INDIRECT(dshbrdrng_umsatzentwicklung),"<>", INDEX(INDIRECT(dshbrdrng_umsatzentwicklung2),0,MATCH(DATE($B15,MONTH(I$13),1),Erfolgsrechnung_Detail!$O$8:$DF$8,0)))+H15),"") -> 10436.86663 | J15: =IFERROR( IF(INDEX(tblUmsatzFltr[Nr],MATCH(filter_umsatz,tblUmsatzFltr[Umsatz Filter],0)) = 1, SUMIF(INDIRECT(dshbrdrng_umsatzentwicklung),"<>", INDEX(INDIRECT(dshbrdrng_umsatzentwicklung2),0,MATCH(DATE($B15,MONTH(J$13),1),Erfolgsrechnung_Detail!$O$8:$DF$8,0))), SUMIF(INDIRECT(dshbrdrng_umsatzentwicklung),"<>", INDEX(INDIRECT(dshbrdrng_umsatzentwicklung2),0,MATCH(DATE($B15,MONTH(J$13),1),Erfolgsrechnung_Detail!$O$8:$DF$8,0)))+I15),"") -> 7879.493305 | K15: =IFERROR( IF(INDEX(tblUmsatzFltr[Nr],MATCH(filter_umsatz,tblUmsatzFltr[Umsatz Filter],0)) = 1, SUMIF(INDIRECT(dshbrdrng_umsatzentwicklung),"<>", INDEX(INDIRECT(dshbrdrng_umsatzentwicklung2),0,MATCH(DATE($B15,MONTH(K$13),1),Erfolgsrechnung_Detail!$O$8:$DF$8,0))), SUMIF(INDIRECT(dshbrdrng_umsatzentwicklung),"<>", INDEX(INDIRECT(dshbrdrng_umsatzentwicklung2),0,MATCH(DATE($B15,MONTH(K$13),1),Erfolgsrechnung_Detail!$O$8:$DF$8,0)))+J15),"") -> 8244.163064 | L15: =IFERROR( IF(INDEX(tblUmsatzFltr[Nr],MATCH(filter_umsatz,tblUmsatzFltr[Umsatz Filter],0)) = 1, SUMIF(INDIRECT(dshbrdrng_umsatzentwicklung),"<>", INDEX(INDIRECT(dshbrdrng_umsatzentwicklung2),0,MATCH(DATE($B15,MONTH(L$13),1),Erfolgsrechnung_Detail!$O$8:$DF$8,0))), SUMIF(INDIRECT(dshbrdrng_umsatzentwicklung),"<>", INDEX(INDIRECT(dshbrdrng_umsatzentwicklung2),0,MATCH(DATE($B15,MONTH(L$13),1),Erfolgsrechnung_Detail!$O$8:$DF$8,0)))+K15),"") -> 14328.46182 | M15: =IFERROR( IF(INDEX(tblUmsatzFltr[Nr],MATCH(filter_umsatz,tblUmsatzFltr[Umsatz Filter],0)) = 1, SUMIF(INDIRECT(dshbrdrng_umsatzentwicklung),"<>", INDEX(INDIRECT(dshbrdrng_umsatzentwicklung2),0,MATCH(DATE($B15,MONTH(M$13),1),Erfolgsrechnung_Detail!$O$8:$DF$8,0))), SUMIF(INDIRECT(dshbrdrng_umsatzentwicklung),"<>", INDEX(INDIRECT(dshbrdrng_umsatzentwicklung2),0,MATCH(DATE($B15,MONTH(M$13),1),Erfolgsrechnung_Detail!$O$8:$DF$8,0)))+L15),"") -> 9255.710874 | N15: =IFERROR( IF(INDEX(tblUmsatzFltr[Nr],MATCH(filter_umsatz,tblUmsatzFltr[Umsatz Filter],0)) = 1, SUMIF(INDIRECT(dshbrdrng_umsatzentwicklung),"<>", INDEX(INDIRECT(dshbrdrng_umsatzentwicklung2),0,MATCH(DATE($B15,MONTH(N$13),1),Erfolgsrechnung_Detail!$O$8:$DF$8,0))), SUMIF(INDIRECT(dshbrdrng_umsatzentwicklung),"<>", INDEX(INDIRECT(dshbrdrng_umsatzentwicklung2),0,MATCH(DATE($B15,MONTH(N$13),1),Erfolgsrechnung_Detail!$O$8:$DF$8,0)))+M15),"") -> 13595.19345 | P15: =IFERROR(IF( INDEX(tblUmsatzFltr[Nr],MATCH(filter_umsatz,tblUmsatzFltr[Umsatz Filter],0))=1, SUM($C15:INDEX($C15:$N15,1,selectedmonat_num)), INDEX($C15:$N15,0,MATCH(monat,tblMonate[Monate],0))),"") -> 36523.0173 | Q15: =IFERROR( IF(INDEX(tblUmsatzFltr[Nr],MATCH(filter_umsatz,tblUmsatzFltr[Umsatz Filter],0))=1, SUM(C15:$N15),N15),"") -> 138766.4573
B16: 2016 | C16: =IFERROR( SUMIF(INDIRECT(dshbrdrng_umsatzentwicklung),"<>", INDEX(INDIRECT(dshbrdrng_umsatzentwicklung2),0,MATCH(DATE($B16,MONTH(C$13),1),Erfolgsrechnung_Detail!$O$8:$DF$8,0))), "") -> 38853.63294 | D16: =IFERROR( IF(INDEX(tblUmsatzFltr[Nr],MATCH(filter_umsatz,tblUmsatzFltr[Umsatz Filter],0)) = 1, SUMIF(INDIRECT(dshbrdrng_umsatzentwicklung),"<>", INDEX(INDIRECT(dshbrdrng_umsatzentwicklung2),0,MATCH(DATE($B16,MONTH(D$13),1),Erfolgsrechnung_Detail!$O$8:$DF$8,0))), SUMIF(INDIRECT(dshbrdrng_umsatzentwicklung),"<>", INDEX(INDIRECT(dshbrdrng_umsatzentwicklung2),0,MATCH(DATE($B16,MONTH(D$13),1),Erfolgsrechnung_Detail!$O$8:$DF$8,0)))+C16),"") -> 24119.90239 | E16: =IFERROR( IF(INDEX(tblUmsatzFltr[Nr],MATCH(filter_umsatz,tblUmsatzFltr[Umsatz Filter],0)) = 1, SUMIF(INDIRECT(dshbrdrng_umsatzentwicklung),"<>", INDEX(INDIRECT(dshbrdrng_umsatzentwicklung2),0,MATCH(DATE($B16,MONTH(E$13),1),Erfolgsrechnung_Detail!$O$8:$DF$8,0))), SUMIF(INDIRECT(dshbrdrng_umsatzentwicklung),"<>", INDEX(INDIRECT(dshbrdrng_umsatzentwicklung2),0,MATCH(DATE($B16,MONTH(E$13),1),Erfolgsrechnung_Detail!$O$8:$DF$8,0)))+D16),"") -> 10289.41186 | F16: =IFERROR( IF(INDEX(tblUmsatzFltr[Nr],MATCH(filter_umsatz,tblUmsatzFltr[Umsatz Filter],0)) = 1, SUMIF(INDIRECT(dshbrdrng_umsatzentwicklung),"<>", INDEX(INDIRECT(dshbrdrng_umsatzentwicklung2),0,MATCH(DATE($B16,MONTH(F$13),1),Erfolgsrechnung_Detail!$O$8:$DF$8,0))), SUMIF(INDIRECT(dshbrdrng_umsatzentwicklung),"<>", INDEX(INDIRECT(dshbrdrng_umsatzentwicklung2),0,MATCH(DATE($B16,MONTH(F$13),1),Erfolgsrechnung_Detail!$O$8:$DF$8,0)))+E16),"") -> 10822.89723 | G16: =IFERROR( IF(INDEX(tblUmsatzFltr[Nr],MATCH(filter_umsatz,tblUmsatzFltr[Umsatz Filter],0)) = 1, SUMIF(INDIRECT(dshbrdrng_umsatzentwicklung),"<>", INDEX(INDIRECT(dshbrdrng_umsatzentwicklung2),0,MATCH(DATE($B16,MONTH(G$13),1),Erfolgsrechnung_Detail!$O$8:$DF$8,0))), SUMIF(INDIRECT(dshbrdrng_umsatzentwicklung),"<>", INDEX(INDIRECT(dshbrdrng_umsatzentwicklung2),0,MATCH(DATE($B16,MONTH(G$13),1),Erfolgsrechnung_Detail!$O$8:$DF$8,0)))+F16),"") -> 5004.108306 | H16: =IFERROR( IF(INDEX(tblUmsatzFltr[Nr],MATCH(filter_umsatz,tblUmsatzFltr[Umsatz Filter],0)) = 1, SUMIF(INDIRECT(dshbrdrng_umsatzentwicklung),"<>", INDEX(INDIRECT(dshbrdrng_umsatzentwicklung2),0,MATCH(DATE($B16,MONTH(H$13),1),Erfolgsrechnung_Detail!$O$8:$DF$8,0))), SUMIF(INDIRECT(dshbrdrng_umsatzentwicklung),"<>", INDEX(INDIRECT(dshbrdrng_umsatzentwicklung2),0,MATCH(DATE($B16,MONTH(H$13),1),Erfolgsrechnung_Detail!$O$8:$DF$8,0)))+G16),"") -> 9587.851575 | I16: =IFERROR( IF(INDEX(tblUmsatzFltr[Nr],MATCH(filter_umsatz,tblUmsatzFltr[Umsatz Filter],0)) = 1, SUMIF(INDIRECT(dshbrdrng_umsatzentwicklung),"<>", INDEX(INDIRECT(dshbrdrng_umsatzentwicklung2),0,MATCH(DATE($B16,MONTH(I$13),1),Erfolgsrechnung_Detail!$O$8:$DF$8,0))), SUMIF(INDIRECT(dshbrdrng_umsatzentwicklung),"<>", INDEX(INDIRECT(dshbrdrng_umsatzentwicklung2),0,MATCH(DATE($B16,MONTH(I$13),1),Erfolgsrechnung_Detail!$O$8:$DF$8,0)))+H16),"") -> 13524.8029 | J16: =IFERROR( IF(INDEX(tblUmsatzFltr[Nr],MATCH(filter_umsatz,tblUmsatzFltr[Umsatz Filter],0)) = 1, SUMIF(INDIRECT(dshbrdrng_umsatzentwicklung),"<>", INDEX(INDIRECT(dshbrdrng_umsatzentwicklung2),0,MATCH(DATE($B16,MONTH(J$13),1),Erfolgsrechnung_Detail!$O$8:$DF$8,0))), SUMIF(INDIRECT(dshbrdrng_umsatzentwicklung),"<>", INDEX(INDIRECT(dshbrdrng_umsatzentwicklung2),0,MATCH(DATE($B16,MONTH(J$13),1),Erfolgsrechnung_Detail!$O$8:$DF$8,0)))+I16),"") -> 6627.222529 | K16: =IFERROR( IF(INDEX(tblUmsatzFltr[Nr],MATCH(filter_umsatz,tblUmsatzFltr[Umsatz Filter],0)) = 1, SUMIF(INDIRECT(dshbrdrng_umsatzentwicklung),"<>", INDEX(INDIRECT(dshbrdrng_umsatzentwicklung2),0,MATCH(DATE($B16,MONTH(K$13),1),Erfolgsrechnung_Detail!$O$8:$DF$8,0))), SUMIF(INDIRECT(dshbrdrng_umsatzentwicklung),"<>", INDEX(INDIRECT(dshbrdrng_umsatzentwicklung2),0,MATCH(DATE($B16,MONTH(K$13),1),Erfolgsrechnung_Detail!$O$8:$DF$8,0)))+J16),"") -> 11991.35409 | L16: =IFERROR( IF(INDEX(tblUmsatzFltr[Nr],MATCH(filter_umsatz,tblUmsatzFltr[Umsatz Filter],0)) = 1, SUMIF(INDIRECT(dshbrdrng_umsatzentwicklung),"<>", INDEX(INDIRECT(dshbrdrng_umsatzentwicklung2),0,MATCH(DATE($B16,MONTH(L$13),1),Erfolgsrechnung_Detail!$O$8:$DF$8,0))), SUMIF(INDIRECT(dshbrdrng_umsatzentwicklung),"<>", INDEX(INDIRECT(dshbrdrng_umsatzentwicklung2),0,MATCH(DATE($B16,MONTH(L$13),1),Erfolgsrechnung_Detail!$O$8:$DF$8,0)))+K16),"") -> 12724.5716 | M16: =IFERROR( IF(INDEX(tblUmsatzFltr[Nr],MATCH(filter_umsatz,tblUmsatzFltr[Umsatz Filter],0)) = 1, SUMIF(INDIRECT(dshbrdrng_umsatzentwicklung),"<>", INDEX(INDIRECT(dshbrdrng_umsatzentwicklung2),0,MATCH(DATE($B16,MONTH(M$13),1),Erfolgsrechnung_Detail!$O$8:$DF$8,0))), SUMIF(INDIRECT(dshbrdrng_umsatzentwicklung),"<>", INDEX(INDIRECT(dshbrdrng_umsatzentwicklung2),0,MATCH(DATE($B16,MONTH(M$13),1),Erfolgsrechnung_Detail!$O$8:$DF$8,0)))+L16),"") -> 16935.97966 | N16: =IFERROR( IF(INDEX(tblUmsatzFltr[Nr],MATCH(filter_umsatz,tblUmsatzFltr[Umsatz Filter],0)) = 1, SUMIF(INDIRECT(dshbrdrng_umsatzentwicklung),"<>", INDEX(INDIRECT(dshbrdrng_umsatzentwicklung2),0,MATCH(DATE($B16,MONTH(N$13),1),Erfolgsrechnung_Detail!$O$8:$DF$8,0))), SUMIF(INDIRECT(dshbrdrng_umsatzentwicklung),"<>", INDEX(INDIRECT(dshbrdrng_umsatzentwicklung2),0,MATCH(DATE($B16,MONTH(N$13),1),Erfolgsrechnung_Detail!$O$8:$DF$8,0)))+M16),"") -> 20817.05433 | P16: =IFERROR(IF( INDEX(tblUmsatzFltr[Nr],MATCH(filter_umsatz,tblUmsatzFltr[Umsatz Filter],0))=1, SUM($C16:INDEX($C16:$N16,1,selectedmonat_num)), INDEX($C16:$N16,0,MATCH(monat,tblMonate[Monate],0))),"") -> 73262.94719 | Q16: =IFERROR( IF(INDEX(tblUmsatzFltr[Nr],MATCH(filter_umsatz,tblUmsatzFltr[Umsatz Filter],0))=1, SUM(C16:$N16),N16),"") -> 181298.7894
B17: 2017 | C17: =IFERROR( SUMIF(INDIRECT(dshbrdrng_umsatzentwicklung),"<>", INDEX(INDIRECT(dshbrdrng_umsatzentwicklung2),0,MATCH(DATE($B17,MONTH(C$13),1),Erfolgsrechnung_Detail!$O$8:$DF$8,0))), "") -> 13862.74706 | D17: =IFERROR( IF(INDEX(tblUmsatzFltr[Nr],MATCH(filter_umsatz,tblUmsatzFltr[Umsatz Filter],0)) = 1, SUMIF(INDIRECT(dshbrdrng_umsatzentwicklung),"<>", INDEX(INDIRECT(dshbrdrng_umsatzentwicklung2),0,MATCH(DATE($B17,MONTH(D$13),1),Erfolgsrechnung_Detail!$O$8:$DF$8,0))), SUMIF(INDIRECT(dshbrdrng_umsatzentwicklung),"<>", INDEX(INDIRECT(dshbrdrng_umsatzentwicklung2),0,MATCH(DATE($B17,MONTH(D$13),1),Erfolgsrechnung_Detail!$O$8:$DF$8,0)))+C17),"") -> 8684.908671 | E17: =IFERROR( IF(INDEX(tblUmsatzFltr[Nr],MATCH(filter_umsatz,tblUmsatzFltr[Umsatz Filter],0)) = 1, SUMIF(INDIRECT(dshbrdrng_umsatzentwicklung),"<>", INDEX(INDIRECT(dshbrdrng_umsatzentwicklung2),0,MATCH(DATE($B17,MONTH(E$13),1),Erfolgsrechnung_Detail!$O$8:$DF$8,0))), SUMIF(INDIRECT(dshbrdrng_umsatzentwicklung),"<>", INDEX(INDIRECT(dshbrdrng_umsatzentwicklung2),0,MATCH(DATE($B17,MONTH(E$13),1),Erfolgsrechnung_Detail!$O$8:$DF$8,0)))+D17),"") -> 10309.3829 | F17: =IFERROR( IF(INDEX(tblUmsatzFltr[Nr],MATCH(filter_umsatz,tblUmsatzFltr[Umsatz Filter],0)) = 1, SUMIF(INDIRECT(dshbrdrng_umsatzentwicklung),"<>", INDEX(INDIRECT(dshbrdrng_umsatzentwicklung2),0,MATCH(DATE($B17,MONTH(F$13),1),Erfolgsrechnung_Detail!$O$8:$DF$8,0))), SUMIF(INDIRECT(dshbrdrng_umsatzentwicklung),"<>", INDEX(INDIRECT(dshbrdrng_umsatzentwicklung2),0,MATCH(DATE($B17,MONTH(F$13),1),Erfolgsrechnung_Detail!$O$8:$DF$8,0)))+E17),"") -> 9077.361267 | G17: =IFERROR( IF(INDEX(tblUmsatzFltr[Nr],MATCH(filter_umsatz,tblUmsatzFltr[Umsatz Filter],0)) = 1, SUMIF(INDIRECT(dshbrdrng_umsatzentwicklung),"<>", INDEX(INDIRECT(dshbrdrng_umsatzentwicklung2),0,MATCH(DATE($B17,MONTH(G$13),1),Erfolgsrechnung_Detail!$O$8:$DF$8,0))), SUMIF(INDIRECT(dshbrdrng_umsatzentwicklung),"<>", INDEX(INDIRECT(dshbrdrng_umsatzentwicklung2),0,MATCH(DATE($B17,MONTH(G$13),1),Erfolgsrechnung_Detail!$O$8:$DF$8,0)))+F17),"") -> 19511.27415 | H17: =IFERROR( IF(INDEX(tblUmsatzFltr[Nr],MATCH(filter_umsatz,tblUmsatzFltr[Umsatz Filter],0)) = 1, SUMIF(INDIRECT(dshbrdrng_umsatzentwicklung),"<>", INDEX(INDIRECT(dshbrdrng_umsatzentwicklung2),0,MATCH(DATE($B17,MONTH(H$13),1),Erfolgsrechnung_Detail!$O$8:$DF$8,0))), SUMIF(INDIRECT(dshbrdrng_umsatzentwicklung),"<>", INDEX(INDIRECT(dshbrdrng_umsatzentwicklung2),0,MATCH(DATE($B17,MONTH(H$13),1),Erfolgsrechnung_Detail!$O$8:$DF$8,0)))+G17),"") -> 33408.55012 | I17: =IFERROR( IF(INDEX(tblUmsatzFltr[Nr],MATCH(filter_umsatz,tblUmsatzFltr[Umsatz Filter],0)) = 1, SUMIF(INDIRECT(dshbrdrng_umsatzentwicklung),"<>", INDEX(INDIRECT(dshbrdrng_umsatzentwicklung2),0,MATCH(DATE($B17,MONTH(I$13),1),Erfolgsrechnung_Detail!$O$8:$DF$8,0))), SUMIF(INDIRECT(dshbrdrng_umsatzentwicklung),"<>", INDEX(INDIRECT(dshbrdrng_umsatzentwicklung2),0,MATCH(DATE($B17,MONTH(I$13),1),Erfolgsrechnung_Detail!$O$8:$DF$8,0)))+H17),"") -> 23007.52904 | J17: =IFERROR( IF(INDEX(tblUmsatzFltr[Nr],MATCH(filter_umsatz,tblUmsatzFltr[Umsatz Filter],0)) = 1, SUMIF(INDIRECT(dshbrdrng_umsatzentwicklung),"<>", INDEX(INDIRECT(dshbrdrng_umsatzentwicklung2),0,MATCH(DATE($B17,MONTH(J$13),1),Erfolgsrechnung_Detail!$O$8:$DF$8,0))), SUMIF(INDIRECT(dshbrdrng_umsatzentwicklung),"<>", INDEX(INDIRECT(dshbrdrng_umsatzentwicklung2),0,MATCH(DATE($B17,MONTH(J$13),1),Erfolgsrechnung_Detail!$O$8:$DF$8,0)))+I17),"") -> 35615.69374 | K17: =IFERROR( IF(INDEX(tblUmsatzFltr[Nr],MATCH(filter_umsatz,tblUmsatzFltr[Umsatz Filter],0)) = 1, SUMIF(INDIRECT(dshbrdrng_umsatzentwicklung),"<>", INDEX(INDIRECT(dshbrdrng_umsatzentwicklung2),0,MATCH(DATE($B17,MONTH(K$13),1),Erfolgsrechnung_Detail!$O$8:$DF$8,0))), SUMIF(INDIRECT(dshbrdrng_umsatzentwicklung),"<>", INDEX(INDIRECT(dshbrdrng_umsatzentwicklung2),0,MATCH(DATE($B17,MONTH(K$13),1),Erfolgsrechnung_Detail!$O$8:$DF$8,0)))+J17),"") -> 17968.16685 | L17: =IFERROR( IF(INDEX(tblUmsatzFltr[Nr],MATCH(filter_umsatz,tblUmsatzFltr[Umsatz Filter],0)) = 1, SUMIF(INDIRECT(dshbrdrng_umsatzentwicklung),"<>", INDEX(INDIRECT(dshbrdrng_umsatzentwicklung2),0,MATCH(DATE($B17,MONTH(L$13),1),Erfolgsrechnung_Detail!$O$8:$DF$8,0))), SUMIF(INDIRECT(dshbrdrng_umsatzentwicklung),"<>", INDEX(INDIRECT(dshbrdrng_umsatzentwicklung2),0,MATCH(DATE($B17,MONTH(L$13),1),Erfolgsrechnung_Detail!$O$8:$DF$8,0)))+K17),"") -> 19459.94594 | M17: =IFERROR( IF(INDEX(tblUmsatzFltr[Nr],MATCH(filter_umsatz,tblUmsatzFltr[Umsatz Filter],0)) = 1, SUMIF(INDIRECT(dshbrdrng_umsatzentwicklung),"<>", INDEX(INDIRECT(dshbrdrng_umsatzentwicklung2),0,MATCH(DATE($B17,MONTH(M$13),1),Erfolgsrechnung_Detail!$O$8:$DF$8,0))), SUMIF(INDIRECT(dshbrdrng_umsatzentwicklung),"<>", INDEX(INDIRECT(dshbrdrng_umsatzentwicklung2),0,MATCH(DATE($B17,MONTH(M$13),1),Erfolgsrechnung_Detail!$O$8:$DF$8,0)))+L17),"") -> 19356.96911 | N17: =IFERROR( IF(INDEX(tblUmsatzFltr[Nr],MATCH(filter_umsatz,tblUmsatzFltr[Umsatz Filter],0)) = 1, SUMIF(INDIRECT(dshbrdrng_umsatzentwicklung),"<>", INDEX(INDIRECT(dshbrdrng_umsatzentwicklung2),0,MATCH(DATE($B17,MONTH(N$13),1),Erfolgsrechnung_Detail!$O$8:$DF$8,0))), SUMIF(INDIRECT(dshbrdrng_umsatzentwicklung),"<>", INDEX(INDIRECT(dshbrdrng_umsatzentwicklung2),0,MATCH(DATE($B17,MONTH(N$13),1),Erfolgsrechnung_Detail!$O$8:$DF$8,0)))+M17),"") -> 14633.41647 | P17: =IFERROR(IF( INDEX(tblUmsatzFltr[Nr],MATCH(filter_umsatz,tblUmsatzFltr[Umsatz Filter],0))=1, SUM($C17:INDEX($C17:$N17,1,selectedmonat_num)), INDEX($C17:$N17,0,MATCH(monat,tblMonate[Monate],0))),"") -> 32857.03864 | Q17: =IFERROR( IF(INDEX(tblUmsatzFltr[Nr],MATCH(filter_umsatz,tblUmsatzFltr[Umsatz Filter],0))=1, SUM(C17:$N17),N17),"") -> 224895.9453
B18: 2018 | C18: =IFERROR( SUMIF(INDIRECT(dshbrdrng_umsatzentwicklung),"<>", INDEX(INDIRECT(dshbrdrng_umsatzentwicklung2),0,MATCH(DATE($B18,MONTH(C$13),1),Erfolgsrechnung_Detail!$O$8:$DF$8,0))), "") -> 8432.930712 | D18: =IFERROR( IF(INDEX(tblUmsatzFltr[Nr],MATCH(filter_umsatz,tblUmsatzFltr[Umsatz Filter],0)) = 1, SUMIF(INDIRECT(dshbrdrng_umsatzentwicklung),"<>", INDEX(INDIRECT(dshbrdrng_umsatzentwicklung2),0,MATCH(DATE($B18,MONTH(D$13),1),Erfolgsrechnung_Detail!$O$8:$DF$8,0))), SUMIF(INDIRECT(dshbrdrng_umsatzentwicklung),"<>", INDEX(INDIRECT(dshbrdrng_umsatzentwicklung2),0,MATCH(DATE($B18,MONTH(D$13),1),Erfolgsrechnung_Detail!$O$8:$DF$8,0)))+C18),"") -> 5854.400616 | E18: =IFERROR( IF(INDEX(tblUmsatzFltr[Nr],MATCH(filter_umsatz,tblUmsatzFltr[Umsatz Filter],0)) = 1, SUMIF(INDIRECT(dshbrdrng_umsatzentwicklung),"<>", INDEX(INDIRECT(dshbrdrng_umsatzentwicklung2),0,MATCH(DATE($B18,MONTH(E$13),1),Erfolgsrechnung_Detail!$O$8:$DF$8,0))), SUMIF(INDIRECT(dshbrdrng_umsatzentwicklung),"<>", INDEX(INDIRECT(dshbrdrng_umsatzentwicklung2),0,MATCH(DATE($B18,MONTH(E$13),1),Erfolgsrechnung_Detail!$O$8:$DF$8,0)))+D18),"") -> 8649.145205 | F18: =IFERROR( IF(INDEX(tblUmsatzFltr[Nr],MATCH(filter_umsatz,tblUmsatzFltr[Umsatz Filter],0)) = 1, SUMIF(INDIRECT(dshbrdrng_umsatzentwicklung),"<>", INDEX(INDIRECT(dshbrdrng_umsatzentwicklung2),0,MATCH(DATE($B18,MONTH(F$13),1),Erfolgsrechnung_Detail!$O$8:$DF$8,0))), SUMIF(INDIRECT(dshbrdrng_umsatzentwicklung),"<>", INDEX(INDIRECT(dshbrdrng_umsatzentwicklung2),0,MATCH(DATE($B18,MONTH(F$13),1),Erfolgsrechnung_Detail!$O$8:$DF$8,0)))+E18),"") -> 12304.652 | G18: =IFERROR( IF(INDEX(tblUmsatzFltr[Nr],MATCH(filter_umsatz,tblUmsatzFltr[Umsatz Filter],0)) = 1, SUMIF(INDIRECT(dshbrdrng_umsatzentwicklung),"<>", INDEX(INDIRECT(dshbrdrng_umsatzentwicklung2),0,MATCH(DATE($B18,MONTH(G$13),1),Erfolgsrechnung_Detail!$O$8:$DF$8,0))), SUMIF(INDIRECT(dshbrdrng_umsatzentwicklung),"<>", INDEX(INDIRECT(dshbrdrng_umsatzentwicklung2),0,MATCH(DATE($B18,MONTH(G$13),1),Erfolgsrechnung_Detail!$O$8:$DF$8,0)))+F18),"") -> 8256.973692 | H18: =IFERROR( IF(INDEX(tblUmsatzFltr[Nr],MATCH(filter_umsatz,tblUmsatzFltr[Umsatz Filter],0)) = 1, SUMIF(INDIRECT(dshbrdrng_umsatzentwicklung),"<>", INDEX(INDIRECT(dshbrdrng_umsatzentwicklung2),0,MATCH(DATE($B18,MONTH(H$13),1),Erfolgsrechnung_Detail!$O$8:$DF$8,0))), SUMIF(INDIRECT(dshbrdrng_umsatzentwicklung),"<>", INDEX(INDIRECT(dshbrdrng_umsatzentwicklung2),0,MATCH(DATE($B18,MONTH(H$13),1),Erfolgsrechnung_Detail!$O$8:$DF$8,0)))+G18),"") -> 9525.921238 | I18: =IFERROR( IF(INDEX(tblUmsatzFltr[Nr],MATCH(filter_umsatz,tblUmsatzFltr[Umsatz Filter],0)) = 1, SUMIF(INDIRECT(dshbrdrng_umsatzentwicklung),"<>", INDEX(INDIRECT(dshbrdrng_umsatzentwicklung2),0,MATCH(DATE($B18,MONTH(I$13),1),Erfolgsrechnung_Detail!$O$8:$DF$8,0))), SUMIF(INDIRECT(dshbrdrng_umsatzentwicklung),"<>", INDEX(INDIRECT(dshbrdrng_umsatzentwicklung2),0,MATCH(DATE($B18,MONTH(I$13),1),Erfolgsrechnung_Detail!$O$8:$DF$8,0)))+H18),"") -> 8208.386541 | J18: =IFERROR( IF(INDEX(tblUmsatzFltr[Nr],MATCH(filter_umsatz,tblUmsatzFltr[Umsatz Filter],0)) = 1, SUMIF(INDIRECT(dshbrdrng_umsatzentwicklung),"<>", INDEX(INDIRECT(dshbrdrng_umsatzentwicklung2),0,MATCH(DATE($B18,MONTH(J$13),1),Erfolgsrechnung_Detail!$O$8:$DF$8,0))), SUMIF(INDIRECT(dshbrdrng_umsatzentwicklung),"<>", INDEX(INDIRECT(dshbrdrng_umsatzentwicklung2),0,MATCH(DATE($B18,MONTH(J$13),1),Erfolgsrechnung_Detail!$O$8:$DF$8,0)))+I18),"") -> 11595.00744 | K18: =IFERROR( IF(INDEX(tblUmsatzFltr[Nr],MATCH(filter_umsatz,tblUmsatzFltr[Umsatz Filter],0)) = 1, SUMIF(INDIRECT(dshbrdrng_umsatzentwicklung),"<>", INDEX(INDIRECT(dshbrdrng_umsatzentwicklung2),0,MATCH(DATE($B18,MONTH(K$13),1),Erfolgsrechnung_Detail!$O$8:$DF$8,0))), SUMIF(INDIRECT(dshbrdrng_umsatzentwicklung),"<>", INDEX(INDIRECT(dshbrdrng_umsatzentwicklung2),0,MATCH(DATE($B18,MONTH(K$13),1),Erfolgsrechnung_Detail!$O$8:$DF$8,0)))+J18),"") -> 14092.93111 | L18: =IFERROR( IF(INDEX(tblUmsatzFltr[Nr],MATCH(filter_umsatz,tblUmsatzFltr[Umsatz Filter],0)) = 1, SUMIF(INDIRECT(dshbrdrng_umsatzentwicklung),"<>", INDEX(INDIRECT(dshbrdrng_umsatzentwicklung2),0,MATCH(DATE($B18,MONTH(L$13),1),Erfolgsrechnung_Detail!$O$8:$DF$8,0))), SUMIF(INDIRECT(dshbrdrng_umsatzentwicklung),"<>", INDEX(INDIRECT(dshbrdrng_umsatzentwicklung2),0,MATCH(DATE($B18,MONTH(L$13),1),Erfolgsrechnung_Detail!$O$8:$DF$8,0)))+K18),"") -> 4986.144418 | M18: =IFERROR( IF(INDEX(tblUmsatzFltr[Nr],MATCH(filter_umsatz,tblUmsatzFltr[Umsatz Filter],0)) = 1, SUMIF(INDIRECT(dshbrdrng_umsatzentwicklung),"<>", INDEX(INDIRECT(dshbrdrng_umsatzentwicklung2),0,MATCH(DATE($B18,MONTH(M$13),1),Erfolgsrechnung_Detail!$O$8:$DF$8,0))), SUMIF(INDIRECT(dshbrdrng_umsatzentwicklung),"<>", INDEX(INDIRECT(dshbrdrng_umsatzentwicklung2),0,MATCH(DATE($B18,MONTH(M$13),1),Erfolgsrechnung_Detail!$O$8:$DF$8,0)))+L18),"") -> 14035.2552 | N18: =IFERROR( IF(INDEX(tblUmsatzFltr[Nr],MATCH(filter_umsatz,tblUmsatzFltr[Umsatz Filter],0)) = 1, SUMIF(INDIRECT(dshbrdrng_umsatzentwicklung),"<>", INDEX(INDIRECT(dshbrdrng_umsatzentwicklung2),0,MATCH(DATE($B18,MONTH(N$13),1),Erfolgsrechnung_Detail!$O$8:$DF$8,0))), SUMIF(INDIRECT(dshbrdrng_umsatzentwicklung),"<>", INDEX(INDIRECT(dshbrdrng_umsatzentwicklung2),0,MATCH(DATE($B18,MONTH(N$13),1),Erfolgsrechnung_Detail!$O$8:$DF$8,0)))+M18),"") -> 12021.77801 | P18: =IFERROR(IF( INDEX(tblUmsatzFltr[Nr],MATCH(filter_umsatz,tblUmsatzFltr[Umsatz Filter],0))=1, SUM($C18:INDEX($C18:$N18,1,selectedmonat_num)), INDEX($C18:$N18,0,MATCH(monat,tblMonate[Monate],0))),"") -> 22936.47653 | Q18: =IFERROR( IF(INDEX(tblUmsatzFltr[Nr],MATCH(filter_umsatz,tblUmsatzFltr[Umsatz Filter],0))=1, SUM(C18:$N18),N18),"") -> 117963.5262
B19: 2019 | C19: =IFERROR( SUMIF(INDIRECT(dshbrdrng_umsatzentwicklung),"<>", INDEX(INDIRECT(dshbrdrng_umsatzentwicklung2),0,MATCH(DATE($B19,MONTH(C$13),1),Erfolgsrechnung_Detail!$O$8:$DF$8,0))), "") -> 5814.865707 | D19: =IFERROR( IF(INDEX(tblUmsatzFltr[Nr],MATCH(filter_umsatz,tblUmsatzFltr[Umsatz Filter],0)) = 1, SUMIF(INDIRECT(dshbrdrng_umsatzentwicklung),"<>", INDEX(INDIRECT(dshbrdrng_umsatzentwicklung2),0,MATCH(DATE($B19,MONTH(D$13),1),Erfolgsrechnung_Detail!$O$8:$DF$8,0))), SUMIF(INDIRECT(dshbrdrng_umsatzentwicklung),"<>", INDEX(INDIRECT(dshbrdrng_umsatzentwicklung2),0,MATCH(DATE($B19,MONTH(D$13),1),Erfolgsrechnung_Detail!$O$8:$DF$8,0)))+C19),"") -> 18402.39223 | E19: =IFERROR( IF(INDEX(tblUmsatzFltr[Nr],MATCH(filter_umsatz,tblUmsatzFltr[Umsatz Filter],0)) = 1, SUMIF(INDIRECT(dshbrdrng_umsatzentwicklung),"<>", INDEX(INDIRECT(dshbrdrng_umsatzentwicklung2),0,MATCH(DATE($B19,MONTH(E$13),1),Erfolgsrechnung_Detail!$O$8:$DF$8,0))), SUMIF(INDIRECT(dshbrdrng_umsatzentwicklung),"<>", INDEX(INDIRECT(dshbrdrng_umsatzentwicklung2),0,MATCH(DATE($B19,MONTH(E$13),1),Erfolgsrechnung_Detail!$O$8:$DF$8,0)))+D19),"") -> 17246.95821 | F19: =IFERROR( IF(INDEX(tblUmsatzFltr[Nr],MATCH(filter_umsatz,tblUmsatzFltr[Umsatz Filter],0)) = 1, SUMIF(INDIRECT(dshbrdrng_umsatzentwicklung),"<>", INDEX(INDIRECT(dshbrdrng_umsatzentwicklung2),0,MATCH(DATE($B19,MONTH(F$13),1),Erfolgsrechnung_Detail!$O$8:$DF$8,0))), SUMIF(INDIRECT(dshbrdrng_umsatzentwicklung),"<>", INDEX(INDIRECT(dshbrdrng_umsatzentwicklung2),0,MATCH(DATE($B19,MONTH(F$13),1),Erfolgsrechnung_Detail!$O$8:$DF$8,0)))+E19),"") -> 18935.23313 | G19: =IFERROR( IF(INDEX(tblUmsatzFltr[Nr],MATCH(filter_umsatz,tblUmsatzFltr[Umsatz Filter],0)) = 1, SUMIF(INDIRECT(dshbrdrng_umsatzentwicklung),"<>", INDEX(INDIRECT(dshbrdrng_umsatzentwicklung2),0,MATCH(DATE($B19,MONTH(G$13),1),Erfolgsrechnung_Detail!$O$8:$DF$8,0))), SUMIF(INDIRECT(dshbrdrng_umsatzentwicklung),"<>", INDEX(INDIRECT(dshbrdrng_umsatzentwicklung2),0,MATCH(DATE($B19,MONTH(G$13),1),Erfolgsrechnung_Detail!$O$8:$DF$8,0)))+F19),"") -> 26050.16776 | H19: =IFERROR( IF(INDEX(tblUmsatzFltr[Nr],MATCH(filter_umsatz,tblUmsatzFltr[Umsatz Filter],0)) = 1, SUMIF(INDIRECT(dshbrdrng_umsatzentwicklung),"<>", INDEX(INDIRECT(dshbrdrng_umsatzentwicklung2),0,MATCH(DATE($B19,MONTH(H$13),1),Erfolgsrechnung_Detail!$O$8:$DF$8,0))), SUMIF(INDIRECT(dshbrdrng_umsatzentwicklung),"<>", INDEX(INDIRECT(dshbrdrng_umsatzentwicklung2),0,MATCH(DATE($B19,MONTH(H$13),1),Erfolgsrechnung_Detail!$O$8:$DF$8,0)))+G19),"") -> 15989.60108 | I19: =IFERROR( IF(INDEX(tblUmsatzFltr[Nr],MATCH(filter_umsatz,tblUmsatzFltr[Umsatz Filter],0)) = 1, SUMIF(INDIRECT(dshbrdrng_umsatzentwicklung),"<>", INDEX(INDIRECT(dshbrdrng_umsatzentwicklung2),0,MATCH(DATE($B19,MONTH(I$13),1),Erfolgsrechnung_Detail!$O$8:$DF$8,0))), SUMIF(INDIRECT(dshbrdrng_umsatzentwicklung),"<>", INDEX(INDIRECT(dshbrdrng_umsatzentwicklung2),0,MATCH(DATE($B19,MONTH(I$13),1),Erfolgsrechnung_Detail!$O$8:$DF$8,0)))+H19),"") -> 18902.90444 | J19: =IFERROR( IF(INDEX(tblUmsatzFltr[Nr],MATCH(filter_umsatz,tblUmsatzFltr[Umsatz Filter],0)) = 1, SUMIF(INDIRECT(dshbrdrng_umsatzentwicklung),"<>", INDEX(INDIRECT(dshbrdrng_umsatzentwicklung2),0,MATCH(DATE($B19,MONTH(J$13),1),Erfolgsrechnung_Detail!$O$8:$DF$8,0))), SUMIF(INDIRECT(dshbrdrng_umsatzentwicklung),"<>", INDEX(INDIRECT(dshbrdrng_umsatzentwicklung2),0,MATCH(DATE($B19,MONTH(J$13),1),Erfolgsrechnung_Detail!$O$8:$DF$8,0)))+I19),"") -> 18684.03714 | K19: =IFERROR( IF(INDEX(tblUmsatzFltr[Nr],MATCH(filter_umsatz,tblUmsatzFltr[Umsatz Filter],0)) = 1, SUMIF(INDIRECT(dshbrdrng_umsatzentwicklung),"<>", INDEX(INDIRECT(dshbrdrng_umsatzentwicklung2),0,MATCH(DATE($B19,MONTH(K$13),1),Erfolgsrechnung_Detail!$O$8:$DF$8,0))), SUMIF(INDIRECT(dshbrdrng_umsatzentwicklung),"<>", INDEX(INDIRECT(dshbrdrng_umsatzentwicklung2),0,MATCH(DATE($B19,MONTH(K$13),1),Erfolgsrechnung_Detail!$O$8:$DF$8,0)))+J19),"") -> 14732.79716 | L19: =IFERROR( IF(INDEX(tblUmsatzFltr[Nr],MATCH(filter_umsatz,tblUmsatzFltr[Umsatz Filter],0)) = 1, SUMIF(INDIRECT(dshbrdrng_umsatzentwicklung),"<>", INDEX(INDIRECT(dshbrdrng_umsatzentwicklung2),0,MATCH(DATE($B19,MONTH(L$13),1),Erfolgsrechnung_Detail!$O$8:$DF$8,0))), SUMIF(INDIRECT(dshbrdrng_umsatzentwicklung),"<>", INDEX(INDIRECT(dshbrdrng_umsatzentwicklung2),0,MATCH(DATE($B19,MONTH(L$13),1),Erfolgsrechnung_Detail!$O$8:$DF$8,0)))+K19),"") -> 15375.7709 | M19: =IFERROR( IF(INDEX(tblUmsatzFltr[Nr],MATCH(filter_umsatz,tblUmsatzFltr[Umsatz Filter],0)) = 1, SUMIF(INDIRECT(dshbrdrng_umsatzentwicklung),"<>", INDEX(INDIRECT(dshbrdrng_umsatzentwicklung2),0,MATCH(DATE($B19,MONTH(M$13),1),Erfolgsrechnung_Detail!$O$8:$DF$8,0))), SUMIF(INDIRECT(dshbrdrng_umsatzentwicklung),"<>", INDEX(INDIRECT(dshbrdrng_umsatzentwicklung2),0,MATCH(DATE($B19,MONTH(M$13),1),Erfolgsrechnung_Detail!$O$8:$DF$8,0)))+L19),"") -> 14811.98606 | N19: =IFERROR( IF(INDEX(tblUmsatzFltr[Nr],MATCH(filter_umsatz,tblUmsatzFltr[Umsatz Filter],0)) = 1, SUMIF(INDIRECT(dshbrdrng_umsatzentwicklung),"<>", INDEX(INDIRECT(dshbrdrng_umsatzentwicklung2),0,MATCH(DATE($B19,MONTH(N$13),1),Erfolgsrechnung_Detail!$O$8:$DF$8,0))), SUMIF(INDIRECT(dshbrdrng_umsatzentwicklung),"<>", INDEX(INDIRECT(dshbrdrng_umsatzentwicklung2),0,MATCH(DATE($B19,MONTH(N$13),1),Erfolgsrechnung_Detail!$O$8:$DF$8,0)))+M19),"") -> 18795.03147 | P19: =IFERROR(IF( INDEX(tblUmsatzFltr[Nr],MATCH(filter_umsatz,tblUmsatzFltr[Umsatz Filter],0))=1, SUM($C19:INDEX($C19:$N19,1,selectedmonat_num)), INDEX($C19:$N19,0,MATCH(monat,tblMonate[Monate],0))),"") -> 41464.21614 | Q19: =IFERROR( IF(INDEX(tblUmsatzFltr[Nr],MATCH(filter_umsatz,tblUmsatzFltr[Umsatz Filter],0))=1, SUM(C19:$N19),N19),"") -> 203741.7453
B20: =jahr -> 2020 | C20: =IFERROR( SUMIF(INDIRECT(dshbrdrng_umsatzentwicklung),"<>", INDEX(INDIRECT(dshbrdrng_umsatzentwicklung2),0,MATCH(DATE($B20,MONTH(C$13),1),Erfolgsrechnung_Detail!$O$8:$DF$8,0))), "") -> 14530.10149 | D20: =IFERROR( IF(INDEX(tblUmsatzFltr[Nr],MATCH(filter_umsatz,tblUmsatzFltr[Umsatz Filter],0)) = 1, SUMIF(INDIRECT(dshbrdrng_umsatzentwicklung),"<>", INDEX(INDIRECT(dshbrdrng_umsatzentwicklung2),0,MATCH(DATE($B20,MONTH(D$13),1),Erfolgsrechnung_Detail!$O$8:$DF$8,0))), SUMIF(INDIRECT(dshbrdrng_umsatzentwicklung),"<>", INDEX(INDIRECT(dshbrdrng_umsatzentwicklung2),0,MATCH(DATE($B20,MONTH(D$13),1),Erfolgsrechnung_Detail!$O$8:$DF$8,0)))+C20),"") -> 9715.682272 | E20: =IFERROR( IF(INDEX(tblUmsatzFltr[Nr],MATCH(filter_umsatz,tblUmsatzFltr[Umsatz Filter],0)) = 1, SUMIF(INDIRECT(dshbrdrng_umsatzentwicklung),"<>", INDEX(INDIRECT(dshbrdrng_umsatzentwicklung2),0,MATCH(DATE($B20,MONTH(E$13),1),Erfolgsrechnung_Detail!$O$8:$DF$8,0))), SUMIF(INDIRECT(dshbrdrng_umsatzentwicklung),"<>", INDEX(INDIRECT(dshbrdrng_umsatzentwicklung2),0,MATCH(DATE($B20,MONTH(E$13),1),Erfolgsrechnung_Detail!$O$8:$DF$8,0)))+D20),"") -> 15595.99576 | F20: =IFERROR( IF(INDEX(tblUmsatzFltr[Nr],MATCH(filter_umsatz,tblUmsatzFltr[Umsatz Filter],0)) = 1, SUMIF(INDIRECT(dshbrdrng_umsatzentwicklung),"<>", INDEX(INDIRECT(dshbrdrng_umsatzentwicklung2),0,MATCH(DATE($B20,MONTH(F$13),1),Erfolgsrechnung_Detail!$O$8:$DF$8,0))), SUMIF(INDIRECT(dshbrdrng_umsatzentwicklung),"<>", INDEX(INDIRECT(dshbrdrng_umsatzentwicklung2),0,MATCH(DATE($B20,MONTH(F$13),1),Erfolgsrechnung_Detail!$O$8:$DF$8,0)))+E20),"") -> 5331.863025 | G20: =IFERROR( IF(INDEX(tblUmsatzFltr[Nr],MATCH(filter_umsatz,tblUmsatzFltr[Umsatz Filter],0)) = 1, SUMIF(INDIRECT(dshbrdrng_umsatzentwicklung),"<>", INDEX(INDIRECT(dshbrdrng_umsatzentwicklung2),0,MATCH(DATE($B20,MONTH(G$13),1),Erfolgsrechnung_Detail!$O$8:$DF$8,0))), SUMIF(INDIRECT(dshbrdrng_umsatzentwicklung),"<>", INDEX(INDIRECT(dshbrdrng_umsatzentwicklung2),0,MATCH(DATE($B20,MONTH(G$13),1),Erfolgsrechnung_Detail!$O$8:$DF$8,0)))+F20),"") -> 11216.14282 | H20: =IFERROR( IF(INDEX(tblUmsatzFltr[Nr],MATCH(filter_umsatz,tblUmsatzFltr[Umsatz Filter],0)) = 1, SUMIF(INDIRECT(dshbrdrng_umsatzentwicklung),"<>", INDEX(INDIRECT(dshbrdrng_umsatzentwicklung2),0,MATCH(DATE($B20,MONTH(H$13),1),Erfolgsrechnung_Detail!$O$8:$DF$8,0))), SUMIF(INDIRECT(dshbrdrng_umsatzentwicklung),"<>", INDEX(INDIRECT(dshbrdrng_umsatzentwicklung2),0,MATCH(DATE($B20,MONTH(H$13),1),Erfolgsrechnung_Detail!$O$8:$DF$8,0)))+G20),"") -> 28325.00352 | I20: =IFERROR( IF(INDEX(tblUmsatzFltr[Nr],MATCH(filter_umsatz,tblUmsatzFltr[Umsatz Filter],0)) = 1, SUMIF(INDIRECT(dshbrdrng_umsatzentwicklung),"<>", INDEX(INDIRECT(dshbrdrng_umsatzentwicklung2),0,MATCH(DATE($B20,MONTH(I$13),1),Erfolgsrechnung_Detail!$O$8:$DF$8,0))), SUMIF(INDIRECT(dshbrdrng_umsatzentwicklung),"<>", INDEX(INDIRECT(dshbrdrng_umsatzentwicklung2),0,MATCH(DATE($B20,MONTH(I$13),1),Erfolgsrechnung_Detail!$O$8:$DF$8,0)))+H20),"") -> 11652.74104 | J20: =IFERROR( IF(INDEX(tblUmsatzFltr[Nr],MATCH(filter_umsatz,tblUmsatzFltr[Umsatz Filter],0)) = 1, SUMIF(INDIRECT(dshbrdrng_umsatzentwicklung),"<>", INDEX(INDIRECT(dshbrdrng_umsatzentwicklung2),0,MATCH(DATE($B20,MONTH(J$13),1),Erfolgsrechnung_Detail!$O$8:$DF$8,0))), SUMIF(INDIRECT(dshbrdrng_umsatzentwicklung),"<>", INDEX(INDIRECT(dshbrdrng_umsatzentwicklung2),0,MATCH(DATE($B20,MONTH(J$13),1),Erfolgsrechnung_Detail!$O$8:$DF$8,0)))+I20),"") -> 10740.19447 | K20: =IFERROR( IF(INDEX(tblUmsatzFltr[Nr],MATCH(filter_umsatz,tblUmsatzFltr[Umsatz Filter],0)) = 1, SUMIF(INDIRECT(dshbrdrng_umsatzentwicklung),"<>", INDEX(INDIRECT(dshbrdrng_umsatzentwicklung2),0,MATCH(DATE($B20,MONTH(K$13),1),Erfolgsrechnung_Detail!$O$8:$DF$8,0))), SUMIF(INDIRECT(dshbrdrng_umsatzentwicklung),"<>", INDEX(INDIRECT(dshbrdrng_umsatzentwicklung2),0,MATCH(DATE($B20,MONTH(K$13),1),Erfolgsrechnung_Detail!$O$8:$DF$8,0)))+J20),"") -> 7558.487305 | L20: =IFERROR( IF(INDEX(tblUmsatzFltr[Nr],MATCH(filter_umsatz,tblUmsatzFltr[Umsatz Filter],0)) = 1, SUMIF(INDIRECT(dshbrdrng_umsatzentwicklung),"<>", INDEX(INDIRECT(dshbrdrng_umsatzentwicklung2),0,MATCH(DATE($B20,MONTH(L$13),1),Erfolgsrechnung_Detail!$O$8:$DF$8,0))), SUMIF(INDIRECT(dshbrdrng_umsatzentwicklung),"<>", INDEX(INDIRECT(dshbrdrng_umsatzentwicklung2),0,MATCH(DATE($B20,MONTH(L$13),1),Erfolgsrechnung_Detail!$O$8:$DF$8,0)))+K20),"") -> 8563.750058 | M20: =IFERROR( IF(INDEX(tblUmsatzFltr[Nr],MATCH(filter_umsatz,tblUmsatzFltr[Umsatz Filter],0)) = 1, SUMIF(INDIRECT(dshbrdrng_umsatzentwicklung),"<>", INDEX(INDIRECT(dshbrdrng_umsatzentwicklung2),0,MATCH(DATE($B20,MONTH(M$13),1),Erfolgsrechnung_Detail!$O$8:$DF$8,0))), SUMIF(INDIRECT(dshbrdrng_umsatzentwicklung),"<>", INDEX(INDIRECT(dshbrdrng_umsatzentwicklung2),0,MATCH(DATE($B20,MONTH(M$13),1),Erfolgsrechnung_Detail!$O$8:$DF$8,0)))+L20),"") -> 14574.91864 | N20: =IFERROR( IF(INDEX(tblUmsatzFltr[Nr],MATCH(filter_umsatz,tblUmsatzFltr[Umsatz Filter],0)) = 1, SUMIF(INDIRECT(dshbrdrng_umsatzentwicklung),"<>", INDEX(INDIRECT(dshbrdrng_umsatzentwicklung2),0,MATCH(DATE($B20,MONTH(N$13),1),Erfolgsrechnung_Detail!$O$8:$DF$8,0))), SUMIF(INDIRECT(dshbrdrng_umsatzentwicklung),"<>", INDEX(INDIRECT(dshbrdrng_umsatzentwicklung2),0,MATCH(DATE($B20,MONTH(N$13),1),Erfolgsrechnung_Detail!$O$8:$DF$8,0)))+M20),"") -> 16779.69356 | P20: =IFERROR(IF( INDEX(tblUmsatzFltr[Nr],MATCH(filter_umsatz,tblUmsatzFltr[Umsatz Filter],0))=1, SUM($C20:INDEX($C20:$N20,1,selectedmonat_num)), INDEX($C20:$N20,0,MATCH(monat,tblMonate[Monate],0))),"") -> 39841.77952 | Q20: =IFERROR( IF(INDEX(tblUmsatzFltr[Nr],MATCH(filter_umsatz,tblUmsatzFltr[Umsatz Filter],0))=1, SUM(C20:$N20),N20),"") -> 154584.574
B21: YTD Wachstum | C21: =IFERROR(C20/C19-1,0) -> 1.498785393 | D21: =IFERROR(D20/D19-1,0) -> -0.4720424306 | E21: =IFERROR(E20/E19-1,0) -> -0.0957248478 | F21: -0.7184157708 | G21: -0.5694406684 | H21: 0.771464052 | I21: -0.3835475878 | J21: -0.425167356 | K21: -0.4869618292 | L21: -0.4430360523 | M21: -0.01600510746 | N21: -0.1072271634 | P21: =IFERROR(P20/P19-1,0) -> -0.03912859743 | Q21: =IFERROR(Q20/Q19-1,0) -> -0.2412719654
B23: Budget | C23: =IFERROR(SUMIFS(INDIRECT(budgetrng_umsatzentwicklung),INDIRECT(budgetrng),"<>"),"") -> 4999.9994 | D23: =IFERROR(SUMIFS(OFFSET(INDIRECT(budgetrng_umsatzentwicklung),0,1),INDIRECT(budgetrng),"<>"),"") -> 4999.9994 | E23: =IFERROR(SUMIFS(OFFSET(INDIRECT(budgetrng_umsatzentwicklung),0,2),INDIRECT(budgetrng),"<>"),"") -> 5999.9995 | F23: =IFERROR(SUMIFS(OFFSET(INDIRECT(budgetrng_umsatzentwicklung),0,3),INDIRECT(budgetrng),"<>"),"") -> 5999.9995 | G23: =IFERROR(SUMIFS(OFFSET(INDIRECT(budgetrng_umsatzentwicklung),0,4),INDIRECT(budgetrng),"<>"),"") -> 6999.9996 | H23: =IFERROR(SUMIFS(OFFSET(INDIRECT(budgetrng_umsatzentwicklung),0,5),INDIRECT(budgetrng),"<>"),"") -> 6999.9996 | I23: =IFERROR(SUMIFS(OFFSET(INDIRECT(budgetrng_umsatzentwicklung),0,6),INDIRECT(budgetrng),"<>"),"") -> 7999.9997 | J23: =IFERROR(SUMIFS(OFFSET(INDIRECT(budgetrng_umsatzentwicklung),0,7),INDIRECT(budgetrng),"<>"),"") -> 7999.9997 | K23: =IFERROR(SUMIFS(OFFSET(INDIRECT(budgetrng_umsatzentwicklung),0,8),INDIRECT(budgetrng),"<>"),"") -> 8999.9998 | L23: =IFERROR(SUMIFS(OFFSET(INDIRECT(budgetrng_umsatzentwicklung),0,9),INDIRECT(budgetrng),"<>"),"") -> 8999.9998 | M23: =IFERROR(SUMIFS(OFFSET(INDIRECT(budgetrng_umsatzentwicklung),0,10),INDIRECT(budgetrng),"<>"),"") -> 9999.9999 | N23: =IFERROR(SUMIFS(OFFSET(INDIRECT(budgetrng_umsatzentwicklung),0,11),INDIRECT(budgetrng),"<>"),"") -> 9999.9999 | P23: =SUM($C23:INDEX($C23:$N23,1,selectedmonat_num)) -> 15999.9983 | Q23: =SUM(rngBudget) -> 89999.9958
B26: Aktuelles Jahr vs. Vorjahr | P26: =IF(INDEX(tblMonate[Nr],MATCH(monat,tblMonate[Monate],0))<> 1, CONCATENATE("YTD ",Einstellungen!$AY$8," - ",monat," Umsatz Zielerreichung"), CONCATENATE("YTD ",Einstellungen!$AY$8," Umsatz Zielerreichungt")) -> YTD Januar - März Umsatz Zielerreichung
B28: Budget | C28: =C23 -> 4999.9994 | D28: =IF(INDEX(tblUmsatzFltr[Nr],MATCH($L$3,tblUmsatzFltr[Umsatz Filter],0)) = 1,D$23,D$23+C$28) -> 4999.9994 | E28: =IF(INDEX(tblUmsatzFltr[Nr],MATCH($L$3,tblUmsatzFltr[Umsatz Filter],0)) = 1,E$23,E$23+D$28) -> 5999.9995 | F28: =IF(INDEX(tblUmsatzFltr[Nr],MATCH($L$3,tblUmsatzFltr[Umsatz Filter],0)) = 1,F$23,F$23+E$28) -> 5999.9995 | G28: =IF(INDEX(tblUmsatzFltr[Nr],MATCH($L$3,tblUmsatzFltr[Umsatz Filter],0)) = 1,G$23,G$23+F$28) -> 6999.9996 | H28: =IF(INDEX(tblUmsatzFltr[Nr],MATCH($L$3,tblUmsatzFltr[Umsatz Filter],0)) = 1,H$23,H$23+G$28) -> 6999.9996 | I28: =IF(INDEX(tblUmsatzFltr[Nr],MATCH($L$3,tblUmsatzFltr[Umsatz Filter],0)) = 1,I$23,I$23+H$28) -> 7999.9997 | J28: =IF(INDEX(tblUmsatzFltr[Nr],MATCH($L$3,tblUmsatzFltr[Umsatz Filter],0)) = 1,J$23,J$23+I$28) -> 7999.9997 | K28: =IF(INDEX(tblUmsatzFltr[Nr],MATCH($L$3,tblUmsatzFltr[Umsatz Filter],0)) = 1,K$23,K$23+J$28) -> 8999.9998 | L28: =IF(INDEX(tblUmsatzFltr[Nr],MATCH($L$3,tblUmsatzFltr[Umsatz Filter],0)) = 1,L$23,L$23+K$28) -> 8999.9998 | M28: =IF(INDEX(tblUmsatzFltr[Nr],MATCH($L$3,tblUmsatzFltr[Umsatz Filter],0)) = 1,M$23,M$23+L$28) -> 9999.9999 | N28: =IF(INDEX(tblUmsatzFltr[Nr],MATCH($L$3,tblUmsatzFltr[Umsatz Filter],0)) = 1,N$23,N$23+M$28) -> 9999.9999
B47: Bruttogewinn /-Verlust
C49: =DATE(jahr,1,1) -> 2020-01-01 | D49: =EOMONTH(C49,0)+1 -> 2020-02-01 | E49: 2020-03-01 | F49: 2020-04-01 | G49: 2020-05-01 | H49: 2020-06-01 | I49: 2020-07-01 | J49: 2020-08-01 | K49: 2020-09-01 | L49: 2020-10-01 | M49: 2020-11-01 | N49: 2020-12-01 | P49: =P13 -> YTD Januar bis März | Q49: Total
B50: =B51-1 -> 2014 | C50: =IFERROR(C14+ SUMIF(INDIRECT(dshbrdrng_bruttogewinn),"<>", INDEX(INDIRECT(dshbrdrng_bruttogewinn2),0,MATCH(DATE($B50,MONTH(C$49),1),Erfolgsrechnung_Detail!$O$8:$DF$8,0))), "") ->  | D50: =IFERROR(SUMIF(INDIRECT(dshbrdrng_umsatzentwicklung),"<>", INDEX(INDIRECT(dshbrdrng_umsatzentwicklung2),0,MATCH(DATE($B14,MONTH(D$13),1),Erfolgsrechnung_Detail!$O$8:$DF$8,0))) + IF(INDEX(tblUmsatzFltr[Nr],MATCH(filter_umsatz,tblUmsatzFltr[Umsatz Filter],0)) = 1, SUMIF(INDIRECT(dshbrdrng_bruttogewinn),"<>", INDEX(INDIRECT(dshbrdrng_bruttogewinn2),0,MATCH(DATE($B50,MONTH(D$49),1),Erfolgsrechnung_Detail!$O$8:$DF$8,0))), SUMIF(INDIRECT(dshbrdrng_bruttogewinn),"<>", INDEX(INDIRECT(dshbrdrng_bruttogewinn2),0,MATCH(DATE($B50,MONTH(D$49),1),Erfolgsrechnung_Detail!$O$8:$DF$8,0)))+C50),"") ->  | E50: =IFERROR(SUMIF(INDIRECT(dshbrdrng_umsatzentwicklung),"<>", INDEX(INDIRECT(dshbrdrng_umsatzentwicklung2),0,MATCH(DATE($B14,MONTH(E$13),1),Erfolgsrechnung_Detail!$O$8:$DF$8,0))) + IF(INDEX(tblUmsatzFltr[Nr],MATCH(filter_umsatz,tblUmsatzFltr[Umsatz Filter],0)) = 1, SUMIF(INDIRECT(dshbrdrng_bruttogewinn),"<>", INDEX(INDIRECT(dshbrdrng_bruttogewinn2),0,MATCH(DATE($B50,MONTH(E$49),1),Erfolgsrechnung_Detail!$O$8:$DF$8,0))), SUMIF(INDIRECT(dshbrdrng_bruttogewinn),"<>", INDEX(INDIRECT(dshbrdrng_bruttogewinn2),0,MATCH(DATE($B50,MONTH(E$49),1),Erfolgsrechnung_Detail!$O$8:$DF$8,0)))+D50),"") ->  | F50: =IFERROR(SUMIF(INDIRECT(dshbrdrng_umsatzentwicklung),"<>", INDEX(INDIRECT(dshbrdrng_umsatzentwicklung2),0,MATCH(DATE($B14,MONTH(F$13),1),Erfolgsrechnung_Detail!$O$8:$DF$8,0))) + IF(INDEX(tblUmsatzFltr[Nr],MATCH(filter_umsatz,tblUmsatzFltr[Umsatz Filter],0)) = 1, SUMIF(INDIRECT(dshbrdrng_bruttogewinn),"<>", INDEX(INDIRECT(dshbrdrng_bruttogewinn2),0,MATCH(DATE($B50,MONTH(F$49),1),Erfolgsrechnung_Detail!$O$8:$DF$8,0))), SUMIF(INDIRECT(dshbrdrng_bruttogewinn),"<>", INDEX(INDIRECT(dshbrdrng_bruttogewinn2),0,MATCH(DATE($B50,MONTH(F$49),1),Erfolgsrechnung_Detail!$O$8:$DF$8,0)))+E50),"") ->  | G50: =IFERROR(SUMIF(INDIRECT(dshbrdrng_umsatzentwicklung),"<>", INDEX(INDIRECT(dshbrdrng_umsatzentwicklung2),0,MATCH(DATE($B14,MONTH(G$13),1),Erfolgsrechnung_Detail!$O$8:$DF$8,0))) + IF(INDEX(tblUmsatzFltr[Nr],MATCH(filter_umsatz,tblUmsatzFltr[Umsatz Filter],0)) = 1, SUMIF(INDIRECT(dshbrdrng_bruttogewinn),"<>", INDEX(INDIRECT(dshbrdrng_bruttogewinn2),0,MATCH(DATE($B50,MONTH(G$49),1),Erfolgsrechnung_Detail!$O$8:$DF$8,0))), SUMIF(INDIRECT(dshbrdrng_bruttogewinn),"<>", INDEX(INDIRECT(dshbrdrng_bruttogewinn2),0,MATCH(DATE($B50,MONTH(G$49),1),Erfolgsrechnung_Detail!$O$8:$DF$8,0)))+F50),"") ->  | H50: =IFERROR(SUMIF(INDIRECT(dshbrdrng_umsatzentwicklung),"<>", INDEX(INDIRECT(dshbrdrng_umsatzentwicklung2),0,MATCH(DATE($B14,MONTH(H$13),1),Erfolgsrechnung_Detail!$O$8:$DF$8,0))) + IF(INDEX(tblUmsatzFltr[Nr],MATCH(filter_umsatz,tblUmsatzFltr[Umsatz Filter],0)) = 1, SUMIF(INDIRECT(dshbrdrng_bruttogewinn),"<>", INDEX(INDIRECT(dshbrdrng_bruttogewinn2),0,MATCH(DATE($B50,MONTH(H$49),1),Erfolgsrechnung_Detail!$O$8:$DF$8,0))), SUMIF(INDIRECT(dshbrdrng_bruttogewinn),"<>", INDEX(INDIRECT(dshbrdrng_bruttogewinn2),0,MATCH(DATE($B50,MONTH(H$49),1),Erfolgsrechnung_Detail!$O$8:$DF$8,0)))+G50),"") ->  | I50: =IFERROR(SUMIF(INDIRECT(dshbrdrng_umsatzentwicklung),"<>", INDEX(INDIRECT(dshbrdrng_umsatzentwicklung2),0,MATCH(DATE($B14,MONTH(I$13),1),Erfolgsrechnung_Detail!$O$8:$DF$8,0))) + IF(INDEX(tblUmsatzFltr[Nr],MATCH(filter_umsatz,tblUmsatzFltr[Umsatz Filter],0)) = 1, SUMIF(INDIRECT(dshbrdrng_bruttogewinn),"<>", INDEX(INDIRECT(dshbrdrng_bruttogewinn2),0,MATCH(DATE($B50,MONTH(I$49),1),Erfolgsrechnung_Detail!$O$8:$DF$8,0))), SUMIF(INDIRECT(dshbrdrng_bruttogewinn),"<>", INDEX(INDIRECT(dshbrdrng_bruttogewinn2),0,MATCH(DATE($B50,MONTH(I$49),1),Erfolgsrechnung_Detail!$O$8:$DF$8,0)))+H50),"") ->  | J50: =IFERROR(SUMIF(INDIRECT(dshbrdrng_umsatzentwicklung),"<>", INDEX(INDIRECT(dshbrdrng_umsatzentwicklung2),0,MATCH(DATE($B14,MONTH(J$13),1),Erfolgsrechnung_Detail!$O$8:$DF$8,0))) + IF(INDEX(tblUmsatzFltr[Nr],MATCH(filter_umsatz,tblUmsatzFltr[Umsatz Filter],0)) = 1, SUMIF(INDIRECT(dshbrdrng_bruttogewinn),"<>", INDEX(INDIRECT(dshbrdrng_bruttogewinn2),0,MATCH(DATE($B50,MONTH(J$49),1),Erfolgsrechnung_Detail!$O$8:$DF$8,0))), SUMIF(INDIRECT(dshbrdrng_bruttogewinn),"<>", INDEX(INDIRECT(dshbrdrng_bruttogewinn2),0,MATCH(DATE($B50,MONTH(J$49),1),Erfolgsrechnung_Detail!$O$8:$DF$8,0)))+I50),"") ->  | K50: =IFERROR(SUMIF(INDIRECT(dshbrdrng_umsatzentwicklung),"<>", INDEX(INDIRECT(dshbrdrng_umsatzentwicklung2),0,MATCH(DATE($B14,MONTH(K$13),1),Erfolgsrechnung_Detail!$O$8:$DF$8,0))) + IF(INDEX(tblUmsatzFltr[Nr],MATCH(filter_umsatz,tblUmsatzFltr[Umsatz Filter],0)) = 1, SUMIF(INDIRECT(dshbrdrng_bruttogewinn),"<>", INDEX(INDIRECT(dshbrdrng_bruttogewinn2),0,MATCH(DATE($B50,MONTH(K$49),1),Erfolgsrechnung_Detail!$O$8:$DF$8,0))), SUMIF(INDIRECT(dshbrdrng_bruttogewinn),"<>", INDEX(INDIRECT(dshbrdrng_bruttogewinn2),0,MATCH(DATE($B50,MONTH(K$49),1),Erfolgsrechnung_Detail!$O$8:$DF$8,0)))+J50),"") ->  | L50: =IFERROR(SUMIF(INDIRECT(dshbrdrng_umsatzentwicklung),"<>", INDEX(INDIRECT(dshbrdrng_umsatzentwicklung2),0,MATCH(DATE($B14,MONTH(L$13),1),Erfolgsrechnung_Detail!$O$8:$DF$8,0))) + IF(INDEX(tblUmsatzFltr[Nr],MATCH(filter_umsatz,tblUmsatzFltr[Umsatz Filter],0)) = 1, SUMIF(INDIRECT(dshbrdrng_bruttogewinn),"<>", INDEX(INDIRECT(dshbrdrng_bruttogewinn2),0,MATCH(DATE($B50,MONTH(L$49),1),Erfolgsrechnung_Detail!$O$8:$DF$8,0))), SUMIF(INDIRECT(dshbrdrng_bruttogewinn),"<>", INDEX(INDIRECT(dshbrdrng_bruttogewinn2),0,MATCH(DATE($B50,MONTH(L$49),1),Erfolgsrechnung_Detail!$O$8:$DF$8,0)))+K50),"") ->  | M50: =IFERROR(SUMIF(INDIRECT(dshbrdrng_umsatzentwicklung),"<>", INDEX(INDIRECT(dshbrdrng_umsatzentwicklung2),0,MATCH(DATE($B14,MONTH(M$13),1),Erfolgsrechnung_Detail!$O$8:$DF$8,0))) + IF(INDEX(tblUmsatzFltr[Nr],MATCH(filter_umsatz,tblUmsatzFltr[Umsatz Filter],0)) = 1, SUMIF(INDIRECT(dshbrdrng_bruttogewinn),"<>", INDEX(INDIRECT(dshbrdrng_bruttogewinn2),0,MATCH(DATE($B50,MONTH(M$49),1),Erfolgsrechnung_Detail!$O$8:$DF$8,0))), SUMIF(INDIRECT(dshbrdrng_bruttogewinn),"<>", INDEX(INDIRECT(dshbrdrng_bruttogewinn2),0,MATCH(DATE($B50,MONTH(M$49),1),Erfolgsrechnung_Detail!$O$8:$DF$8,0)))+L50),"") ->  | N50: =IFERROR(SUMIF(INDIRECT(dshbrdrng_umsatzentwicklung),"<>", INDEX(INDIRECT(dshbrdrng_umsatzentwicklung2),0,MATCH(DATE($B14,MONTH(N$13),1),Erfolgsrechnung_Detail!$O$8:$DF$8,0))) + IF(INDEX(tblUmsatzFltr[Nr],MATCH(filter_umsatz,tblUmsatzFltr[Umsatz Filter],0)) = 1, SUMIF(INDIRECT(dshbrdrng_bruttogewinn),"<>", INDEX(INDIRECT(dshbrdrng_bruttogewinn2),0,MATCH(DATE($B50,MONTH(N$49),1),Erfolgsrechnung_Detail!$O$8:$DF$8,0))), SUMIF(INDIRECT(dshbrdrng_bruttogewinn),"<>", INDEX(INDIRECT(dshbrdrng_bruttogewinn2),0,MATCH(DATE($B50,MONTH(N$49),1),Erfolgsrechnung_Detail!$O$8:$DF$8,0)))+M50),"") ->  | P50: =IFERROR(IF( INDEX(tblUmsatzFltr[Nr],MATCH(filter_umsatz,tblUmsatzFltr[Umsatz Filter],0))=1, SUM($C50:INDEX($C50:$N50,1,selectedmonat_num)), INDEX($C50:$N50,0,MATCH(monat,tblMonate[Monate],0))),"") -> 0 | Q50: =IFERROR( IF(INDEX(tblUmsatzFltr[Nr],MATCH(filter_umsatz,tblUmsatzFltr[Umsatz Filter],0))=1, SUM(C50:$N50),N50),"") -> 0
B51: 2015 | C51: =IFERROR(C15+ SUMIF(INDIRECT(dshbrdrng_bruttogewinn),"<>", INDEX(INDIRECT(dshbrdrng_bruttogewinn2),0,MATCH(DATE($B51,MONTH(C$49),1),Erfolgsrechnung_Detail!$O$8:$DF$8,0))), "") -> 16632.22039 | D51: =IFERROR(SUMIF(INDIRECT(dshbrdrng_umsatzentwicklung),"<>", INDEX(INDIRECT(dshbrdrng_umsatzentwicklung2),0,MATCH(DATE($B15,MONTH(D$13),1),Erfolgsrechnung_Detail!$O$8:$DF$8,0))) + IF(INDEX(tblUmsatzFltr[Nr],MATCH(filter_umsatz,tblUmsatzFltr[Umsatz Filter],0)) = 1, SUMIF(INDIRECT(dshbrdrng_bruttogewinn),"<>", INDEX(INDIRECT(dshbrdrng_bruttogewinn2),0,MATCH(DATE($B51,MONTH(D$49),1),Erfolgsrechnung_Detail!$O$8:$DF$8,0))), SUMIF(INDIRECT(dshbrdrng_bruttogewinn),"<>", INDEX(INDIRECT(dshbrdrng_bruttogewinn2),0,MATCH(DATE($B51,MONTH(D$49),1),Erfolgsrechnung_Detail!$O$8:$DF$8,0)))+C51),"") -> 14935.65143 | E51: =IFERROR(SUMIF(INDIRECT(dshbrdrng_umsatzentwicklung),"<>", INDEX(INDIRECT(dshbrdrng_umsatzentwicklung2),0,MATCH(DATE($B15,MONTH(E$13),1),Erfolgsrechnung_Detail!$O$8:$DF$8,0))) + IF(INDEX(tblUmsatzFltr[Nr],MATCH(filter_umsatz,tblUmsatzFltr[Umsatz Filter],0)) = 1, SUMIF(INDIRECT(dshbrdrng_bruttogewinn),"<>", INDEX(INDIRECT(dshbrdrng_bruttogewinn2),0,MATCH(DATE($B51,MONTH(E$49),1),Erfolgsrechnung_Detail!$O$8:$DF$8,0))), SUMIF(INDIRECT(dshbrdrng_bruttogewinn),"<>", INDEX(INDIRECT(dshbrdrng_bruttogewinn2),0,MATCH(DATE($B51,MONTH(E$49),1),Erfolgsrechnung_Detail!$O$8:$DF$8,0)))+D51),"") -> 4863.687477 | F51: =IFERROR(SUMIF(INDIRECT(dshbrdrng_umsatzentwicklung),"<>", INDEX(INDIRECT(dshbrdrng_umsatzentwicklung2),0,MATCH(DATE($B15,MONTH(F$13),1),Erfolgsrechnung_Detail!$O$8:$DF$8,0))) + IF(INDEX(tblUmsatzFltr[Nr],MATCH(filter_umsatz,tblUmsatzFltr[Umsatz Filter],0)) = 1, SUMIF(INDIRECT(dshbrdrng_bruttogewinn),"<>", INDEX(INDIRECT(dshbrdrng_bruttogewinn2),0,MATCH(DATE($B51,MONTH(F$49),1),Erfolgsrechnung_Detail!$O$8:$DF$8,0))), SUMIF(INDIRECT(dshbrdrng_bruttogewinn),"<>", INDEX(INDIRECT(dshbrdrng_bruttogewinn2),0,MATCH(DATE($B51,MONTH(F$49),1),Erfolgsrechnung_Detail!$O$8:$DF$8,0)))+E51),"") -> 6792.649595 | G51: =IFERROR(SUMIF(INDIRECT(dshbrdrng_umsatzentwicklung),"<>", INDEX(INDIRECT(dshbrdrng_umsatzentwicklung2),0,MATCH(DATE($B15,MONTH(G$13),1),Erfolgsrechnung_Detail!$O$8:$DF$8,0))) + IF(INDEX(tblUmsatzFltr[Nr],MATCH(filter_umsatz,tblUmsatzFltr[Umsatz Filter],0)) = 1, SUMIF(INDIRECT(dshbrdrng_bruttogewinn),"<>", INDEX(INDIRECT(dshbrdrng_bruttogewinn2),0,MATCH(DATE($B51,MONTH(G$49),1),Erfolgsrechnung_Detail!$O$8:$DF$8,0))), SUMIF(INDIRECT(dshbrdrng_bruttogewinn),"<>", INDEX(INDIRECT(dshbrdrng_bruttogewinn2),0,MATCH(DATE($B51,MONTH(G$49),1),Erfolgsrechnung_Detail!$O$8:$DF$8,0)))+F51),"") -> 13019.58976 | H51: =IFERROR(SUMIF(INDIRECT(dshbrdrng_umsatzentwicklung),"<>", INDEX(INDIRECT(dshbrdrng_umsatzentwicklung2),0,MATCH(DATE($B15,MONTH(H$13),1),Erfolgsrechnung_Detail!$O$8:$DF$8,0))) + IF(INDEX(tblUmsatzFltr[Nr],MATCH(filter_umsatz,tblUmsatzFltr[Umsatz Filter],0)) = 1, SUMIF(INDIRECT(dshbrdrng_bruttogewinn),"<>", INDEX(INDIRECT(dshbrdrng_bruttogewinn2),0,MATCH(DATE($B51,MONTH(H$49),1),Erfolgsrechnung_Detail!$O$8:$DF$8,0))), SUMIF(INDIRECT(dshbrdrng_bruttogewinn),"<>", INDEX(INDIRECT(dshbrdrng_bruttogewinn2),0,MATCH(DATE($B51,MONTH(H$49),1),Erfolgsrechnung_Detail!$O$8:$DF$8,0)))+G51),"") -> 18691.31154 | I51: =IFERROR(SUMIF(INDIRECT(dshbrdrng_umsatzentwicklung),"<>", INDEX(INDIRECT(dshbrdrng_umsatzentwicklung2),0,MATCH(DATE($B15,MONTH(I$13),1),Erfolgsrechnung_Detail!$O$8:$DF$8,0))) + IF(INDEX(tblUmsatzFltr[Nr],MATCH(filter_umsatz,tblUmsatzFltr[Umsatz Filter],0)) = 1, SUMIF(INDIRECT(dshbrdrng_bruttogewinn),"<>", INDEX(INDIRECT(dshbrdrng_bruttogewinn2),0,MATCH(DATE($B51,MONTH(I$49),1),Erfolgsrechnung_Detail!$O$8:$DF$8,0))), SUMIF(INDIRECT(dshbrdrng_bruttogewinn),"<>", INDEX(INDIRECT(dshbrdrng_bruttogewinn2),0,MATCH(DATE($B51,MONTH(I$49),1),Erfolgsrechnung_Detail!$O$8:$DF$8,0)))+H51),"") -> 10078.62962 | J51: =IFERROR(SUMIF(INDIRECT(dshbrdrng_umsatzentwicklung),"<>", INDEX(INDIRECT(dshbrdrng_umsatzentwicklung2),0,MATCH(DATE($B15,MONTH(J$13),1),Erfolgsrechnung_Detail!$O$8:$DF$8,0))) + IF(INDEX(tblUmsatzFltr[Nr],MATCH(filter_umsatz,tblUmsatzFltr[Umsatz Filter],0)) = 1, SUMIF(INDIRECT(dshbrdrng_bruttogewinn),"<>", INDEX(INDIRECT(dshbrdrng_bruttogewinn2),0,MATCH(DATE($B51,MONTH(J$49),1),Erfolgsrechnung_Detail!$O$8:$DF$8,0))), SUMIF(INDIRECT(dshbrdrng_bruttogewinn),"<>", INDEX(INDIRECT(dshbrdrng_bruttogewinn2),0,MATCH(DATE($B51,MONTH(J$49),1),Erfolgsrechnung_Detail!$O$8:$DF$8,0)))+I51),"") -> 7879.493305 | K51: =IFERROR(SUMIF(INDIRECT(dshbrdrng_umsatzentwicklung),"<>", INDEX(INDIRECT(dshbrdrng_umsatzentwicklung2),0,MATCH(DATE($B15,MONTH(K$13),1),Erfolgsrechnung_Detail!$O$8:$DF$8,0))) + IF(INDEX(tblUmsatzFltr[Nr],MATCH(filter_umsatz,tblUmsatzFltr[Umsatz Filter],0)) = 1, SUMIF(INDIRECT(dshbrdrng_bruttogewinn),"<>", INDEX(INDIRECT(dshbrdrng_bruttogewinn2),0,MATCH(DATE($B51,MONTH(K$49),1),Erfolgsrechnung_Detail!$O$8:$DF$8,0))), SUMIF(INDIRECT(dshbrdrng_bruttogewinn),"<>", INDEX(INDIRECT(dshbrdrng_bruttogewinn2),0,MATCH(DATE($B51,MONTH(K$49),1),Erfolgsrechnung_Detail!$O$8:$DF$8,0)))+J51),"") -> 7366.628482 | L51: =IFERROR(SUMIF(INDIRECT(dshbrdrng_umsatzentwicklung),"<>", INDEX(INDIRECT(dshbrdrng_umsatzentwicklung2),0,MATCH(DATE($B15,MONTH(L$13),1),Erfolgsrechnung_Detail!$O$8:$DF$8,0))) + IF(INDEX(tblUmsatzFltr[Nr],MATCH(filter_umsatz,tblUmsatzFltr[Umsatz Filter],0)) = 1, SUMIF(INDIRECT(dshbrdrng_bruttogewinn),"<>", INDEX(INDIRECT(dshbrdrng_bruttogewinn2),0,MATCH(DATE($B51,MONTH(L$49),1),Erfolgsrechnung_Detail!$O$8:$DF$8,0))), SUMIF(INDIRECT(dshbrdrng_bruttogewinn),"<>", INDEX(INDIRECT(dshbrdrng_bruttogewinn2),0,MATCH(DATE($B51,MONTH(L$49),1),Erfolgsrechnung_Detail!$O$8:$DF$8,0)))+K51),"") -> 14328.46182 | M51: =IFERROR(SUMIF(INDIRECT(dshbrdrng_umsatzentwicklung),"<>", INDEX(INDIRECT(dshbrdrng_umsatzentwicklung2),0,MATCH(DATE($B15,MONTH(M$13),1),Erfolgsrechnung_Detail!$O$8:$DF$8,0))) + IF(INDEX(tblUmsatzFltr[Nr],MATCH(filter_umsatz,tblUmsatzFltr[Umsatz Filter],0)) = 1, SUMIF(INDIRECT(dshbrdrng_bruttogewinn),"<>", INDEX(INDIRECT(dshbrdrng_bruttogewinn2),0,MATCH(DATE($B51,MONTH(M$49),1),Erfolgsrechnung_Detail!$O$8:$DF$8,0))), SUMIF(INDIRECT(dshbrdrng_bruttogewinn),"<>", INDEX(INDIRECT(dshbrdrng_bruttogewinn2),0,MATCH(DATE($B51,MONTH(M$49),1),Erfolgsrechnung_Detail!$O$8:$DF$8,0)))+L51),"") -> 9255.710874 | N51: =IFERROR(SUMIF(INDIRECT(dshbrdrng_umsatzentwicklung),"<>", INDEX(INDIRECT(dshbrdrng_umsatzentwicklung2),0,MATCH(DATE($B15,MONTH(N$13),1),Erfolgsrechnung_Detail!$O$8:$DF$8,0))) + IF(INDEX(tblUmsatzFltr[Nr],MATCH(filter_umsatz,tblUmsatzFltr[Umsatz Filter],0)) = 1, SUMIF(INDIRECT(dshbrdrng_bruttogewinn),"<>", INDEX(INDIRECT(dshbrdrng_bruttogewinn2),0,MATCH(DATE($B51,MONTH(N$49),1),Erfolgsrechnung_Detail!$O$8:$DF$8,0))), SUMIF(INDIRECT(dshbrdrng_bruttogewinn),"<>", INDEX(INDIRECT(dshbrdrng_bruttogewinn2),0,MATCH(DATE($B51,MONTH(N$49),1),Erfolgsrechnung_Detail!$O$8:$DF$8,0)))+M51),"") -> 13595.19345 | P51: =IFERROR(IF( INDEX(tblUmsatzFltr[Nr],MATCH(filter_umsatz,tblUmsatzFltr[Umsatz Filter],0))=1, SUM($C51:INDEX($C51:$N51,1,selectedmonat_num)), INDEX($C51:$N51,0,MATCH(monat,tblMonate[Monate],0))),"") -> 36431.5593 | Q51: =IFERROR( IF(INDEX(tblUmsatzFltr[Nr],MATCH(filter_umsatz,tblUmsatzFltr[Umsatz Filter],0))=1, SUM(C51:$N51),N51),"") -> 137439.2277
B52: 2016 | C52: =IFERROR(C16+ SUMIF(INDIRECT(dshbrdrng_bruttogewinn),"<>", INDEX(INDIRECT(dshbrdrng_bruttogewinn2),0,MATCH(DATE($B52,MONTH(C$49),1),Erfolgsrechnung_Detail!$O$8:$DF$8,0))), "") -> 38396.2594 | D52: =IFERROR(SUMIF(INDIRECT(dshbrdrng_umsatzentwicklung),"<>", INDEX(INDIRECT(dshbrdrng_umsatzentwicklung2),0,MATCH(DATE($B16,MONTH(D$13),1),Erfolgsrechnung_Detail!$O$8:$DF$8,0))) + IF(INDEX(tblUmsatzFltr[Nr],MATCH(filter_umsatz,tblUmsatzFltr[Umsatz Filter],0)) = 1, SUMIF(INDIRECT(dshbrdrng_bruttogewinn),"<>", INDEX(INDIRECT(dshbrdrng_bruttogewinn2),0,MATCH(DATE($B52,MONTH(D$49),1),Erfolgsrechnung_Detail!$O$8:$DF$8,0))), SUMIF(INDIRECT(dshbrdrng_bruttogewinn),"<>", INDEX(INDIRECT(dshbrdrng_bruttogewinn2),0,MATCH(DATE($B52,MONTH(D$49),1),Erfolgsrechnung_Detail!$O$8:$DF$8,0)))+C52),"") -> 24047.22875 | E52: =IFERROR(SUMIF(INDIRECT(dshbrdrng_umsatzentwicklung),"<>", INDEX(INDIRECT(dshbrdrng_umsatzentwicklung2),0,MATCH(DATE($B16,MONTH(E$13),1),Erfolgsrechnung_Detail!$O$8:$DF$8,0))) + IF(INDEX(tblUmsatzFltr[Nr],MATCH(filter_umsatz,tblUmsatzFltr[Umsatz Filter],0)) = 1, SUMIF(INDIRECT(dshbrdrng_bruttogewinn),"<>", INDEX(INDIRECT(dshbrdrng_bruttogewinn2),0,MATCH(DATE($B52,MONTH(E$49),1),Erfolgsrechnung_Detail!$O$8:$DF$8,0))), SUMIF(INDIRECT(dshbrdrng_bruttogewinn),"<>", INDEX(INDIRECT(dshbrdrng_bruttogewinn2),0,MATCH(DATE($B52,MONTH(E$49),1),Erfolgsrechnung_Detail!$O$8:$DF$8,0)))+D52),"") -> 10289.41186 | F52: =IFERROR(SUMIF(INDIRECT(dshbrdrng_umsatzentwicklung),"<>", INDEX(INDIRECT(dshbrdrng_umsatzentwicklung2),0,MATCH(DATE($B16,MONTH(F$13),1),Erfolgsrechnung_Detail!$O$8:$DF$8,0))) + IF(INDEX(tblUmsatzFltr[Nr],MATCH(filter_umsatz,tblUmsatzFltr[Umsatz Filter],0)) = 1, SUMIF(INDIRECT(dshbrdrng_bruttogewinn),"<>", INDEX(INDIRECT(dshbrdrng_bruttogewinn2),0,MATCH(DATE($B52,MONTH(F$49),1),Erfolgsrechnung_Detail!$O$8:$DF$8,0))), SUMIF(INDIRECT(dshbrdrng_bruttogewinn),"<>", INDEX(INDIRECT(dshbrdrng_bruttogewinn2),0,MATCH(DATE($B52,MONTH(F$49),1),Erfolgsrechnung_Detail!$O$8:$DF$8,0)))+E52),"") -> 10589.94399 | G52: =IFERROR(SUMIF(INDIRECT(dshbrdrng_umsatzentwicklung),"<>", INDEX(INDIRECT(dshbrdrng_umsatzentwicklung2),0,MATCH(DATE($B16,MONTH(G$13),1),Erfolgsrechnung_Detail!$O$8:$DF$8,0))) + IF(INDEX(tblUmsatzFltr[Nr],MATCH(filter_umsatz,tblUmsatzFltr[Umsatz Filter],0)) = 1, SUMIF(INDIRECT(dshbrdrng_bruttogewinn),"<>", INDEX(INDIRECT(dshbrdrng_bruttogewinn2),0,MATCH(DATE($B52,MONTH(G$49),1),Erfolgsrechnung_Detail!$O$8:$DF$8,0))), SUMIF(INDIRECT(dshbrdrng_bruttogewinn),"<>", INDEX(INDIRECT(dshbrdrng_bruttogewinn2),0,MATCH(DATE($B52,MONTH(G$49),1),Erfolgsrechnung_Detail!$O$8:$DF$8,0)))+F52),"") -> 4927.211676 | H52: =IFERROR(SUMIF(INDIRECT(dshbrdrng_umsatzentwicklung),"<>", INDEX(INDIRECT(dshbrdrng_umsatzentwicklung2),0,MATCH(DATE($B16,MONTH(H$13),1),Erfolgsrechnung_Detail!$O$8:$DF$8,0))) + IF(INDEX(tblUmsatzFltr[Nr],MATCH(filter_umsatz,tblUmsatzFltr[Umsatz Filter],0)) = 1, SUMIF(INDIRECT(dshbrdrng_bruttogewinn),"<>", INDEX(INDIRECT(dshbrdrng_bruttogewinn2),0,MATCH(DATE($B52,MONTH(H$49),1),Erfolgsrechnung_Detail!$O$8:$DF$8,0))), SUMIF(INDIRECT(dshbrdrng_bruttogewinn),"<>", INDEX(INDIRECT(dshbrdrng_bruttogewinn2),0,MATCH(DATE($B52,MONTH(H$49),1),Erfolgsrechnung_Detail!$O$8:$DF$8,0)))+G52),"") -> 9587.851575 | I52: =IFERROR(SUMIF(INDIRECT(dshbrdrng_umsatzentwicklung),"<>", INDEX(INDIRECT(dshbrdrng_umsatzentwicklung2),0,MATCH(DATE($B16,MONTH(I$13),1),Erfolgsrechnung_Detail!$O$8:$DF$8,0))) + IF(INDEX(tblUmsatzFltr[Nr],MATCH(filter_umsatz,tblUmsatzFltr[Umsatz Filter],0)) = 1, SUMIF(INDIRECT(dshbrdrng_bruttogewinn),"<>", INDEX(INDIRECT(dshbrdrng_bruttogewinn2),0,MATCH(DATE($B52,MONTH(I$49),1),Erfolgsrechnung_Detail!$O$8:$DF$8,0))), SUMIF(INDIRECT(dshbrdrng_bruttogewinn),"<>", INDEX(INDIRECT(dshbrdrng_bruttogewinn2),0,MATCH(DATE($B52,MONTH(I$49),1),Erfolgsrechnung_Detail!$O$8:$DF$8,0)))+H52),"") -> 12519.26167 | J52: =IFERROR(SUMIF(INDIRECT(dshbrdrng_umsatzentwicklung),"<>", INDEX(INDIRECT(dshbrdrng_umsatzentwicklung2),0,MATCH(DATE($B16,MONTH(J$13),1),Erfolgsrechnung_Detail!$O$8:$DF$8,0))) + IF(INDEX(tblUmsatzFltr[Nr],MATCH(filter_umsatz,tblUmsatzFltr[Umsatz Filter],0)) = 1, SUMIF(INDIRECT(dshbrdrng_bruttogewinn),"<>", INDEX(INDIRECT(dshbrdrng_bruttogewinn2),0,MATCH(DATE($B52,MONTH(J$49),1),Erfolgsrechnung_Detail!$O$8:$DF$8,0))), SUMIF(INDIRECT(dshbrdrng_bruttogewinn),"<>", INDEX(INDIRECT(dshbrdrng_bruttogewinn2),0,MATCH(DATE($B52,MONTH(J$49),1),Erfolgsrechnung_Detail!$O$8:$DF$8,0)))+I52),"") -> 6627.222529 | K52: =IFERROR(SUMIF(INDIRECT(dshbrdrng_umsatzentwicklung),"<>", INDEX(INDIRECT(dshbrdrng_umsatzentwicklung2),0,MATCH(DATE($B16,MONTH(K$13),1),Erfolgsrechnung_Detail!$O$8:$DF$8,0))) + IF(INDEX(tblUmsatzFltr[Nr],MATCH(filter_umsatz,tblUmsatzFltr[Umsatz Filter],0)) = 1, SUMIF(INDIRECT(dshbrdrng_bruttogewinn),"<>", INDEX(INDIRECT(dshbrdrng_bruttogewinn2),0,MATCH(DATE($B52,MONTH(K$49),1),Erfolgsrechnung_Detail!$O$8:$DF$8,0))), SUMIF(INDIRECT(dshbrdrng_bruttogewinn),"<>", INDEX(INDIRECT(dshbrdrng_bruttogewinn2),0,MATCH(DATE($B52,MONTH(K$49),1),Erfolgsrechnung_Detail!$O$8:$DF$8,0)))+J52),"") -> 11991.35409 | L52: =IFERROR(SUMIF(INDIRECT(dshbrdrng_umsatzentwicklung),"<>", INDEX(INDIRECT(dshbrdrng_umsatzentwicklung2),0,MATCH(DATE($B16,MONTH(L$13),1),Erfolgsrechnung_Detail!$O$8:$DF$8,0))) + IF(INDEX(tblUmsatzFltr[Nr],MATCH(filter_umsatz,tblUmsatzFltr[Umsatz Filter],0)) = 1, SUMIF(INDIRECT(dshbrdrng_bruttogewinn),"<>", INDEX(INDIRECT(dshbrdrng_bruttogewinn2),0,MATCH(DATE($B52,MONTH(L$49),1),Erfolgsrechnung_Detail!$O$8:$DF$8,0))), SUMIF(INDIRECT(dshbrdrng_bruttogewinn),"<>", INDEX(INDIRECT(dshbrdrng_bruttogewinn2),0,MATCH(DATE($B52,MONTH(L$49),1),Erfolgsrechnung_Detail!$O$8:$DF$8,0)))+K52),"") -> 12108.44405 | M52: =IFERROR(SUMIF(INDIRECT(dshbrdrng_umsatzentwicklung),"<>", INDEX(INDIRECT(dshbrdrng_umsatzentwicklung2),0,MATCH(DATE($B16,MONTH(M$13),1),Erfolgsrechnung_Detail!$O$8:$DF$8,0))) + IF(INDEX(tblUmsatzFltr[Nr],MATCH(filter_umsatz,tblUmsatzFltr[Umsatz Filter],0)) = 1, SUMIF(INDIRECT(dshbrdrng_bruttogewinn),"<>", INDEX(INDIRECT(dshbrdrng_bruttogewinn2),0,MATCH(DATE($B52,MONTH(M$49),1),Erfolgsrechnung_Detail!$O$8:$DF$8,0))), SUMIF(INDIRECT(dshbrdrng_bruttogewinn),"<>", INDEX(INDIRECT(dshbrdrng_bruttogewinn2),0,MATCH(DATE($B52,MONTH(M$49),1),Erfolgsrechnung_Detail!$O$8:$DF$8,0)))+L52),"") -> 16935.97966 | N52: =IFERROR(SUMIF(INDIRECT(dshbrdrng_umsatzentwicklung),"<>", INDEX(INDIRECT(dshbrdrng_umsatzentwicklung2),0,MATCH(DATE($B16,MONTH(N$13),1),Erfolgsrechnung_Detail!$O$8:$DF$8,0))) + IF(INDEX(tblUmsatzFltr[Nr],MATCH(filter_umsatz,tblUmsatzFltr[Umsatz Filter],0)) = 1, SUMIF(INDIRECT(dshbrdrng_bruttogewinn),"<>", INDEX(INDIRECT(dshbrdrng_bruttogewinn2),0,MATCH(DATE($B52,MONTH(N$49),1),Erfolgsrechnung_Detail!$O$8:$DF$8,0))), SUMIF(INDIRECT(dshbrdrng_bruttogewinn),"<>", INDEX(INDIRECT(dshbrdrng_bruttogewinn2),0,MATCH(DATE($B52,MONTH(N$49),1),Erfolgsrechnung_Detail!$O$8:$DF$8,0)))+M52),"") -> 20817.05433 | P52: =IFERROR(IF( INDEX(tblUmsatzFltr[Nr],MATCH(filter_umsatz,tblUmsatzFltr[Umsatz Filter],0))=1, SUM($C52:INDEX($C52:$N52,1,selectedmonat_num)), INDEX($C52:$N52,0,MATCH(monat,tblMonate[Monate],0))),"") -> 72732.90001 | Q52: =IFERROR( IF(INDEX(tblUmsatzFltr[Nr],MATCH(filter_umsatz,tblUmsatzFltr[Umsatz Filter],0))=1, SUM(C52:$N52),N52),"") -> 178837.2236
B53: 2017 | C53: =IFERROR(C17+ SUMIF(INDIRECT(dshbrdrng_bruttogewinn),"<>", INDEX(INDIRECT(dshbrdrng_bruttogewinn2),0,MATCH(DATE($B53,MONTH(C$49),1),Erfolgsrechnung_Detail!$O$8:$DF$8,0))), "") -> 13862.74706 | D53: =IFERROR(SUMIF(INDIRECT(dshbrdrng_umsatzentwicklung),"<>", INDEX(INDIRECT(dshbrdrng_umsatzentwicklung2),0,MATCH(DATE($B17,MONTH(D$13),1),Erfolgsrechnung_Detail!$O$8:$DF$8,0))) + IF(INDEX(tblUmsatzFltr[Nr],MATCH(filter_umsatz,tblUmsatzFltr[Umsatz Filter],0)) = 1, SUMIF(INDIRECT(dshbrdrng_bruttogewinn),"<>", INDEX(INDIRECT(dshbrdrng_bruttogewinn2),0,MATCH(DATE($B53,MONTH(D$49),1),Erfolgsrechnung_Detail!$O$8:$DF$8,0))), SUMIF(INDIRECT(dshbrdrng_bruttogewinn),"<>", INDEX(INDIRECT(dshbrdrng_bruttogewinn2),0,MATCH(DATE($B53,MONTH(D$49),1),Erfolgsrechnung_Detail!$O$8:$DF$8,0)))+C53),"") -> 6914.111631 | E53: =IFERROR(SUMIF(INDIRECT(dshbrdrng_umsatzentwicklung),"<>", INDEX(INDIRECT(dshbrdrng_umsatzentwicklung2),0,MATCH(DATE($B17,MONTH(E$13),1),Erfolgsrechnung_Detail!$O$8:$DF$8,0))) + IF(INDEX(tblUmsatzFltr[Nr],MATCH(filter_umsatz,tblUmsatzFltr[Umsatz Filter],0)) = 1, SUMIF(INDIRECT(dshbrdrng_bruttogewinn),"<>", INDEX(INDIRECT(dshbrdrng_bruttogewinn2),0,MATCH(DATE($B53,MONTH(E$49),1),Erfolgsrechnung_Detail!$O$8:$DF$8,0))), SUMIF(INDIRECT(dshbrdrng_bruttogewinn),"<>", INDEX(INDIRECT(dshbrdrng_bruttogewinn2),0,MATCH(DATE($B53,MONTH(E$49),1),Erfolgsrechnung_Detail!$O$8:$DF$8,0)))+D53),"") -> 10309.3829 | F53: =IFERROR(SUMIF(INDIRECT(dshbrdrng_umsatzentwicklung),"<>", INDEX(INDIRECT(dshbrdrng_umsatzentwicklung2),0,MATCH(DATE($B17,MONTH(F$13),1),Erfolgsrechnung_Detail!$O$8:$DF$8,0))) + IF(INDEX(tblUmsatzFltr[Nr],MATCH(filter_umsatz,tblUmsatzFltr[Umsatz Filter],0)) = 1, SUMIF(INDIRECT(dshbrdrng_bruttogewinn),"<>", INDEX(INDIRECT(dshbrdrng_bruttogewinn2),0,MATCH(DATE($B53,MONTH(F$49),1),Erfolgsrechnung_Detail!$O$8:$DF$8,0))), SUMIF(INDIRECT(dshbrdrng_bruttogewinn),"<>", INDEX(INDIRECT(dshbrdrng_bruttogewinn2),0,MATCH(DATE($B53,MONTH(F$49),1),Erfolgsrechnung_Detail!$O$8:$DF$8,0)))+E53),"") -> 7315.570096 | G53: =IFERROR(SUMIF(INDIRECT(dshbrdrng_umsatzentwicklung),"<>", INDEX(INDIRECT(dshbrdrng_umsatzentwicklung2),0,MATCH(DATE($B17,MONTH(G$13),1),Erfolgsrechnung_Detail!$O$8:$DF$8,0))) + IF(INDEX(tblUmsatzFltr[Nr],MATCH(filter_umsatz,tblUmsatzFltr[Umsatz Filter],0)) = 1, SUMIF(INDIRECT(dshbrdrng_bruttogewinn),"<>", INDEX(INDIRECT(dshbrdrng_bruttogewinn2),0,MATCH(DATE($B53,MONTH(G$49),1),Erfolgsrechnung_Detail!$O$8:$DF$8,0))), SUMIF(INDIRECT(dshbrdrng_bruttogewinn),"<>", INDEX(INDIRECT(dshbrdrng_bruttogewinn2),0,MATCH(DATE($B53,MONTH(G$49),1),Erfolgsrechnung_Detail!$O$8:$DF$8,0)))+F53),"") -> 18875.22671 | H53: =IFERROR(SUMIF(INDIRECT(dshbrdrng_umsatzentwicklung),"<>", INDEX(INDIRECT(dshbrdrng_umsatzentwicklung2),0,MATCH(DATE($B17,MONTH(H$13),1),Erfolgsrechnung_Detail!$O$8:$DF$8,0))) + IF(INDEX(tblUmsatzFltr[Nr],MATCH(filter_umsatz,tblUmsatzFltr[Umsatz Filter],0)) = 1, SUMIF(INDIRECT(dshbrdrng_bruttogewinn),"<>", INDEX(INDIRECT(dshbrdrng_bruttogewinn2),0,MATCH(DATE($B53,MONTH(H$49),1),Erfolgsrechnung_Detail!$O$8:$DF$8,0))), SUMIF(INDIRECT(dshbrdrng_bruttogewinn),"<>", INDEX(INDIRECT(dshbrdrng_bruttogewinn2),0,MATCH(DATE($B53,MONTH(H$49),1),Erfolgsrechnung_Detail!$O$8:$DF$8,0)))+G53),"") -> 33408.55012 | I53: =IFERROR(SUMIF(INDIRECT(dshbrdrng_umsatzentwicklung),"<>", INDEX(INDIRECT(dshbrdrng_umsatzentwicklung2),0,MATCH(DATE($B17,MONTH(I$13),1),Erfolgsrechnung_Detail!$O$8:$DF$8,0))) + IF(INDEX(tblUmsatzFltr[Nr],MATCH(filter_umsatz,tblUmsatzFltr[Umsatz Filter],0)) = 1, SUMIF(INDIRECT(dshbrdrng_bruttogewinn),"<>", INDEX(INDIRECT(dshbrdrng_bruttogewinn2),0,MATCH(DATE($B53,MONTH(I$49),1),Erfolgsrechnung_Detail!$O$8:$DF$8,0))), SUMIF(INDIRECT(dshbrdrng_bruttogewinn),"<>", INDEX(INDIRECT(dshbrdrng_bruttogewinn2),0,MATCH(DATE($B53,MONTH(I$49),1),Erfolgsrechnung_Detail!$O$8:$DF$8,0)))+H53),"") -> 23007.52904 | J53: =IFERROR(SUMIF(INDIRECT(dshbrdrng_umsatzentwicklung),"<>", INDEX(INDIRECT(dshbrdrng_umsatzentwicklung2),0,MATCH(DATE($B17,MONTH(J$13),1),Erfolgsrechnung_Detail!$O$8:$DF$8,0))) + IF(INDEX(tblUmsatzFltr[Nr],MATCH(filter_umsatz,tblUmsatzFltr[Umsatz Filter],0)) = 1, SUMIF(INDIRECT(dshbrdrng_bruttogewinn),"<>", INDEX(INDIRECT(dshbrdrng_bruttogewinn2),0,MATCH(DATE($B53,MONTH(J$49),1),Erfolgsrechnung_Detail!$O$8:$DF$8,0))), SUMIF(INDIRECT(dshbrdrng_bruttogewinn),"<>", INDEX(INDIRECT(dshbrdrng_bruttogewinn2),0,MATCH(DATE($B53,MONTH(J$49),1),Erfolgsrechnung_Detail!$O$8:$DF$8,0)))+I53),"") -> 34592.38109 | K53: =IFERROR(SUMIF(INDIRECT(dshbrdrng_umsatzentwicklung),"<>", INDEX(INDIRECT(dshbrdrng_umsatzentwicklung2),0,MATCH(DATE($B17,MONTH(K$13),1),Erfolgsrechnung_Detail!$O$8:$DF$8,0))) + IF(INDEX(tblUmsatzFltr[Nr],MATCH(filter_umsatz,tblUmsatzFltr[Umsatz Filter],0)) = 1, SUMIF(INDIRECT(dshbrdrng_bruttogewinn),"<>", INDEX(INDIRECT(dshbrdrng_bruttogewinn2),0,MATCH(DATE($B53,MONTH(K$49),1),Erfolgsrechnung_Detail!$O$8:$DF$8,0))), SUMIF(INDIRECT(dshbrdrng_bruttogewinn),"<>", INDEX(INDIRECT(dshbrdrng_bruttogewinn2),0,MATCH(DATE($B53,MONTH(K$49),1),Erfolgsrechnung_Detail!$O$8:$DF$8,0)))+J53),"") -> 17477.90098 | L53: =IFERROR(SUMIF(INDIRECT(dshbrdrng_umsatzentwicklung),"<>", INDEX(INDIRECT(dshbrdrng_umsatzentwicklung2),0,MATCH(DATE($B17,MONTH(L$13),1),Erfolgsrechnung_Detail!$O$8:$DF$8,0))) + IF(INDEX(tblUmsatzFltr[Nr],MATCH(filter_umsatz,tblUmsatzFltr[Umsatz Filter],0)) = 1, SUMIF(INDIRECT(dshbrdrng_bruttogewinn),"<>", INDEX(INDIRECT(dshbrdrng_bruttogewinn2),0,MATCH(DATE($B53,MONTH(L$49),1),Erfolgsrechnung_Detail!$O$8:$DF$8,0))), SUMIF(INDIRECT(dshbrdrng_bruttogewinn),"<>", INDEX(INDIRECT(dshbrdrng_bruttogewinn2),0,MATCH(DATE($B53,MONTH(L$49),1),Erfolgsrechnung_Detail!$O$8:$DF$8,0)))+K53),"") -> 19459.94594 | M53: =IFERROR(SUMIF(INDIRECT(dshbrdrng_umsatzentwicklung),"<>", INDEX(INDIRECT(dshbrdrng_umsatzentwicklung2),0,MATCH(DATE($B17,MONTH(M$13),1),Erfolgsrechnung_Detail!$O$8:$DF$8,0))) + IF(INDEX(tblUmsatzFltr[Nr],MATCH(filter_umsatz,tblUmsatzFltr[Umsatz Filter],0)) = 1, SUMIF(INDIRECT(dshbrdrng_bruttogewinn),"<>", INDEX(INDIRECT(dshbrdrng_bruttogewinn2),0,MATCH(DATE($B53,MONTH(M$49),1),Erfolgsrechnung_Detail!$O$8:$DF$8,0))), SUMIF(INDIRECT(dshbrdrng_bruttogewinn),"<>", INDEX(INDIRECT(dshbrdrng_bruttogewinn2),0,MATCH(DATE($B53,MONTH(M$49),1),Erfolgsrechnung_Detail!$O$8:$DF$8,0)))+L53),"") -> 18859.4713 | N53: =IFERROR(SUMIF(INDIRECT(dshbrdrng_umsatzentwicklung),"<>", INDEX(INDIRECT(dshbrdrng_umsatzentwicklung2),0,MATCH(DATE($B17,MONTH(N$13),1),Erfolgsrechnung_Detail!$O$8:$DF$8,0))) + IF(INDEX(tblUmsatzFltr[Nr],MATCH(filter_umsatz,tblUmsatzFltr[Umsatz Filter],0)) = 1, SUMIF(INDIRECT(dshbrdrng_bruttogewinn),"<>", INDEX(INDIRECT(dshbrdrng_bruttogewinn2),0,MATCH(DATE($B53,MONTH(N$49),1),Erfolgsrechnung_Detail!$O$8:$DF$8,0))), SUMIF(INDIRECT(dshbrdrng_bruttogewinn),"<>", INDEX(INDIRECT(dshbrdrng_bruttogewinn2),0,MATCH(DATE($B53,MONTH(N$49),1),Erfolgsrechnung_Detail!$O$8:$DF$8,0)))+M53),"") -> 14633.41647 | P53: =IFERROR(IF( INDEX(tblUmsatzFltr[Nr],MATCH(filter_umsatz,tblUmsatzFltr[Umsatz Filter],0))=1, SUM($C53:INDEX($C53:$N53,1,selectedmonat_num)), INDEX($C53:$N53,0,MATCH(monat,tblMonate[Monate],0))),"") -> 31086.24159 | Q53: =IFERROR( IF(INDEX(tblUmsatzFltr[Nr],MATCH(filter_umsatz,tblUmsatzFltr[Umsatz Filter],0))=1, SUM(C53:$N53),N53),"") -> 218716.2333
B54: 2018 | C54: =IFERROR(C18+ SUMIF(INDIRECT(dshbrdrng_bruttogewinn),"<>", INDEX(INDIRECT(dshbrdrng_bruttogewinn2),0,MATCH(DATE($B54,MONTH(C$49),1),Erfolgsrechnung_Detail!$O$8:$DF$8,0))), "") -> 8432.930712 | D54: =IFERROR(SUMIF(INDIRECT(dshbrdrng_umsatzentwicklung),"<>", INDEX(INDIRECT(dshbrdrng_umsatzentwicklung2),0,MATCH(DATE($B18,MONTH(D$13),1),Erfolgsrechnung_Detail!$O$8:$DF$8,0))) + IF(INDEX(tblUmsatzFltr[Nr],MATCH(filter_umsatz,tblUmsatzFltr[Umsatz Filter],0)) = 1, SUMIF(INDIRECT(dshbrdrng_bruttogewinn),"<>", INDEX(INDIRECT(dshbrdrng_bruttogewinn2),0,MATCH(DATE($B54,MONTH(D$49),1),Erfolgsrechnung_Detail!$O$8:$DF$8,0))), SUMIF(INDIRECT(dshbrdrng_bruttogewinn),"<>", INDEX(INDIRECT(dshbrdrng_bruttogewinn2),0,MATCH(DATE($B54,MONTH(D$49),1),Erfolgsrechnung_Detail!$O$8:$DF$8,0)))+C54),"") -> 3555.83455 | E54: =IFERROR(SUMIF(INDIRECT(dshbrdrng_umsatzentwicklung),"<>", INDEX(INDIRECT(dshbrdrng_umsatzentwicklung2),0,MATCH(DATE($B18,MONTH(E$13),1),Erfolgsrechnung_Detail!$O$8:$DF$8,0))) + IF(INDEX(tblUmsatzFltr[Nr],MATCH(filter_umsatz,tblUmsatzFltr[Umsatz Filter],0)) = 1, SUMIF(INDIRECT(dshbrdrng_bruttogewinn),"<>", INDEX(INDIRECT(dshbrdrng_bruttogewinn2),0,MATCH(DATE($B54,MONTH(E$49),1),Erfolgsrechnung_Detail!$O$8:$DF$8,0))), SUMIF(INDIRECT(dshbrdrng_bruttogewinn),"<>", INDEX(INDIRECT(dshbrdrng_bruttogewinn2),0,MATCH(DATE($B54,MONTH(E$49),1),Erfolgsrechnung_Detail!$O$8:$DF$8,0)))+D54),"") -> 8649.145205 | F54: =IFERROR(SUMIF(INDIRECT(dshbrdrng_umsatzentwicklung),"<>", INDEX(INDIRECT(dshbrdrng_umsatzentwicklung2),0,MATCH(DATE($B18,MONTH(F$13),1),Erfolgsrechnung_Detail!$O$8:$DF$8,0))) + IF(INDEX(tblUmsatzFltr[Nr],MATCH(filter_umsatz,tblUmsatzFltr[Umsatz Filter],0)) = 1, SUMIF(INDIRECT(dshbrdrng_bruttogewinn),"<>", INDEX(INDIRECT(dshbrdrng_bruttogewinn2),0,MATCH(DATE($B54,MONTH(F$49),1),Erfolgsrechnung_Detail!$O$8:$DF$8,0))), SUMIF(INDIRECT(dshbrdrng_bruttogewinn),"<>", INDEX(INDIRECT(dshbrdrng_bruttogewinn2),0,MATCH(DATE($B54,MONTH(F$49),1),Erfolgsrechnung_Detail!$O$8:$DF$8,0)))+E54),"") -> 12304.652 | G54: =IFERROR(SUMIF(INDIRECT(dshbrdrng_umsatzentwicklung),"<>", INDEX(INDIRECT(dshbrdrng_umsatzentwicklung2),0,MATCH(DATE($B18,MONTH(G$13),1),Erfolgsrechnung_Detail!$O$8:$DF$8,0))) + IF(INDEX(tblUmsatzFltr[Nr],MATCH(filter_umsatz,tblUmsatzFltr[Umsatz Filter],0)) = 1, SUMIF(INDIRECT(dshbrdrng_bruttogewinn),"<>", INDEX(INDIRECT(dshbrdrng_bruttogewinn2),0,MATCH(DATE($B54,MONTH(G$49),1),Erfolgsrechnung_Detail!$O$8:$DF$8,0))), SUMIF(INDIRECT(dshbrdrng_bruttogewinn),"<>", INDEX(INDIRECT(dshbrdrng_bruttogewinn2),0,MATCH(DATE($B54,MONTH(G$49),1),Erfolgsrechnung_Detail!$O$8:$DF$8,0)))+F54),"") -> 7757.481706 | H54: =IFERROR(SUMIF(INDIRECT(dshbrdrng_umsatzentwicklung),"<>", INDEX(INDIRECT(dshbrdrng_umsatzentwicklung2),0,MATCH(DATE($B18,MONTH(H$13),1),Erfolgsrechnung_Detail!$O$8:$DF$8,0))) + IF(INDEX(tblUmsatzFltr[Nr],MATCH(filter_umsatz,tblUmsatzFltr[Umsatz Filter],0)) = 1, SUMIF(INDIRECT(dshbrdrng_bruttogewinn),"<>", INDEX(INDIRECT(dshbrdrng_bruttogewinn2),0,MATCH(DATE($B54,MONTH(H$49),1),Erfolgsrechnung_Detail!$O$8:$DF$8,0))), SUMIF(INDIRECT(dshbrdrng_bruttogewinn),"<>", INDEX(INDIRECT(dshbrdrng_bruttogewinn2),0,MATCH(DATE($B54,MONTH(H$49),1),Erfolgsrechnung_Detail!$O$8:$DF$8,0)))+G54),"") -> 9525.921238 | I54: =IFERROR(SUMIF(INDIRECT(dshbrdrng_umsatzentwicklung),"<>", INDEX(INDIRECT(dshbrdrng_umsatzentwicklung2),0,MATCH(DATE($B18,MONTH(I$13),1),Erfolgsrechnung_Detail!$O$8:$DF$8,0))) + IF(INDEX(tblUmsatzFltr[Nr],MATCH(filter_umsatz,tblUmsatzFltr[Umsatz Filter],0)) = 1, SUMIF(INDIRECT(dshbrdrng_bruttogewinn),"<>", INDEX(INDIRECT(dshbrdrng_bruttogewinn2),0,MATCH(DATE($B54,MONTH(I$49),1),Erfolgsrechnung_Detail!$O$8:$DF$8,0))), SUMIF(INDIRECT(dshbrdrng_bruttogewinn),"<>", INDEX(INDIRECT(dshbrdrng_bruttogewinn2),0,MATCH(DATE($B54,MONTH(I$49),1),Erfolgsrechnung_Detail!$O$8:$DF$8,0)))+H54),"") -> 6923.552638 | J54: =IFERROR(SUMIF(INDIRECT(dshbrdrng_umsatzentwicklung),"<>", INDEX(INDIRECT(dshbrdrng_umsatzentwicklung2),0,MATCH(DATE($B18,MONTH(J$13),1),Erfolgsrechnung_Detail!$O$8:$DF$8,0))) + IF(INDEX(tblUmsatzFltr[Nr],MATCH(filter_umsatz,tblUmsatzFltr[Umsatz Filter],0)) = 1, SUMIF(INDIRECT(dshbrdrng_bruttogewinn),"<>", INDEX(INDIRECT(dshbrdrng_bruttogewinn2),0,MATCH(DATE($B54,MONTH(J$49),1),Erfolgsrechnung_Detail!$O$8:$DF$8,0))), SUMIF(INDIRECT(dshbrdrng_bruttogewinn),"<>", INDEX(INDIRECT(dshbrdrng_bruttogewinn2),0,MATCH(DATE($B54,MONTH(J$49),1),Erfolgsrechnung_Detail!$O$8:$DF$8,0)))+I54),"") -> 10147.6986 | K54: =IFERROR(SUMIF(INDIRECT(dshbrdrng_umsatzentwicklung),"<>", INDEX(INDIRECT(dshbrdrng_umsatzentwicklung2),0,MATCH(DATE($B18,MONTH(K$13),1),Erfolgsrechnung_Detail!$O$8:$DF$8,0))) + IF(INDEX(tblUmsatzFltr[Nr],MATCH(filter_umsatz,tblUmsatzFltr[Umsatz Filter],0)) = 1, SUMIF(INDIRECT(dshbrdrng_bruttogewinn),"<>", INDEX(INDIRECT(dshbrdrng_bruttogewinn2),0,MATCH(DATE($B54,MONTH(K$49),1),Erfolgsrechnung_Detail!$O$8:$DF$8,0))), SUMIF(INDIRECT(dshbrdrng_bruttogewinn),"<>", INDEX(INDIRECT(dshbrdrng_bruttogewinn2),0,MATCH(DATE($B54,MONTH(K$49),1),Erfolgsrechnung_Detail!$O$8:$DF$8,0)))+J54),"") -> 13197.24345 | L54: =IFERROR(SUMIF(INDIRECT(dshbrdrng_umsatzentwicklung),"<>", INDEX(INDIRECT(dshbrdrng_umsatzentwicklung2),0,MATCH(DATE($B18,MONTH(L$13),1),Erfolgsrechnung_Detail!$O$8:$DF$8,0))) + IF(INDEX(tblUmsatzFltr[Nr],MATCH(filter_umsatz,tblUmsatzFltr[Umsatz Filter],0)) = 1, SUMIF(INDIRECT(dshbrdrng_bruttogewinn),"<>", INDEX(INDIRECT(dshbrdrng_bruttogewinn2),0,MATCH(DATE($B54,MONTH(L$49),1),Erfolgsrechnung_Detail!$O$8:$DF$8,0))), SUMIF(INDIRECT(dshbrdrng_bruttogewinn),"<>", INDEX(INDIRECT(dshbrdrng_bruttogewinn2),0,MATCH(DATE($B54,MONTH(L$49),1),Erfolgsrechnung_Detail!$O$8:$DF$8,0)))+K54),"") -> 4410.311977 | M54: =IFERROR(SUMIF(INDIRECT(dshbrdrng_umsatzentwicklung),"<>", INDEX(INDIRECT(dshbrdrng_umsatzentwicklung2),0,MATCH(DATE($B18,MONTH(M$13),1),Erfolgsrechnung_Detail!$O$8:$DF$8,0))) + IF(INDEX(tblUmsatzFltr[Nr],MATCH(filter_umsatz,tblUmsatzFltr[Umsatz Filter],0)) = 1, SUMIF(INDIRECT(dshbrdrng_bruttogewinn),"<>", INDEX(INDIRECT(dshbrdrng_bruttogewinn2),0,MATCH(DATE($B54,MONTH(M$49),1),Erfolgsrechnung_Detail!$O$8:$DF$8,0))), SUMIF(INDIRECT(dshbrdrng_bruttogewinn),"<>", INDEX(INDIRECT(dshbrdrng_bruttogewinn2),0,MATCH(DATE($B54,MONTH(M$49),1),Erfolgsrechnung_Detail!$O$8:$DF$8,0)))+L54),"") -> 14035.2552 | N54: =IFERROR(SUMIF(INDIRECT(dshbrdrng_umsatzentwicklung),"<>", INDEX(INDIRECT(dshbrdrng_umsatzentwicklung2),0,MATCH(DATE($B18,MONTH(N$13),1),Erfolgsrechnung_Detail!$O$8:$DF$8,0))) + IF(INDEX(tblUmsatzFltr[Nr],MATCH(filter_umsatz,tblUmsatzFltr[Umsatz Filter],0)) = 1, SUMIF(INDIRECT(dshbrdrng_bruttogewinn),"<>", INDEX(INDIRECT(dshbrdrng_bruttogewinn2),0,MATCH(DATE($B54,MONTH(N$49),1),Erfolgsrechnung_Detail!$O$8:$DF$8,0))), SUMIF(INDIRECT(dshbrdrng_bruttogewinn),"<>", INDEX(INDIRECT(dshbrdrng_bruttogewinn2),0,MATCH(DATE($B54,MONTH(N$49),1),Erfolgsrechnung_Detail!$O$8:$DF$8,0)))+M54),"") -> 12021.77801 | P54: =IFERROR(IF( INDEX(tblUmsatzFltr[Nr],MATCH(filter_umsatz,tblUmsatzFltr[Umsatz Filter],0))=1, SUM($C54:INDEX($C54:$N54,1,selectedmonat_num)), INDEX($C54:$N54,0,MATCH(monat,tblMonate[Monate],0))),"") -> 20637.91047 | Q54: =IFERROR( IF(INDEX(tblUmsatzFltr[Nr],MATCH(filter_umsatz,tblUmsatzFltr[Umsatz Filter],0))=1, SUM(C54:$N54),N54),"") -> 110961.8053
B55: 2019 | C55: =IFERROR(C19+ SUMIF(INDIRECT(dshbrdrng_bruttogewinn),"<>", INDEX(INDIRECT(dshbrdrng_bruttogewinn2),0,MATCH(DATE($B55,MONTH(C$49),1),Erfolgsrechnung_Detail!$O$8:$DF$8,0))), "") -> 2700.700715 | D55: =IFERROR(SUMIF(INDIRECT(dshbrdrng_umsatzentwicklung),"<>", INDEX(INDIRECT(dshbrdrng_umsatzentwicklung2),0,MATCH(DATE($B19,MONTH(D$13),1),Erfolgsrechnung_Detail!$O$8:$DF$8,0))) + IF(INDEX(tblUmsatzFltr[Nr],MATCH(filter_umsatz,tblUmsatzFltr[Umsatz Filter],0)) = 1, SUMIF(INDIRECT(dshbrdrng_bruttogewinn),"<>", INDEX(INDIRECT(dshbrdrng_bruttogewinn2),0,MATCH(DATE($B55,MONTH(D$49),1),Erfolgsrechnung_Detail!$O$8:$DF$8,0))), SUMIF(INDIRECT(dshbrdrng_bruttogewinn),"<>", INDEX(INDIRECT(dshbrdrng_bruttogewinn2),0,MATCH(DATE($B55,MONTH(D$49),1),Erfolgsrechnung_Detail!$O$8:$DF$8,0)))+C55),"") -> 18238.23919 | E55: =IFERROR(SUMIF(INDIRECT(dshbrdrng_umsatzentwicklung),"<>", INDEX(INDIRECT(dshbrdrng_umsatzentwicklung2),0,MATCH(DATE($B19,MONTH(E$13),1),Erfolgsrechnung_Detail!$O$8:$DF$8,0))) + IF(INDEX(tblUmsatzFltr[Nr],MATCH(filter_umsatz,tblUmsatzFltr[Umsatz Filter],0)) = 1, SUMIF(INDIRECT(dshbrdrng_bruttogewinn),"<>", INDEX(INDIRECT(dshbrdrng_bruttogewinn2),0,MATCH(DATE($B55,MONTH(E$49),1),Erfolgsrechnung_Detail!$O$8:$DF$8,0))), SUMIF(INDIRECT(dshbrdrng_bruttogewinn),"<>", INDEX(INDIRECT(dshbrdrng_bruttogewinn2),0,MATCH(DATE($B55,MONTH(E$49),1),Erfolgsrechnung_Detail!$O$8:$DF$8,0)))+D55),"") -> 14865.26921 | F55: =IFERROR(SUMIF(INDIRECT(dshbrdrng_umsatzentwicklung),"<>", INDEX(INDIRECT(dshbrdrng_umsatzentwicklung2),0,MATCH(DATE($B19,MONTH(F$13),1),Erfolgsrechnung_Detail!$O$8:$DF$8,0))) + IF(INDEX(tblUmsatzFltr[Nr],MATCH(filter_umsatz,tblUmsatzFltr[Umsatz Filter],0)) = 1, SUMIF(INDIRECT(dshbrdrng_bruttogewinn),"<>", INDEX(INDIRECT(dshbrdrng_bruttogewinn2),0,MATCH(DATE($B55,MONTH(F$49),1),Erfolgsrechnung_Detail!$O$8:$DF$8,0))), SUMIF(INDIRECT(dshbrdrng_bruttogewinn),"<>", INDEX(INDIRECT(dshbrdrng_bruttogewinn2),0,MATCH(DATE($B55,MONTH(F$49),1),Erfolgsrechnung_Detail!$O$8:$DF$8,0)))+E55),"") -> 18935.23313 | G55: =IFERROR(SUMIF(INDIRECT(dshbrdrng_umsatzentwicklung),"<>", INDEX(INDIRECT(dshbrdrng_umsatzentwicklung2),0,MATCH(DATE($B19,MONTH(G$13),1),Erfolgsrechnung_Detail!$O$8:$DF$8,0))) + IF(INDEX(tblUmsatzFltr[Nr],MATCH(filter_umsatz,tblUmsatzFltr[Umsatz Filter],0)) = 1, SUMIF(INDIRECT(dshbrdrng_bruttogewinn),"<>", INDEX(INDIRECT(dshbrdrng_bruttogewinn2),0,MATCH(DATE($B55,MONTH(G$49),1),Erfolgsrechnung_Detail!$O$8:$DF$8,0))), SUMIF(INDIRECT(dshbrdrng_bruttogewinn),"<>", INDEX(INDIRECT(dshbrdrng_bruttogewinn2),0,MATCH(DATE($B55,MONTH(G$49),1),Erfolgsrechnung_Detail!$O$8:$DF$8,0)))+F55),"") -> 26050.16776 | H55: =IFERROR(SUMIF(INDIRECT(dshbrdrng_umsatzentwicklung),"<>", INDEX(INDIRECT(dshbrdrng_umsatzentwicklung2),0,MATCH(DATE($B19,MONTH(H$13),1),Erfolgsrechnung_Detail!$O$8:$DF$8,0))) + IF(INDEX(tblUmsatzFltr[Nr],MATCH(filter_umsatz,tblUmsatzFltr[Umsatz Filter],0)) = 1, SUMIF(INDIRECT(dshbrdrng_bruttogewinn),"<>", INDEX(INDIRECT(dshbrdrng_bruttogewinn2),0,MATCH(DATE($B55,MONTH(H$49),1),Erfolgsrechnung_Detail!$O$8:$DF$8,0))), SUMIF(INDIRECT(dshbrdrng_bruttogewinn),"<>", INDEX(INDIRECT(dshbrdrng_bruttogewinn2),0,MATCH(DATE($B55,MONTH(H$49),1),Erfolgsrechnung_Detail!$O$8:$DF$8,0)))+G55),"") -> 12640.44406 | I55: =IFERROR(SUMIF(INDIRECT(dshbrdrng_umsatzentwicklung),"<>", INDEX(INDIRECT(dshbrdrng_umsatzentwicklung2),0,MATCH(DATE($B19,MONTH(I$13),1),Erfolgsrechnung_Detail!$O$8:$DF$8,0))) + IF(INDEX(tblUmsatzFltr[Nr],MATCH(filter_umsatz,tblUmsatzFltr[Umsatz Filter],0)) = 1, SUMIF(INDIRECT(dshbrdrng_bruttogewinn),"<>", INDEX(INDIRECT(dshbrdrng_bruttogewinn2),0,MATCH(DATE($B55,MONTH(I$49),1),Erfolgsrechnung_Detail!$O$8:$DF$8,0))), SUMIF(INDIRECT(dshbrdrng_bruttogewinn),"<>", INDEX(INDIRECT(dshbrdrng_bruttogewinn2),0,MATCH(DATE($B55,MONTH(I$49),1),Erfolgsrechnung_Detail!$O$8:$DF$8,0)))+H55),"") -> 17637.79269 | J55: =IFERROR(SUMIF(INDIRECT(dshbrdrng_umsatzentwicklung),"<>", INDEX(INDIRECT(dshbrdrng_umsatzentwicklung2),0,MATCH(DATE($B19,MONTH(J$13),1),Erfolgsrechnung_Detail!$O$8:$DF$8,0))) + IF(INDEX(tblUmsatzFltr[Nr],MATCH(filter_umsatz,tblUmsatzFltr[Umsatz Filter],0)) = 1, SUMIF(INDIRECT(dshbrdrng_bruttogewinn),"<>", INDEX(INDIRECT(dshbrdrng_bruttogewinn2),0,MATCH(DATE($B55,MONTH(J$49),1),Erfolgsrechnung_Detail!$O$8:$DF$8,0))), SUMIF(INDIRECT(dshbrdrng_bruttogewinn),"<>", INDEX(INDIRECT(dshbrdrng_bruttogewinn2),0,MATCH(DATE($B55,MONTH(J$49),1),Erfolgsrechnung_Detail!$O$8:$DF$8,0)))+I55),"") -> 18684.03714 | K55: =IFERROR(SUMIF(INDIRECT(dshbrdrng_umsatzentwicklung),"<>", INDEX(INDIRECT(dshbrdrng_umsatzentwicklung2),0,MATCH(DATE($B19,MONTH(K$13),1),Erfolgsrechnung_Detail!$O$8:$DF$8,0))) + IF(INDEX(tblUmsatzFltr[Nr],MATCH(filter_umsatz,tblUmsatzFltr[Umsatz Filter],0)) = 1, SUMIF(INDIRECT(dshbrdrng_bruttogewinn),"<>", INDEX(INDIRECT(dshbrdrng_bruttogewinn2),0,MATCH(DATE($B55,MONTH(K$49),1),Erfolgsrechnung_Detail!$O$8:$DF$8,0))), SUMIF(INDIRECT(dshbrdrng_bruttogewinn),"<>", INDEX(INDIRECT(dshbrdrng_bruttogewinn2),0,MATCH(DATE($B55,MONTH(K$49),1),Erfolgsrechnung_Detail!$O$8:$DF$8,0)))+J55),"") -> 12973.01069 | L55: =IFERROR(SUMIF(INDIRECT(dshbrdrng_umsatzentwicklung),"<>", INDEX(INDIRECT(dshbrdrng_umsatzentwicklung2),0,MATCH(DATE($B19,MONTH(L$13),1),Erfolgsrechnung_Detail!$O$8:$DF$8,0))) + IF(INDEX(tblUmsatzFltr[Nr],MATCH(filter_umsatz,tblUmsatzFltr[Umsatz Filter],0)) = 1, SUMIF(INDIRECT(dshbrdrng_bruttogewinn),"<>", INDEX(INDIRECT(dshbrdrng_bruttogewinn2),0,MATCH(DATE($B55,MONTH(L$49),1),Erfolgsrechnung_Detail!$O$8:$DF$8,0))), SUMIF(INDIRECT(dshbrdrng_bruttogewinn),"<>", INDEX(INDIRECT(dshbrdrng_bruttogewinn2),0,MATCH(DATE($B55,MONTH(L$49),1),Erfolgsrechnung_Detail!$O$8:$DF$8,0)))+K55),"") -> 9402.471129 | M55: =IFERROR(SUMIF(INDIRECT(dshbrdrng_umsatzentwicklung),"<>", INDEX(INDIRECT(dshbrdrng_umsatzentwicklung2),0,MATCH(DATE($B19,MONTH(M$13),1),Erfolgsrechnung_Detail!$O$8:$DF$8,0))) + IF(INDEX(tblUmsatzFltr[Nr],MATCH(filter_umsatz,tblUmsatzFltr[Umsatz Filter],0)) = 1, SUMIF(INDIRECT(dshbrdrng_bruttogewinn),"<>", INDEX(INDIRECT(dshbrdrng_bruttogewinn2),0,MATCH(DATE($B55,MONTH(M$49),1),Erfolgsrechnung_Detail!$O$8:$DF$8,0))), SUMIF(INDIRECT(dshbrdrng_bruttogewinn),"<>", INDEX(INDIRECT(dshbrdrng_bruttogewinn2),0,MATCH(DATE($B55,MONTH(M$49),1),Erfolgsrechnung_Detail!$O$8:$DF$8,0)))+L55),"") -> 14070.63202 | N55: =IFERROR(SUMIF(INDIRECT(dshbrdrng_umsatzentwicklung),"<>", INDEX(INDIRECT(dshbrdrng_umsatzentwicklung2),0,MATCH(DATE($B19,MONTH(N$13),1),Erfolgsrechnung_Detail!$O$8:$DF$8,0))) + IF(INDEX(tblUmsatzFltr[Nr],MATCH(filter_umsatz,tblUmsatzFltr[Umsatz Filter],0)) = 1, SUMIF(INDIRECT(dshbrdrng_bruttogewinn),"<>", INDEX(INDIRECT(dshbrdrng_bruttogewinn2),0,MATCH(DATE($B55,MONTH(N$49),1),Erfolgsrechnung_Detail!$O$8:$DF$8,0))), SUMIF(INDIRECT(dshbrdrng_bruttogewinn),"<>", INDEX(INDIRECT(dshbrdrng_bruttogewinn2),0,MATCH(DATE($B55,MONTH(N$49),1),Erfolgsrechnung_Detail!$O$8:$DF$8,0)))+M55),"") -> 18795.03147 | P55: =IFERROR(IF( INDEX(tblUmsatzFltr[Nr],MATCH(filter_umsatz,tblUmsatzFltr[Umsatz Filter],0))=1, SUM($C55:INDEX($C55:$N55,1,selectedmonat_num)), INDEX($C55:$N55,0,MATCH(monat,tblMonate[Monate],0))),"") -> 35804.20911 | Q55: =IFERROR( IF(INDEX(tblUmsatzFltr[Nr],MATCH(filter_umsatz,tblUmsatzFltr[Umsatz Filter],0))=1, SUM(C55:$N55),N55),"") -> 184993.0292
B56: =jahr -> 2020 | C56: =IFERROR(C20+ SUMIF(INDIRECT(dshbrdrng_bruttogewinn),"<>", INDEX(INDIRECT(dshbrdrng_bruttogewinn2),0,MATCH(DATE($B56,MONTH(C$49),1),Erfolgsrechnung_Detail!$O$8:$DF$8,0))), "") -> 11567.28073 | D56: =IFERROR(SUMIF(INDIRECT(dshbrdrng_umsatzentwicklung),"<>", INDEX(INDIRECT(dshbrdrng_umsatzentwicklung2),0,MATCH(DATE($B20,MONTH(D$13),1),Erfolgsrechnung_Detail!$O$8:$DF$8,0))) + IF(INDEX(tblUmsatzFltr[Nr],MATCH(filter_umsatz,tblUmsatzFltr[Umsatz Filter],0)) = 1, SUMIF(INDIRECT(dshbrdrng_bruttogewinn),"<>", INDEX(INDIRECT(dshbrdrng_bruttogewinn2),0,MATCH(DATE($B56,MONTH(D$49),1),Erfolgsrechnung_Detail!$O$8:$DF$8,0))), SUMIF(INDIRECT(dshbrdrng_bruttogewinn),"<>", INDEX(INDIRECT(dshbrdrng_bruttogewinn2),0,MATCH(DATE($B56,MONTH(D$49),1),Erfolgsrechnung_Detail!$O$8:$DF$8,0)))+C56),"") -> 9715.682272 | E56: =IFERROR(SUMIF(INDIRECT(dshbrdrng_umsatzentwicklung),"<>", INDEX(INDIRECT(dshbrdrng_umsatzentwicklung2),0,MATCH(DATE($B20,MONTH(E$13),1),Erfolgsrechnung_Detail!$O$8:$DF$8,0))) + IF(INDEX(tblUmsatzFltr[Nr],MATCH(filter_umsatz,tblUmsatzFltr[Umsatz Filter],0)) = 1, SUMIF(INDIRECT(dshbrdrng_bruttogewinn),"<>", INDEX(INDIRECT(dshbrdrng_bruttogewinn2),0,MATCH(DATE($B56,MONTH(E$49),1),Erfolgsrechnung_Detail!$O$8:$DF$8,0))), SUMIF(INDIRECT(dshbrdrng_bruttogewinn),"<>", INDEX(INDIRECT(dshbrdrng_bruttogewinn2),0,MATCH(DATE($B56,MONTH(E$49),1),Erfolgsrechnung_Detail!$O$8:$DF$8,0)))+D56),"") -> 14038.26753 | F56: =IFERROR(SUMIF(INDIRECT(dshbrdrng_umsatzentwicklung),"<>", INDEX(INDIRECT(dshbrdrng_umsatzentwicklung2),0,MATCH(DATE($B20,MONTH(F$13),1),Erfolgsrechnung_Detail!$O$8:$DF$8,0))) + IF(INDEX(tblUmsatzFltr[Nr],MATCH(filter_umsatz,tblUmsatzFltr[Umsatz Filter],0)) = 1, SUMIF(INDIRECT(dshbrdrng_bruttogewinn),"<>", INDEX(INDIRECT(dshbrdrng_bruttogewinn2),0,MATCH(DATE($B56,MONTH(F$49),1),Erfolgsrechnung_Detail!$O$8:$DF$8,0))), SUMIF(INDIRECT(dshbrdrng_bruttogewinn),"<>", INDEX(INDIRECT(dshbrdrng_bruttogewinn2),0,MATCH(DATE($B56,MONTH(F$49),1),Erfolgsrechnung_Detail!$O$8:$DF$8,0)))+E56),"") -> 3560.575447 | G56: =IFERROR(SUMIF(INDIRECT(dshbrdrng_umsatzentwicklung),"<>", INDEX(INDIRECT(dshbrdrng_umsatzentwicklung2),0,MATCH(DATE($B20,MONTH(G$13),1),Erfolgsrechnung_Detail!$O$8:$DF$8,0))) + IF(INDEX(tblUmsatzFltr[Nr],MATCH(filter_umsatz,tblUmsatzFltr[Umsatz Filter],0)) = 1, SUMIF(INDIRECT(dshbrdrng_bruttogewinn),"<>", INDEX(INDIRECT(dshbrdrng_bruttogewinn2),0,MATCH(DATE($B56,MONTH(G$49),1),Erfolgsrechnung_Detail!$O$8:$DF$8,0))), SUMIF(INDIRECT(dshbrdrng_bruttogewinn),"<>", INDEX(INDIRECT(dshbrdrng_bruttogewinn2),0,MATCH(DATE($B56,MONTH(G$49),1),Erfolgsrechnung_Detail!$O$8:$DF$8,0)))+F56),"") -> 9877.72575 | H56: =IFERROR(SUMIF(INDIRECT(dshbrdrng_umsatzentwicklung),"<>", INDEX(INDIRECT(dshbrdrng_umsatzentwicklung2),0,MATCH(DATE($B20,MONTH(H$13),1),Erfolgsrechnung_Detail!$O$8:$DF$8,0))) + IF(INDEX(tblUmsatzFltr[Nr],MATCH(filter_umsatz,tblUmsatzFltr[Umsatz Filter],0)) = 1, SUMIF(INDIRECT(dshbrdrng_bruttogewinn),"<>", INDEX(INDIRECT(dshbrdrng_bruttogewinn2),0,MATCH(DATE($B56,MONTH(H$49),1),Erfolgsrechnung_Detail!$O$8:$DF$8,0))), SUMIF(INDIRECT(dshbrdrng_bruttogewinn),"<>", INDEX(INDIRECT(dshbrdrng_bruttogewinn2),0,MATCH(DATE($B56,MONTH(H$49),1),Erfolgsrechnung_Detail!$O$8:$DF$8,0)))+G56),"") -> 18030.96023 | I56: =IFERROR(SUMIF(INDIRECT(dshbrdrng_umsatzentwicklung),"<>", INDEX(INDIRECT(dshbrdrng_umsatzentwicklung2),0,MATCH(DATE($B20,MONTH(I$13),1),Erfolgsrechnung_Detail!$O$8:$DF$8,0))) + IF(INDEX(tblUmsatzFltr[Nr],MATCH(filter_umsatz,tblUmsatzFltr[Umsatz Filter],0)) = 1, SUMIF(INDIRECT(dshbrdrng_bruttogewinn),"<>", INDEX(INDIRECT(dshbrdrng_bruttogewinn2),0,MATCH(DATE($B56,MONTH(I$49),1),Erfolgsrechnung_Detail!$O$8:$DF$8,0))), SUMIF(INDIRECT(dshbrdrng_bruttogewinn),"<>", INDEX(INDIRECT(dshbrdrng_bruttogewinn2),0,MATCH(DATE($B56,MONTH(I$49),1),Erfolgsrechnung_Detail!$O$8:$DF$8,0)))+H56),"") -> 11652.74104 | J56: =IFERROR(SUMIF(INDIRECT(dshbrdrng_umsatzentwicklung),"<>", INDEX(INDIRECT(dshbrdrng_umsatzentwicklung2),0,MATCH(DATE($B20,MONTH(J$13),1),Erfolgsrechnung_Detail!$O$8:$DF$8,0))) + IF(INDEX(tblUmsatzFltr[Nr],MATCH(filter_umsatz,tblUmsatzFltr[Umsatz Filter],0)) = 1, SUMIF(INDIRECT(dshbrdrng_bruttogewinn),"<>", INDEX(INDIRECT(dshbrdrng_bruttogewinn2),0,MATCH(DATE($B56,MONTH(J$49),1),Erfolgsrechnung_Detail!$O$8:$DF$8,0))), SUMIF(INDIRECT(dshbrdrng_bruttogewinn),"<>", INDEX(INDIRECT(dshbrdrng_bruttogewinn2),0,MATCH(DATE($B56,MONTH(J$49),1),Erfolgsrechnung_Detail!$O$8:$DF$8,0)))+I56),"") -> 9197.122064 | K56: =IFERROR(SUMIF(INDIRECT(dshbrdrng_umsatzentwicklung),"<>", INDEX(INDIRECT(dshbrdrng_umsatzentwicklung2),0,MATCH(DATE($B20,MONTH(K$13),1),Erfolgsrechnung_Detail!$O$8:$DF$8,0))) + IF(INDEX(tblUmsatzFltr[Nr],MATCH(filter_umsatz,tblUmsatzFltr[Umsatz Filter],0)) = 1, SUMIF(INDIRECT(dshbrdrng_bruttogewinn),"<>", INDEX(INDIRECT(dshbrdrng_bruttogewinn2),0,MATCH(DATE($B56,MONTH(K$49),1),Erfolgsrechnung_Detail!$O$8:$DF$8,0))), SUMIF(INDIRECT(dshbrdrng_bruttogewinn),"<>", INDEX(INDIRECT(dshbrdrng_bruttogewinn2),0,MATCH(DATE($B56,MONTH(K$49),1),Erfolgsrechnung_Detail!$O$8:$DF$8,0)))+J56),"") -> 7558.487305 | L56: =IFERROR(SUMIF(INDIRECT(dshbrdrng_umsatzentwicklung),"<>", INDEX(INDIRECT(dshbrdrng_umsatzentwicklung2),0,MATCH(DATE($B20,MONTH(L$13),1),Erfolgsrechnung_Detail!$O$8:$DF$8,0))) + IF(INDEX(tblUmsatzFltr[Nr],MATCH(filter_umsatz,tblUmsatzFltr[Umsatz Filter],0)) = 1, SUMIF(INDIRECT(dshbrdrng_bruttogewinn),"<>", INDEX(INDIRECT(dshbrdrng_bruttogewinn2),0,MATCH(DATE($B56,MONTH(L$49),1),Erfolgsrechnung_Detail!$O$8:$DF$8,0))), SUMIF(INDIRECT(dshbrdrng_bruttogewinn),"<>", INDEX(INDIRECT(dshbrdrng_bruttogewinn2),0,MATCH(DATE($B56,MONTH(L$49),1),Erfolgsrechnung_Detail!$O$8:$DF$8,0)))+K56),"") -> 8563.750058 | M56: =IFERROR(SUMIF(INDIRECT(dshbrdrng_umsatzentwicklung),"<>", INDEX(INDIRECT(dshbrdrng_umsatzentwicklung2),0,MATCH(DATE($B20,MONTH(M$13),1),Erfolgsrechnung_Detail!$O$8:$DF$8,0))) + IF(INDEX(tblUmsatzFltr[Nr],MATCH(filter_umsatz,tblUmsatzFltr[Umsatz Filter],0)) = 1, SUMIF(INDIRECT(dshbrdrng_bruttogewinn),"<>", INDEX(INDIRECT(dshbrdrng_bruttogewinn2),0,MATCH(DATE($B56,MONTH(M$49),1),Erfolgsrechnung_Detail!$O$8:$DF$8,0))), SUMIF(INDIRECT(dshbrdrng_bruttogewinn),"<>", INDEX(INDIRECT(dshbrdrng_bruttogewinn2),0,MATCH(DATE($B56,MONTH(M$49),1),Erfolgsrechnung_Detail!$O$8:$DF$8,0)))+L56),"") -> 14366.31893 | N56: =IFERROR(SUMIF(INDIRECT(dshbrdrng_umsatzentwicklung),"<>", INDEX(INDIRECT(dshbrdrng_umsatzentwicklung2),0,MATCH(DATE($B20,MONTH(N$13),1),Erfolgsrechnung_Detail!$O$8:$DF$8,0))) + IF(INDEX(tblUmsatzFltr[Nr],MATCH(filter_umsatz,tblUmsatzFltr[Umsatz Filter],0)) = 1, SUMIF(INDIRECT(dshbrdrng_bruttogewinn),"<>", INDEX(INDIRECT(dshbrdrng_bruttogewinn2),0,MATCH(DATE($B56,MONTH(N$49),1),Erfolgsrechnung_Detail!$O$8:$DF$8,0))), SUMIF(INDIRECT(dshbrdrng_bruttogewinn),"<>", INDEX(INDIRECT(dshbrdrng_bruttogewinn2),0,MATCH(DATE($B56,MONTH(N$49),1),Erfolgsrechnung_Detail!$O$8:$DF$8,0)))+M56),"") -> 16150.81727 | P56: =IFERROR(IF( INDEX(tblUmsatzFltr[Nr],MATCH(filter_umsatz,tblUmsatzFltr[Umsatz Filter],0))=1, SUM($C56:INDEX($C56:$N56,1,selectedmonat_num)), INDEX($C56:$N56,0,MATCH(monat,tblMonate[Monate],0))),"") -> 35321.23053 | Q56: =IFERROR( IF(INDEX(tblUmsatzFltr[Nr],MATCH(filter_umsatz,tblUmsatzFltr[Umsatz Filter],0))=1, SUM(C56:$N56),N56),"") -> 134279.7286
B57: YTD | C57: =IFERROR(C56/C55-1,0) -> 3.283066489 | D57: -0.4672905552 | E57: -0.05563314515 | F57: -0.8119603058 | G57: -0.6208191118 | H57: 0.4264499052 | I57: -0.3393311032 | J57: -0.5077550962 | K57: -0.4173682977 | L57: -0.08920219582 | M57: 0.02101447266 | N57: -0.1406868723 | P57: =IFERROR(P56/P55-1,0) -> -0.01348943577 | Q57: =IFERROR(Q56/Q55-1,0) -> -0.2741362785
D58: =IFERROR( IF(INDEX(tblUmsatzFltr[Nr],MATCH(filter_umsatz,tblUmsatzFltr[Umsatz Filter],0)) = 1, SUMIF(dshbrdrng_bruttogewinn,"="&Einstellungen!$BI$9, INDEX(dshbrdrng_bruttogewinn2,MATCH(DATE(B58,MONTH(C$49),1),Erfolgsrechnung_Detail!$O$8:$DF$8,0))), SUMIF(dshbrdrng_bruttogewinn,"="&Einstellungen!$BI$9, INDEX(dshbrdrng_bruttogewinn2,MATCH(DATE(B58,MONTH(C$49),1),Erfolgsrechnung_Detail!$O$8:$DF$8,0)))+C58),"") -> 
B59: Budget | C59: =IFERROR(SUMIFS(INDIRECT(budgetrng_umsatzentwicklung),INDIRECT(budgetrng),"<>")- SUMIFS(INDIRECT(budgetrng_bruttogewinn),INDIRECT(budgetrng2),"<>"),"") -> 1999.9994 | D59: =IFERROR(SUMIFS(OFFSET(INDIRECT(budgetrng_umsatzentwicklung),0,1),INDIRECT(budgetrng),"<>")- SUMIFS(OFFSET(INDIRECT(budgetrng_bruttogewinn),0,1),INDIRECT(budgetrng2),"<>"),"") -> 1999.9994 | E59: =IFERROR(SUMIFS(OFFSET(INDIRECT(budgetrng_umsatzentwicklung),0,2),INDIRECT(budgetrng),"<>")- SUMIFS(OFFSET(INDIRECT(budgetrng_bruttogewinn),0,2),INDIRECT(budgetrng2),"<>"),"") -> 1999.9995 | F59: =IFERROR(SUMIFS(OFFSET(INDIRECT(budgetrng_umsatzentwicklung),0,3),INDIRECT(budgetrng),"<>")- SUMIFS(OFFSET(INDIRECT(budgetrng_bruttogewinn),0,3),INDIRECT(budgetrng2),"<>"),"") -> 1999.9995 | G59: =IFERROR(SUMIFS(OFFSET(INDIRECT(budgetrng_umsatzentwicklung),0,4),INDIRECT(budgetrng),"<>")- SUMIFS(OFFSET(INDIRECT(budgetrng_bruttogewinn),0,4),INDIRECT(budgetrng2),"<>"),"") -> 1999.9996 | H59: =IFERROR(SUMIFS(OFFSET(INDIRECT(budgetrng_umsatzentwicklung),0,5),INDIRECT(budgetrng),"<>")- SUMIFS(OFFSET(INDIRECT(budgetrng_bruttogewinn),0,5),INDIRECT(budgetrng2),"<>"),"") -> 1999.9996 | I59: =IFERROR(SUMIFS(OFFSET(INDIRECT(budgetrng_umsatzentwicklung),0,6),INDIRECT(budgetrng),"<>")- SUMIFS(OFFSET(INDIRECT(budgetrng_bruttogewinn),0,6),INDIRECT(budgetrng2),"<>"),"") -> 1999.9997 | J59: =IFERROR(SUMIFS(OFFSET(INDIRECT(budgetrng_umsatzentwicklung),0,7),INDIRECT(budgetrng),"<>")- SUMIFS(OFFSET(INDIRECT(budgetrng_bruttogewinn),0,7),INDIRECT(budgetrng2),"<>"),"") -> 1999.9997 | K59: =IFERROR(SUMIFS(OFFSET(INDIRECT(budgetrng_umsatzentwicklung),0,8),INDIRECT(budgetrng),"<>")- SUMIFS(OFFSET(INDIRECT(budgetrng_bruttogewinn),0,8),INDIRECT(budgetrng2),"<>"),"") -> 1999.9998 | L59: =IFERROR(SUMIFS(OFFSET(INDIRECT(budgetrng_umsatzentwicklung),0,9),INDIRECT(budgetrng),"<>")- SUMIFS(OFFSET(INDIRECT(budgetrng_bruttogewinn),0,9),INDIRECT(budgetrng2),"<>"),"") -> 1999.9998 | M59: =IFERROR(SUMIFS(OFFSET(INDIRECT(budgetrng_umsatzentwicklung),0,10),INDIRECT(budgetrng),"<>")- SUMIFS(OFFSET(INDIRECT(budgetrng_bruttogewinn),0,10),INDIRECT(budgetrng2),"<>"),"") -> 1999.9999 | N59: =IFERROR(SUMIFS(OFFSET(INDIRECT(budgetrng_umsatzentwicklung),0,11),INDIRECT(budgetrng),"<>")- SUMIFS(OFFSET(INDIRECT(budgetrng_bruttogewinn),0,11),INDIRECT(budgetrng2),"<>"),"") -> 1999.9999 | P59: =SUM($C59:INDEX($C59:$N59,1,selectedmonat_num)) -> 5999.9983 | Q59: =SUM(rngBudgetCost) -> 23999.9958
B62: Aktuelles Jahr vs. Vorjahr | P62: =IF(INDEX(tblMonate[Nr],MATCH(monat,tblMonate[Monate],0))<> 1, CONCATENATE("YTD ",Einstellungen!$AY$8," - ",monat," ",B47," Zielerreichung"), CONCATENATE("YTD ",Einstellungen!$AY$8," ",B47," Zielerreichungt")) -> YTD Januar - März Bruttogewinn /-Verlust Zielerreichung
B64: Budget | C64: =C59 -> 1999.9994 | D64: =IF(INDEX(tblUmsatzFltr[Nr],MATCH($L$3,tblUmsatzFltr[Umsatz Filter],0)) = 1,D$59,D$59+C$64) -> 1999.9994 | E64: =IF(INDEX(tblUmsatzFltr[Nr],MATCH($L$3,tblUmsatzFltr[Umsatz Filter],0)) = 1,E$59,E$59+D$64) -> 1999.9995 | F64: =IF(INDEX(tblUmsatzFltr[Nr],MATCH($L$3,tblUmsatzFltr[Umsatz Filter],0)) = 1,F$59,F$59+E$64) -> 1999.9995 | G64: =IF(INDEX(tblUmsatzFltr[Nr],MATCH($L$3,tblUmsatzFltr[Umsatz Filter],0)) = 1,G$59,G$59+F$64) -> 1999.9996 | H64: =IF(INDEX(tblUmsatzFltr[Nr],MATCH($L$3,tblUmsatzFltr[Umsatz Filter],0)) = 1,H$59,H$59+G$64) -> 1999.9996 | I64: =IF(INDEX(tblUmsatzFltr[Nr],MATCH($L$3,tblUmsatzFltr[Umsatz Filter],0)) = 1,I$59,I$59+H$64) -> 1999.9997 | J64: =IF(INDEX(tblUmsatzFltr[Nr],MATCH($L$3,tblUmsatzFltr[Umsatz Filter],0)) = 1,J$59,J$59+I$64) -> 1999.9997 | K64: =IF(INDEX(tblUmsatzFltr[Nr],MATCH($L$3,tblUmsatzFltr[Umsatz Filter],0)) = 1,K$59,K$59+J$64) -> 1999.9998 | L64: =IF(INDEX(tblUmsatzFltr[Nr],MATCH($L$3,tblUmsatzFltr[Umsatz Filter],0)) = 1,L$59,L$59+K$64) -> 1999.9998 | M64: =IF(INDEX(tblUmsatzFltr[Nr],MATCH($L$3,tblUmsatzFltr[Umsatz Filter],0)) = 1,M$59,M$59+L$64) -> 1999.9999 | N64: =IF(INDEX(tblUmsatzFltr[Nr],MATCH($L$3,tblUmsatzFltr[Umsatz Filter],0)) = 1,N$59,N$59+M$64) -> 1999.9999
B83: Reingewinn / Reinverlust
C85: =DATE(jahr,1,1) -> 2020-01-01 | D85: =EOMONTH(C85,0)+1 -> 2020-02-01 | E85: 2020-03-01 | F85: 2020-04-01 | G85: 2020-05-01 | H85: 2020-06-01 | I85: 2020-07-01 | J85: 2020-08-01 | K85: 2020-09-01 | L85: 2020-10-01 | M85: 2020-11-01 | N85: 2020-12-01 | P85: =P49 -> YTD Januar bis März | Q85: Total
B86: =Startseite!$H$3-6 -> 2014 | C86: =IFERROR(C14+ SUMIF(INDIRECT(dshbrdrng_reingewinn),"<>", INDEX(INDIRECT(dshbrdrng_reingewinn2),0,MATCH(DATE($B86,MONTH(C$85),1),Erfolgsrechnung_Detail!$O$8:$DF$8,0))), "") ->  | D86: =IFERROR(SUMIF(INDIRECT(dshbrdrng_umsatzentwicklung),"<>", INDEX(INDIRECT(dshbrdrng_umsatzentwicklung2),0,MATCH(DATE($B14,MONTH(D$13),1),Erfolgsrechnung_Detail!$O$8:$DF$8,0))) + IF(INDEX(tblUmsatzFltr[Nr],MATCH(filter_umsatz,tblUmsatzFltr[Umsatz Filter],0)) = 1, SUMIF(INDIRECT(dshbrdrng_reingewinn),"<>", INDEX(INDIRECT(dshbrdrng_reingewinn2),0,MATCH(DATE($B86,MONTH(D$85),1),Erfolgsrechnung_Detail!$O$8:$DF$8,0))), SUMIF(INDIRECT(dshbrdrng_reingewinn),"<>", INDEX(INDIRECT(dshbrdrng_reingewinn2),0,MATCH(DATE($B86,MONTH(D$85),1),Erfolgsrechnung_Detail!$O$8:$DF$8,0)))+C86),"") ->  | E86: =IFERROR(SUMIF(INDIRECT(dshbrdrng_umsatzentwicklung),"<>", INDEX(INDIRECT(dshbrdrng_umsatzentwicklung2),0,MATCH(DATE($B14,MONTH(E$13),1),Erfolgsrechnung_Detail!$O$8:$DF$8,0))) + IF(INDEX(tblUmsatzFltr[Nr],MATCH(filter_umsatz,tblUmsatzFltr[Umsatz Filter],0)) = 1, SUMIF(INDIRECT(dshbrdrng_reingewinn),"<>", INDEX(INDIRECT(dshbrdrng_reingewinn2),0,MATCH(DATE($B86,MONTH(E$85),1),Erfolgsrechnung_Detail!$O$8:$DF$8,0))), SUMIF(INDIRECT(dshbrdrng_reingewinn),"<>", INDEX(INDIRECT(dshbrdrng_reingewinn2),0,MATCH(DATE($B86,MONTH(E$85),1),Erfolgsrechnung_Detail!$O$8:$DF$8,0)))+D86),"") ->  | F86: =IFERROR(SUMIF(INDIRECT(dshbrdrng_umsatzentwicklung),"<>", INDEX(INDIRECT(dshbrdrng_umsatzentwicklung2),0,MATCH(DATE($B14,MONTH(F$13),1),Erfolgsrechnung_Detail!$O$8:$DF$8,0))) + IF(INDEX(tblUmsatzFltr[Nr],MATCH(filter_umsatz,tblUmsatzFltr[Umsatz Filter],0)) = 1, SUMIF(INDIRECT(dshbrdrng_reingewinn),"<>", INDEX(INDIRECT(dshbrdrng_reingewinn2),0,MATCH(DATE($B86,MONTH(F$85),1),Erfolgsrechnung_Detail!$O$8:$DF$8,0))), SUMIF(INDIRECT(dshbrdrng_reingewinn),"<>", INDEX(INDIRECT(dshbrdrng_reingewinn2),0,MATCH(DATE($B86,MONTH(F$85),1),Erfolgsrechnung_Detail!$O$8:$DF$8,0)))+E86),"") ->  | G86: =IFERROR(SUMIF(INDIRECT(dshbrdrng_umsatzentwicklung),"<>", INDEX(INDIRECT(dshbrdrng_umsatzentwicklung2),0,MATCH(DATE($B14,MONTH(G$13),1),Erfolgsrechnung_Detail!$O$8:$DF$8,0))) + IF(INDEX(tblUmsatzFltr[Nr],MATCH(filter_umsatz,tblUmsatzFltr[Umsatz Filter],0)) = 1, SUMIF(INDIRECT(dshbrdrng_reingewinn),"<>", INDEX(INDIRECT(dshbrdrng_reingewinn2),0,MATCH(DATE($B86,MONTH(G$85),1),Erfolgsrechnung_Detail!$O$8:$DF$8,0))), SUMIF(INDIRECT(dshbrdrng_reingewinn),"<>", INDEX(INDIRECT(dshbrdrng_reingewinn2),0,MATCH(DATE($B86,MONTH(G$85),1),Erfolgsrechnung_Detail!$O$8:$DF$8,0)))+F86),"") ->  | H86: =IFERROR(SUMIF(INDIRECT(dshbrdrng_umsatzentwicklung),"<>", INDEX(INDIRECT(dshbrdrng_umsatzentwicklung2),0,MATCH(DATE($B14,MONTH(H$13),1),Erfolgsrechnung_Detail!$O$8:$DF$8,0))) + IF(INDEX(tblUmsatzFltr[Nr],MATCH(filter_umsatz,tblUmsatzFltr[Umsatz Filter],0)) = 1, SUMIF(INDIRECT(dshbrdrng_reingewinn),"<>", INDEX(INDIRECT(dshbrdrng_reingewinn2),0,MATCH(DATE($B86,MONTH(H$85),1),Erfolgsrechnung_Detail!$O$8:$DF$8,0))), SUMIF(INDIRECT(dshbrdrng_reingewinn),"<>", INDEX(INDIRECT(dshbrdrng_reingewinn2),0,MATCH(DATE($B86,MONTH(H$85),1),Erfolgsrechnung_Detail!$O$8:$DF$8,0)))+G86),"") ->  | I86: =IFERROR(SUMIF(INDIRECT(dshbrdrng_umsatzentwicklung),"<>", INDEX(INDIRECT(dshbrdrng_umsatzentwicklung2),0,MATCH(DATE($B14,MONTH(I$13),1),Erfolgsrechnung_Detail!$O$8:$DF$8,0))) + IF(INDEX(tblUmsatzFltr[Nr],MATCH(filter_umsatz,tblUmsatzFltr[Umsatz Filter],0)) = 1, SUMIF(INDIRECT(dshbrdrng_reingewinn),"<>", INDEX(INDIRECT(dshbrdrng_reingewinn2),0,MATCH(DATE($B86,MONTH(I$85),1),Erfolgsrechnung_Detail!$O$8:$DF$8,0))), SUMIF(INDIRECT(dshbrdrng_reingewinn),"<>", INDEX(INDIRECT(dshbrdrng_reingewinn2),0,MATCH(DATE($B86,MONTH(I$85),1),Erfolgsrechnung_Detail!$O$8:$DF$8,0)))+H86),"") ->  | J86: =IFERROR(SUMIF(INDIRECT(dshbrdrng_umsatzentwicklung),"<>", INDEX(INDIRECT(dshbrdrng_umsatzentwicklung2),0,MATCH(DATE($B14,MONTH(J$13),1),Erfolgsrechnung_Detail!$O$8:$DF$8,0))) + IF(INDEX(tblUmsatzFltr[Nr],MATCH(filter_umsatz,tblUmsatzFltr[Umsatz Filter],0)) = 1, SUMIF(INDIRECT(dshbrdrng_reingewinn),"<>", INDEX(INDIRECT(dshbrdrng_reingewinn2),0,MATCH(DATE($B86,MONTH(J$85),1),Erfolgsrechnung_Detail!$O$8:$DF$8,0))), SUMIF(INDIRECT(dshbrdrng_reingewinn),"<>", INDEX(INDIRECT(dshbrdrng_reingewinn2),0,MATCH(DATE($B86,MONTH(J$85),1),Erfolgsrechnung_Detail!$O$8:$DF$8,0)))+I86),"") ->  | K86: =IFERROR(SUMIF(INDIRECT(dshbrdrng_umsatzentwicklung),"<>", INDEX(INDIRECT(dshbrdrng_umsatzentwicklung2),0,MATCH(DATE($B14,MONTH(K$13),1),Erfolgsrechnung_Detail!$O$8:$DF$8,0))) + IF(INDEX(tblUmsatzFltr[Nr],MATCH(filter_umsatz,tblUmsatzFltr[Umsatz Filter],0)) = 1, SUMIF(INDIRECT(dshbrdrng_reingewinn),"<>", INDEX(INDIRECT(dshbrdrng_reingewinn2),0,MATCH(DATE($B86,MONTH(K$85),1),Erfolgsrechnung_Detail!$O$8:$DF$8,0))), SUMIF(INDIRECT(dshbrdrng_reingewinn),"<>", INDEX(INDIRECT(dshbrdrng_reingewinn2),0,MATCH(DATE($B86,MONTH(K$85),1),Erfolgsrechnung_Detail!$O$8:$DF$8,0)))+J86),"") ->  | L86: =IFERROR(SUMIF(INDIRECT(dshbrdrng_umsatzentwicklung),"<>", INDEX(INDIRECT(dshbrdrng_umsatzentwicklung2),0,MATCH(DATE($B14,MONTH(L$13),1),Erfolgsrechnung_Detail!$O$8:$DF$8,0))) + IF(INDEX(tblUmsatzFltr[Nr],MATCH(filter_umsatz,tblUmsatzFltr[Umsatz Filter],0)) = 1, SUMIF(INDIRECT(dshbrdrng_reingewinn),"<>", INDEX(INDIRECT(dshbrdrng_reingewinn2),0,MATCH(DATE($B86,MONTH(L$85),1),Erfolgsrechnung_Detail!$O$8:$DF$8,0))), SUMIF(INDIRECT(dshbrdrng_reingewinn),"<>", INDEX(INDIRECT(dshbrdrng_reingewinn2),0,MATCH(DATE($B86,MONTH(L$85),1),Erfolgsrechnung_Detail!$O$8:$DF$8,0)))+K86),"") ->  | M86: =IFERROR(SUMIF(INDIRECT(dshbrdrng_umsatzentwicklung),"<>", INDEX(INDIRECT(dshbrdrng_umsatzentwicklung2),0,MATCH(DATE($B14,MONTH(M$13),1),Erfolgsrechnung_Detail!$O$8:$DF$8,0))) + IF(INDEX(tblUmsatzFltr[Nr],MATCH(filter_umsatz,tblUmsatzFltr[Umsatz Filter],0)) = 1, SUMIF(INDIRECT(dshbrdrng_reingewinn),"<>", INDEX(INDIRECT(dshbrdrng_reingewinn2),0,MATCH(DATE($B86,MONTH(M$85),1),Erfolgsrechnung_Detail!$O$8:$DF$8,0))), SUMIF(INDIRECT(dshbrdrng_reingewinn),"<>", INDEX(INDIRECT(dshbrdrng_reingewinn2),0,MATCH(DATE($B86,MONTH(M$85),1),Erfolgsrechnung_Detail!$O$8:$DF$8,0)))+L86),"") ->  | N86: =IFERROR(SUMIF(INDIRECT(dshbrdrng_umsatzentwicklung),"<>", INDEX(INDIRECT(dshbrdrng_umsatzentwicklung2),0,MATCH(DATE($B14,MONTH(N$13),1),Erfolgsrechnung_Detail!$O$8:$DF$8,0))) + IF(INDEX(tblUmsatzFltr[Nr],MATCH(filter_umsatz,tblUmsatzFltr[Umsatz Filter],0)) = 1, SUMIF(INDIRECT(dshbrdrng_reingewinn),"<>", INDEX(INDIRECT(dshbrdrng_reingewinn2),0,MATCH(DATE($B86,MONTH(N$85),1),Erfolgsrechnung_Detail!$O$8:$DF$8,0))), SUMIF(INDIRECT(dshbrdrng_reingewinn),"<>", INDEX(INDIRECT(dshbrdrng_reingewinn2),0,MATCH(DATE($B86,MONTH(N$85),1),Erfolgsrechnung_Detail!$O$8:$DF$8,0)))+M86),"") ->  | P86: =IFERROR(IF( INDEX(tblUmsatzFltr[Nr],MATCH(filter_umsatz,tblUmsatzFltr[Umsatz Filter],0))=1, SUM($C86:INDEX($C86:$N86,1,selectedmonat_num)), INDEX($C86:$N86,0,MATCH(monat,tblMonate[Monate],0))),"") -> 0 | Q86: =IFERROR( IF(INDEX(tblUmsatzFltr[Nr],MATCH($L$3,tblUmsatzFltr[Umsatz Filter],0)) = 1, SUM(Dashboard!$C86:$N86),Dashboard!$N86),"") -> 0
B87: =Startseite!$H$3-5 -> 2015 | C87: =IFERROR(C15+ SUMIF(INDIRECT(dshbrdrng_reingewinn),"<>", INDEX(INDIRECT(dshbrdrng_reingewinn2),0,MATCH(DATE($B87,MONTH(C$85),1),Erfolgsrechnung_Detail!$O$8:$DF$8,0))), "") -> 16632.22039 | D87: =IFERROR(SUMIF(INDIRECT(dshbrdrng_umsatzentwicklung),"<>", INDEX(INDIRECT(dshbrdrng_umsatzentwicklung2),0,MATCH(DATE($B15,MONTH(D$13),1),Erfolgsrechnung_Detail!$O$8:$DF$8,0))) + IF(INDEX(tblUmsatzFltr[Nr],MATCH(filter_umsatz,tblUmsatzFltr[Umsatz Filter],0)) = 1, SUMIF(INDIRECT(dshbrdrng_reingewinn),"<>", INDEX(INDIRECT(dshbrdrng_reingewinn2),0,MATCH(DATE($B87,MONTH(D$85),1),Erfolgsrechnung_Detail!$O$8:$DF$8,0))), SUMIF(INDIRECT(dshbrdrng_reingewinn),"<>", INDEX(INDIRECT(dshbrdrng_reingewinn2),0,MATCH(DATE($B87,MONTH(D$85),1),Erfolgsrechnung_Detail!$O$8:$DF$8,0)))+C87),"") -> 14569.89712 | E87: =IFERROR(SUMIF(INDIRECT(dshbrdrng_umsatzentwicklung),"<>", INDEX(INDIRECT(dshbrdrng_umsatzentwicklung2),0,MATCH(DATE($B15,MONTH(E$13),1),Erfolgsrechnung_Detail!$O$8:$DF$8,0))) + IF(INDEX(tblUmsatzFltr[Nr],MATCH(filter_umsatz,tblUmsatzFltr[Umsatz Filter],0)) = 1, SUMIF(INDIRECT(dshbrdrng_reingewinn),"<>", INDEX(INDIRECT(dshbrdrng_reingewinn2),0,MATCH(DATE($B87,MONTH(E$85),1),Erfolgsrechnung_Detail!$O$8:$DF$8,0))), SUMIF(INDIRECT(dshbrdrng_reingewinn),"<>", INDEX(INDIRECT(dshbrdrng_reingewinn2),0,MATCH(DATE($B87,MONTH(E$85),1),Erfolgsrechnung_Detail!$O$8:$DF$8,0)))+D87),"") -> 2682.636123 | F87: =IFERROR(SUMIF(INDIRECT(dshbrdrng_umsatzentwicklung),"<>", INDEX(INDIRECT(dshbrdrng_umsatzentwicklung2),0,MATCH(DATE($B15,MONTH(F$13),1),Erfolgsrechnung_Detail!$O$8:$DF$8,0))) + IF(INDEX(tblUmsatzFltr[Nr],MATCH(filter_umsatz,tblUmsatzFltr[Umsatz Filter],0)) = 1, SUMIF(INDIRECT(dshbrdrng_reingewinn),"<>", INDEX(INDIRECT(dshbrdrng_reingewinn2),0,MATCH(DATE($B87,MONTH(F$85),1),Erfolgsrechnung_Detail!$O$8:$DF$8,0))), SUMIF(INDIRECT(dshbrdrng_reingewinn),"<>", INDEX(INDIRECT(dshbrdrng_reingewinn2),0,MATCH(DATE($B87,MONTH(F$85),1),Erfolgsrechnung_Detail!$O$8:$DF$8,0)))+E87),"") -> 5604.164686 | G87: =IFERROR(SUMIF(INDIRECT(dshbrdrng_umsatzentwicklung),"<>", INDEX(INDIRECT(dshbrdrng_umsatzentwicklung2),0,MATCH(DATE($B15,MONTH(G$13),1),Erfolgsrechnung_Detail!$O$8:$DF$8,0))) + IF(INDEX(tblUmsatzFltr[Nr],MATCH(filter_umsatz,tblUmsatzFltr[Umsatz Filter],0)) = 1, SUMIF(INDIRECT(dshbrdrng_reingewinn),"<>", INDEX(INDIRECT(dshbrdrng_reingewinn2),0,MATCH(DATE($B87,MONTH(G$85),1),Erfolgsrechnung_Detail!$O$8:$DF$8,0))), SUMIF(INDIRECT(dshbrdrng_reingewinn),"<>", INDEX(INDIRECT(dshbrdrng_reingewinn2),0,MATCH(DATE($B87,MONTH(G$85),1),Erfolgsrechnung_Detail!$O$8:$DF$8,0)))+F87),"") -> 12126.41691 | H87: =IFERROR(SUMIF(INDIRECT(dshbrdrng_umsatzentwicklung),"<>", INDEX(INDIRECT(dshbrdrng_umsatzentwicklung2),0,MATCH(DATE($B15,MONTH(H$13),1),Erfolgsrechnung_Detail!$O$8:$DF$8,0))) + IF(INDEX(tblUmsatzFltr[Nr],MATCH(filter_umsatz,tblUmsatzFltr[Umsatz Filter],0)) = 1, SUMIF(INDIRECT(dshbrdrng_reingewinn),"<>", INDEX(INDIRECT(dshbrdrng_reingewinn2),0,MATCH(DATE($B87,MONTH(H$85),1),Erfolgsrechnung_Detail!$O$8:$DF$8,0))), SUMIF(INDIRECT(dshbrdrng_reingewinn),"<>", INDEX(INDIRECT(dshbrdrng_reingewinn2),0,MATCH(DATE($B87,MONTH(H$85),1),Erfolgsrechnung_Detail!$O$8:$DF$8,0)))+G87),"") -> 17837.80199 | I87: =IFERROR(SUMIF(INDIRECT(dshbrdrng_umsatzentwicklung),"<>", INDEX(INDIRECT(dshbrdrng_umsatzentwicklung2),0,MATCH(DATE($B15,MONTH(I$13),1),Erfolgsrechnung_Detail!$O$8:$DF$8,0))) + IF(INDEX(tblUmsatzFltr[Nr],MATCH(filter_umsatz,tblUmsatzFltr[Umsatz Filter],0)) = 1, SUMIF(INDIRECT(dshbrdrng_reingewinn),"<>", INDEX(INDIRECT(dshbrdrng_reingewinn2),0,MATCH(DATE($B87,MONTH(I$85),1),Erfolgsrechnung_Detail!$O$8:$DF$8,0))), SUMIF(INDIRECT(dshbrdrng_reingewinn),"<>", INDEX(INDIRECT(dshbrdrng_reingewinn2),0,MATCH(DATE($B87,MONTH(I$85),1),Erfolgsrechnung_Detail!$O$8:$DF$8,0)))+H87),"") -> 8710.522154 | J87: =IFERROR(SUMIF(INDIRECT(dshbrdrng_umsatzentwicklung),"<>", INDEX(INDIRECT(dshbrdrng_umsatzentwicklung2),0,MATCH(DATE($B15,MONTH(J$13),1),Erfolgsrechnung_Detail!$O$8:$DF$8,0))) + IF(INDEX(tblUmsatzFltr[Nr],MATCH(filter_umsatz,tblUmsatzFltr[Umsatz Filter],0)) = 1, SUMIF(INDIRECT(dshbrdrng_reingewinn),"<>", INDEX(INDIRECT(dshbrdrng_reingewinn2),0,MATCH(DATE($B87,MONTH(J$85),1),Erfolgsrechnung_Detail!$O$8:$DF$8,0))), SUMIF(INDIRECT(dshbrdrng_reingewinn),"<>", INDEX(INDIRECT(dshbrdrng_reingewinn2),0,MATCH(DATE($B87,MONTH(J$85),1),Erfolgsrechnung_Detail!$O$8:$DF$8,0)))+I87),"") -> 6772.454709 | K87: =IFERROR(SUMIF(INDIRECT(dshbrdrng_umsatzentwicklung),"<>", INDEX(INDIRECT(dshbrdrng_umsatzentwicklung2),0,MATCH(DATE($B15,MONTH(K$13),1),Erfolgsrechnung_Detail!$O$8:$DF$8,0))) + IF(INDEX(tblUmsatzFltr[Nr],MATCH(filter_umsatz,tblUmsatzFltr[Umsatz Filter],0)) = 1, SUMIF(INDIRECT(dshbrdrng_reingewinn),"<>", INDEX(INDIRECT(dshbrdrng_reingewinn2),0,MATCH(DATE($B87,MONTH(K$85),1),Erfolgsrechnung_Detail!$O$8:$DF$8,0))), SUMIF(INDIRECT(dshbrdrng_reingewinn),"<>", INDEX(INDIRECT(dshbrdrng_reingewinn2),0,MATCH(DATE($B87,MONTH(K$85),1),Erfolgsrechnung_Detail!$O$8:$DF$8,0)))+J87),"") -> 5530.318034 | L87: =IFERROR(SUMIF(INDIRECT(dshbrdrng_umsatzentwicklung),"<>", INDEX(INDIRECT(dshbrdrng_umsatzentwicklung2),0,MATCH(DATE($B15,MONTH(L$13),1),Erfolgsrechnung_Detail!$O$8:$DF$8,0))) + IF(INDEX(tblUmsatzFltr[Nr],MATCH(filter_umsatz,tblUmsatzFltr[Umsatz Filter],0)) = 1, SUMIF(INDIRECT(dshbrdrng_reingewinn),"<>", INDEX(INDIRECT(dshbrdrng_reingewinn2),0,MATCH(DATE($B87,MONTH(L$85),1),Erfolgsrechnung_Detail!$O$8:$DF$8,0))), SUMIF(INDIRECT(dshbrdrng_reingewinn),"<>", INDEX(INDIRECT(dshbrdrng_reingewinn2),0,MATCH(DATE($B87,MONTH(L$85),1),Erfolgsrechnung_Detail!$O$8:$DF$8,0)))+K87),"") -> 12005.72138 | M87: =IFERROR(SUMIF(INDIRECT(dshbrdrng_umsatzentwicklung),"<>", INDEX(INDIRECT(dshbrdrng_umsatzentwicklung2),0,MATCH(DATE($B15,MONTH(M$13),1),Erfolgsrechnung_Detail!$O$8:$DF$8,0))) + IF(INDEX(tblUmsatzFltr[Nr],MATCH(filter_umsatz,tblUmsatzFltr[Umsatz Filter],0)) = 1, SUMIF(INDIRECT(dshbrdrng_reingewinn),"<>", INDEX(INDIRECT(dshbrdrng_reingewinn2),0,MATCH(DATE($B87,MONTH(M$85),1),Erfolgsrechnung_Detail!$O$8:$DF$8,0))), SUMIF(INDIRECT(dshbrdrng_reingewinn),"<>", INDEX(INDIRECT(dshbrdrng_reingewinn2),0,MATCH(DATE($B87,MONTH(M$85),1),Erfolgsrechnung_Detail!$O$8:$DF$8,0)))+L87),"") -> 9133.915859 | N87: =IFERROR(SUMIF(INDIRECT(dshbrdrng_umsatzentwicklung),"<>", INDEX(INDIRECT(dshbrdrng_umsatzentwicklung2),0,MATCH(DATE($B15,MONTH(N$13),1),Erfolgsrechnung_Detail!$O$8:$DF$8,0))) + IF(INDEX(tblUmsatzFltr[Nr],MATCH(filter_umsatz,tblUmsatzFltr[Umsatz Filter],0)) = 1, SUMIF(INDIRECT(dshbrdrng_reingewinn),"<>", INDEX(INDIRECT(dshbrdrng_reingewinn2),0,MATCH(DATE($B87,MONTH(N$85),1),Erfolgsrechnung_Detail!$O$8:$DF$8,0))), SUMIF(INDIRECT(dshbrdrng_reingewinn),"<>", INDEX(INDIRECT(dshbrdrng_reingewinn2),0,MATCH(DATE($B87,MONTH(N$85),1),Erfolgsrechnung_Detail!$O$8:$DF$8,0)))+M87),"") -> 12825.90017 | P87: =IFERROR(IF( INDEX(tblUmsatzFltr[Nr],MATCH(filter_umsatz,tblUmsatzFltr[Umsatz Filter],0))=1, SUM($C87:INDEX($C87:$N87,1,selectedmonat_num)), INDEX($C87:$N87,0,MATCH(monat,tblMonate[Monate],0))),"") -> 33884.75364 | Q87: =IFERROR( IF(INDEX(tblUmsatzFltr[Nr],MATCH($L$3,tblUmsatzFltr[Umsatz Filter],0)) = 1, SUM(Dashboard!$C87:$N87),Dashboard!$N87),"") -> 124431.9695
B88: =Startseite!$H$3-4 -> 2016 | C88: =IFERROR(C16+ SUMIF(INDIRECT(dshbrdrng_reingewinn),"<>", INDEX(INDIRECT(dshbrdrng_reingewinn2),0,MATCH(DATE($B88,MONTH(C$85),1),Erfolgsrechnung_Detail!$O$8:$DF$8,0))), "") -> 38154.92275 | D88: =IFERROR(SUMIF(INDIRECT(dshbrdrng_umsatzentwicklung),"<>", INDEX(INDIRECT(dshbrdrng_umsatzentwicklung2),0,MATCH(DATE($B16,MONTH(D$13),1),Erfolgsrechnung_Detail!$O$8:$DF$8,0))) + IF(INDEX(tblUmsatzFltr[Nr],MATCH(filter_umsatz,tblUmsatzFltr[Umsatz Filter],0)) = 1, SUMIF(INDIRECT(dshbrdrng_reingewinn),"<>", INDEX(INDIRECT(dshbrdrng_reingewinn2),0,MATCH(DATE($B88,MONTH(D$85),1),Erfolgsrechnung_Detail!$O$8:$DF$8,0))), SUMIF(INDIRECT(dshbrdrng_reingewinn),"<>", INDEX(INDIRECT(dshbrdrng_reingewinn2),0,MATCH(DATE($B88,MONTH(D$85),1),Erfolgsrechnung_Detail!$O$8:$DF$8,0)))+C88),"") -> 23569.63542 | E88: =IFERROR(SUMIF(INDIRECT(dshbrdrng_umsatzentwicklung),"<>", INDEX(INDIRECT(dshbrdrng_umsatzentwicklung2),0,MATCH(DATE($B16,MONTH(E$13),1),Erfolgsrechnung_Detail!$O$8:$DF$8,0))) + IF(INDEX(tblUmsatzFltr[Nr],MATCH(filter_umsatz,tblUmsatzFltr[Umsatz Filter],0)) = 1, SUMIF(INDIRECT(dshbrdrng_reingewinn),"<>", INDEX(INDIRECT(dshbrdrng_reingewinn2),0,MATCH(DATE($B88,MONTH(E$85),1),Erfolgsrechnung_Detail!$O$8:$DF$8,0))), SUMIF(INDIRECT(dshbrdrng_reingewinn),"<>", INDEX(INDIRECT(dshbrdrng_reingewinn2),0,MATCH(DATE($B88,MONTH(E$85),1),Erfolgsrechnung_Detail!$O$8:$DF$8,0)))+D88),"") -> 8967.066261 | F88: =IFERROR(SUMIF(INDIRECT(dshbrdrng_umsatzentwicklung),"<>", INDEX(INDIRECT(dshbrdrng_umsatzentwicklung2),0,MATCH(DATE($B16,MONTH(F$13),1),Erfolgsrechnung_Detail!$O$8:$DF$8,0))) + IF(INDEX(tblUmsatzFltr[Nr],MATCH(filter_umsatz,tblUmsatzFltr[Umsatz Filter],0)) = 1, SUMIF(INDIRECT(dshbrdrng_reingewinn),"<>", INDEX(INDIRECT(dshbrdrng_reingewinn2),0,MATCH(DATE($B88,MONTH(F$85),1),Erfolgsrechnung_Detail!$O$8:$DF$8,0))), SUMIF(INDIRECT(dshbrdrng_reingewinn),"<>", INDEX(INDIRECT(dshbrdrng_reingewinn2),0,MATCH(DATE($B88,MONTH(F$85),1),Erfolgsrechnung_Detail!$O$8:$DF$8,0)))+E88),"") -> 10229.04634 | G88: =IFERROR(SUMIF(INDIRECT(dshbrdrng_umsatzentwicklung),"<>", INDEX(INDIRECT(dshbrdrng_umsatzentwicklung2),0,MATCH(DATE($B16,MONTH(G$13),1),Erfolgsrechnung_Detail!$O$8:$DF$8,0))) + IF(INDEX(tblUmsatzFltr[Nr],MATCH(filter_umsatz,tblUmsatzFltr[Umsatz Filter],0)) = 1, SUMIF(INDIRECT(dshbrdrng_reingewinn),"<>", INDEX(INDIRECT(dshbrdrng_reingewinn2),0,MATCH(DATE($B88,MONTH(G$85),1),Erfolgsrechnung_Detail!$O$8:$DF$8,0))), SUMIF(INDIRECT(dshbrdrng_reingewinn),"<>", INDEX(INDIRECT(dshbrdrng_reingewinn2),0,MATCH(DATE($B88,MONTH(G$85),1),Erfolgsrechnung_Detail!$O$8:$DF$8,0)))+F88),"") -> 2844.856207 | H88: =IFERROR(SUMIF(INDIRECT(dshbrdrng_umsatzentwicklung),"<>", INDEX(INDIRECT(dshbrdrng_umsatzentwicklung2),0,MATCH(DATE($B16,MONTH(H$13),1),Erfolgsrechnung_Detail!$O$8:$DF$8,0))) + IF(INDEX(tblUmsatzFltr[Nr],MATCH(filter_umsatz,tblUmsatzFltr[Umsatz Filter],0)) = 1, SUMIF(INDIRECT(dshbrdrng_reingewinn),"<>", INDEX(INDIRECT(dshbrdrng_reingewinn2),0,MATCH(DATE($B88,MONTH(H$85),1),Erfolgsrechnung_Detail!$O$8:$DF$8,0))), SUMIF(INDIRECT(dshbrdrng_reingewinn),"<>", INDEX(INDIRECT(dshbrdrng_reingewinn2),0,MATCH(DATE($B88,MONTH(H$85),1),Erfolgsrechnung_Detail!$O$8:$DF$8,0)))+G88),"") -> 9106.203852 | I88: =IFERROR(SUMIF(INDIRECT(dshbrdrng_umsatzentwicklung),"<>", INDEX(INDIRECT(dshbrdrng_umsatzentwicklung2),0,MATCH(DATE($B16,MONTH(I$13),1),Erfolgsrechnung_Detail!$O$8:$DF$8,0))) + IF(INDEX(tblUmsatzFltr[Nr],MATCH(filter_umsatz,tblUmsatzFltr[Umsatz Filter],0)) = 1, SUMIF(INDIRECT(dshbrdrng_reingewinn),"<>", INDEX(INDIRECT(dshbrdrng_reingewinn2),0,MATCH(DATE($B88,MONTH(I$85),1),Erfolgsrechnung_Detail!$O$8:$DF$8,0))), SUMIF(INDIRECT(dshbrdrng_reingewinn),"<>", INDEX(INDIRECT(dshbrdrng_reingewinn2),0,MATCH(DATE($B88,MONTH(I$85),1),Erfolgsrechnung_Detail!$O$8:$DF$8,0)))+H88),"") -> 10948.12269 | J88: =IFERROR(SUMIF(INDIRECT(dshbrdrng_umsatzentwicklung),"<>", INDEX(INDIRECT(dshbrdrng_umsatzentwicklung2),0,MATCH(DATE($B16,MONTH(J$13),1),Erfolgsrechnung_Detail!$O$8:$DF$8,0))) + IF(INDEX(tblUmsatzFltr[Nr],MATCH(filter_umsatz,tblUmsatzFltr[Umsatz Filter],0)) = 1, SUMIF(INDIRECT(dshbrdrng_reingewinn),"<>", INDEX(INDIRECT(dshbrdrng_reingewinn2),0,MATCH(DATE($B88,MONTH(J$85),1),Erfolgsrechnung_Detail!$O$8:$DF$8,0))), SUMIF(INDIRECT(dshbrdrng_reingewinn),"<>", INDEX(INDIRECT(dshbrdrng_reingewinn2),0,MATCH(DATE($B88,MONTH(J$85),1),Erfolgsrechnung_Detail!$O$8:$DF$8,0)))+I88),"") -> 4559.255264 | K88: =IFERROR(SUMIF(INDIRECT(dshbrdrng_umsatzentwicklung),"<>", INDEX(INDIRECT(dshbrdrng_umsatzentwicklung2),0,MATCH(DATE($B16,MONTH(K$13),1),Erfolgsrechnung_Detail!$O$8:$DF$8,0))) + IF(INDEX(tblUmsatzFltr[Nr],MATCH(filter_umsatz,tblUmsatzFltr[Umsatz Filter],0)) = 1, SUMIF(INDIRECT(dshbrdrng_reingewinn),"<>", INDEX(INDIRECT(dshbrdrng_reingewinn2),0,MATCH(DATE($B88,MONTH(K$85),1),Erfolgsrechnung_Detail!$O$8:$DF$8,0))), SUMIF(INDIRECT(dshbrdrng_reingewinn),"<>", INDEX(INDIRECT(dshbrdrng_reingewinn2),0,MATCH(DATE($B88,MONTH(K$85),1),Erfolgsrechnung_Detail!$O$8:$DF$8,0)))+J88),"") -> 11509.21234 | L88: =IFERROR(SUMIF(INDIRECT(dshbrdrng_umsatzentwicklung),"<>", INDEX(INDIRECT(dshbrdrng_umsatzentwicklung2),0,MATCH(DATE($B16,MONTH(L$13),1),Erfolgsrechnung_Detail!$O$8:$DF$8,0))) + IF(INDEX(tblUmsatzFltr[Nr],MATCH(filter_umsatz,tblUmsatzFltr[Umsatz Filter],0)) = 1, SUMIF(INDIRECT(dshbrdrng_reingewinn),"<>", INDEX(INDIRECT(dshbrdrng_reingewinn2),0,MATCH(DATE($B88,MONTH(L$85),1),Erfolgsrechnung_Detail!$O$8:$DF$8,0))), SUMIF(INDIRECT(dshbrdrng_reingewinn),"<>", INDEX(INDIRECT(dshbrdrng_reingewinn2),0,MATCH(DATE($B88,MONTH(L$85),1),Erfolgsrechnung_Detail!$O$8:$DF$8,0)))+K88),"") -> 11733.47666 | M88: =IFERROR(SUMIF(INDIRECT(dshbrdrng_umsatzentwicklung),"<>", INDEX(INDIRECT(dshbrdrng_umsatzentwicklung2),0,MATCH(DATE($B16,MONTH(M$13),1),Erfolgsrechnung_Detail!$O$8:$DF$8,0))) + IF(INDEX(tblUmsatzFltr[Nr],MATCH(filter_umsatz,tblUmsatzFltr[Umsatz Filter],0)) = 1, SUMIF(INDIRECT(dshbrdrng_reingewinn),"<>", INDEX(INDIRECT(dshbrdrng_reingewinn2),0,MATCH(DATE($B88,MONTH(M$85),1),Erfolgsrechnung_Detail!$O$8:$DF$8,0))), SUMIF(INDIRECT(dshbrdrng_reingewinn),"<>", INDEX(INDIRECT(dshbrdrng_reingewinn2),0,MATCH(DATE($B88,MONTH(M$85),1),Erfolgsrechnung_Detail!$O$8:$DF$8,0)))+L88),"") -> 16714.59688 | N88: =IFERROR(SUMIF(INDIRECT(dshbrdrng_umsatzentwicklung),"<>", INDEX(INDIRECT(dshbrdrng_umsatzentwicklung2),0,MATCH(DATE($B16,MONTH(N$13),1),Erfolgsrechnung_Detail!$O$8:$DF$8,0))) + IF(INDEX(tblUmsatzFltr[Nr],MATCH(filter_umsatz,tblUmsatzFltr[Umsatz Filter],0)) = 1, SUMIF(INDIRECT(dshbrdrng_reingewinn),"<>", INDEX(INDIRECT(dshbrdrng_reingewinn2),0,MATCH(DATE($B88,MONTH(N$85),1),Erfolgsrechnung_Detail!$O$8:$DF$8,0))), SUMIF(INDIRECT(dshbrdrng_reingewinn),"<>", INDEX(INDIRECT(dshbrdrng_reingewinn2),0,MATCH(DATE($B88,MONTH(N$85),1),Erfolgsrechnung_Detail!$O$8:$DF$8,0)))+M88),"") -> 20701.01205 | P88: =IFERROR(IF( INDEX(tblUmsatzFltr[Nr],MATCH(filter_umsatz,tblUmsatzFltr[Umsatz Filter],0))=1, SUM($C88:INDEX($C88:$N88,1,selectedmonat_num)), INDEX($C88:$N88,0,MATCH(monat,tblMonate[Monate],0))),"") -> 70691.62443 | Q88: =IFERROR( IF(INDEX(tblUmsatzFltr[Nr],MATCH($L$3,tblUmsatzFltr[Umsatz Filter],0)) = 1, SUM(Dashboard!$C88:$N88),Dashboard!$N88),"") -> 169037.4067
B89: =Startseite!$H$3-3 -> 2017 | C89: =IFERROR(C17+ SUMIF(INDIRECT(dshbrdrng_reingewinn),"<>", INDEX(INDIRECT(dshbrdrng_reingewinn2),0,MATCH(DATE($B89,MONTH(C$85),1),Erfolgsrechnung_Detail!$O$8:$DF$8,0))), "") -> 12787.60128 | D89: =IFERROR(SUMIF(INDIRECT(dshbrdrng_umsatzentwicklung),"<>", INDEX(INDIRECT(dshbrdrng_umsatzentwicklung2),0,MATCH(DATE($B17,MONTH(D$13),1),Erfolgsrechnung_Detail!$O$8:$DF$8,0))) + IF(INDEX(tblUmsatzFltr[Nr],MATCH(filter_umsatz,tblUmsatzFltr[Umsatz Filter],0)) = 1, SUMIF(INDIRECT(dshbrdrng_reingewinn),"<>", INDEX(INDIRECT(dshbrdrng_reingewinn2),0,MATCH(DATE($B89,MONTH(D$85),1),Erfolgsrechnung_Detail!$O$8:$DF$8,0))), SUMIF(INDIRECT(dshbrdrng_reingewinn),"<>", INDEX(INDIRECT(dshbrdrng_reingewinn2),0,MATCH(DATE($B89,MONTH(D$85),1),Erfolgsrechnung_Detail!$O$8:$DF$8,0)))+C89),"") -> 5498.44601 | E89: =IFERROR(SUMIF(INDIRECT(dshbrdrng_umsatzentwicklung),"<>", INDEX(INDIRECT(dshbrdrng_umsatzentwicklung2),0,MATCH(DATE($B17,MONTH(E$13),1),Erfolgsrechnung_Detail!$O$8:$DF$8,0))) + IF(INDEX(tblUmsatzFltr[Nr],MATCH(filter_umsatz,tblUmsatzFltr[Umsatz Filter],0)) = 1, SUMIF(INDIRECT(dshbrdrng_reingewinn),"<>", INDEX(INDIRECT(dshbrdrng_reingewinn2),0,MATCH(DATE($B89,MONTH(E$85),1),Erfolgsrechnung_Detail!$O$8:$DF$8,0))), SUMIF(INDIRECT(dshbrdrng_reingewinn),"<>", INDEX(INDIRECT(dshbrdrng_reingewinn2),0,MATCH(DATE($B89,MONTH(E$85),1),Erfolgsrechnung_Detail!$O$8:$DF$8,0)))+D89),"") -> 8738.541094 | F89: =IFERROR(SUMIF(INDIRECT(dshbrdrng_umsatzentwicklung),"<>", INDEX(INDIRECT(dshbrdrng_umsatzentwicklung2),0,MATCH(DATE($B17,MONTH(F$13),1),Erfolgsrechnung_Detail!$O$8:$DF$8,0))) + IF(INDEX(tblUmsatzFltr[Nr],MATCH(filter_umsatz,tblUmsatzFltr[Umsatz Filter],0)) = 1, SUMIF(INDIRECT(dshbrdrng_reingewinn),"<>", INDEX(INDIRECT(dshbrdrng_reingewinn2),0,MATCH(DATE($B89,MONTH(F$85),1),Erfolgsrechnung_Detail!$O$8:$DF$8,0))), SUMIF(INDIRECT(dshbrdrng_reingewinn),"<>", INDEX(INDIRECT(dshbrdrng_reingewinn2),0,MATCH(DATE($B89,MONTH(F$85),1),Erfolgsrechnung_Detail!$O$8:$DF$8,0)))+E89),"") -> 6897.886426 | G89: =IFERROR(SUMIF(INDIRECT(dshbrdrng_umsatzentwicklung),"<>", INDEX(INDIRECT(dshbrdrng_umsatzentwicklung2),0,MATCH(DATE($B17,MONTH(G$13),1),Erfolgsrechnung_Detail!$O$8:$DF$8,0))) + IF(INDEX(tblUmsatzFltr[Nr],MATCH(filter_umsatz,tblUmsatzFltr[Umsatz Filter],0)) = 1, SUMIF(INDIRECT(dshbrdrng_reingewinn),"<>", INDEX(INDIRECT(dshbrdrng_reingewinn2),0,MATCH(DATE($B89,MONTH(G$85),1),Erfolgsrechnung_Detail!$O$8:$DF$8,0))), SUMIF(INDIRECT(dshbrdrng_reingewinn),"<>", INDEX(INDIRECT(dshbrdrng_reingewinn2),0,MATCH(DATE($B89,MONTH(G$85),1),Erfolgsrechnung_Detail!$O$8:$DF$8,0)))+F89),"") -> 18365.54696 | H89: =IFERROR(SUMIF(INDIRECT(dshbrdrng_umsatzentwicklung),"<>", INDEX(INDIRECT(dshbrdrng_umsatzentwicklung2),0,MATCH(DATE($B17,MONTH(H$13),1),Erfolgsrechnung_Detail!$O$8:$DF$8,0))) + IF(INDEX(tblUmsatzFltr[Nr],MATCH(filter_umsatz,tblUmsatzFltr[Umsatz Filter],0)) = 1, SUMIF(INDIRECT(dshbrdrng_reingewinn),"<>", INDEX(INDIRECT(dshbrdrng_reingewinn2),0,MATCH(DATE($B89,MONTH(H$85),1),Erfolgsrechnung_Detail!$O$8:$DF$8,0))), SUMIF(INDIRECT(dshbrdrng_reingewinn),"<>", INDEX(INDIRECT(dshbrdrng_reingewinn2),0,MATCH(DATE($B89,MONTH(H$85),1),Erfolgsrechnung_Detail!$O$8:$DF$8,0)))+G89),"") -> 32488.69889 | I89: =IFERROR(SUMIF(INDIRECT(dshbrdrng_umsatzentwicklung),"<>", INDEX(INDIRECT(dshbrdrng_umsatzentwicklung2),0,MATCH(DATE($B17,MONTH(I$13),1),Erfolgsrechnung_Detail!$O$8:$DF$8,0))) + IF(INDEX(tblUmsatzFltr[Nr],MATCH(filter_umsatz,tblUmsatzFltr[Umsatz Filter],0)) = 1, SUMIF(INDIRECT(dshbrdrng_reingewinn),"<>", INDEX(INDIRECT(dshbrdrng_reingewinn2),0,MATCH(DATE($B89,MONTH(I$85),1),Erfolgsrechnung_Detail!$O$8:$DF$8,0))), SUMIF(INDIRECT(dshbrdrng_reingewinn),"<>", INDEX(INDIRECT(dshbrdrng_reingewinn2),0,MATCH(DATE($B89,MONTH(I$85),1),Erfolgsrechnung_Detail!$O$8:$DF$8,0)))+H89),"") -> 21900.39308 | J89: =IFERROR(SUMIF(INDIRECT(dshbrdrng_umsatzentwicklung),"<>", INDEX(INDIRECT(dshbrdrng_umsatzentwicklung2),0,MATCH(DATE($B17,MONTH(J$13),1),Erfolgsrechnung_Detail!$O$8:$DF$8,0))) + IF(INDEX(tblUmsatzFltr[Nr],MATCH(filter_umsatz,tblUmsatzFltr[Umsatz Filter],0)) = 1, SUMIF(INDIRECT(dshbrdrng_reingewinn),"<>", INDEX(INDIRECT(dshbrdrng_reingewinn2),0,MATCH(DATE($B89,MONTH(J$85),1),Erfolgsrechnung_Detail!$O$8:$DF$8,0))), SUMIF(INDIRECT(dshbrdrng_reingewinn),"<>", INDEX(INDIRECT(dshbrdrng_reingewinn2),0,MATCH(DATE($B89,MONTH(J$85),1),Erfolgsrechnung_Detail!$O$8:$DF$8,0)))+I89),"") -> 34219.40386 | K89: =IFERROR(SUMIF(INDIRECT(dshbrdrng_umsatzentwicklung),"<>", INDEX(INDIRECT(dshbrdrng_umsatzentwicklung2),0,MATCH(DATE($B17,MONTH(K$13),1),Erfolgsrechnung_Detail!$O$8:$DF$8,0))) + IF(INDEX(tblUmsatzFltr[Nr],MATCH(filter_umsatz,tblUmsatzFltr[Umsatz Filter],0)) = 1, SUMIF(INDIRECT(dshbrdrng_reingewinn),"<>", INDEX(INDIRECT(dshbrdrng_reingewinn2),0,MATCH(DATE($B89,MONTH(K$85),1),Erfolgsrechnung_Detail!$O$8:$DF$8,0))), SUMIF(INDIRECT(dshbrdrng_reingewinn),"<>", INDEX(INDIRECT(dshbrdrng_reingewinn2),0,MATCH(DATE($B89,MONTH(K$85),1),Erfolgsrechnung_Detail!$O$8:$DF$8,0)))+J89),"") -> 16765.06282 | L89: =IFERROR(SUMIF(INDIRECT(dshbrdrng_umsatzentwicklung),"<>", INDEX(INDIRECT(dshbrdrng_umsatzentwicklung2),0,MATCH(DATE($B17,MONTH(L$13),1),Erfolgsrechnung_Detail!$O$8:$DF$8,0))) + IF(INDEX(tblUmsatzFltr[Nr],MATCH(filter_umsatz,tblUmsatzFltr[Umsatz Filter],0)) = 1, SUMIF(INDIRECT(dshbrdrng_reingewinn),"<>", INDEX(INDIRECT(dshbrdrng_reingewinn2),0,MATCH(DATE($B89,MONTH(L$85),1),Erfolgsrechnung_Detail!$O$8:$DF$8,0))), SUMIF(INDIRECT(dshbrdrng_reingewinn),"<>", INDEX(INDIRECT(dshbrdrng_reingewinn2),0,MATCH(DATE($B89,MONTH(L$85),1),Erfolgsrechnung_Detail!$O$8:$DF$8,0)))+K89),"") -> 17807.04774 | M89: =IFERROR(SUMIF(INDIRECT(dshbrdrng_umsatzentwicklung),"<>", INDEX(INDIRECT(dshbrdrng_umsatzentwicklung2),0,MATCH(DATE($B17,MONTH(M$13),1),Erfolgsrechnung_Detail!$O$8:$DF$8,0))) + IF(INDEX(tblUmsatzFltr[Nr],MATCH(filter_umsatz,tblUmsatzFltr[Umsatz Filter],0)) = 1, SUMIF(INDIRECT(dshbrdrng_reingewinn),"<>", INDEX(INDIRECT(dshbrdrng_reingewinn2),0,MATCH(DATE($B89,MONTH(M$85),1),Erfolgsrechnung_Detail!$O$8:$DF$8,0))), SUMIF(INDIRECT(dshbrdrng_reingewinn),"<>", INDEX(INDIRECT(dshbrdrng_reingewinn2),0,MATCH(DATE($B89,MONTH(M$85),1),Erfolgsrechnung_Detail!$O$8:$DF$8,0)))+L89),"") -> 18169.90578 | N89: =IFERROR(SUMIF(INDIRECT(dshbrdrng_umsatzentwicklung),"<>", INDEX(INDIRECT(dshbrdrng_umsatzentwicklung2),0,MATCH(DATE($B17,MONTH(N$13),1),Erfolgsrechnung_Detail!$O$8:$DF$8,0))) + IF(INDEX(tblUmsatzFltr[Nr],MATCH(filter_umsatz,tblUmsatzFltr[Umsatz Filter],0)) = 1, SUMIF(INDIRECT(dshbrdrng_reingewinn),"<>", INDEX(INDIRECT(dshbrdrng_reingewinn2),0,MATCH(DATE($B89,MONTH(N$85),1),Erfolgsrechnung_Detail!$O$8:$DF$8,0))), SUMIF(INDIRECT(dshbrdrng_reingewinn),"<>", INDEX(INDIRECT(dshbrdrng_reingewinn2),0,MATCH(DATE($B89,MONTH(N$85),1),Erfolgsrechnung_Detail!$O$8:$DF$8,0)))+M89),"") -> 11037.34653 | P89: =IFERROR(IF( INDEX(tblUmsatzFltr[Nr],MATCH(filter_umsatz,tblUmsatzFltr[Umsatz Filter],0))=1, SUM($C89:INDEX($C89:$N89,1,selectedmonat_num)), INDEX($C89:$N89,0,MATCH(monat,tblMonate[Monate],0))),"") -> 27024.58838 | Q89: =IFERROR( IF(INDEX(tblUmsatzFltr[Nr],MATCH($L$3,tblUmsatzFltr[Umsatz Filter],0)) = 1, SUM(Dashboard!$C89:$N89),Dashboard!$N89),"") -> 204675.8805
B90: =Startseite!$H$3-2 -> 2018 | C90: =IFERROR(C18+ SUMIF(INDIRECT(dshbrdrng_reingewinn),"<>", INDEX(INDIRECT(dshbrdrng_reingewinn2),0,MATCH(DATE($B90,MONTH(C$85),1),Erfolgsrechnung_Detail!$O$8:$DF$8,0))), "") -> 779.0298658 | D90: =IFERROR(SUMIF(INDIRECT(dshbrdrng_umsatzentwicklung),"<>", INDEX(INDIRECT(dshbrdrng_umsatzentwicklung2),0,MATCH(DATE($B18,MONTH(D$13),1),Erfolgsrechnung_Detail!$O$8:$DF$8,0))) + IF(INDEX(tblUmsatzFltr[Nr],MATCH(filter_umsatz,tblUmsatzFltr[Umsatz Filter],0)) = 1, SUMIF(INDIRECT(dshbrdrng_reingewinn),"<>", INDEX(INDIRECT(dshbrdrng_reingewinn2),0,MATCH(DATE($B90,MONTH(D$85),1),Erfolgsrechnung_Detail!$O$8:$DF$8,0))), SUMIF(INDIRECT(dshbrdrng_reingewinn),"<>", INDEX(INDIRECT(dshbrdrng_reingewinn2),0,MATCH(DATE($B90,MONTH(D$85),1),Erfolgsrechnung_Detail!$O$8:$DF$8,0)))+C90),"") -> 2034.104646 | E90: =IFERROR(SUMIF(INDIRECT(dshbrdrng_umsatzentwicklung),"<>", INDEX(INDIRECT(dshbrdrng_umsatzentwicklung2),0,MATCH(DATE($B18,MONTH(E$13),1),Erfolgsrechnung_Detail!$O$8:$DF$8,0))) + IF(INDEX(tblUmsatzFltr[Nr],MATCH(filter_umsatz,tblUmsatzFltr[Umsatz Filter],0)) = 1, SUMIF(INDIRECT(dshbrdrng_reingewinn),"<>", INDEX(INDIRECT(dshbrdrng_reingewinn2),0,MATCH(DATE($B90,MONTH(E$85),1),Erfolgsrechnung_Detail!$O$8:$DF$8,0))), SUMIF(INDIRECT(dshbrdrng_reingewinn),"<>", INDEX(INDIRECT(dshbrdrng_reingewinn2),0,MATCH(DATE($B90,MONTH(E$85),1),Erfolgsrechnung_Detail!$O$8:$DF$8,0)))+D90),"") -> 864.1977942 | F90: =IFERROR(SUMIF(INDIRECT(dshbrdrng_umsatzentwicklung),"<>", INDEX(INDIRECT(dshbrdrng_umsatzentwicklung2),0,MATCH(DATE($B18,MONTH(F$13),1),Erfolgsrechnung_Detail!$O$8:$DF$8,0))) + IF(INDEX(tblUmsatzFltr[Nr],MATCH(filter_umsatz,tblUmsatzFltr[Umsatz Filter],0)) = 1, SUMIF(INDIRECT(dshbrdrng_reingewinn),"<>", INDEX(INDIRECT(dshbrdrng_reingewinn2),0,MATCH(DATE($B90,MONTH(F$85),1),Erfolgsrechnung_Detail!$O$8:$DF$8,0))), SUMIF(INDIRECT(dshbrdrng_reingewinn),"<>", INDEX(INDIRECT(dshbrdrng_reingewinn2),0,MATCH(DATE($B90,MONTH(F$85),1),Erfolgsrechnung_Detail!$O$8:$DF$8,0)))+E90),"") -> 12078.51203 | G90: =IFERROR(SUMIF(INDIRECT(dshbrdrng_umsatzentwicklung),"<>", INDEX(INDIRECT(dshbrdrng_umsatzentwicklung2),0,MATCH(DATE($B18,MONTH(G$13),1),Erfolgsrechnung_Detail!$O$8:$DF$8,0))) + IF(INDEX(tblUmsatzFltr[Nr],MATCH(filter_umsatz,tblUmsatzFltr[Umsatz Filter],0)) = 1, SUMIF(INDIRECT(dshbrdrng_reingewinn),"<>", INDEX(INDIRECT(dshbrdrng_reingewinn2),0,MATCH(DATE($B90,MONTH(G$85),1),Erfolgsrechnung_Detail!$O$8:$DF$8,0))), SUMIF(INDIRECT(dshbrdrng_reingewinn),"<>", INDEX(INDIRECT(dshbrdrng_reingewinn2),0,MATCH(DATE($B90,MONTH(G$85),1),Erfolgsrechnung_Detail!$O$8:$DF$8,0)))+F90),"") -> 7455.346174 | H90: =IFERROR(SUMIF(INDIRECT(dshbrdrng_umsatzentwicklung),"<>", INDEX(INDIRECT(dshbrdrng_umsatzentwicklung2),0,MATCH(DATE($B18,MONTH(H$13),1),Erfolgsrechnung_Detail!$O$8:$DF$8,0))) + IF(INDEX(tblUmsatzFltr[Nr],MATCH(filter_umsatz,tblUmsatzFltr[Umsatz Filter],0)) = 1, SUMIF(INDIRECT(dshbrdrng_reingewinn),"<>", INDEX(INDIRECT(dshbrdrng_reingewinn2),0,MATCH(DATE($B90,MONTH(H$85),1),Erfolgsrechnung_Detail!$O$8:$DF$8,0))), SUMIF(INDIRECT(dshbrdrng_reingewinn),"<>", INDEX(INDIRECT(dshbrdrng_reingewinn2),0,MATCH(DATE($B90,MONTH(H$85),1),Erfolgsrechnung_Detail!$O$8:$DF$8,0)))+G90),"") -> 8143.840945 | I90: =IFERROR(SUMIF(INDIRECT(dshbrdrng_umsatzentwicklung),"<>", INDEX(INDIRECT(dshbrdrng_umsatzentwicklung2),0,MATCH(DATE($B18,MONTH(I$13),1),Erfolgsrechnung_Detail!$O$8:$DF$8,0))) + IF(INDEX(tblUmsatzFltr[Nr],MATCH(filter_umsatz,tblUmsatzFltr[Umsatz Filter],0)) = 1, SUMIF(INDIRECT(dshbrdrng_reingewinn),"<>", INDEX(INDIRECT(dshbrdrng_reingewinn2),0,MATCH(DATE($B90,MONTH(I$85),1),Erfolgsrechnung_Detail!$O$8:$DF$8,0))), SUMIF(INDIRECT(dshbrdrng_reingewinn),"<>", INDEX(INDIRECT(dshbrdrng_reingewinn2),0,MATCH(DATE($B90,MONTH(I$85),1),Erfolgsrechnung_Detail!$O$8:$DF$8,0)))+H90),"") -> 5153.745088 | J90: =IFERROR(SUMIF(INDIRECT(dshbrdrng_umsatzentwicklung),"<>", INDEX(INDIRECT(dshbrdrng_umsatzentwicklung2),0,MATCH(DATE($B18,MONTH(J$13),1),Erfolgsrechnung_Detail!$O$8:$DF$8,0))) + IF(INDEX(tblUmsatzFltr[Nr],MATCH(filter_umsatz,tblUmsatzFltr[Umsatz Filter],0)) = 1, SUMIF(INDIRECT(dshbrdrng_reingewinn),"<>", INDEX(INDIRECT(dshbrdrng_reingewinn2),0,MATCH(DATE($B90,MONTH(J$85),1),Erfolgsrechnung_Detail!$O$8:$DF$8,0))), SUMIF(INDIRECT(dshbrdrng_reingewinn),"<>", INDEX(INDIRECT(dshbrdrng_reingewinn2),0,MATCH(DATE($B90,MONTH(J$85),1),Erfolgsrechnung_Detail!$O$8:$DF$8,0)))+I90),"") -> 9655.575207 | K90: =IFERROR(SUMIF(INDIRECT(dshbrdrng_umsatzentwicklung),"<>", INDEX(INDIRECT(dshbrdrng_umsatzentwicklung2),0,MATCH(DATE($B18,MONTH(K$13),1),Erfolgsrechnung_Detail!$O$8:$DF$8,0))) + IF(INDEX(tblUmsatzFltr[Nr],MATCH(filter_umsatz,tblUmsatzFltr[Umsatz Filter],0)) = 1, SUMIF(INDIRECT(dshbrdrng_reingewinn),"<>", INDEX(INDIRECT(dshbrdrng_reingewinn2),0,MATCH(DATE($B90,MONTH(K$85),1),Erfolgsrechnung_Detail!$O$8:$DF$8,0))), SUMIF(INDIRECT(dshbrdrng_reingewinn),"<>", INDEX(INDIRECT(dshbrdrng_reingewinn2),0,MATCH(DATE($B90,MONTH(K$85),1),Erfolgsrechnung_Detail!$O$8:$DF$8,0)))+J90),"") -> 11851.14735 | L90: =IFERROR(SUMIF(INDIRECT(dshbrdrng_umsatzentwicklung),"<>", INDEX(INDIRECT(dshbrdrng_umsatzentwicklung2),0,MATCH(DATE($B18,MONTH(L$13),1),Erfolgsrechnung_Detail!$O$8:$DF$8,0))) + IF(INDEX(tblUmsatzFltr[Nr],MATCH(filter_umsatz,tblUmsatzFltr[Umsatz Filter],0)) = 1, SUMIF(INDIRECT(dshbrdrng_reingewinn),"<>", INDEX(INDIRECT(dshbrdrng_reingewinn2),0,MATCH(DATE($B90,MONTH(L$85),1),Erfolgsrechnung_Detail!$O$8:$DF$8,0))), SUMIF(INDIRECT(dshbrdrng_reingewinn),"<>", INDEX(INDIRECT(dshbrdrng_reingewinn2),0,MATCH(DATE($B90,MONTH(L$85),1),Erfolgsrechnung_Detail!$O$8:$DF$8,0)))+K90),"") -> 3431.764981 | M90: =IFERROR(SUMIF(INDIRECT(dshbrdrng_umsatzentwicklung),"<>", INDEX(INDIRECT(dshbrdrng_umsatzentwicklung2),0,MATCH(DATE($B18,MONTH(M$13),1),Erfolgsrechnung_Detail!$O$8:$DF$8,0))) + IF(INDEX(tblUmsatzFltr[Nr],MATCH(filter_umsatz,tblUmsatzFltr[Umsatz Filter],0)) = 1, SUMIF(INDIRECT(dshbrdrng_reingewinn),"<>", INDEX(INDIRECT(dshbrdrng_reingewinn2),0,MATCH(DATE($B90,MONTH(M$85),1),Erfolgsrechnung_Detail!$O$8:$DF$8,0))), SUMIF(INDIRECT(dshbrdrng_reingewinn),"<>", INDEX(INDIRECT(dshbrdrng_reingewinn2),0,MATCH(DATE($B90,MONTH(M$85),1),Erfolgsrechnung_Detail!$O$8:$DF$8,0)))+L90),"") -> 13828.13181 | N90: =IFERROR(SUMIF(INDIRECT(dshbrdrng_umsatzentwicklung),"<>", INDEX(INDIRECT(dshbrdrng_umsatzentwicklung2),0,MATCH(DATE($B18,MONTH(N$13),1),Erfolgsrechnung_Detail!$O$8:$DF$8,0))) + IF(INDEX(tblUmsatzFltr[Nr],MATCH(filter_umsatz,tblUmsatzFltr[Umsatz Filter],0)) = 1, SUMIF(INDIRECT(dshbrdrng_reingewinn),"<>", INDEX(INDIRECT(dshbrdrng_reingewinn2),0,MATCH(DATE($B90,MONTH(N$85),1),Erfolgsrechnung_Detail!$O$8:$DF$8,0))), SUMIF(INDIRECT(dshbrdrng_reingewinn),"<>", INDEX(INDIRECT(dshbrdrng_reingewinn2),0,MATCH(DATE($B90,MONTH(N$85),1),Erfolgsrechnung_Detail!$O$8:$DF$8,0)))+M90),"") -> 11855.55782 | P90: =IFERROR(IF( INDEX(tblUmsatzFltr[Nr],MATCH(filter_umsatz,tblUmsatzFltr[Umsatz Filter],0))=1, SUM($C90:INDEX($C90:$N90,1,selectedmonat_num)), INDEX($C90:$N90,0,MATCH(monat,tblMonate[Monate],0))),"") -> 3677.332306 | Q90: =IFERROR( IF(INDEX(tblUmsatzFltr[Nr],MATCH($L$3,tblUmsatzFltr[Umsatz Filter],0)) = 1, SUM(Dashboard!$C90:$N90),Dashboard!$N90),"") -> 87130.9537
B91: =Startseite!$H$3-1 -> 2019 | C91: =IFERROR(C19+ SUMIF(INDIRECT(dshbrdrng_reingewinn),"<>", INDEX(INDIRECT(dshbrdrng_reingewinn2),0,MATCH(DATE($B91,MONTH(C$85),1),Erfolgsrechnung_Detail!$O$8:$DF$8,0))), "") -> 795.9139379 | D91: =IFERROR(SUMIF(INDIRECT(dshbrdrng_umsatzentwicklung),"<>", INDEX(INDIRECT(dshbrdrng_umsatzentwicklung2),0,MATCH(DATE($B19,MONTH(D$13),1),Erfolgsrechnung_Detail!$O$8:$DF$8,0))) + IF(INDEX(tblUmsatzFltr[Nr],MATCH(filter_umsatz,tblUmsatzFltr[Umsatz Filter],0)) = 1, SUMIF(INDIRECT(dshbrdrng_reingewinn),"<>", INDEX(INDIRECT(dshbrdrng_reingewinn2),0,MATCH(DATE($B91,MONTH(D$85),1),Erfolgsrechnung_Detail!$O$8:$DF$8,0))), SUMIF(INDIRECT(dshbrdrng_reingewinn),"<>", INDEX(INDIRECT(dshbrdrng_reingewinn2),0,MATCH(DATE($B91,MONTH(D$85),1),Erfolgsrechnung_Detail!$O$8:$DF$8,0)))+C91),"") -> 6519.915016 | E91: =IFERROR(SUMIF(INDIRECT(dshbrdrng_umsatzentwicklung),"<>", INDEX(INDIRECT(dshbrdrng_umsatzentwicklung2),0,MATCH(DATE($B19,MONTH(E$13),1),Erfolgsrechnung_Detail!$O$8:$DF$8,0))) + IF(INDEX(tblUmsatzFltr[Nr],MATCH(filter_umsatz,tblUmsatzFltr[Umsatz Filter],0)) = 1, SUMIF(INDIRECT(dshbrdrng_reingewinn),"<>", INDEX(INDIRECT(dshbrdrng_reingewinn2),0,MATCH(DATE($B91,MONTH(E$85),1),Erfolgsrechnung_Detail!$O$8:$DF$8,0))), SUMIF(INDIRECT(dshbrdrng_reingewinn),"<>", INDEX(INDIRECT(dshbrdrng_reingewinn2),0,MATCH(DATE($B91,MONTH(E$85),1),Erfolgsrechnung_Detail!$O$8:$DF$8,0)))+D91),"") -> 14717.89613 | F91: =IFERROR(SUMIF(INDIRECT(dshbrdrng_umsatzentwicklung),"<>", INDEX(INDIRECT(dshbrdrng_umsatzentwicklung2),0,MATCH(DATE($B19,MONTH(F$13),1),Erfolgsrechnung_Detail!$O$8:$DF$8,0))) + IF(INDEX(tblUmsatzFltr[Nr],MATCH(filter_umsatz,tblUmsatzFltr[Umsatz Filter],0)) = 1, SUMIF(INDIRECT(dshbrdrng_reingewinn),"<>", INDEX(INDIRECT(dshbrdrng_reingewinn2),0,MATCH(DATE($B91,MONTH(F$85),1),Erfolgsrechnung_Detail!$O$8:$DF$8,0))), SUMIF(INDIRECT(dshbrdrng_reingewinn),"<>", INDEX(INDIRECT(dshbrdrng_reingewinn2),0,MATCH(DATE($B91,MONTH(F$85),1),Erfolgsrechnung_Detail!$O$8:$DF$8,0)))+E91),"") -> 10221.30361 | G91: =IFERROR(SUMIF(INDIRECT(dshbrdrng_umsatzentwicklung),"<>", INDEX(INDIRECT(dshbrdrng_umsatzentwicklung2),0,MATCH(DATE($B19,MONTH(G$13),1),Erfolgsrechnung_Detail!$O$8:$DF$8,0))) + IF(INDEX(tblUmsatzFltr[Nr],MATCH(filter_umsatz,tblUmsatzFltr[Umsatz Filter],0)) = 1, SUMIF(INDIRECT(dshbrdrng_reingewinn),"<>", INDEX(INDIRECT(dshbrdrng_reingewinn2),0,MATCH(DATE($B91,MONTH(G$85),1),Erfolgsrechnung_Detail!$O$8:$DF$8,0))), SUMIF(INDIRECT(dshbrdrng_reingewinn),"<>", INDEX(INDIRECT(dshbrdrng_reingewinn2),0,MATCH(DATE($B91,MONTH(G$85),1),Erfolgsrechnung_Detail!$O$8:$DF$8,0)))+F91),"") -> 2552.551666 | H91: =IFERROR(SUMIF(INDIRECT(dshbrdrng_umsatzentwicklung),"<>", INDEX(INDIRECT(dshbrdrng_umsatzentwicklung2),0,MATCH(DATE($B19,MONTH(H$13),1),Erfolgsrechnung_Detail!$O$8:$DF$8,0))) + IF(INDEX(tblUmsatzFltr[Nr],MATCH(filter_umsatz,tblUmsatzFltr[Umsatz Filter],0)) = 1, SUMIF(INDIRECT(dshbrdrng_reingewinn),"<>", INDEX(INDIRECT(dshbrdrng_reingewinn2),0,MATCH(DATE($B91,MONTH(H$85),1),Erfolgsrechnung_Detail!$O$8:$DF$8,0))), SUMIF(INDIRECT(dshbrdrng_reingewinn),"<>", INDEX(INDIRECT(dshbrdrng_reingewinn2),0,MATCH(DATE($B91,MONTH(H$85),1),Erfolgsrechnung_Detail!$O$8:$DF$8,0)))+G91),"") -> 8235.554992 | I91: =IFERROR(SUMIF(INDIRECT(dshbrdrng_umsatzentwicklung),"<>", INDEX(INDIRECT(dshbrdrng_umsatzentwicklung2),0,MATCH(DATE($B19,MONTH(I$13),1),Erfolgsrechnung_Detail!$O$8:$DF$8,0))) + IF(INDEX(tblUmsatzFltr[Nr],MATCH(filter_umsatz,tblUmsatzFltr[Umsatz Filter],0)) = 1, SUMIF(INDIRECT(dshbrdrng_reingewinn),"<>", INDEX(INDIRECT(dshbrdrng_reingewinn2),0,MATCH(DATE($B91,MONTH(I$85),1),Erfolgsrechnung_Detail!$O$8:$DF$8,0))), SUMIF(INDIRECT(dshbrdrng_reingewinn),"<>", INDEX(INDIRECT(dshbrdrng_reingewinn2),0,MATCH(DATE($B91,MONTH(I$85),1),Erfolgsrechnung_Detail!$O$8:$DF$8,0)))+H91),"") -> 9607.120512 | J91: =IFERROR(SUMIF(INDIRECT(dshbrdrng_umsatzentwicklung),"<>", INDEX(INDIRECT(dshbrdrng_umsatzentwicklung2),0,MATCH(DATE($B19,MONTH(J$13),1),Erfolgsrechnung_Detail!$O$8:$DF$8,0))) + IF(INDEX(tblUmsatzFltr[Nr],MATCH(filter_umsatz,tblUmsatzFltr[Umsatz Filter],0)) = 1, SUMIF(INDIRECT(dshbrdrng_reingewinn),"<>", INDEX(INDIRECT(dshbrdrng_reingewinn2),0,MATCH(DATE($B91,MONTH(J$85),1),Erfolgsrechnung_Detail!$O$8:$DF$8,0))), SUMIF(INDIRECT(dshbrdrng_reingewinn),"<>", INDEX(INDIRECT(dshbrdrng_reingewinn2),0,MATCH(DATE($B91,MONTH(J$85),1),Erfolgsrechnung_Detail!$O$8:$DF$8,0)))+I91),"") -> 13803.24905 | K91: =IFERROR(SUMIF(INDIRECT(dshbrdrng_umsatzentwicklung),"<>", INDEX(INDIRECT(dshbrdrng_umsatzentwicklung2),0,MATCH(DATE($B19,MONTH(K$13),1),Erfolgsrechnung_Detail!$O$8:$DF$8,0))) + IF(INDEX(tblUmsatzFltr[Nr],MATCH(filter_umsatz,tblUmsatzFltr[Umsatz Filter],0)) = 1, SUMIF(INDIRECT(dshbrdrng_reingewinn),"<>", INDEX(INDIRECT(dshbrdrng_reingewinn2),0,MATCH(DATE($B91,MONTH(K$85),1),Erfolgsrechnung_Detail!$O$8:$DF$8,0))), SUMIF(INDIRECT(dshbrdrng_reingewinn),"<>", INDEX(INDIRECT(dshbrdrng_reingewinn2),0,MATCH(DATE($B91,MONTH(K$85),1),Erfolgsrechnung_Detail!$O$8:$DF$8,0)))+J91),"") -> 6492.788897 | L91: =IFERROR(SUMIF(INDIRECT(dshbrdrng_umsatzentwicklung),"<>", INDEX(INDIRECT(dshbrdrng_umsatzentwicklung2),0,MATCH(DATE($B19,MONTH(L$13),1),Erfolgsrechnung_Detail!$O$8:$DF$8,0))) + IF(INDEX(tblUmsatzFltr[Nr],MATCH(filter_umsatz,tblUmsatzFltr[Umsatz Filter],0)) = 1, SUMIF(INDIRECT(dshbrdrng_reingewinn),"<>", INDEX(INDIRECT(dshbrdrng_reingewinn2),0,MATCH(DATE($B91,MONTH(L$85),1),Erfolgsrechnung_Detail!$O$8:$DF$8,0))), SUMIF(INDIRECT(dshbrdrng_reingewinn),"<>", INDEX(INDIRECT(dshbrdrng_reingewinn2),0,MATCH(DATE($B91,MONTH(L$85),1),Erfolgsrechnung_Detail!$O$8:$DF$8,0)))+K91),"") -> 4284.572698 | M91: =IFERROR(SUMIF(INDIRECT(dshbrdrng_umsatzentwicklung),"<>", INDEX(INDIRECT(dshbrdrng_umsatzentwicklung2),0,MATCH(DATE($B19,MONTH(M$13),1),Erfolgsrechnung_Detail!$O$8:$DF$8,0))) + IF(INDEX(tblUmsatzFltr[Nr],MATCH(filter_umsatz,tblUmsatzFltr[Umsatz Filter],0)) = 1, SUMIF(INDIRECT(dshbrdrng_reingewinn),"<>", INDEX(INDIRECT(dshbrdrng_reingewinn2),0,MATCH(DATE($B91,MONTH(M$85),1),Erfolgsrechnung_Detail!$O$8:$DF$8,0))), SUMIF(INDIRECT(dshbrdrng_reingewinn),"<>", INDEX(INDIRECT(dshbrdrng_reingewinn2),0,MATCH(DATE($B91,MONTH(M$85),1),Erfolgsrechnung_Detail!$O$8:$DF$8,0)))+L91),"") -> 13304.78012 | N91: =IFERROR(SUMIF(INDIRECT(dshbrdrng_umsatzentwicklung),"<>", INDEX(INDIRECT(dshbrdrng_umsatzentwicklung2),0,MATCH(DATE($B19,MONTH(N$13),1),Erfolgsrechnung_Detail!$O$8:$DF$8,0))) + IF(INDEX(tblUmsatzFltr[Nr],MATCH(filter_umsatz,tblUmsatzFltr[Umsatz Filter],0)) = 1, SUMIF(INDIRECT(dshbrdrng_reingewinn),"<>", INDEX(INDIRECT(dshbrdrng_reingewinn2),0,MATCH(DATE($B91,MONTH(N$85),1),Erfolgsrechnung_Detail!$O$8:$DF$8,0))), SUMIF(INDIRECT(dshbrdrng_reingewinn),"<>", INDEX(INDIRECT(dshbrdrng_reingewinn2),0,MATCH(DATE($B91,MONTH(N$85),1),Erfolgsrechnung_Detail!$O$8:$DF$8,0)))+M91),"") -> 18418.85443 | P91: =IFERROR(IF( INDEX(tblUmsatzFltr[Nr],MATCH(filter_umsatz,tblUmsatzFltr[Umsatz Filter],0))=1, SUM($C91:INDEX($C91:$N91,1,selectedmonat_num)), INDEX($C91:$N91,0,MATCH(monat,tblMonate[Monate],0))),"") -> 22033.72508 | Q91: =IFERROR( IF(INDEX(tblUmsatzFltr[Nr],MATCH($L$3,tblUmsatzFltr[Umsatz Filter],0)) = 1, SUM(Dashboard!$C91:$N91),Dashboard!$N91),"") -> 108954.5011
B92: =Startseite!$H$3 -> 2020 | C92: =IFERROR(C20+ SUMIF(INDIRECT(dshbrdrng_reingewinn),"<>", INDEX(INDIRECT(dshbrdrng_reingewinn2),0,MATCH(DATE($B92,MONTH(C$85),1),Erfolgsrechnung_Detail!$O$8:$DF$8,0))), "") -> 4551.822887 | D92: =IFERROR(SUMIF(INDIRECT(dshbrdrng_umsatzentwicklung),"<>", INDEX(INDIRECT(dshbrdrng_umsatzentwicklung2),0,MATCH(DATE($B20,MONTH(D$13),1),Erfolgsrechnung_Detail!$O$8:$DF$8,0))) + IF(INDEX(tblUmsatzFltr[Nr],MATCH(filter_umsatz,tblUmsatzFltr[Umsatz Filter],0)) = 1, SUMIF(INDIRECT(dshbrdrng_reingewinn),"<>", INDEX(INDIRECT(dshbrdrng_reingewinn2),0,MATCH(DATE($B92,MONTH(D$85),1),Erfolgsrechnung_Detail!$O$8:$DF$8,0))), SUMIF(INDIRECT(dshbrdrng_reingewinn),"<>", INDEX(INDIRECT(dshbrdrng_reingewinn2),0,MATCH(DATE($B92,MONTH(D$85),1),Erfolgsrechnung_Detail!$O$8:$DF$8,0)))+C92),"") -> 5519.618002 | E92: =IFERROR(SUMIF(INDIRECT(dshbrdrng_umsatzentwicklung),"<>", INDEX(INDIRECT(dshbrdrng_umsatzentwicklung2),0,MATCH(DATE($B20,MONTH(E$13),1),Erfolgsrechnung_Detail!$O$8:$DF$8,0))) + IF(INDEX(tblUmsatzFltr[Nr],MATCH(filter_umsatz,tblUmsatzFltr[Umsatz Filter],0)) = 1, SUMIF(INDIRECT(dshbrdrng_reingewinn),"<>", INDEX(INDIRECT(dshbrdrng_reingewinn2),0,MATCH(DATE($B92,MONTH(E$85),1),Erfolgsrechnung_Detail!$O$8:$DF$8,0))), SUMIF(INDIRECT(dshbrdrng_reingewinn),"<>", INDEX(INDIRECT(dshbrdrng_reingewinn2),0,MATCH(DATE($B92,MONTH(E$85),1),Erfolgsrechnung_Detail!$O$8:$DF$8,0)))+D92),"") -> 12554.30454 | F92: =IFERROR(SUMIF(INDIRECT(dshbrdrng_umsatzentwicklung),"<>", INDEX(INDIRECT(dshbrdrng_umsatzentwicklung2),0,MATCH(DATE($B20,MONTH(F$13),1),Erfolgsrechnung_Detail!$O$8:$DF$8,0))) + IF(INDEX(tblUmsatzFltr[Nr],MATCH(filter_umsatz,tblUmsatzFltr[Umsatz Filter],0)) = 1, SUMIF(INDIRECT(dshbrdrng_reingewinn),"<>", INDEX(INDIRECT(dshbrdrng_reingewinn2),0,MATCH(DATE($B92,MONTH(F$85),1),Erfolgsrechnung_Detail!$O$8:$DF$8,0))), SUMIF(INDIRECT(dshbrdrng_reingewinn),"<>", INDEX(INDIRECT(dshbrdrng_reingewinn2),0,MATCH(DATE($B92,MONTH(F$85),1),Erfolgsrechnung_Detail!$O$8:$DF$8,0)))+E92),"") -> 598.7887066 | G92: =IFERROR(SUMIF(INDIRECT(dshbrdrng_umsatzentwicklung),"<>", INDEX(INDIRECT(dshbrdrng_umsatzentwicklung2),0,MATCH(DATE($B20,MONTH(G$13),1),Erfolgsrechnung_Detail!$O$8:$DF$8,0))) + IF(INDEX(tblUmsatzFltr[Nr],MATCH(filter_umsatz,tblUmsatzFltr[Umsatz Filter],0)) = 1, SUMIF(INDIRECT(dshbrdrng_reingewinn),"<>", INDEX(INDIRECT(dshbrdrng_reingewinn2),0,MATCH(DATE($B92,MONTH(G$85),1),Erfolgsrechnung_Detail!$O$8:$DF$8,0))), SUMIF(INDIRECT(dshbrdrng_reingewinn),"<>", INDEX(INDIRECT(dshbrdrng_reingewinn2),0,MATCH(DATE($B92,MONTH(G$85),1),Erfolgsrechnung_Detail!$O$8:$DF$8,0)))+F92),"") -> 5771.72275 | H92: =IFERROR(SUMIF(INDIRECT(dshbrdrng_umsatzentwicklung),"<>", INDEX(INDIRECT(dshbrdrng_umsatzentwicklung2),0,MATCH(DATE($B20,MONTH(H$13),1),Erfolgsrechnung_Detail!$O$8:$DF$8,0))) + IF(INDEX(tblUmsatzFltr[Nr],MATCH(filter_umsatz,tblUmsatzFltr[Umsatz Filter],0)) = 1, SUMIF(INDIRECT(dshbrdrng_reingewinn),"<>", INDEX(INDIRECT(dshbrdrng_reingewinn2),0,MATCH(DATE($B92,MONTH(H$85),1),Erfolgsrechnung_Detail!$O$8:$DF$8,0))), SUMIF(INDIRECT(dshbrdrng_reingewinn),"<>", INDEX(INDIRECT(dshbrdrng_reingewinn2),0,MATCH(DATE($B92,MONTH(H$85),1),Erfolgsrechnung_Detail!$O$8:$DF$8,0)))+G92),"") -> 4787.464368 | I92: =IFERROR(SUMIF(INDIRECT(dshbrdrng_umsatzentwicklung),"<>", INDEX(INDIRECT(dshbrdrng_umsatzentwicklung2),0,MATCH(DATE($B20,MONTH(I$13),1),Erfolgsrechnung_Detail!$O$8:$DF$8,0))) + IF(INDEX(tblUmsatzFltr[Nr],MATCH(filter_umsatz,tblUmsatzFltr[Umsatz Filter],0)) = 1, SUMIF(INDIRECT(dshbrdrng_reingewinn),"<>", INDEX(INDIRECT(dshbrdrng_reingewinn2),0,MATCH(DATE($B92,MONTH(I$85),1),Erfolgsrechnung_Detail!$O$8:$DF$8,0))), SUMIF(INDIRECT(dshbrdrng_reingewinn),"<>", INDEX(INDIRECT(dshbrdrng_reingewinn2),0,MATCH(DATE($B92,MONTH(I$85),1),Erfolgsrechnung_Detail!$O$8:$DF$8,0)))+H92),"") -> 10298.34199 | J92: =IFERROR(SUMIF(INDIRECT(dshbrdrng_umsatzentwicklung),"<>", INDEX(INDIRECT(dshbrdrng_umsatzentwicklung2),0,MATCH(DATE($B20,MONTH(J$13),1),Erfolgsrechnung_Detail!$O$8:$DF$8,0))) + IF(INDEX(tblUmsatzFltr[Nr],MATCH(filter_umsatz,tblUmsatzFltr[Umsatz Filter],0)) = 1, SUMIF(INDIRECT(dshbrdrng_reingewinn),"<>", INDEX(INDIRECT(dshbrdrng_reingewinn2),0,MATCH(DATE($B92,MONTH(J$85),1),Erfolgsrechnung_Detail!$O$8:$DF$8,0))), SUMIF(INDIRECT(dshbrdrng_reingewinn),"<>", INDEX(INDIRECT(dshbrdrng_reingewinn2),0,MATCH(DATE($B92,MONTH(J$85),1),Erfolgsrechnung_Detail!$O$8:$DF$8,0)))+I92),"") -> 4933.553092 | K92: =IFERROR(SUMIF(INDIRECT(dshbrdrng_umsatzentwicklung),"<>", INDEX(INDIRECT(dshbrdrng_umsatzentwicklung2),0,MATCH(DATE($B20,MONTH(K$13),1),Erfolgsrechnung_Detail!$O$8:$DF$8,0))) + IF(INDEX(tblUmsatzFltr[Nr],MATCH(filter_umsatz,tblUmsatzFltr[Umsatz Filter],0)) = 1, SUMIF(INDIRECT(dshbrdrng_reingewinn),"<>", INDEX(INDIRECT(dshbrdrng_reingewinn2),0,MATCH(DATE($B92,MONTH(K$85),1),Erfolgsrechnung_Detail!$O$8:$DF$8,0))), SUMIF(INDIRECT(dshbrdrng_reingewinn),"<>", INDEX(INDIRECT(dshbrdrng_reingewinn2),0,MATCH(DATE($B92,MONTH(K$85),1),Erfolgsrechnung_Detail!$O$8:$DF$8,0)))+J92),"") -> 322.4031741 | L92: =IFERROR(SUMIF(INDIRECT(dshbrdrng_umsatzentwicklung),"<>", INDEX(INDIRECT(dshbrdrng_umsatzentwicklung2),0,MATCH(DATE($B20,MONTH(L$13),1),Erfolgsrechnung_Detail!$O$8:$DF$8,0))) + IF(INDEX(tblUmsatzFltr[Nr],MATCH(filter_umsatz,tblUmsatzFltr[Umsatz Filter],0)) = 1, SUMIF(INDIRECT(dshbrdrng_reingewinn),"<>", INDEX(INDIRECT(dshbrdrng_reingewinn2),0,MATCH(DATE($B92,MONTH(L$85),1),Erfolgsrechnung_Detail!$O$8:$DF$8,0))), SUMIF(INDIRECT(dshbrdrng_reingewinn),"<>", INDEX(INDIRECT(dshbrdrng_reingewinn2),0,MATCH(DATE($B92,MONTH(L$85),1),Erfolgsrechnung_Detail!$O$8:$DF$8,0)))+K92),"") -> 5146.843869 | M92: =IFERROR(SUMIF(INDIRECT(dshbrdrng_umsatzentwicklung),"<>", INDEX(INDIRECT(dshbrdrng_umsatzentwicklung2),0,MATCH(DATE($B20,MONTH(M$13),1),Erfolgsrechnung_Detail!$O$8:$DF$8,0))) + IF(INDEX(tblUmsatzFltr[Nr],MATCH(filter_umsatz,tblUmsatzFltr[Umsatz Filter],0)) = 1, SUMIF(INDIRECT(dshbrdrng_reingewinn),"<>", INDEX(INDIRECT(dshbrdrng_reingewinn2),0,MATCH(DATE($B92,MONTH(M$85),1),Erfolgsrechnung_Detail!$O$8:$DF$8,0))), SUMIF(INDIRECT(dshbrdrng_reingewinn),"<>", INDEX(INDIRECT(dshbrdrng_reingewinn2),0,MATCH(DATE($B92,MONTH(M$85),1),Erfolgsrechnung_Detail!$O$8:$DF$8,0)))+L92),"") -> 280.1171235 | N92: =IFERROR(SUMIF(INDIRECT(dshbrdrng_umsatzentwicklung),"<>", INDEX(INDIRECT(dshbrdrng_umsatzentwicklung2),0,MATCH(DATE($B20,MONTH(N$13),1),Erfolgsrechnung_Detail!$O$8:$DF$8,0))) + IF(INDEX(tblUmsatzFltr[Nr],MATCH(filter_umsatz,tblUmsatzFltr[Umsatz Filter],0)) = 1, SUMIF(INDIRECT(dshbrdrng_reingewinn),"<>", INDEX(INDIRECT(dshbrdrng_reingewinn2),0,MATCH(DATE($B92,MONTH(N$85),1),Erfolgsrechnung_Detail!$O$8:$DF$8,0))), SUMIF(INDIRECT(dshbrdrng_reingewinn),"<>", INDEX(INDIRECT(dshbrdrng_reingewinn2),0,MATCH(DATE($B92,MONTH(N$85),1),Erfolgsrechnung_Detail!$O$8:$DF$8,0)))+M92),"") -> 7166.073357 | P92: =IFERROR(IF( INDEX(tblUmsatzFltr[Nr],MATCH(filter_umsatz,tblUmsatzFltr[Umsatz Filter],0))=1, SUM($C92:INDEX($C92:$N92,1,selectedmonat_num)), INDEX($C92:$N92,0,MATCH(monat,tblMonate[Monate],0))),"") -> 22625.74543 | Q92: =IFERROR( IF(INDEX(tblUmsatzFltr[Nr],MATCH($L$3,tblUmsatzFltr[Umsatz Filter],0)) = 1, SUM(Dashboard!$C92:$N92),Dashboard!$N92),"") -> 61931.05386
B93: YTD | C93: =IFERROR(C92/C91-1,0) -> 4.718988788 | D93: -0.1534217871 | E93: -0.1470041347 | F93: -0.9414175795 | G93: 1.26115805 | H93: -0.4186834557 | I93: 0.07194887136 | J93: -0.642580303 | K93: -0.9503444237 | L93: 0.2012502138 | M93: -0.9789461291 | N93: -0.6109381622 | P93: =IFERROR(P92/P91-1,0) -> 0.02686882713 | Q93: =IFERROR(Q92/Q91-1,0) -> -0.4315879265
B95: Budget | C95: =IFERROR((SUMIFS(INDIRECT(budgetrng_umsatzentwicklung),INDIRECT(budgetrng),"<>")- SUMIFS(INDIRECT(budgetrng_bruttogewinn),INDIRECT(budgetrng2),"<>"))- SUMIFS(INDIRECT(budgetrng_reingewinn),INDIRECT(budgetrng3),"<>"),"") -> 1034.5594 | D95: =IFERROR((SUMIFS(OFFSET(INDIRECT(budgetrng_umsatzentwicklung),0,1),INDIRECT(budgetrng),"<>")- SUMIFS(OFFSET(INDIRECT(budgetrng_bruttogewinn),0,1),INDIRECT(budgetrng2),"<>"))- SUMIFS(OFFSET(INDIRECT(budgetrng_reingewinn),0,1),INDIRECT(budgetrng3),"<>"),"") -> 1034.5594 | E95: =IFERROR((SUMIFS(OFFSET(INDIRECT(budgetrng_umsatzentwicklung),0,2),INDIRECT(budgetrng),"<>")- SUMIFS(OFFSET(INDIRECT(budgetrng_bruttogewinn),0,2),INDIRECT(budgetrng2),"<>"))- SUMIFS(OFFSET(INDIRECT(budgetrng_reingewinn),0,2),INDIRECT(budgetrng3),"<>"),"") -> 1034.5595 | F95: =IFERROR((SUMIFS(OFFSET(INDIRECT(budgetrng_umsatzentwicklung),0,3),INDIRECT(budgetrng),"<>")- SUMIFS(OFFSET(INDIRECT(budgetrng_bruttogewinn),0,3),INDIRECT(budgetrng2),"<>"))- SUMIFS(OFFSET(INDIRECT(budgetrng_reingewinn),0,3),INDIRECT(budgetrng3),"<>"),"") -> 1034.5595 | G95: =IFERROR((SUMIFS(OFFSET(INDIRECT(budgetrng_umsatzentwicklung),0,4),INDIRECT(budgetrng),"<>")- SUMIFS(OFFSET(INDIRECT(budgetrng_bruttogewinn),0,4),INDIRECT(budgetrng2),"<>"))- SUMIFS(OFFSET(INDIRECT(budgetrng_reingewinn),0,4),INDIRECT(budgetrng3),"<>"),"") -> 1034.5596 | H95: =IFERROR((SUMIFS(OFFSET(INDIRECT(budgetrng_umsatzentwicklung),0,5),INDIRECT(budgetrng),"<>")- SUMIFS(OFFSET(INDIRECT(budgetrng_bruttogewinn),0,5),INDIRECT(budgetrng2),"<>"))- SUMIFS(OFFSET(INDIRECT(budgetrng_reingewinn),0,5),INDIRECT(budgetrng3),"<>"),"") -> 1034.5596 | I95: =IFERROR((SUMIFS(OFFSET(INDIRECT(budgetrng_umsatzentwicklung),0,6),INDIRECT(budgetrng),"<>")- SUMIFS(OFFSET(INDIRECT(budgetrng_bruttogewinn),0,6),INDIRECT(budgetrng2),"<>"))- SUMIFS(OFFSET(INDIRECT(budgetrng_reingewinn),0,6),INDIRECT(budgetrng3),"<>"),"") -> 1034.5597 | J95: =IFERROR((SUMIFS(OFFSET(INDIRECT(budgetrng_umsatzentwicklung),0,7),INDIRECT(budgetrng),"<>")- SUMIFS(OFFSET(INDIRECT(budgetrng_bruttogewinn),0,7),INDIRECT(budgetrng2),"<>"))- SUMIFS(OFFSET(INDIRECT(budgetrng_reingewinn),0,7),INDIRECT(budgetrng3),"<>"),"") -> 1034.5597 | K95: =IFERROR((SUMIFS(OFFSET(INDIRECT(budgetrng_umsatzentwicklung),0,8),INDIRECT(budgetrng),"<>")- SUMIFS(OFFSET(INDIRECT(budgetrng_bruttogewinn),0,8),INDIRECT(budgetrng2),"<>"))- SUMIFS(OFFSET(INDIRECT(budgetrng_reingewinn),0,8),INDIRECT(budgetrng3),"<>"),"") -> 1034.5598 | L95: =IFERROR((SUMIFS(OFFSET(INDIRECT(budgetrng_umsatzentwicklung),0,9),INDIRECT(budgetrng),"<>")- SUMIFS(OFFSET(INDIRECT(budgetrng_bruttogewinn),0,9),INDIRECT(budgetrng2),"<>"))- SUMIFS(OFFSET(INDIRECT(budgetrng_reingewinn),0,9),INDIRECT(budgetrng3),"<>"),"") -> 1034.5598 | M95: =IFERROR((SUMIFS(OFFSET(INDIRECT(budgetrng_umsatzentwicklung),0,10),INDIRECT(budgetrng),"<>")- SUMIFS(OFFSET(INDIRECT(budgetrng_bruttogewinn),0,10),INDIRECT(budgetrng2),"<>"))- SUMIFS(OFFSET(INDIRECT(budgetrng_reingewinn),0,10),INDIRECT(budgetrng3),"<>"),"") -> 1034.5599 | N95: =IFERROR((SUMIFS(OFFSET(INDIRECT(budgetrng_umsatzentwicklung),0,11),INDIRECT(budgetrng),"<>")- SUMIFS(OFFSET(INDIRECT(budgetrng_bruttogewinn),0,11),INDIRECT(budgetrng2),"<>"))- SUMIFS(OFFSET(INDIRECT(budgetrng_reingewinn),0,11),INDIRECT(budgetrng3),"<>"),"") -> 1034.5599 | P95: =SUM($C95:INDEX($C95:$N95,1,selectedmonat_num)) -> 3103.6783 | Q95: =SUM(rngBudgetSalesCost) -> 12414.7158
B98: Aktuelles Jahr vs. Vorjahr | P98: =IF(INDEX(tblMonate[Nr],MATCH(monat,tblMonate[Monate],0))<>1, CONCATENATE("YTD ",Einstellungen!$AY$8," - ",monat," ",B83," Zielerreichung"), CONCATENATE("YTD ",Einstellungen!$AY$8," ",B83," Zielerreichungt")) -> YTD Januar - März Reingewinn / Reinverlust Zielerreichung
B100: Budget | C100: =C95 -> 1034.5594 | D100: =IF(INDEX(tblUmsatzFltr[Nr],MATCH($L$3,tblUmsatzFltr[Umsatz Filter],0)) = 1,D$95,D$95+C$100) -> 1034.5594 | E100: =IF(INDEX(tblUmsatzFltr[Nr],MATCH($L$3,tblUmsatzFltr[Umsatz Filter],0)) = 1,E$95,E$95+D$100) -> 1034.5595 | F100: =IF(INDEX(tblUmsatzFltr[Nr],MATCH($L$3,tblUmsatzFltr[Umsatz Filter],0)) = 1,F$95,F$95+E$100) -> 1034.5595 | G100: =IF(INDEX(tblUmsatzFltr[Nr],MATCH($L$3,tblUmsatzFltr[Umsatz Filter],0)) = 1,G$95,G$95+F$100) -> 1034.5596 | H100: =IF(INDEX(tblUmsatzFltr[Nr],MATCH($L$3,tblUmsatzFltr[Umsatz Filter],0)) = 1,H$95,H$95+G$100) -> 1034.5596 | I100: =IF(INDEX(tblUmsatzFltr[Nr],MATCH($L$3,tblUmsatzFltr[Umsatz Filter],0)) = 1,I$95,I$95+H$100) -> 1034.5597 | J100: =IF(INDEX(tblUmsatzFltr[Nr],MATCH($L$3,tblUmsatzFltr[Umsatz Filter],0)) = 1,J$95,J$95+I$100) -> 1034.5597 | K100: =IF(INDEX(tblUmsatzFltr[Nr],MATCH($L$3,tblUmsatzFltr[Umsatz Filter],0)) = 1,K$95,K$95+J$100) -> 1034.5598 | L100: =IF(INDEX(tblUmsatzFltr[Nr],MATCH($L$3,tblUmsatzFltr[Umsatz Filter],0)) = 1,L$95,L$95+K$100) -> 1034.5598 | M100: =IF(INDEX(tblUmsatzFltr[Nr],MATCH($L$3,tblUmsatzFltr[Umsatz Filter],0)) = 1,M$95,M$95+L$100) -> 1034.5599 | N100: =IF(INDEX(tblUmsatzFltr[Nr],MATCH($L$3,tblUmsatzFltr[Umsatz Filter],0)) = 1,N$95,N$95+M$100) -> 1034.5599

Sheet Erfolgsrechnung_Detail
B8: Negativ (-1)/Positiv (1) | D8: Bezeichnung | E8: Gegenkonto | F8: Gegenkonto (Beschrieb) | G8: =DATE(startjahr,1,1) -> 2015-01-01 | H8: =DATE(YEAR(G8)+1,MONTH(G8),DAY(G8)) -> 2016-01-01 | I8: 2017-01-01 | J8: 2018-01-01 | K8: 2019-01-01 | L8: 2020-01-01 | M8: 2021-01-01 | N8: 2022-01-01 | O8: =G8 -> 2015-01-01 | P8: =EOMONTH(O8,0)+1 -> 2015-02-01 | Q8: =EOMONTH(P8,0)+1 -> 2015-03-01 | R8: 2015-04-01 | S8: 2015-05-01 | T8: 2015-06-01 | U8: 2015-07-01 | V8: 2015-08-01 | W8: 2015-09-01 | X8: 2015-10-01 | Y8: 2015-11-01 | Z8: 2015-12-01 | AA8: 2016-01-01 | AB8: 2016-02-01 | AC8: 2016-03-01 | AD8: 2016-04-01 | AE8: 2016-05-01 | AF8: 2016-06-01 | AG8: 2016-07-01 | AH8: 2016-08-01 | AI8: 2016-09-01 | AJ8: 2016-10-01 | AK8: 2016-11-01 | AL8: 2016-12-01 | AM8: 2017-01-01 | AN8: 2017-02-01 | AO8: 2017-03-01 | AP8: 2017-04-01 | AQ8: 2017-05-01 | AR8: 2017-06-01 | AS8: 2017-07-01 | AT8: 2017-08-01 | AU8: 2017-09-01 | AV8: 2017-10-01 | AW8: 2017-11-01 | AX8: 2017-12-01 | AY8: 2018-01-01 | AZ8: 2018-02-01 | BA8: 2018-03-01 | BB8: 2018-04-01 | BC8: 2018-05-01 | BD8: 2018-06-01 | BE8: 2018-07-01 | BF8: 2018-08-01 | BG8: 2018-09-01 | BH8: 2018-10-01 | BI8: 2018-11-01 | BJ8: 2018-12-01 | BK8: 2019-01-01 | BL8: 2019-02-01 | BM8: 2019-03-01 | BN8: 2019-04-01 | BO8: 2019-05-01 | BP8: 2019-06-01 | BQ8: 2019-07-01 | BR8: 2019-08-01 | BS8: 2019-09-01 | BT8: 2019-10-01 | BU8: 2019-11-01 | BV8: 2019-12-01 | BW8: 2020-01-01 | BX8: 2020-02-01 | BY8: 2020-03-01 | BZ8: 2020-04-01 | CA8: 2020-05-01 | CB8: 2020-06-01 | CC8: =EOMONTH(CB8,0)+1 -> 2020-07-01 | CD8: 2020-08-01 | CE8: 2020-09-01 | CF8: 2020-10-01 | CG8: 2020-11-01 | CH8: 2020-12-01 | CI8: 2021-01-01 | CJ8: 2021-02-01 | CK8: 2021-03-01 | CL8: 2021-04-01 | CM8: 2021-05-01 | CN8: 2021-06-01 | CO8: 2021-07-01 | CP8: 2021-08-01 | CQ8: 2021-09-01 | CR8: 2021-10-01 | CS8: 2021-11-01 | CT8: 2021-12-01 | CU8: 2022-01-01 | CV8: 2022-02-01 | CW8: 2022-03-01 | CX8: 2022-04-01 | CY8: 2022-05-01 | CZ8: 2022-06-01 | DA8: 2022-07-01 | DB8: 2022-08-01 | DC8: 2022-09-01 | DD8: 2022-10-01 | DE8: 2022-11-01 | DF8: 2022-12-01
C9: 3 - Betrieblicher Ertrag aus Lieferungen und Leistungen
B10: Ertrag | C10: 3000 | D10: Bruttoerlöse Erzeugnis A | G10: =IF(ISNUMBER($C10), SUMIFS(Datenblatt!$M:$M, Datenblatt!$G:$G,$C10, Datenblatt!$R:$R,">="&G$8,Datenblatt!$R:$R,"<="&EOMONTH(G$8,11)) - SUMIFS(Datenblatt!$M:$M, Datenblatt!$E:$E,$C10, Datenblatt!$R:$R,">="&G$8,Datenblatt!$R:$R,"<="&EOMONTH(G$8,11)), "") -> 100576.6029 | H10: =IF(ISNUMBER($C10), SUMIFS(Datenblatt!$M:$M, Datenblatt!$G:$G,$C10, Datenblatt!$R:$R,">="&H$8,Datenblatt!$R:$R,"<="&EOMONTH(H$8,11)) - SUMIFS(Datenblatt!$M:$M, Datenblatt!$E:$E,$C10, Datenblatt!$R:$R,">="&H$8,Datenblatt!$R:$R,"<="&EOMONTH(H$8,11)), "") -> 121552.9087 | I10: =IF(ISNUMBER($C10), SUMIFS(Datenblatt!$M:$M, Datenblatt!$G:$G,$C10, Datenblatt!$R:$R,">="&I$8,Datenblatt!$R:$R,"<="&EOMONTH(I$8,11)) - SUMIFS(Datenblatt!$M:$M, Datenblatt!$E:$E,$C10, Datenblatt!$R:$R,">="&I$8,Datenblatt!$R:$R,"<="&EOMONTH(I$8,11)), "") -> 138677.4281 | J10: =IF(ISNUMBER($C10), SUMIFS(Datenblatt!$M:$M, Datenblatt!$G:$G,$C10, Datenblatt!$R:$R,">="&J$8,Datenblatt!$R:$R,"<="&EOMONTH(J$8,11)) - SUMIFS(Datenblatt!$M:$M, Datenblatt!$E:$E,$C10, Datenblatt!$R:$R,">="&J$8,Datenblatt!$R:$R,"<="&EOMONTH(J$8,11)), "") -> 75023.57041 | K10: =IF(ISNUMBER($C10), SUMIFS(Datenblatt!$M:$M, Datenblatt!$G:$G,$C10, Datenblatt!$R:$R,">="&K$8,Datenblatt!$R:$R,"<="&EOMONTH(K$8,11)) - SUMIFS(Datenblatt!$M:$M, Datenblatt!$E:$E,$C10, Datenblatt!$R:$R,">="&K$8,Datenblatt!$R:$R,"<="&EOMONTH(K$8,11)), "") -> 182843.0228 | L10: =IF(ISNUMBER($C10), SUMIFS(Datenblatt!$M:$M, Datenblatt!$G:$G,$C10, Datenblatt!$R:$R,">="&L$8,Datenblatt!$R:$R,"<="&EOMONTH(L$8,11)) - SUMIFS(Datenblatt!$M:$M, Datenblatt!$E:$E,$C10, Datenblatt!$R:$R,">="&L$8,Datenblatt!$R:$R,"<="&EOMONTH(L$8,11)), "") -> 139523.8372 | M10: =IF(ISNUMBER($C10), SUMIFS(Datenblatt!$M:$M, Datenblatt!$G:$G,$C10, Datenblatt!$R:$R,">="&M$8,Datenblatt!$R:$R,"<="&EOMONTH(M$8,11)) - SUMIFS(Datenblatt!$M:$M, Datenblatt!$E:$E,$C10, Datenblatt!$R:$R,">="&M$8,Datenblatt!$R:$R,"<="&EOMONTH(M$8,11)), "") -> 0 | N10: =IF(ISNUMBER($C10), SUMIFS(Datenblatt!$M:$M, Datenblatt!$G:$G,$C10, Datenblatt!$R:$R,">="&N$8,Datenblatt!$R:$R,"<="&EOMONTH(N$8,11)) - SUMIFS(Datenblatt!$M:$M, Datenblatt!$E:$E,$C10, Datenblatt!$R:$R,">="&N$8,Datenblatt!$R:$R,"<="&EOMONTH(N$8,11)), "") -> 0 | O10: =IF(ISNUMBER($C10), SUMIFS(Datenblatt!$M:$M, Datenblatt!$G:$G,$C10, Datenblatt!$R:$R,">="&O$8,Datenblatt!$R:$R,"<="&EOMONTH(O$8,0)) - SUMIFS(Datenblatt!$M:$M, Datenblatt!$E:$E,$C10, Datenblatt!$R:$R,">="&O$8,Datenblatt!$R:$R,"<="&EOMONTH(O$8,0)), "") -> 13444.05434 | P10: =IF(ISNUMBER($C10), SUMIFS(Datenblatt!$M:$M, Datenblatt!$G:$G,$C10, Datenblatt!$R:$R,">="&P$8,Datenblatt!$R:$R,"<="&EOMONTH(P$8,0)) - SUMIFS(Datenblatt!$M:$M, Datenblatt!$E:$E,$C10, Datenblatt!$R:$R,">="&P$8,Datenblatt!$R:$R,"<="&EOMONTH(P$8,0)), "") -> 12451.38839 | Q10: =IF(ISNUMBER($C10), SUMIFS(Datenblatt!$M:$M, Datenblatt!$G:$G,$C10, Datenblatt!$R:$R,">="&Q$8,Datenblatt!$R:$R,"<="&EOMONTH(Q$8,0)) - SUMIFS(Datenblatt!$M:$M, Datenblatt!$E:$E,$C10, Datenblatt!$R:$R,">="&Q$8,Datenblatt!$R:$R,"<="&EOMONTH(Q$8,0)), "") -> 3439.952142 | R10: =IF(ISNUMBER($C10), SUMIFS(Datenblatt!$M:$M, Datenblatt!$G:$G,$C10, Datenblatt!$R:$R,">="&R$8,Datenblatt!$R:$R,"<="&EOMONTH(R$8,0)) - SUMIFS(Datenblatt!$M:$M, Datenblatt!$E:$E,$C10, Datenblatt!$R:$R,">="&R$8,Datenblatt!$R:$R,"<="&EOMONTH(R$8,0)), "") -> 2988.396949 | S10: =IF(ISNUMBER($C10), SUMIFS(Datenblatt!$M:$M, Datenblatt!$G:$G,$C10, Datenblatt!$R:$R,">="&S$8,Datenblatt!$R:$R,"<="&EOMONTH(S$8,0)) - SUMIFS(Datenblatt!$M:$M, Datenblatt!$E:$E,$C10, Datenblatt!$R:$R,">="&S$8,Datenblatt!$R:$R,"<="&EOMONTH(S$8,0)), "") -> 11898.70219 | T10: =IF(ISNUMBER($C10), SUMIFS(Datenblatt!$M:$M, Datenblatt!$G:$G,$C10, Datenblatt!$R:$R,">="&T$8,Datenblatt!$R:$R,"<="&EOMONTH(T$8,0)) - SUMIFS(Datenblatt!$M:$M, Datenblatt!$E:$E,$C10, Datenblatt!$R:$R,">="&T$8,Datenblatt!$R:$R,"<="&EOMONTH(T$8,0)), "") -> 13276.92099 | U10: =IF(ISNUMBER($C10), SUMIFS(Datenblatt!$M:$M, Datenblatt!$G:$G,$C10, Datenblatt!$R:$R,">="&U$8,Datenblatt!$R:$R,"<="&EOMONTH(U$8,0)) - SUMIFS(Datenblatt!$M:$M, Datenblatt!$E:$E,$C10, Datenblatt!$R:$R,">="&U$8,Datenblatt!$R:$R,"<="&EOMONTH(U$8,0)), "") -> 9578.424244 | V10: =IF(ISNUMBER($C10), SUMIFS(Datenblatt!$M:$M, Datenblatt!$G:$G,$C10, Datenblatt!$R:$R,">="&V$8,Datenblatt!$R:$R,"<="&EOMONTH(V$8,0)) - SUMIFS(Datenblatt!$M:$M, Datenblatt!$E:$E,$C10, Datenblatt!$R:$R,">="&V$8,Datenblatt!$R:$R,"<="&EOMONTH(V$8,0)), "") -> 4599.299844 | W10: =IF(ISNUMBER($C10), SUMIFS(Datenblatt!$M:$M, Datenblatt!$G:$G,$C10, Datenblatt!$R:$R,">="&W$8,Datenblatt!$R:$R,"<="&EOMONTH(W$8,0)) - SUMIFS(Datenblatt!$M:$M, Datenblatt!$E:$E,$C10, Datenblatt!$R:$R,">="&W$8,Datenblatt!$R:$R,"<="&EOMONTH(W$8,0)), "") -> 6577.434057 | X10: =IF(ISNUMBER($C10), SUMIFS(Datenblatt!$M:$M, Datenblatt!$G:$G,$C10, Datenblatt!$R:$R,">="&X$8,Datenblatt!$R:$R,"<="&EOMONTH(X$8,0)) - SUMIFS(Datenblatt!$M:$M, Datenblatt!$E:$E,$C10, Datenblatt!$R:$R,">="&X$8,Datenblatt!$R:$R,"<="&EOMONTH(X$8,0)), "") -> 7251.717065 | Y10: =IF(ISNUMBER($C10), SUMIFS(Datenblatt!$M:$M, Datenblatt!$G:$G,$C10, Datenblatt!$R:$R,">="&Y$8,Datenblatt!$R:$R,"<="&EOMONTH(Y$8,0)) - SUMIFS(Datenblatt!$M:$M, Datenblatt!$E:$E,$C10, Datenblatt!$R:$R,">="&Y$8,Datenblatt!$R:$R,"<="&EOMONTH(Y$8,0)), "") -> 3826.831715 | Z10: =IF(ISNUMBER($C10), SUMIFS(Datenblatt!$M:$M, Datenblatt!$G:$G,$C10, Datenblatt!$R:$R,">="&Z$8,Datenblatt!$R:$R,"<="&EOMONTH(Z$8,0)) - SUMIFS(Datenblatt!$M:$M, Datenblatt!$E:$E,$C10, Datenblatt!$R:$R,">="&Z$8,Datenblatt!$R:$R,"<="&EOMONTH(Z$8,0)), "") -> 11243.48097 | AA10: =IF(ISNUMBER($C10), SUMIFS(Datenblatt!$M:$M, Datenblatt!$G:$G,$C10, Datenblatt!$R:$R,">="&AA$8,Datenblatt!$R:$R,"<="&EOMONTH(AA$8,0)) - SUMIFS(Datenblatt!$M:$M, Datenblatt!$E:$E,$C10, Datenblatt!$R:$R,">="&AA$8,Datenblatt!$R:$R,"<="&EOMONTH(AA$8,0)), "") -> 34927.20217 | AB10: =IF(ISNUMBER($C10), SUMIFS(Datenblatt!$M:$M, Datenblatt!$G:$G,$C10, Datenblatt!$R:$R,">="&AB$8,Datenblatt!$R:$R,"<="&EOMONTH(AB$8,0)) - SUMIFS(Datenblatt!$M:$M, Datenblatt!$E:$E,$C10, Datenblatt!$R:$R,">="&AB$8,Datenblatt!$R:$R,"<="&EOMONTH(AB$8,0)), "") -> 10867.269 | AC10: =IF(ISNUMBER($C10), SUMIFS(Datenblatt!$M:$M, Datenblatt!$G:$G,$C10, Datenblatt!$R:$R,">="&AC$8,Datenblatt!$R:$R,"<="&EOMONTH(AC$8,0)) - SUMIFS(Datenblatt!$M:$M, Datenblatt!$E:$E,$C10, Datenblatt!$R:$R,">="&AC$8,Datenblatt!$R:$R,"<="&EOMONTH(AC$8,0)), "") -> 3624.260061 | AD10: =IF(ISNUMBER($C10), SUMIFS(Datenblatt!$M:$M, Datenblatt!$G:$G,$C10, Datenblatt!$R:$R,">="&AD$8,Datenblatt!$R:$R,"<="&EOMONTH(AD$8,0)) - SUMIFS(Datenblatt!$M:$M, Datenblatt!$E:$E,$C10, Datenblatt!$R:$R,">="&AD$8,Datenblatt!$R:$R,"<="&EOMONTH(AD$8,0)), "") -> 6045.155321 | AE10: =IF(ISNUMBER($C10), SUMIFS(Datenblatt!$M:$M, Datenblatt!$G:$G,$C10, Datenblatt!$R:$R,">="&AE$8,Datenblatt!$R:$R,"<="&EOMONTH(AE$8,0)) - SUMIFS(Datenblatt!$M:$M, Datenblatt!$E:$E,$C10, Datenblatt!$R:$R,">="&AE$8,Datenblatt!$R:$R,"<="&EOMONTH(AE$8,0)), "") -> 3085.390622 | AF10: =IF(ISNUMBER($C10), SUMIFS(Datenblatt!$M:$M, Datenblatt!$G:$G,$C10, Datenblatt!$R:$R,">="&AF$8,Datenblatt!$R:$R,"<="&EOMONTH(AF$8,0)) - SUMIFS(Datenblatt!$M:$M, Datenblatt!$E:$E,$C10, Datenblatt!$R:$R,">="&AF$8,Datenblatt!$R:$R,"<="&EOMONTH(AF$8,0)), "") -> 5437.664821 | AG10: =IF(ISNUMBER($C10), SUMIFS(Datenblatt!$M:$M, Datenblatt!$G:$G,$C10, Datenblatt!$R:$R,">="&AG$8,Datenblatt!$R:$R,"<="&EOMONTH(AG$8,0)) - SUMIFS(Datenblatt!$M:$M, Datenblatt!$E:$E,$C10, Datenblatt!$R:$R,">="&AG$8,Datenblatt!$R:$R,"<="&EOMONTH(AG$8,0)), "") -> 11849.94473 | AH10: =IF(ISNUMBER($C10), SUMIFS(Datenblatt!$M:$M, Datenblatt!$G:$G,$C10, Datenblatt!$R:$R,">="&AH$8,Datenblatt!$R:$R,"<="&EOMONTH(AH$8,0)) - SUMIFS(Datenblatt!$M:$M, Datenblatt!$E:$E,$C10, Datenblatt!$R:$R,">="&AH$8,Datenblatt!$R:$R,"<="&EOMONTH(AH$8,0)), "") -> 2222.353429 | AI10: =IF(ISNUMBER($C10), SUMIFS(Datenblatt!$M:$M, Datenblatt!$G:$G,$C10, Datenblatt!$R:$R,">="&AI$8,Datenblatt!$R:$R,"<="&EOMONTH(AI$8,0)) - SUMIFS(Datenblatt!$M:$M, Datenblatt!$E:$E,$C10, Datenblatt!$R:$R,">="&AI$8,Datenblatt!$R:$R,"<="&EOMONTH(AI$8,0)), "") -> 5585.958674 | AJ10: =IF(ISNUMBER($C10), SUMIFS(Datenblatt!$M:$M, Datenblatt!$G:$G,$C10, Datenblatt!$R:$R,">="&AJ$8,Datenblatt!$R:$R,"<="&EOMONTH(AJ$8,0)) - SUMIFS(Datenblatt!$M:$M, Datenblatt!$E:$E,$C10, Datenblatt!$R:$R,">="&AJ$8,Datenblatt!$R:$R,"<="&EOMONTH(AJ$8,0)), "") -> 6902.364687 | AK10: =IF(ISNUMBER($C10), SUMIFS(Datenblatt!$M:$M, Datenblatt!$G:$G,$C10, Datenblatt!$R:$R,">="&AK$8,Datenblatt!$R:$R,"<="&EOMONTH(AK$8,0)) - SUMIFS(Datenblatt!$M:$M, Datenblatt!$E:$E,$C10, Datenblatt!$R:$R,">="&AK$8,Datenblatt!$R:$R,"<="&EOMONTH(AK$8,0)), "") -> 14561.20729 | AL10: =IF(ISNUMBER($C10), SUMIFS(Datenblatt!$M:$M, Datenblatt!$G:$G,$C10, Datenblatt!$R:$R,">="&AL$8,Datenblatt!$R:$R,"<="&EOMONTH(AL$8,0)) - SUMIFS(Datenblatt!$M:$M, Datenblatt!$E:$E,$C10, Datenblatt!$R:$R,">="&AL$8,Datenblatt!$R:$R,"<="&EOMONTH(AL$8,0)), "") -> 16444.13793 | AM10: =IF(ISNUMBER($C10), SUMIFS(Datenblatt!$M:$M, Datenblatt!$G:$G,$C10, Datenblatt!$R:$R,">="&AM$8,Datenblatt!$R:$R,"<="&EOMONTH(AM$8,0)) - SUMIFS(Datenblatt!$M:$M, Datenblatt!$E:$E,$C10, Datenblatt!$R:$R,">="&AM$8,Datenblatt!$R:$R,"<="&EOMONTH(AM$8,0)), "") -> 7788.893887 | AN10: =IF(ISNUMBER($C10), SUMIFS(Datenblatt!$M:$M, Datenblatt!$G:$G,$C10, Datenblatt!$R:$R,">="&AN$8,Datenblatt!$R:$R,"<="&EOMONTH(AN$8,0)) - SUMIFS(Datenblatt!$M:$M, Datenblatt!$E:$E,$C10, Datenblatt!$R:$R,">="&AN$8,Datenblatt!$R:$R,"<="&EOMONTH(AN$8,0)), "") -> 7250.531539 | AO10: =IF(ISNUMBER($C10), SUMIFS(Datenblatt!$M:$M, Datenblatt!$G:$G,$C10, Datenblatt!$R:$R,">="&AO$8,Datenblatt!$R:$R,"<="&EOMONTH(AO$8,0)) - SUMIFS(Datenblatt!$M:$M, Datenblatt!$E:$E,$C10, Datenblatt!$R:$R,">="&AO$8,Datenblatt!$R:$R,"<="&EOMONTH(AO$8,0)), "") -> 6777.27985 | AP10: =IF(ISNUMBER($C10), SUMIFS(Datenblatt!$M:$M, Datenblatt!$G:$G,$C10, Datenblatt!$R:$R,">="&AP$8,Datenblatt!$R:$R,"<="&EOMONTH(AP$8,0)) - SUMIFS(Datenblatt!$M:$M, Datenblatt!$E:$E,$C10, Datenblatt!$R:$R,">="&AP$8,Datenblatt!$R:$R,"<="&EOMONTH(AP$8,0)), "") -> 472.1307375 | AQ10: =IF(ISNUMBER($C10), SUMIFS(Datenblatt!$M:$M, Datenblatt!$G:$G,$C10, Datenblatt!$R:$R,">="&AQ$8,Datenblatt!$R:$R,"<="&EOMONTH(AQ$8,0)) - SUMIFS(Datenblatt!$M:$M, Datenblatt!$E:$E,$C10, Datenblatt!$R:$R,">="&AQ$8,Datenblatt!$R:$R,"<="&EOMONTH(AQ$8,0)), "") -> 14573.18866 | AR10: =IF(ISNUMBER($C10), SUMIFS(Datenblatt!$M:$M, Datenblatt!$G:$G,$C10, Datenblatt!$R:$R,">="&AR$8,Datenblatt!$R:$R,"<="&EOMONTH(AR$8,0)) - SUMIFS(Datenblatt!$M:$M, Datenblatt!$E:$E,$C10, Datenblatt!$R:$R,">="&AR$8,Datenblatt!$R:$R,"<="&EOMONTH(AR$8,0)), "") -> 23032.76161 | AS10: =IF(ISNUMBER($C10), SUMIFS(Datenblatt!$M:$M, Datenblatt!$G:$G,$C10, Datenblatt!$R:$R,">="&AS$8,Datenblatt!$R:$R,"<="&EOMONTH(AS$8,0)) - SUMIFS(Datenblatt!$M:$M, Datenblatt!$E:$E,$C10, Datenblatt!$R:$R,">="&AS$8,Datenblatt!$R:$R,"<="&EOMONTH(AS$8,0)), "") -> 19439.42787 | AT10: =IF(ISNUMBER($C10), SUMIFS(Datenblatt!$M:$M, Datenblatt!$G:$G,$C10, Datenblatt!$R:$R,">="&AT$8,Datenblatt!$R:$R,"<="&EOMONTH(AT$8,0)) - SUMIFS(Datenblatt!$M:$M, Datenblatt!$E:$E,$C10, Datenblatt!$R:$R,">="&AT$8,Datenblatt!$R:$R,"<="&EOMONTH(AT$8,0)), "") -> 23996.98965 | AU10: =IF(ISNUMBER($C10), SUMIFS(Datenblatt!$M:$M, Datenblatt!$G:$G,$C10, Datenblatt!$R:$R,">="&AU$8,Datenblatt!$R:$R,"<="&EOMONTH(AU$8,0)) - SUMIFS(Datenblatt!$M:$M, Datenblatt!$E:$E,$C10, Datenblatt!$R:$R,">="&AU$8,Datenblatt!$R:$R,"<="&EOMONTH(AU$8,0)), "") -> 9489.350329 | AV10: =IF(ISNUMBER($C10), SUMIFS(Datenblatt!$M:$M, Datenblatt!$G:$G,$C10, Datenblatt!$R:$R,">="&AV$8,Datenblatt!$R:$R,"<="&EOMONTH(AV$8,0)) - SUMIFS(Datenblatt!$M:$M, Datenblatt!$E:$E,$C10, Datenblatt!$R:$R,">="&AV$8,Datenblatt!$R:$R,"<="&EOMONTH(AV$8,0)), "") -> 11921.785 | AW10: =IF(ISNUMBER($C10), SUMIFS(Datenblatt!$M:$M, Datenblatt!$G:$G,$C10, Datenblatt!$R:$R,">="&AW$8,Datenblatt!$R:$R,"<="&EOMONTH(AW$8,0)) - SUMIFS(Datenblatt!$M:$M, Datenblatt!$E:$E,$C10, Datenblatt!$R:$R,">="&AW$8,Datenblatt!$R:$R,"<="&EOMONTH(AW$8,0)), "") -> 3417.174092 | AX10: =IF(ISNUMBER($C10), SUMIFS(Datenblatt!$M:$M, Datenblatt!$G:$G,$C10, Datenblatt!$R:$R,">="&AX$8,Datenblatt!$R:$R,"<="&EOMONTH(AX$8,0)) - SUMIFS(Datenblatt!$M:$M, Datenblatt!$E:$E,$C10, Datenblatt!$R:$R,">="&AX$8,Datenblatt!$R:$R,"<="&EOMONTH(AX$8,0)), "") -> 10517.91486 | AY10: =IF(ISNUMBER($C10), SUMIFS(Datenblatt!$M:$M, Datenblatt!$G:$G,$C10, Datenblatt!$R:$R,">="&AY$8,Datenblatt!$R:$R,"<="&EOMONTH(AY$8,0)) - SUMIFS(Datenblatt!$M:$M, Datenblatt!$E:$E,$C10, Datenblatt!$R:$R,">="&AY$8,Datenblatt!$R:$R,"<="&EOMONTH(AY$8,0)), "") -> 4895.573071 | AZ10: =IF(ISNUMBER($C10), SUMIFS(Datenblatt!$M:$M, Datenblatt!$G:$G,$C10, Datenblatt!$R:$R,">="&AZ$8,Datenblatt!$R:$R,"<="&EOMONTH(AZ$8,0)) - SUMIFS(Datenblatt!$M:$M, Datenblatt!$E:$E,$C10, Datenblatt!$R:$R,">="&AZ$8,Datenblatt!$R:$R,"<="&EOMONTH(AZ$8,0)), "") -> 3626.989278 | BA10: =IF(ISNUMBER($C10), SUMIFS(Datenblatt!$M:$M, Datenblatt!$G:$G,$C10, Datenblatt!$R:$R,">="&BA$8,Datenblatt!$R:$R,"<="&EOMONTH(BA$8,0)) - SUMIFS(Datenblatt!$M:$M, Datenblatt!$E:$E,$C10, Datenblatt!$R:$R,">="&BA$8,Datenblatt!$R:$R,"<="&EOMONTH(BA$8,0)), "") -> 5458.050062 | BB10: =IF(ISNUMBER($C10), SUMIFS(Datenblatt!$M:$M, Datenblatt!$G:$G,$C10, Datenblatt!$R:$R,">="&BB$8,Datenblatt!$R:$R,"<="&EOMONTH(BB$8,0)) - SUMIFS(Datenblatt!$M:$M, Datenblatt!$E:$E,$C10, Datenblatt!$R:$R,">="&BB$8,Datenblatt!$R:$R,"<="&EOMONTH(BB$8,0)), "") -> 7851.822872 | BC10: =IF(ISNUMBER($C10), SUMIFS(Datenblatt!$M:$M, Datenblatt!$G:$G,$C10, Datenblatt!$R:$R,">="&BC$8,Datenblatt!$R:$R,"<="&EOMONTH(BC$8,0)) - SUMIFS(Datenblatt!$M:$M, Datenblatt!$E:$E,$C10, Datenblatt!$R:$R,">="&BC$8,Datenblatt!$R:$R,"<="&EOMONTH(BC$8,0)), "") -> 2926.442249 | BD10: =IF(ISNUMBER($C10), SUMIFS(Datenblatt!$M:$M, Datenblatt!$G:$G,$C10, Datenblatt!$R:$R,">="&BD$8,Datenblatt!$R:$R,"<="&EOMONTH(BD$8,0)) - SUMIFS(Datenblatt!$M:$M, Datenblatt!$E:$E,$C10, Datenblatt!$R:$R,">="&BD$8,Datenblatt!$R:$R,"<="&EOMONTH(BD$8,0)), "") -> 4838.225879 | BE10: =IF(ISNUMBER($C10), SUMIFS(Datenblatt!$M:$M, Datenblatt!$G:$G,$C10, Datenblatt!$R:$R,">="&BE$8,Datenblatt!$R:$R,"<="&EOMONTH(BE$8,0)) - SUMIFS(Datenblatt!$M:$M, Datenblatt!$E:$E,$C10, Datenblatt!$R:$R,">="&BE$8,Datenblatt!$R:$R,"<="&EOMONTH(BE$8,0)), "") -> 4440.264643 | BF10: =IF(ISNUMBER($C10), SUMIFS(Datenblatt!$M:$M, Datenblatt!$G:$G,$C10, Datenblatt!$R:$R,">="&BF$8,Datenblatt!$R:$R,"<="&EOMONTH(BF$8,0)) - SUMIFS(Datenblatt!$M:$M, Datenblatt!$E:$E,$C10, Datenblatt!$R:$R,">="&BF$8,Datenblatt!$R:$R,"<="&EOMONTH(BF$8,0)), "") -> 8279.181183 | BG10: =IF(ISNUMBER($C10), SUMIFS(Datenblatt!$M:$M, Datenblatt!$G:$G,$C10, Datenblatt!$R:$R,">="&BG$8,Datenblatt!$R:$R,"<="&EOMONTH(BG$8,0)) - SUMIFS(Datenblatt!$M:$M, Datenblatt!$E:$E,$C10, Datenblatt!$R:$R,">="&BG$8,Datenblatt!$R:$R,"<="&EOMONTH(BG$8,0)), "") -> 8271.895918 | BH10: =IF(ISNUMBER($C10), SUMIFS(Datenblatt!$M:$M, Datenblatt!$G:$G,$C10, Datenblatt!$R:$R,">="&BH$8,Datenblatt!$R:$R,"<="&EOMONTH(BH$8,0)) - SUMIFS(Datenblatt!$M:$M, Datenblatt!$E:$E,$C10, Datenblatt!$R:$R,">="&BH$8,Datenblatt!$R:$R,"<="&EOMONTH(BH$8,0)), "") -> 2125.134769 | BI10: =IF(ISNUMBER($C10), SUMIFS(Datenblatt!$M:$M, Datenblatt!$G:$G,$C10, Datenblatt!$R:$R,">="&BI$8,Datenblatt!$R:$R,"<="&EOMONTH(BI$8,0)) - SUMIFS(Datenblatt!$M:$M, Datenblatt!$E:$E,$C10, Datenblatt!$R:$R,">="&BI$8,Datenblatt!$R:$R,"<="&EOMONTH(BI$8,0)), "") -> 11482.46773 | BJ10: =IF(ISNUMBER($C10), SUMIFS(Datenblatt!$M:$M, Datenblatt!$G:$G,$C10, Datenblatt!$R:$R,">="&BJ$8,Datenblatt!$R:$R,"<="&EOMONTH(BJ$8,0)) - SUMIFS(Datenblatt!$M:$M, Datenblatt!$E:$E,$C10, Datenblatt!$R:$R,">="&BJ$8,Datenblatt!$R:$R,"<="&EOMONTH(BJ$8,0)), "") -> 10827.52276 | BK10: =IF(ISNUMBER($C10), SUMIFS(Datenblatt!$M:$M, Datenblatt!$G:$G,$C10, Datenblatt!$R:$R,">="&BK$8,Datenblatt!$R:$R,"<="&EOMONTH(BK$8,0)) - SUMIFS(Datenblatt!$M:$M, Datenblatt!$E:$E,$C10, Datenblatt!$R:$R,">="&BK$8,Datenblatt!$R:$R,"<="&EOMONTH(BK$8,0)), "") -> 5062.776899 | BL10: =IF(ISNUMBER($C10), SUMIFS(Datenblatt!$M:$M, Datenblatt!$G:$G,$C10, Datenblatt!$R:$R,">="&BL$8,Datenblatt!$R:$R,"<="&EOMONTH(BL$8,0)) - SUMIFS(Datenblatt!$M:$M, Datenblatt!$E:$E,$C10, Datenblatt!$R:$R,">="&BL$8,Datenblatt!$R:$R,"<="&EOMONTH(BL$8,0)), "") -> 13372.29533 | BM10: =IF(ISNUMBER($C10), SUMIFS(Datenblatt!$M:$M, Datenblatt!$G:$G,$C10, Datenblatt!$R:$R,">="&BM$8,Datenblatt!$R:$R,"<="&EOMONTH(BM$8,0)) - SUMIFS(Datenblatt!$M:$M, Datenblatt!$E:$E,$C10, Datenblatt!$R:$R,">="&BM$8,Datenblatt!$R:$R,"<="&EOMONTH(BM$8,0)), "") -> 13215.07636 | BN10: =IF(ISNUMBER($C10), SUMIFS(Datenblatt!$M:$M, Datenblatt!$G:$G,$C10, Datenblatt!$R:$R,">="&BN$8,Datenblatt!$R:$R,"<="&EOMONTH(BN$8,0)) - SUMIFS(Datenblatt!$M:$M, Datenblatt!$E:$E,$C10, Datenblatt!$R:$R,">="&BN$8,Datenblatt!$R:$R,"<="&EOMONTH(BN$8,0)), "") -> 18935.23313 | BO10: =IF(ISNUMBER($C10), SUMIFS(Datenblatt!$M:$M, Datenblatt!$G:$G,$C10, Datenblatt!$R:$R,">="&BO$8,Datenblatt!$R:$R,"<="&EOMONTH(BO$8,0)) - SUMIFS(Datenblatt!$M:$M, Datenblatt!$E:$E,$C10, Datenblatt!$R:$R,">="&BO$8,Datenblatt!$R:$R,"<="&EOMONTH(BO$8,0)), "") -> 26050.16776 | BP10: =IF(ISNUMBER($C10), SUMIFS(Datenblatt!$M:$M, Datenblatt!$G:$G,$C10, Datenblatt!$R:$R,">="&BP$8,Datenblatt!$R:$R,"<="&EOMONTH(BP$8,0)) - SUMIFS(Datenblatt!$M:$M, Datenblatt!$E:$E,$C10, Datenblatt!$R:$R,">="&BP$8,Datenblatt!$R:$R,"<="&EOMONTH(BP$8,0)), "") -> 15989.60108 | BQ10: =IF(ISNUMBER($C10), SUMIFS(Datenblatt!$M:$M, Datenblatt!$G:$G,$C10, Datenblatt!$R:$R,">="&BQ$8,Datenblatt!$R:$R,"<="&EOMONTH(BQ$8,0)) - SUMIFS(Datenblatt!$M:$M, Datenblatt!$E:$E,$C10, Datenblatt!$R:$R,">="&BQ$8,Datenblatt!$R:$R,"<="&EOMONTH(BQ$8,0)), "") -> 17349.25343 | BR10: =IF(ISNUMBER($C10), SUMIFS(Datenblatt!$M:$M, Datenblatt!$G:$G,$C10, Datenblatt!$R:$R,">="&BR$8,Datenblatt!$R:$R,"<="&EOMONTH(BR$8,0)) - SUMIFS(Datenblatt!$M:$M, Datenblatt!$E:$E,$C10, Datenblatt!$R:$R,">="&BR$8,Datenblatt!$R:$R,"<="&EOMONTH(BR$8,0)), "") -> 18684.03714 | BS10: =IF(ISNUMBER($C10), SUMIFS(Datenblatt!$M:$M, Datenblatt!$G:$G,$C10, Datenblatt!$R:$R,">="&BS$8,Datenblatt!$R:$R,"<="&EOMONTH(BS$8,0)) - SUMIFS(Datenblatt!$M:$M, Datenblatt!$E:$E,$C10, Datenblatt!$R:$R,">="&BS$8,Datenblatt!$R:$R,"<="&EOMONTH(BS$8,0)), "") -> 14732.79716 | BT10: =IF(ISNUMBER($C10), SUMIFS(Datenblatt!$M:$M, Datenblatt!$G:$G,$C10, Datenblatt!$R:$R,">="&BT$8,Datenblatt!$R:$R,"<="&EOMONTH(BT$8,0)) - SUMIFS(Datenblatt!$M:$M, Datenblatt!$E:$E,$C10, Datenblatt!$R:$R,">="&BT$8,Datenblatt!$R:$R,"<="&EOMONTH(BT$8,0)), "") -> 15375.7709 | BU10: =IF(ISNUMBER($C10), SUMIFS(Datenblatt!$M:$M, Datenblatt!$G:$G,$C10, Datenblatt!$R:$R,">="&BU$8,Datenblatt!$R:$R,"<="&EOMONTH(BU$8,0)) - SUMIFS(Datenblatt!$M:$M, Datenblatt!$E:$E,$C10, Datenblatt!$R:$R,">="&BU$8,Datenblatt!$R:$R,"<="&EOMONTH(BU$8,0)), "") -> 9855.909335 | BV10: =IF(ISNUMBER($C10), SUMIFS(Datenblatt!$M:$M, Datenblatt!$G:$G,$C10, Datenblatt!$R:$R,">="&BV$8,Datenblatt!$R:$R,"<="&EOMONTH(BV$8,0)) - SUMIFS(Datenblatt!$M:$M, Datenblatt!$E:$E,$C10, Datenblatt!$R:$R,">="&BV$8,Datenblatt!$R:$R,"<="&EOMONTH(BV$8,0)), "") -> 14220.10431 | BW10: =IF(ISNUMBER($C10), SUMIFS(Datenblatt!$M:$M, Datenblatt!$G:$G,$C10, Datenblatt!$R:$R,">="&BW$8,Datenblatt!$R:$R,"<="&EOMONTH(BW$8,0)) - SUMIFS(Datenblatt!$M:$M, Datenblatt!$E:$E,$C10, Datenblatt!$R:$R,">="&BW$8,Datenblatt!$R:$R,"<="&EOMONTH(BW$8,0)), "") -> 9913.837756 | BX10: =IF(ISNUMBER($C10), SUMIFS(Datenblatt!$M:$M, Datenblatt!$G:$G,$C10, Datenblatt!$R:$R,">="&BX$8,Datenblatt!$R:$R,"<="&EOMONTH(BX$8,0)) - SUMIFS(Datenblatt!$M:$M, Datenblatt!$E:$E,$C10, Datenblatt!$R:$R,">="&BX$8,Datenblatt!$R:$R,"<="&EOMONTH(BX$8,0)), "") -> 9715.682272 | BY10: =IF(ISNUMBER($C10), SUMIFS(Datenblatt!$M:$M, Datenblatt!$G:$G,$C10, Datenblatt!$R:$R,">="&BY$8,Datenblatt!$R:$R,"<="&EOMONTH(BY$8,0)) - SUMIFS(Datenblatt!$M:$M, Datenblatt!$E:$E,$C10, Datenblatt!$R:$R,">="&BY$8,Datenblatt!$R:$R,"<="&EOMONTH(BY$8,0)), "") -> 15595.99576 | BZ10: =IF(ISNUMBER($C10), SUMIFS(Datenblatt!$M:$M, Datenblatt!$G:$G,$C10, Datenblatt!$R:$R,">="&BZ$8,Datenblatt!$R:$R,"<="&EOMONTH(BZ$8,0)) - SUMIFS(Datenblatt!$M:$M, Datenblatt!$E:$E,$C10, Datenblatt!$R:$R,">="&BZ$8,Datenblatt!$R:$R,"<="&EOMONTH(BZ$8,0)), "") -> 5331.863025 | CA10: =IF(ISNUMBER($C10), SUMIFS(Datenblatt!$M:$M, Datenblatt!$G:$G,$C10, Datenblatt!$R:$R,">="&CA$8,Datenblatt!$R:$R,"<="&EOMONTH(CA$8,0)) - SUMIFS(Datenblatt!$M:$M, Datenblatt!$E:$E,$C10, Datenblatt!$R:$R,">="&CA$8,Datenblatt!$R:$R,"<="&EOMONTH(CA$8,0)), "") -> 11216.14282 | CB10: =IF(ISNUMBER($C10), SUMIFS(Datenblatt!$M:$M, Datenblatt!$G:$G,$C10, Datenblatt!$R:$R,">="&CB$8,Datenblatt!$R:$R,"<="&EOMONTH(CB$8,0)) - SUMIFS(Datenblatt!$M:$M, Datenblatt!$E:$E,$C10, Datenblatt!$R:$R,">="&CB$8,Datenblatt!$R:$R,"<="&EOMONTH(CB$8,0)), "") -> 17880.53055 | CC10: =IF(ISNUMBER($C10), SUMIFS(Datenblatt!$M:$M, Datenblatt!$G:$G,$C10, Datenblatt!$R:$R,">="&CC$8,Datenblatt!$R:$R,"<="&EOMONTH(CC$8,0)) - SUMIFS(Datenblatt!$M:$M, Datenblatt!$E:$E,$C10, Datenblatt!$R:$R,">="&CC$8,Datenblatt!$R:$R,"<="&EOMONTH(CC$8,0)), "") -> 11652.74104 | CD10: =IF(ISNUMBER($C10), SUMIFS(Datenblatt!$M:$M, Datenblatt!$G:$G,$C10, Datenblatt!$R:$R,">="&CD$8,Datenblatt!$R:$R,"<="&EOMONTH(CD$8,0)) - SUMIFS(Datenblatt!$M:$M, Datenblatt!$E:$E,$C10, Datenblatt!$R:$R,">="&CD$8,Datenblatt!$R:$R,"<="&EOMONTH(CD$8,0)), "") -> 10740.19447 | CE10: =IF(ISNUMBER($C10), SUMIFS(Datenblatt!$M:$M, Datenblatt!$G:$G,$C10, Datenblatt!$R:$R,">="&CE$8,Datenblatt!$R:$R,"<="&EOMONTH(CE$8,0)) - SUMIFS(Datenblatt!$M:$M, Datenblatt!$E:$E,$C10, Datenblatt!$R:$R,">="&CE$8,Datenblatt!$R:$R,"<="&EOMONTH(CE$8,0)), "") -> 7558.487305 | CF10: =IF(ISNUMBER($C10), SUMIFS(Datenblatt!$M:$M, Datenblatt!$G:$G,$C10, Datenblatt!$R:$R,">="&CF$8,Datenblatt!$R:$R,"<="&EOMONTH(CF$8,0)) - SUMIFS(Datenblatt!$M:$M, Datenblatt!$E:$E,$C10, Datenblatt!$R:$R,">="&CF$8,Datenblatt!$R:$R,"<="&EOMONTH(CF$8,0)), "") -> 8563.750058 | CG10: =IF(ISNUMBER($C10), SUMIFS(Datenblatt!$M:$M, Datenblatt!$G:$G,$C10, Datenblatt!$R:$R,">="&CG$8,Datenblatt!$R:$R,"<="&EOMONTH(CG$8,0)) - SUMIFS(Datenblatt!$M:$M, Datenblatt!$E:$E,$C10, Datenblatt!$R:$R,">="&CG$8,Datenblatt!$R:$R,"<="&EOMONTH(CG$8,0)), "") -> 14574.91864 | CH10: =IF(ISNUMBER($C10), SUMIFS(Datenblatt!$M:$M, Datenblatt!$G:$G,$C10, Datenblatt!$R:$R,">="&CH$8,Datenblatt!$R:$R,"<="&EOMONTH(CH$8,0)) - SUMIFS(Datenblatt!$M:$M, Datenblatt!$E:$E,$C10, Datenblatt!$R:$R,">="&CH$8,Datenblatt!$R:$R,"<="&EOMONTH(CH$8,0)), "") -> 16779.69356 | CI10: =IF(ISNUMBER($C10), SUMIFS(Datenblatt!$M:$M, Datenblatt!$G:$G,$C10, Datenblatt!$R:$R,">="&CI$8,Datenblatt!$R:$R,"<="&EOMONTH(CI$8,0)) - SUMIFS(Datenblatt!$M:$M, Datenblatt!$E:$E,$C10, Datenblatt!$R:$R,">="&CI$8,Datenblatt!$R:$R,"<="&EOMONTH(CI$8,0)), "") -> 0 | CJ10: =IF(ISNUMBER($C10), SUMIFS(Datenblatt!$M:$M, Datenblatt!$G:$G,$C10, Datenblatt!$R:$R,">="&CJ$8,Datenblatt!$R:$R,"<="&EOMONTH(CJ$8,0)) - SUMIFS(Datenblatt!$M:$M, Datenblatt!$E:$E,$C10, Datenblatt!$R:$R,">="&CJ$8,Datenblatt!$R:$R,"<="&EOMONTH(CJ$8,0)), "") -> 0 | CK10: =IF(ISNUMBER($C10), SUMIFS(Datenblatt!$M:$M, Datenblatt!$G:$G,$C10, Datenblatt!$R:$R,">="&CK$8,Datenblatt!$R:$R,"<="&EOMONTH(CK$8,0)) - SUMIFS(Datenblatt!$M:$M, Datenblatt!$E:$E,$C10, Datenblatt!$R:$R,">="&CK$8,Datenblatt!$R:$R,"<="&EOMONTH(CK$8,0)), "") -> 0 | CL10: =IF(ISNUMBER($C10), SUMIFS(Datenblatt!$M:$M, Datenblatt!$G:$G,$C10, Datenblatt!$R:$R,">="&CL$8,Datenblatt!$R:$R,"<="&EOMONTH(CL$8,0)) - SUMIFS(Datenblatt!$M:$M, Datenblatt!$E:$E,$C10, Datenblatt!$R:$R,">="&CL$8,Datenblatt!$R:$R,"<="&EOMONTH(CL$8,0)), "") -> 0 | CM10: =IF(ISNUMBER($C10), SUMIFS(Datenblatt!$M:$M, Datenblatt!$G:$G,$C10, Datenblatt!$R:$R,">="&CM$8,Datenblatt!$R:$R,"<="&EOMONTH(CM$8,0)) - SUMIFS(Datenblatt!$M:$M, Datenblatt!$E:$E,$C10, Datenblatt!$R:$R,">="&CM$8,Datenblatt!$R:$R,"<="&EOMONTH(CM$8,0)), "") -> 0 | CN10: =IF(ISNUMBER($C10), SUMIFS(Datenblatt!$M:$M, Datenblatt!$G:$G,$C10, Datenblatt!$R:$R,">="&CN$8,Datenblatt!$R:$R,"<="&EOMONTH(CN$8,0)) - SUMIFS(Datenblatt!$M:$M, Datenblatt!$E:$E,$C10, Datenblatt!$R:$R,">="&CN$8,Datenblatt!$R:$R,"<="&EOMONTH(CN$8,0)), "") -> 0 | CO10: =IF(ISNUMBER($C10), SUMIFS(Datenblatt!$M:$M, Datenblatt!$G:$G,$C10, Datenblatt!$R:$R,">="&CO$8,Datenblatt!$R:$R,"<="&EOMONTH(CO$8,0)) - SUMIFS(Datenblatt!$M:$M, Datenblatt!$E:$E,$C10, Datenblatt!$R:$R,">="&CO$8,Datenblatt!$R:$R,"<="&EOMONTH(CO$8,0)), "") -> 0 | CP10: =IF(ISNUMBER($C10), SUMIFS(Datenblatt!$M:$M, Datenblatt!$G:$G,$C10, Datenblatt!$R:$R,">="&CP$8,Datenblatt!$R:$R,"<="&EOMONTH(CP$8,0)) - SUMIFS(Datenblatt!$M:$M, Datenblatt!$E:$E,$C10, Datenblatt!$R:$R,">="&CP$8,Datenblatt!$R:$R,"<="&EOMONTH(CP$8,0)), "") -> 0 | CQ10: =IF(ISNUMBER($C10), SUMIFS(Datenblatt!$M:$M, Datenblatt!$G:$G,$C10, Datenblatt!$R:$R,">="&CQ$8,Datenblatt!$R:$R,"<="&EOMONTH(CQ$8,0)) - SUMIFS(Datenblatt!$M:$M, Datenblatt!$E:$E,$C10, Datenblatt!$R:$R,">="&CQ$8,Datenblatt!$R:$R,"<="&EOMONTH(CQ$8,0)), "") -> 0 | CR10: =IF(ISNUMBER($C10), SUMIFS(Datenblatt!$M:$M, Datenblatt!$G:$G,$C10, Datenblatt!$R:$R,">="&CR$8,Datenblatt!$R:$R,"<="&EOMONTH(CR$8,0)) - SUMIFS(Datenblatt!$M:$M, Datenblatt!$E:$E,$C10, Datenblatt!$R:$R,">="&CR$8,Datenblatt!$R:$R,"<="&EOMONTH(CR$8,0)), "") -> 0 | CS10: =IF(ISNUMBER($C10), SUMIFS(Datenblatt!$M:$M, Datenblatt!$G:$G,$C10, Datenblatt!$R:$R,">="&CS$8,Datenblatt!$R:$R,"<="&EOMONTH(CS$8,0)) - SUMIFS(Datenblatt!$M:$M, Datenblatt!$E:$E,$C10, Datenblatt!$R:$R,">="&CS$8,Datenblatt!$R:$R,"<="&EOMONTH(CS$8,0)), "") -> 0 | CT10: =IF(ISNUMBER($C10), SUMIFS(Datenblatt!$M:$M, Datenblatt!$G:$G,$C10, Datenblatt!$R:$R,">="&CT$8,Datenblatt!$R:$R,"<="&EOMONTH(CT$8,0)) - SUMIFS(Datenblatt!$M:$M, Datenblatt!$E:$E,$C10, Datenblatt!$R:$R,">="&CT$8,Datenblatt!$R:$R,"<="&EOMONTH(CT$8,0)), "") -> 0 | CU10: =IF(ISNUMBER($C10), SUMIFS(Datenblatt!$M:$M, Datenblatt!$G:$G,$C10, Datenblatt!$R:$R,">="&CU$8,Datenblatt!$R:$R,"<="&EOMONTH(CU$8,0)) - SUMIFS(Datenblatt!$M:$M, Datenblatt!$E:$E,$C10, Datenblatt!$R:$R,">="&CU$8,Datenblatt!$R:$R,"<="&EOMONTH(CU$8,0)), "") -> 0 | CV10: =IF(ISNUMBER($C10), SUMIFS(Datenblatt!$M:$M, Datenblatt!$G:$G,$C10, Datenblatt!$R:$R,">="&CV$8,Datenblatt!$R:$R,"<="&EOMONTH(CV$8,0)) - SUMIFS(Datenblatt!$M:$M, Datenblatt!$E:$E,$C10, Datenblatt!$R:$R,">="&CV$8,Datenblatt!$R:$R,"<="&EOMONTH(CV$8,0)), "") -> 0 | CW10: =IF(ISNUMBER($C10), SUMIFS(Datenblatt!$M:$M, Datenblatt!$G:$G,$C10, Datenblatt!$R:$R,">="&CW$8,Datenblatt!$R:$R,"<="&EOMONTH(CW$8,0)) - SUMIFS(Datenblatt!$M:$M, Datenblatt!$E:$E,$C10, Datenblatt!$R:$R,">="&CW$8,Datenblatt!$R:$R,"<="&EOMONTH(CW$8,0)), "") -> 0 | CX10: =IF(ISNUMBER($C10), SUMIFS(Datenblatt!$M:$M, Datenblatt!$G:$G,$C10, Datenblatt!$R:$R,">="&CX$8,Datenblatt!$R:$R,"<="&EOMONTH(CX$8,0)) - SUMIFS(Datenblatt!$M:$M, Datenblatt!$E:$E,$C10, Datenblatt!$R:$R,">="&CX$8,Datenblatt!$R:$R,"<="&EOMONTH(CX$8,0)), "") -> 0 | CY10: =IF(ISNUMBER($C10), SUMIFS(Datenblatt!$M:$M, Datenblatt!$G:$G,$C10, Datenblatt!$R:$R,">="&CY$8,Datenblatt!$R:$R,"<="&EOMONTH(CY$8,0)) - SUMIFS(Datenblatt!$M:$M, Datenblatt!$E:$E,$C10, Datenblatt!$R:$R,">="&CY$8,Datenblatt!$R:$R,"<="&EOMONTH(CY$8,0)), "") -> 0 | CZ10: =IF(ISNUMBER($C10), SUMIFS(Datenblatt!$M:$M, Datenblatt!$G:$G,$C10, Datenblatt!$R:$R,">="&CZ$8,Datenblatt!$R:$R,"<="&EOMONTH(CZ$8,0)) - SUMIFS(Datenblatt!$M:$M, Datenblatt!$E:$E,$C10, Datenblatt!$R:$R,">="&CZ$8,Datenblatt!$R:$R,"<="&EOMONTH(CZ$8,0)), "") -> 0 | DA10: =IF(ISNUMBER($C10), SUMIFS(Datenblatt!$M:$M, Datenblatt!$G:$G,$C10, Datenblatt!$R:$R,">="&DA$8,Datenblatt!$R:$R,"<="&EOMONTH(DA$8,0)) - SUMIFS(Datenblatt!$M:$M, Datenblatt!$E:$E,$C10, Datenblatt!$R:$R,">="&DA$8,Datenblatt!$R:$R,"<="&EOMONTH(DA$8,0)), "") -> 0 | DB10: =IF(ISNUMBER($C10), SUMIFS(Datenblatt!$M:$M, Datenblatt!$G:$G,$C10, Datenblatt!$R:$R,">="&DB$8,Datenblatt!$R:$R,"<="&EOMONTH(DB$8,0)) - SUMIFS(Datenblatt!$M:$M, Datenblatt!$E:$E,$C10, Datenblatt!$R:$R,">="&DB$8,Datenblatt!$R:$R,"<="&EOMONTH(DB$8,0)), "") -> 0 | DC10: =IF(ISNUMBER($C10), SUMIFS(Datenblatt!$M:$M, Datenblatt!$G:$G,$C10, Datenblatt!$R:$R,">="&DC$8,Datenblatt!$R:$R,"<="&EOMONTH(DC$8,0)) - SUMIFS(Datenblatt!$M:$M, Datenblatt!$E:$E,$C10, Datenblatt!$R:$R,">="&DC$8,Datenblatt!$R:$R,"<="&EOMONTH(DC$8,0)), "") -> 0 | DD10: =IF(ISNUMBER($C10), SUMIFS(Datenblatt!$M:$M, Datenblatt!$G:$G,$C10, Datenblatt!$R:$R,">="&DD$8,Datenblatt!$R:$R,"<="&EOMONTH(DD$8,0)) - SUMIFS(Datenblatt!$M:$M, Datenblatt!$E:$E,$C10, Datenblatt!$R:$R,">="&DD$8,Datenblatt!$R:$R,"<="&EOMONTH(DD$8,0)), "") -> 0 | DE10: =IF(ISNUMBER($C10), SUMIFS(Datenblatt!$M:$M, Datenblatt!$G:$G,$C10, Datenblatt!$R:$R,">="&DE$8,Datenblatt!$R:$R,"<="&EOMONTH(DE$8,0)) - SUMIFS(Datenblatt!$M:$M, Datenblatt!$E:$E,$C10, Datenblatt!$R:$R,">="&DE$8,Datenblatt!$R:$R,"<="&EOMONTH(DE$8,0)), "") -> 0 | DF10: =IF(ISNUMBER($C10), SUMIFS(Datenblatt!$M:$M, Datenblatt!$G:$G,$C10, Datenblatt!$R:$R,">="&DF$8,Datenblatt!$R:$R,"<="&EOMONTH(DF$8,0)) - SUMIFS(Datenblatt!$M:$M, Datenblatt!$E:$E,$C10, Datenblatt!$R:$R,">="&DF$8,Datenblatt!$R:$R,"<="&EOMONTH(DF$8,0)), "") -> 0
B11: Ertrag | C11: 3200 | D11: Bruttoerlöse Artikel A | G11: =IF(ISNUMBER($C11), SUMIFS(Datenblatt!$M:$M, Datenblatt!$G:$G,$C11, Datenblatt!$R:$R,">="&G$8,Datenblatt!$R:$R,"<="&EOMONTH(G$8,11)) - SUMIFS(Datenblatt!$M:$M, Datenblatt!$E:$E,$C11, Datenblatt!$R:$R,">="&G$8,Datenblatt!$R:$R,"<="&EOMONTH(G$8,11)), "") -> 33669.12135 | H11: =IF(ISNUMBER($C11), SUMIFS(Datenblatt!$M:$M, Datenblatt!$G:$G,$C11, Datenblatt!$R:$R,">="&H$8,Datenblatt!$R:$R,"<="&EOMONTH(H$8,11)) - SUMIFS(Datenblatt!$M:$M, Datenblatt!$E:$E,$C11, Datenblatt!$R:$R,">="&H$8,Datenblatt!$R:$R,"<="&EOMONTH(H$8,11)), "") -> 54265.65313 | I11: =IF(ISNUMBER($C11), SUMIFS(Datenblatt!$M:$M, Datenblatt!$G:$G,$C11, Datenblatt!$R:$R,">="&I$8,Datenblatt!$R:$R,"<="&EOMONTH(I$8,11)) - SUMIFS(Datenblatt!$M:$M, Datenblatt!$E:$E,$C11, Datenblatt!$R:$R,">="&I$8,Datenblatt!$R:$R,"<="&EOMONTH(I$8,11)), "") -> 77755.06442 | J11: =IF(ISNUMBER($C11), SUMIFS(Datenblatt!$M:$M, Datenblatt!$G:$G,$C11, Datenblatt!$R:$R,">="&J$8,Datenblatt!$R:$R,"<="&EOMONTH(J$8,11)) - SUMIFS(Datenblatt!$M:$M, Datenblatt!$E:$E,$C11, Datenblatt!$R:$R,">="&J$8,Datenblatt!$R:$R,"<="&EOMONTH(J$8,11)), "") -> 38984.55536 | K11: =IF(ISNUMBER($C11), SUMIFS(Datenblatt!$M:$M, Datenblatt!$G:$G,$C11, Datenblatt!$R:$R,">="&K$8,Datenblatt!$R:$R,"<="&EOMONTH(K$8,11)) - SUMIFS(Datenblatt!$M:$M, Datenblatt!$E:$E,$C11, Datenblatt!$R:$R,">="&K$8,Datenblatt!$R:$R,"<="&EOMONTH(K$8,11)), "") -> 14203.61539 | L11: =IF(ISNUMBER($C11), SUMIFS(Datenblatt!$M:$M, Datenblatt!$G:$G,$C11, Datenblatt!$R:$R,">="&L$8,Datenblatt!$R:$R,"<="&EOMONTH(L$8,11)) - SUMIFS(Datenblatt!$M:$M, Datenblatt!$E:$E,$C11, Datenblatt!$R:$R,">="&L$8,Datenblatt!$R:$R,"<="&EOMONTH(L$8,11)), "") -> 8871.139309 | M11: =IF(ISNUMBER($C11), SUMIFS(Datenblatt!$M:$M, Datenblatt!$G:$G,$C11, Datenblatt!$R:$R,">="&M$8,Datenblatt!$R:$R,"<="&EOMONTH(M$8,11)) - SUMIFS(Datenblatt!$M:$M, Datenblatt!$E:$E,$C11, Datenblatt!$R:$R,">="&M$8,Datenblatt!$R:$R,"<="&EOMONTH(M$8,11)), "") -> 0 | N11: =IF(ISNUMBER($C11), SUMIFS(Datenblatt!$M:$M, Datenblatt!$G:$G,$C11, Datenblatt!$R:$R,">="&N$8,Datenblatt!$R:$R,"<="&EOMONTH(N$8,11)) - SUMIFS(Datenblatt!$M:$M, Datenblatt!$E:$E,$C11, Datenblatt!$R:$R,">="&N$8,Datenblatt!$R:$R,"<="&EOMONTH(N$8,11)), "") -> 0 | O11: =IF(ISNUMBER($C11), SUMIFS(Datenblatt!$M:$M, Datenblatt!$G:$G,$C11, Datenblatt!$R:$R,">="&O$8,Datenblatt!$R:$R,"<="&EOMONTH(O$8,0)) - SUMIFS(Datenblatt!$M:$M, Datenblatt!$E:$E,$C11, Datenblatt!$R:$R,">="&O$8,Datenblatt!$R:$R,"<="&EOMONTH(O$8,0)), "") -> 3188.166051 | P11: =IF(ISNUMBER($C11), SUMIFS(Datenblatt!$M:$M, Datenblatt!$G:$G,$C11, Datenblatt!$R:$R,">="&P$8,Datenblatt!$R:$R,"<="&EOMONTH(P$8,0)) - SUMIFS(Datenblatt!$M:$M, Datenblatt!$E:$E,$C11, Datenblatt!$R:$R,">="&P$8,Datenblatt!$R:$R,"<="&EOMONTH(P$8,0)), "") -> 1052.157427 | Q11: =IF(ISNUMBER($C11), SUMIFS(Datenblatt!$M:$M, Datenblatt!$G:$G,$C11, Datenblatt!$R:$R,">="&Q$8,Datenblatt!$R:$R,"<="&EOMONTH(Q$8,0)) - SUMIFS(Datenblatt!$M:$M, Datenblatt!$E:$E,$C11, Datenblatt!$R:$R,">="&Q$8,Datenblatt!$R:$R,"<="&EOMONTH(Q$8,0)), "") -> 1515.193338 | R11: =IF(ISNUMBER($C11), SUMIFS(Datenblatt!$M:$M, Datenblatt!$G:$G,$C11, Datenblatt!$R:$R,">="&R$8,Datenblatt!$R:$R,"<="&EOMONTH(R$8,0)) - SUMIFS(Datenblatt!$M:$M, Datenblatt!$E:$E,$C11, Datenblatt!$R:$R,">="&R$8,Datenblatt!$R:$R,"<="&EOMONTH(R$8,0)), "") -> 3629.385533 | S11: =IF(ISNUMBER($C11), SUMIFS(Datenblatt!$M:$M, Datenblatt!$G:$G,$C11, Datenblatt!$R:$R,">="&S$8,Datenblatt!$R:$R,"<="&EOMONTH(S$8,0)) - SUMIFS(Datenblatt!$M:$M, Datenblatt!$E:$E,$C11, Datenblatt!$R:$R,">="&S$8,Datenblatt!$R:$R,"<="&EOMONTH(S$8,0)), "") -> 1120.88757 | T11: =IF(ISNUMBER($C11), SUMIFS(Datenblatt!$M:$M, Datenblatt!$G:$G,$C11, Datenblatt!$R:$R,">="&T$8,Datenblatt!$R:$R,"<="&EOMONTH(T$8,0)) - SUMIFS(Datenblatt!$M:$M, Datenblatt!$E:$E,$C11, Datenblatt!$R:$R,">="&T$8,Datenblatt!$R:$R,"<="&EOMONTH(T$8,0)), "") -> 5270.992368 | U11: =IF(ISNUMBER($C11), SUMIFS(Datenblatt!$M:$M, Datenblatt!$G:$G,$C11, Datenblatt!$R:$R,">="&U$8,Datenblatt!$R:$R,"<="&EOMONTH(U$8,0)) - SUMIFS(Datenblatt!$M:$M, Datenblatt!$E:$E,$C11, Datenblatt!$R:$R,">="&U$8,Datenblatt!$R:$R,"<="&EOMONTH(U$8,0)), "") -> 858.4423836 | V11: =IF(ISNUMBER($C11), SUMIFS(Datenblatt!$M:$M, Datenblatt!$G:$G,$C11, Datenblatt!$R:$R,">="&V$8,Datenblatt!$R:$R,"<="&EOMONTH(V$8,0)) - SUMIFS(Datenblatt!$M:$M, Datenblatt!$E:$E,$C11, Datenblatt!$R:$R,">="&V$8,Datenblatt!$R:$R,"<="&EOMONTH(V$8,0)), "") -> 2386.157377 | W11: =IF(ISNUMBER($C11), SUMIFS(Datenblatt!$M:$M, Datenblatt!$G:$G,$C11, Datenblatt!$R:$R,">="&W$8,Datenblatt!$R:$R,"<="&EOMONTH(W$8,0)) - SUMIFS(Datenblatt!$M:$M, Datenblatt!$E:$E,$C11, Datenblatt!$R:$R,">="&W$8,Datenblatt!$R:$R,"<="&EOMONTH(W$8,0)), "") -> 1666.729007 | X11: =IF(ISNUMBER($C11), SUMIFS(Datenblatt!$M:$M, Datenblatt!$G:$G,$C11, Datenblatt!$R:$R,">="&X$8,Datenblatt!$R:$R,"<="&EOMONTH(X$8,0)) - SUMIFS(Datenblatt!$M:$M, Datenblatt!$E:$E,$C11, Datenblatt!$R:$R,">="&X$8,Datenblatt!$R:$R,"<="&EOMONTH(X$8,0)), "") -> 6112.048586 | Y11: =IF(ISNUMBER($C11), SUMIFS(Datenblatt!$M:$M, Datenblatt!$G:$G,$C11, Datenblatt!$R:$R,">="&Y$8,Datenblatt!$R:$R,"<="&EOMONTH(Y$8,0)) - SUMIFS(Datenblatt!$M:$M, Datenblatt!$E:$E,$C11, Datenblatt!$R:$R,">="&Y$8,Datenblatt!$R:$R,"<="&EOMONTH(Y$8,0)), "") -> 5428.879159 | Z11: =IF(ISNUMBER($C11), SUMIFS(Datenblatt!$M:$M, Datenblatt!$G:$G,$C11, Datenblatt!$R:$R,">="&Z$8,Datenblatt!$R:$R,"<="&EOMONTH(Z$8,0)) - SUMIFS(Datenblatt!$M:$M, Datenblatt!$E:$E,$C11, Datenblatt!$R:$R,">="&Z$8,Datenblatt!$R:$R,"<="&EOMONTH(Z$8,0)), "") -> 1440.082551 | AA11: =IF(ISNUMBER($C11), SUMIFS(Datenblatt!$M:$M, Datenblatt!$G:$G,$C11, Datenblatt!$R:$R,">="&AA$8,Datenblatt!$R:$R,"<="&EOMONTH(AA$8,0)) - SUMIFS(Datenblatt!$M:$M, Datenblatt!$E:$E,$C11, Datenblatt!$R:$R,">="&AA$8,Datenblatt!$R:$R,"<="&EOMONTH(AA$8,0)), "") -> 3926.430777 | AB11: =IF(ISNUMBER($C11), SUMIFS(Datenblatt!$M:$M, Datenblatt!$G:$G,$C11, Datenblatt!$R:$R,">="&AB$8,Datenblatt!$R:$R,"<="&EOMONTH(AB$8,0)) - SUMIFS(Datenblatt!$M:$M, Datenblatt!$E:$E,$C11, Datenblatt!$R:$R,">="&AB$8,Datenblatt!$R:$R,"<="&EOMONTH(AB$8,0)), "") -> 12254.76565 | AC11: =IF(ISNUMBER($C11), SUMIFS(Datenblatt!$M:$M, Datenblatt!$G:$G,$C11, Datenblatt!$R:$R,">="&AC$8,Datenblatt!$R:$R,"<="&EOMONTH(AC$8,0)) - SUMIFS(Datenblatt!$M:$M, Datenblatt!$E:$E,$C11, Datenblatt!$R:$R,">="&AC$8,Datenblatt!$R:$R,"<="&EOMONTH(AC$8,0)), "") -> 5764.411887 | AD11: =IF(ISNUMBER($C11), SUMIFS(Datenblatt!$M:$M, Datenblatt!$G:$G,$C11, Datenblatt!$R:$R,">="&AD$8,Datenblatt!$R:$R,"<="&EOMONTH(AD$8,0)) - SUMIFS(Datenblatt!$M:$M, Datenblatt!$E:$E,$C11, Datenblatt!$R:$R,">="&AD$8,Datenblatt!$R:$R,"<="&EOMONTH(AD$8,0)), "") -> 4777.741908 | AE11: =IF(ISNUMBER($C11), SUMIFS(Datenblatt!$M:$M, Datenblatt!$G:$G,$C11, Datenblatt!$R:$R,">="&AE$8,Datenblatt!$R:$R,"<="&EOMONTH(AE$8,0)) - SUMIFS(Datenblatt!$M:$M, Datenblatt!$E:$E,$C11, Datenblatt!$R:$R,">="&AE$8,Datenblatt!$R:$R,"<="&EOMONTH(AE$8,0)), "") -> 1373.285884 | AF11: =IF(ISNUMBER($C11), SUMIFS(Datenblatt!$M:$M, Datenblatt!$G:$G,$C11, Datenblatt!$R:$R,">="&AF$8,Datenblatt!$R:$R,"<="&EOMONTH(AF$8,0)) - SUMIFS(Datenblatt!$M:$M, Datenblatt!$E:$E,$C11, Datenblatt!$R:$R,">="&AF$8,Datenblatt!$R:$R,"<="&EOMONTH(AF$8,0)), "") -> 4150.186753 | AG11: =IF(ISNUMBER($C11), SUMIFS(Datenblatt!$M:$M, Datenblatt!$G:$G,$C11, Datenblatt!$R:$R,">="&AG$8,Datenblatt!$R:$R,"<="&EOMONTH(AG$8,0)) - SUMIFS(Datenblatt!$M:$M, Datenblatt!$E:$E,$C11, Datenblatt!$R:$R,">="&AG$8,Datenblatt!$R:$R,"<="&EOMONTH(AG$8,0)), "") -> 1611.380528 | AH11: =IF(ISNUMBER($C11), SUMIFS(Datenblatt!$M:$M, Datenblatt!$G:$G,$C11, Datenblatt!$R:$R,">="&AH$8,Datenblatt!$R:$R,"<="&EOMONTH(AH$8,0)) - SUMIFS(Datenblatt!$M:$M, Datenblatt!$E:$E,$C11, Datenblatt!$R:$R,">="&AH$8,Datenblatt!$R:$R,"<="&EOMONTH(AH$8,0)), "") -> 4404.869101 | AI11: =IF(ISNUMBER($C11), SUMIFS(Datenblatt!$M:$M, Datenblatt!$G:$G,$C11, Datenblatt!$R:$R,">="&AI$8,Datenblatt!$R:$R,"<="&EOMONTH(AI$8,0)) - SUMIFS(Datenblatt!$M:$M, Datenblatt!$E:$E,$C11, Datenblatt!$R:$R,">="&AI$8,Datenblatt!$R:$R,"<="&EOMONTH(AI$8,0)), "") -> 5147.034939 | AJ11: =IF(ISNUMBER($C11), SUMIFS(Datenblatt!$M:$M, Datenblatt!$G:$G,$C11, Datenblatt!$R:$R,">="&AJ$8,Datenblatt!$R:$R,"<="&EOMONTH(AJ$8,0)) - SUMIFS(Datenblatt!$M:$M, Datenblatt!$E:$E,$C11, Datenblatt!$R:$R,">="&AJ$8,Datenblatt!$R:$R,"<="&EOMONTH(AJ$8,0)), "") -> 4360.421115 | AK11: =IF(ISNUMBER($C11), SUMIFS(Datenblatt!$M:$M, Datenblatt!$G:$G,$C11, Datenblatt!$R:$R,">="&AK$8,Datenblatt!$R:$R,"<="&EOMONTH(AK$8,0)) - SUMIFS(Datenblatt!$M:$M, Datenblatt!$E:$E,$C11, Datenblatt!$R:$R,">="&AK$8,Datenblatt!$R:$R,"<="&EOMONTH(AK$8,0)), "") -> 2374.772361 | AL11: =IF(ISNUMBER($C11), SUMIFS(Datenblatt!$M:$M, Datenblatt!$G:$G,$C11, Datenblatt!$R:$R,">="&AL$8,Datenblatt!$R:$R,"<="&EOMONTH(AL$8,0)) - SUMIFS(Datenblatt!$M:$M, Datenblatt!$E:$E,$C11, Datenblatt!$R:$R,">="&AL$8,Datenblatt!$R:$R,"<="&EOMONTH(AL$8,0)), "") -> 4120.352219 | AM11: =IF(ISNUMBER($C11), SUMIFS(Datenblatt!$M:$M, Datenblatt!$G:$G,$C11, Datenblatt!$R:$R,">="&AM$8,Datenblatt!$R:$R,"<="&EOMONTH(AM$8,0)) - SUMIFS(Datenblatt!$M:$M, Datenblatt!$E:$E,$C11, Datenblatt!$R:$R,">="&AM$8,Datenblatt!$R:$R,"<="&EOMONTH(AM$8,0)), "") -> 5151.264795 | AN11: =IF(ISNUMBER($C11), SUMIFS(Datenblatt!$M:$M, Datenblatt!$G:$G,$C11, Datenblatt!$R:$R,">="&AN$8,Datenblatt!$R:$R,"<="&EOMONTH(AN$8,0)) - SUMIFS(Datenblatt!$M:$M, Datenblatt!$E:$E,$C11, Datenblatt!$R:$R,">="&AN$8,Datenblatt!$R:$R,"<="&EOMONTH(AN$8,0)), "") -> 1434.377132 | AO11: =IF(ISNUMBER($C11), SUMIFS(Datenblatt!$M:$M, Datenblatt!$G:$G,$C11, Datenblatt!$R:$R,">="&AO$8,Datenblatt!$R:$R,"<="&EOMONTH(AO$8,0)) - SUMIFS(Datenblatt!$M:$M, Datenblatt!$E:$E,$C11, Datenblatt!$R:$R,">="&AO$8,Datenblatt!$R:$R,"<="&EOMONTH(AO$8,0)), "") -> 2319.834131 | AP11: =IF(ISNUMBER($C11), SUMIFS(Datenblatt!$M:$M, Datenblatt!$G:$G,$C11, Datenblatt!$R:$R,">="&AP$8,Datenblatt!$R:$R,"<="&EOMONTH(AP$8,0)) - SUMIFS(Datenblatt!$M:$M, Datenblatt!$E:$E,$C11, Datenblatt!$R:$R,">="&AP$8,Datenblatt!$R:$R,"<="&EOMONTH(AP$8,0)), "") -> 8605.23053 | AQ11: =IF(ISNUMBER($C11), SUMIFS(Datenblatt!$M:$M, Datenblatt!$G:$G,$C11, Datenblatt!$R:$R,">="&AQ$8,Datenblatt!$R:$R,"<="&EOMONTH(AQ$8,0)) - SUMIFS(Datenblatt!$M:$M, Datenblatt!$E:$E,$C11, Datenblatt!$R:$R,">="&AQ$8,Datenblatt!$R:$R,"<="&EOMONTH(AQ$8,0)), "") -> 4226.272439 | AR11: =IF(ISNUMBER($C11), SUMIFS(Datenblatt!$M:$M, Datenblatt!$G:$G,$C11, Datenblatt!$R:$R,">="&AR$8,Datenblatt!$R:$R,"<="&EOMONTH(AR$8,0)) - SUMIFS(Datenblatt!$M:$M, Datenblatt!$E:$E,$C11, Datenblatt!$R:$R,">="&AR$8,Datenblatt!$R:$R,"<="&EOMONTH(AR$8,0)), "") -> 10375.78851 | AS11: =IF(ISNUMBER($C11), SUMIFS(Datenblatt!$M:$M, Datenblatt!$G:$G,$C11, Datenblatt!$R:$R,">="&AS$8,Datenblatt!$R:$R,"<="&EOMONTH(AS$8,0)) - SUMIFS(Datenblatt!$M:$M, Datenblatt!$E:$E,$C11, Datenblatt!$R:$R,">="&AS$8,Datenblatt!$R:$R,"<="&EOMONTH(AS$8,0)), "") -> 3283.997076 | AT11: =IF(ISNUMBER($C11), SUMIFS(Datenblatt!$M:$M, Datenblatt!$G:$G,$C11, Datenblatt!$R:$R,">="&AT$8,Datenblatt!$R:$R,"<="&EOMONTH(AT$8,0)) - SUMIFS(Datenblatt!$M:$M, Datenblatt!$E:$E,$C11, Datenblatt!$R:$R,">="&AT$8,Datenblatt!$R:$R,"<="&EOMONTH(AT$8,0)), "") -> 10589.78064 | AU11: =IF(ISNUMBER($C11), SUMIFS(Datenblatt!$M:$M, Datenblatt!$G:$G,$C11, Datenblatt!$R:$R,">="&AU$8,Datenblatt!$R:$R,"<="&EOMONTH(AU$8,0)) - SUMIFS(Datenblatt!$M:$M, Datenblatt!$E:$E,$C11, Datenblatt!$R:$R,">="&AU$8,Datenblatt!$R:$R,"<="&EOMONTH(AU$8,0)), "") -> 8478.81652 | AV11: =IF(ISNUMBER($C11), SUMIFS(Datenblatt!$M:$M, Datenblatt!$G:$G,$C11, Datenblatt!$R:$R,">="&AV$8,Datenblatt!$R:$R,"<="&EOMONTH(AV$8,0)) - SUMIFS(Datenblatt!$M:$M, Datenblatt!$E:$E,$C11, Datenblatt!$R:$R,">="&AV$8,Datenblatt!$R:$R,"<="&EOMONTH(AV$8,0)), "") -> 4522.951979 | AW11: =IF(ISNUMBER($C11), SUMIFS(Datenblatt!$M:$M, Datenblatt!$G:$G,$C11, Datenblatt!$R:$R,">="&AW$8,Datenblatt!$R:$R,"<="&EOMONTH(AW$8,0)) - SUMIFS(Datenblatt!$M:$M, Datenblatt!$E:$E,$C11, Datenblatt!$R:$R,">="&AW$8,Datenblatt!$R:$R,"<="&EOMONTH(AW$8,0)), "") -> 14651.24906 | AX11: =IF(ISNUMBER($C11), SUMIFS(Datenblatt!$M:$M, Datenblatt!$G:$G,$C11, Datenblatt!$R:$R,">="&AX$8,Datenblatt!$R:$R,"<="&EOMONTH(AX$8,0)) - SUMIFS(Datenblatt!$M:$M, Datenblatt!$E:$E,$C11, Datenblatt!$R:$R,">="&AX$8,Datenblatt!$R:$R,"<="&EOMONTH(AX$8,0)), "") -> 4115.501608 | AY11: =IF(ISNUMBER($C11), SUMIFS(Datenblatt!$M:$M, Datenblatt!$G:$G,$C11, Datenblatt!$R:$R,">="&AY$8,Datenblatt!$R:$R,"<="&EOMONTH(AY$8,0)) - SUMIFS(Datenblatt!$M:$M, Datenblatt!$E:$E,$C11, Datenblatt!$R:$R,">="&AY$8,Datenblatt!$R:$R,"<="&EOMONTH(AY$8,0)), "") -> 3401.392866 | AZ11: =IF(ISNUMBER($C11), SUMIFS(Datenblatt!$M:$M, Datenblatt!$G:$G,$C11, Datenblatt!$R:$R,">="&AZ$8,Datenblatt!$R:$R,"<="&EOMONTH(AZ$8,0)) - SUMIFS(Datenblatt!$M:$M, Datenblatt!$E:$E,$C11, Datenblatt!$R:$R,">="&AZ$8,Datenblatt!$R:$R,"<="&EOMONTH(AZ$8,0)), "") -> 2227.411339 | BA11: =IF(ISNUMBER($C11), SUMIFS(Datenblatt!$M:$M, Datenblatt!$G:$G,$C11, Datenblatt!$R:$R,">="&BA$8,Datenblatt!$R:$R,"<="&EOMONTH(BA$8,0)) - SUMIFS(Datenblatt!$M:$M, Datenblatt!$E:$E,$C11, Datenblatt!$R:$R,">="&BA$8,Datenblatt!$R:$R,"<="&EOMONTH(BA$8,0)), "") -> 3149.034016 | BB11: =IF(ISNUMBER($C11), SUMIFS(Datenblatt!$M:$M, Datenblatt!$G:$G,$C11, Datenblatt!$R:$R,">="&BB$8,Datenblatt!$R:$R,"<="&EOMONTH(BB$8,0)) - SUMIFS(Datenblatt!$M:$M, Datenblatt!$E:$E,$C11, Datenblatt!$R:$R,">="&BB$8,Datenblatt!$R:$R,"<="&EOMONTH(BB$8,0)), "") -> 4452.829127 | BC11: =IF(ISNUMBER($C11), SUMIFS(Datenblatt!$M:$M, Datenblatt!$G:$G,$C11, Datenblatt!$R:$R,">="&BC$8,Datenblatt!$R:$R,"<="&EOMONTH(BC$8,0)) - SUMIFS(Datenblatt!$M:$M, Datenblatt!$E:$E,$C11, Datenblatt!$R:$R,">="&BC$8,Datenblatt!$R:$R,"<="&EOMONTH(BC$8,0)), "") -> 4250.136705 | BD11: =IF(ISNUMBER($C11), SUMIFS(Datenblatt!$M:$M, Datenblatt!$G:$G,$C11, Datenblatt!$R:$R,">="&BD$8,Datenblatt!$R:$R,"<="&EOMONTH(BD$8,0)) - SUMIFS(Datenblatt!$M:$M, Datenblatt!$E:$E,$C11, Datenblatt!$R:$R,">="&BD$8,Datenblatt!$R:$R,"<="&EOMONTH(BD$8,0)), "") -> 4065.062874 | BE11: =IF(ISNUMBER($C11), SUMIFS(Datenblatt!$M:$M, Datenblatt!$G:$G,$C11, Datenblatt!$R:$R,">="&BE$8,Datenblatt!$R:$R,"<="&EOMONTH(BE$8,0)) - SUMIFS(Datenblatt!$M:$M, Datenblatt!$E:$E,$C11, Datenblatt!$R:$R,">="&BE$8,Datenblatt!$R:$R,"<="&EOMONTH(BE$8,0)), "") -> 3768.121898 | BF11: =IF(ISNUMBER($C11), SUMIFS(Datenblatt!$M:$M, Datenblatt!$G:$G,$C11, Datenblatt!$R:$R,">="&BF$8,Datenblatt!$R:$R,"<="&EOMONTH(BF$8,0)) - SUMIFS(Datenblatt!$M:$M, Datenblatt!$E:$E,$C11, Datenblatt!$R:$R,">="&BF$8,Datenblatt!$R:$R,"<="&EOMONTH(BF$8,0)), "") -> 2665.9944 | BG11: =IF(ISNUMBER($C11), SUMIFS(Datenblatt!$M:$M, Datenblatt!$G:$G,$C11, Datenblatt!$R:$R,">="&BG$8,Datenblatt!$R:$R,"<="&EOMONTH(BG$8,0)) - SUMIFS(Datenblatt!$M:$M, Datenblatt!$E:$E,$C11, Datenblatt!$R:$R,">="&BG$8,Datenblatt!$R:$R,"<="&EOMONTH(BG$8,0)), "") -> 5821.035189 | BH11: =IF(ISNUMBER($C11), SUMIFS(Datenblatt!$M:$M, Datenblatt!$G:$G,$C11, Datenblatt!$R:$R,">="&BH$8,Datenblatt!$R:$R,"<="&EOMONTH(BH$8,0)) - SUMIFS(Datenblatt!$M:$M, Datenblatt!$E:$E,$C11, Datenblatt!$R:$R,">="&BH$8,Datenblatt!$R:$R,"<="&EOMONTH(BH$8,0)), "") -> 2137.907501 | BI11: =IF(ISNUMBER($C11), SUMIFS(Datenblatt!$M:$M, Datenblatt!$G:$G,$C11, Datenblatt!$R:$R,">="&BI$8,Datenblatt!$R:$R,"<="&EOMONTH(BI$8,0)) - SUMIFS(Datenblatt!$M:$M, Datenblatt!$E:$E,$C11, Datenblatt!$R:$R,">="&BI$8,Datenblatt!$R:$R,"<="&EOMONTH(BI$8,0)), "") -> 1851.374188 | BJ11: =IF(ISNUMBER($C11), SUMIFS(Datenblatt!$M:$M, Datenblatt!$G:$G,$C11, Datenblatt!$R:$R,">="&BJ$8,Datenblatt!$R:$R,"<="&EOMONTH(BJ$8,0)) - SUMIFS(Datenblatt!$M:$M, Datenblatt!$E:$E,$C11, Datenblatt!$R:$R,">="&BJ$8,Datenblatt!$R:$R,"<="&EOMONTH(BJ$8,0)), "") -> 1194.255257 | BK11: =IF(ISNUMBER($C11), SUMIFS(Datenblatt!$M:$M, Datenblatt!$G:$G,$C11, Datenblatt!$R:$R,">="&BK$8,Datenblatt!$R:$R,"<="&EOMONTH(BK$8,0)) - SUMIFS(Datenblatt!$M:$M, Datenblatt!$E:$E,$C11, Datenblatt!$R:$R,">="&BK$8,Datenblatt!$R:$R,"<="&EOMONTH(BK$8,0)), "") -> 752.0888086 | BL11: =IF(ISNUMBER($C11), SUMIFS(Datenblatt!$M:$M, Datenblatt!$G:$G,$C11, Datenblatt!$R:$R,">="&BL$8,Datenblatt!$R:$R,"<="&EOMONTH(BL$8,0)) - SUMIFS(Datenblatt!$M:$M, Datenblatt!$E:$E,$C11, Datenblatt!$R:$R,">="&BL$8,Datenblatt!$R:$R,"<="&EOMONTH(BL$8,0)), "") -> 5030.0969 | BM11: =IF(ISNUMBER($C11), SUMIFS(Datenblatt!$M:$M, Datenblatt!$G:$G,$C11, Datenblatt!$R:$R,">="&BM$8,Datenblatt!$R:$R,"<="&EOMONTH(BM$8,0)) - SUMIFS(Datenblatt!$M:$M, Datenblatt!$E:$E,$C11, Datenblatt!$R:$R,">="&BM$8,Datenblatt!$R:$R,"<="&EOMONTH(BM$8,0)), "") -> 3352.108627 | BN11: =IF(ISNUMBER($C11), SUMIFS(Datenblatt!$M:$M, Datenblatt!$G:$G,$C11, Datenblatt!$R:$R,">="&BN$8,Datenblatt!$R:$R,"<="&EOMONTH(BN$8,0)) - SUMIFS(Datenblatt!$M:$M, Datenblatt!$E:$E,$C11, Datenblatt!$R:$R,">="&BN$8,Datenblatt!$R:$R,"<="&EOMONTH(BN$8,0)), "") -> 0 | BO11: =IF(ISNUMBER($C11), SUMIFS(Datenblatt!$M:$M, Datenblatt!$G:$G,$C11, Datenblatt!$R:$R,">="&BO$8,Datenblatt!$R:$R,"<="&EOMONTH(BO$8,0)) - SUMIFS(Datenblatt!$M:$M, Datenblatt!$E:$E,$C11, Datenblatt!$R:$R,">="&BO$8,Datenblatt!$R:$R,"<="&EOMONTH(BO$8,0)), "") -> 0 | BP11: =IF(ISNUMBER($C11), SUMIFS(Datenblatt!$M:$M, Datenblatt!$G:$G,$C11, Datenblatt!$R:$R,">="&BP$8,Datenblatt!$R:$R,"<="&EOMONTH(BP$8,0)) - SUMIFS(Datenblatt!$M:$M, Datenblatt!$E:$E,$C11, Datenblatt!$R:$R,">="&BP$8,Datenblatt!$R:$R,"<="&EOMONTH(BP$8,0)), "") -> 0 | BQ11: =IF(ISNUMBER($C11), SUMIFS(Datenblatt!$M:$M, Datenblatt!$G:$G,$C11, Datenblatt!$R:$R,">="&BQ$8,Datenblatt!$R:$R,"<="&EOMONTH(BQ$8,0)) - SUMIFS(Datenblatt!$M:$M, Datenblatt!$E:$E,$C11, Datenblatt!$R:$R,">="&BQ$8,Datenblatt!$R:$R,"<="&EOMONTH(BQ$8,0)), "") -> 1553.651012 | BR11: =IF(ISNUMBER($C11), SUMIFS(Datenblatt!$M:$M, Datenblatt!$G:$G,$C11, Datenblatt!$R:$R,">="&BR$8,Datenblatt!$R:$R,"<="&EOMONTH(BR$8,0)) - SUMIFS(Datenblatt!$M:$M, Datenblatt!$E:$E,$C11, Datenblatt!$R:$R,">="&BR$8,Datenblatt!$R:$R,"<="&EOMONTH(BR$8,0)), "") -> 0 | BS11: =IF(ISNUMBER($C11), SUMIFS(Datenblatt!$M:$M, Datenblatt!$G:$G,$C11, Datenblatt!$R:$R,">="&BS$8,Datenblatt!$R:$R,"<="&EOMONTH(BS$8,0)) - SUMIFS(Datenblatt!$M:$M, Datenblatt!$E:$E,$C11, Datenblatt!$R:$R,">="&BS$8,Datenblatt!$R:$R,"<="&EOMONTH(BS$8,0)), "") -> 0 | BT11: =IF(ISNUMBER($C11), SUMIFS(Datenblatt!$M:$M, Datenblatt!$G:$G,$C11, Datenblatt!$R:$R,">="&BT$8,Datenblatt!$R:$R,"<="&EOMONTH(BT$8,0)) - SUMIFS(Datenblatt!$M:$M, Datenblatt!$E:$E,$C11, Datenblatt!$R:$R,">="&BT$8,Datenblatt!$R:$R,"<="&EOMONTH(BT$8,0)), "") -> 0 | BU11: =IF(ISNUMBER($C11), SUMIFS(Datenblatt!$M:$M, Datenblatt!$G:$G,$C11, Datenblatt!$R:$R,">="&BU$8,Datenblatt!$R:$R,"<="&EOMONTH(BU$8,0)) - SUMIFS(Datenblatt!$M:$M, Datenblatt!$E:$E,$C11, Datenblatt!$R:$R,">="&BU$8,Datenblatt!$R:$R,"<="&EOMONTH(BU$8,0)), "") -> 0 | BV11: =IF(ISNUMBER($C11), SUMIFS(Datenblatt!$M:$M, Datenblatt!$G:$G,$C11, Datenblatt!$R:$R,">="&BV$8,Datenblatt!$R:$R,"<="&EOMONTH(BV$8,0)) - SUMIFS(Datenblatt!$M:$M, Datenblatt!$E:$E,$C11, Datenblatt!$R:$R,">="&BV$8,Datenblatt!$R:$R,"<="&EOMONTH(BV$8,0)), "") -> 3515.67004 | BW11: =IF(ISNUMBER($C11), SUMIFS(Datenblatt!$M:$M, Datenblatt!$G:$G,$C11, Datenblatt!$R:$R,">="&BW$8,Datenblatt!$R:$R,"<="&EOMONTH(BW$8,0)) - SUMIFS(Datenblatt!$M:$M, Datenblatt!$E:$E,$C11, Datenblatt!$R:$R,">="&BW$8,Datenblatt!$R:$R,"<="&EOMONTH(BW$8,0)), "") -> 4616.263736 | BX11: =IF(ISNUMBER($C11), SUMIFS(Datenblatt!$M:$M, Datenblatt!$G:$G,$C11, Datenblatt!$R:$R,">="&BX$8,Datenblatt!$R:$R,"<="&EOMONTH(BX$8,0)) - SUMIFS(Datenblatt!$M:$M, Datenblatt!$E:$E,$C11, Datenblatt!$R:$R,">="&BX$8,Datenblatt!$R:$R,"<="&EOMONTH(BX$8,0)), "") -> 0 | BY11: =IF(ISNUMBER($C11), SUMIFS(Datenblatt!$M:$M, Datenblatt!$G:$G,$C11, Datenblatt!$R:$R,">="&BY$8,Datenblatt!$R:$R,"<="&EOMONTH(BY$8,0)) - SUMIFS(Datenblatt!$M:$M, Datenblatt!$E:$E,$C11, Datenblatt!$R:$R,">="&BY$8,Datenblatt!$R:$R,"<="&EOMONTH(BY$8,0)), "") -> 0 | BZ11: =IF(ISNUMBER($C11), SUMIFS(Datenblatt!$M:$M, Datenblatt!$G:$G,$C11, Datenblatt!$R:$R,">="&BZ$8,Datenblatt!$R:$R,"<="&EOMONTH(BZ$8,0)) - SUMIFS(Datenblatt!$M:$M, Datenblatt!$E:$E,$C11, Datenblatt!$R:$R,">="&BZ$8,Datenblatt!$R:$R,"<="&EOMONTH(BZ$8,0)), "") -> 0 | CA11: =IF(ISNUMBER($C11), SUMIFS(Datenblatt!$M:$M, Datenblatt!$G:$G,$C11, Datenblatt!$R:$R,">="&CA$8,Datenblatt!$R:$R,"<="&EOMONTH(CA$8,0)) - SUMIFS(Datenblatt!$M:$M, Datenblatt!$E:$E,$C11, Datenblatt!$R:$R,">="&CA$8,Datenblatt!$R:$R,"<="&EOMONTH(CA$8,0)), "") -> 0 | CB11: =IF(ISNUMBER($C11), SUMIFS(Datenblatt!$M:$M, Datenblatt!$G:$G,$C11, Datenblatt!$R:$R,">="&CB$8,Datenblatt!$R:$R,"<="&EOMONTH(CB$8,0)) - SUMIFS(Datenblatt!$M:$M, Datenblatt!$E:$E,$C11, Datenblatt!$R:$R,">="&CB$8,Datenblatt!$R:$R,"<="&EOMONTH(CB$8,0)), "") -> 4254.875573 | CC11: =IF(ISNUMBER($C11), SUMIFS(Datenblatt!$M:$M, Datenblatt!$G:$G,$C11, Datenblatt!$R:$R,">="&CC$8,Datenblatt!$R:$R,"<="&EOMONTH(CC$8,0)) - SUMIFS(Datenblatt!$M:$M, Datenblatt!$E:$E,$C11, Datenblatt!$R:$R,">="&CC$8,Datenblatt!$R:$R,"<="&EOMONTH(CC$8,0)), "") -> 0 | CD11: =IF(ISNUMBER($C11), SUMIFS(Datenblatt!$M:$M, Datenblatt!$G:$G,$C11, Datenblatt!$R:$R,">="&CD$8,Datenblatt!$R:$R,"<="&EOMONTH(CD$8,0)) - SUMIFS(Datenblatt!$M:$M, Datenblatt!$E:$E,$C11, Datenblatt!$R:$R,">="&CD$8,Datenblatt!$R:$R,"<="&EOMONTH(CD$8,0)), "") -> 0 | CE11: =IF(ISNUMBER($C11), SUMIFS(Datenblatt!$M:$M, Datenblatt!$G:$G,$C11, Datenblatt!$R:$R,">="&CE$8,Datenblatt!$R:$R,"<="&EOMONTH(CE$8,0)) - SUMIFS(Datenblatt!$M:$M, Datenblatt!$E:$E,$C11, Datenblatt!$R:$R,">="&CE$8,Datenblatt!$R:$R,"<="&EOMONTH(CE$8,0)), "") -> 0 | CF11: =IF(ISNUMBER($C11), SUMIFS(Datenblatt!$M:$M, Datenblatt!$G:$G,$C11, Datenblatt!$R:$R,">="&CF$8,Datenblatt!$R:$R,"<="&EOMONTH(CF$8,0)) - SUMIFS(Datenblatt!$M:$M, Datenblatt!$E:$E,$C11, Datenblatt!$R:$R,">="&CF$8,Datenblatt!$R:$R,"<="&EOMONTH(CF$8,0)), "") -> 0 | CG11: =IF(ISNUMBER($C11), SUMIFS(Datenblatt!$M:$M, Datenblatt!$G:$G,$C11, Datenblatt!$R:$R,">="&CG$8,Datenblatt!$R:$R,"<="&EOMONTH(CG$8,0)) - SUMIFS(Datenblatt!$M:$M, Datenblatt!$E:$E,$C11, Datenblatt!$R:$R,">="&CG$8,Datenblatt!$R:$R,"<="&EOMONTH(CG$8,0)), "") -> 0 | CH11: =IF(ISNUMBER($C11), SUMIFS(Datenblatt!$M:$M, Datenblatt!$G:$G,$C11, Datenblatt!$R:$R,">="&CH$8,Datenblatt!$R:$R,"<="&EOMONTH(CH$8,0)) - SUMIFS(Datenblatt!$M:$M, Datenblatt!$E:$E,$C11, Datenblatt!$R:$R,">="&CH$8,Datenblatt!$R:$R,"<="&EOMONTH(CH$8,0)), "") -> 0 | CI11: =IF(ISNUMBER($C11), SUMIFS(Datenblatt!$M:$M, Datenblatt!$G:$G,$C11, Datenblatt!$R:$R,">="&CI$8,Datenblatt!$R:$R,"<="&EOMONTH(CI$8,0)) - SUMIFS(Datenblatt!$M:$M, Datenblatt!$E:$E,$C11, Datenblatt!$R:$R,">="&CI$8,Datenblatt!$R:$R,"<="&EOMONTH(CI$8,0)), "") -> 0 | CJ11: =IF(ISNUMBER($C11), SUMIFS(Datenblatt!$M:$M, Datenblatt!$G:$G,$C11, Datenblatt!$R:$R,">="&CJ$8,Datenblatt!$R:$R,"<="&EOMONTH(CJ$8,0)) - SUMIFS(Datenblatt!$M:$M, Datenblatt!$E:$E,$C11, Datenblatt!$R:$R,">="&CJ$8,Datenblatt!$R:$R,"<="&EOMONTH(CJ$8,0)), "") -> 0 | CK11: =IF(ISNUMBER($C11), SUMIFS(Datenblatt!$M:$M, Datenblatt!$G:$G,$C11, Datenblatt!$R:$R,">="&CK$8,Datenblatt!$R:$R,"<="&EOMONTH(CK$8,0)) - SUMIFS(Datenblatt!$M:$M, Datenblatt!$E:$E,$C11, Datenblatt!$R:$R,">="&CK$8,Datenblatt!$R:$R,"<="&EOMONTH(CK$8,0)), "") -> 0 | CL11: =IF(ISNUMBER($C11), SUMIFS(Datenblatt!$M:$M, Datenblatt!$G:$G,$C11, Datenblatt!$R:$R,">="&CL$8,Datenblatt!$R:$R,"<="&EOMONTH(CL$8,0)) - SUMIFS(Datenblatt!$M:$M, Datenblatt!$E:$E,$C11, Datenblatt!$R:$R,">="&CL$8,Datenblatt!$R:$R,"<="&EOMONTH(CL$8,0)), "") -> 0 | CM11: =IF(ISNUMBER($C11), SUMIFS(Datenblatt!$M:$M, Datenblatt!$G:$G,$C11, Datenblatt!$R:$R,">="&CM$8,Datenblatt!$R:$R,"<="&EOMONTH(CM$8,0)) - SUMIFS(Datenblatt!$M:$M, Datenblatt!$E:$E,$C11, Datenblatt!$R:$R,">="&CM$8,Datenblatt!$R:$R,"<="&EOMONTH(CM$8,0)), "") -> 0 | CN11: =IF(ISNUMBER($C11), SUMIFS(Datenblatt!$M:$M, Datenblatt!$G:$G,$C11, Datenblatt!$R:$R,">="&CN$8,Datenblatt!$R:$R,"<="&EOMONTH(CN$8,0)) - SUMIFS(Datenblatt!$M:$M, Datenblatt!$E:$E,$C11, Datenblatt!$R:$R,">="&CN$8,Datenblatt!$R:$R,"<="&EOMONTH(CN$8,0)), "") -> 0 | CO11: =IF(ISNUMBER($C11), SUMIFS(Datenblatt!$M:$M, Datenblatt!$G:$G,$C11, Datenblatt!$R:$R,">="&CO$8,Datenblatt!$R:$R,"<="&EOMONTH(CO$8,0)) - SUMIFS(Datenblatt!$M:$M, Datenblatt!$E:$E,$C11, Datenblatt!$R:$R,">="&CO$8,Datenblatt!$R:$R,"<="&EOMONTH(CO$8,0)), "") -> 0 | CP11: =IF(ISNUMBER($C11), SUMIFS(Datenblatt!$M:$M, Datenblatt!$G:$G,$C11, Datenblatt!$R:$R,">="&CP$8,Datenblatt!$R:$R,"<="&EOMONTH(CP$8,0)) - SUMIFS(Datenblatt!$M:$M, Datenblatt!$E:$E,$C11, Datenblatt!$R:$R,">="&CP$8,Datenblatt!$R:$R,"<="&EOMONTH(CP$8,0)), "") -> 0 | CQ11: =IF(ISNUMBER($C11), SUMIFS(Datenblatt!$M:$M, Datenblatt!$G:$G,$C11, Datenblatt!$R:$R,">="&CQ$8,Datenblatt!$R:$R,"<="&EOMONTH(CQ$8,0)) - SUMIFS(Datenblatt!$M:$M, Datenblatt!$E:$E,$C11, Datenblatt!$R:$R,">="&CQ$8,Datenblatt!$R:$R,"<="&EOMONTH(CQ$8,0)), "") -> 0 | CR11: =IF(ISNUMBER($C11), SUMIFS(Datenblatt!$M:$M, Datenblatt!$G:$G,$C11, Datenblatt!$R:$R,">="&CR$8,Datenblatt!$R:$R,"<="&EOMONTH(CR$8,0)) - SUMIFS(Datenblatt!$M:$M, Datenblatt!$E:$E,$C11, Datenblatt!$R:$R,">="&CR$8,Datenblatt!$R:$R,"<="&EOMONTH(CR$8,0)), "") -> 0 | CS11: =IF(ISNUMBER($C11), SUMIFS(Datenblatt!$M:$M, Datenblatt!$G:$G,$C11, Datenblatt!$R:$R,">="&CS$8,Datenblatt!$R:$R,"<="&EOMONTH(CS$8,0)) - SUMIFS(Datenblatt!$M:$M, Datenblatt!$E:$E,$C11, Datenblatt!$R:$R,">="&CS$8,Datenblatt!$R:$R,"<="&EOMONTH(CS$8,0)), "") -> 0 | CT11: =IF(ISNUMBER($C11), SUMIFS(Datenblatt!$M:$M, Datenblatt!$G:$G,$C11, Datenblatt!$R:$R,">="&CT$8,Datenblatt!$R:$R,"<="&EOMONTH(CT$8,0)) - SUMIFS(Datenblatt!$M:$M, Datenblatt!$E:$E,$C11, Datenblatt!$R:$R,">="&CT$8,Datenblatt!$R:$R,"<="&EOMONTH(CT$8,0)), "") -> 0 | CU11: =IF(ISNUMBER($C11), SUMIFS(Datenblatt!$M:$M, Datenblatt!$G:$G,$C11, Datenblatt!$R:$R,">="&CU$8,Datenblatt!$R:$R,"<="&EOMONTH(CU$8,0)) - SUMIFS(Datenblatt!$M:$M, Datenblatt!$E:$E,$C11, Datenblatt!$R:$R,">="&CU$8,Datenblatt!$R:$R,"<="&EOMONTH(CU$8,0)), "") -> 0 | CV11: =IF(ISNUMBER($C11), SUMIFS(Datenblatt!$M:$M, Datenblatt!$G:$G,$C11, Datenblatt!$R:$R,">="&CV$8,Datenblatt!$R:$R,"<="&EOMONTH(CV$8,0)) - SUMIFS(Datenblatt!$M:$M, Datenblatt!$E:$E,$C11, Datenblatt!$R:$R,">="&CV$8,Datenblatt!$R:$R,"<="&EOMONTH(CV$8,0)), "") -> 0 | CW11: =IF(ISNUMBER($C11), SUMIFS(Datenblatt!$M:$M, Datenblatt!$G:$G,$C11, Datenblatt!$R:$R,">="&CW$8,Datenblatt!$R:$R,"<="&EOMONTH(CW$8,0)) - SUMIFS(Datenblatt!$M:$M, Datenblatt!$E:$E,$C11, Datenblatt!$R:$R,">="&CW$8,Datenblatt!$R:$R,"<="&EOMONTH(CW$8,0)), "") -> 0 | CX11: =IF(ISNUMBER($C11), SUMIFS(Datenblatt!$M:$M, Datenblatt!$G:$G,$C11, Datenblatt!$R:$R,">="&CX$8,Datenblatt!$R:$R,"<="&EOMONTH(CX$8,0)) - SUMIFS(Datenblatt!$M:$M, Datenblatt!$E:$E,$C11, Datenblatt!$R:$R,">="&CX$8,Datenblatt!$R:$R,"<="&EOMONTH(CX$8,0)), "") -> 0 | CY11: =IF(ISNUMBER($C11), SUMIFS(Datenblatt!$M:$M, Datenblatt!$G:$G,$C11, Datenblatt!$R:$R,">="&CY$8,Datenblatt!$R:$R,"<="&EOMONTH(CY$8,0)) - SUMIFS(Datenblatt!$M:$M, Datenblatt!$E:$E,$C11, Datenblatt!$R:$R,">="&CY$8,Datenblatt!$R:$R,"<="&EOMONTH(CY$8,0)), "") -> 0 | CZ11: =IF(ISNUMBER($C11), SUMIFS(Datenblatt!$M:$M, Datenblatt!$G:$G,$C11, Datenblatt!$R:$R,">="&CZ$8,Datenblatt!$R:$R,"<="&EOMONTH(CZ$8,0)) - SUMIFS(Datenblatt!$M:$M, Datenblatt!$E:$E,$C11, Datenblatt!$R:$R,">="&CZ$8,Datenblatt!$R:$R,"<="&EOMONTH(CZ$8,0)), "") -> 0 | DA11: =IF(ISNUMBER($C11), SUMIFS(Datenblatt!$M:$M, Datenblatt!$G:$G,$C11, Datenblatt!$R:$R,">="&DA$8,Datenblatt!$R:$R,"<="&EOMONTH(DA$8,0)) - SUMIFS(Datenblatt!$M:$M, Datenblatt!$E:$E,$C11, Datenblatt!$R:$R,">="&DA$8,Datenblatt!$R:$R,"<="&EOMONTH(DA$8,0)), "") -> 0 | DB11: =IF(ISNUMBER($C11), SUMIFS(Datenblatt!$M:$M, Datenblatt!$G:$G,$C11, Datenblatt!$R:$R,">="&DB$8,Datenblatt!$R:$R,"<="&EOMONTH(DB$8,0)) - SUMIFS(Datenblatt!$M:$M, Datenblatt!$E:$E,$C11, Datenblatt!$R:$R,">="&DB$8,Datenblatt!$R:$R,"<="&EOMONTH(DB$8,0)), "") -> 0 | DC11: =IF(ISNUMBER($C11), SUMIFS(Datenblatt!$M:$M, Datenblatt!$G:$G,$C11, Datenblatt!$R:$R,">="&DC$8,Datenblatt!$R:$R,"<="&EOMONTH(DC$8,0)) - SUMIFS(Datenblatt!$M:$M, Datenblatt!$E:$E,$C11, Datenblatt!$R:$R,">="&DC$8,Datenblatt!$R:$R,"<="&EOMONTH(DC$8,0)), "") -> 0 | DD11: =IF(ISNUMBER($C11), SUMIFS(Datenblatt!$M:$M, Datenblatt!$G:$G,$C11, Datenblatt!$R:$R,">="&DD$8,Datenblatt!$R:$R,"<="&EOMONTH(DD$8,0)) - SUMIFS(Datenblatt!$M:$M, Datenblatt!$E:$E,$C11, Datenblatt!$R:$R,">="&DD$8,Datenblatt!$R:$R,"<="&EOMONTH(DD$8,0)), "") -> 0 | DE11: =IF(ISNUMBER($C11), SUMIFS(Datenblatt!$M:$M, Datenblatt!$G:$G,$C11, Datenblatt!$R:$R,">="&DE$8,Datenblatt!$R:$R,"<="&EOMONTH(DE$8,0)) - SUMIFS(Datenblatt!$M:$M, Datenblatt!$E:$E,$C11, Datenblatt!$R:$R,">="&DE$8,Datenblatt!$R:$R,"<="&EOMONTH(DE$8,0)), "") -> 0 | DF11: =IF(ISNUMBER($C11), SUMIFS(Datenblatt!$M:$M, Datenblatt!$G:$G,$C11, Datenblatt!$R:$R,">="&DF$8,Datenblatt!$R:$R,"<="&EOMONTH(DF$8,0)) - SUMIFS(Datenblatt!$M:$M, Datenblatt!$E:$E,$C11, Datenblatt!$R:$R,">="&DF$8,Datenblatt!$R:$R,"<="&EOMONTH(DF$8,0)), "") -> 0
B12: Ertrag | C12: 3600 | D12: Erlös aus Rohmaterial | G12: =IF(ISNUMBER($C12), SUMIFS(Datenblatt!$M:$M, Datenblatt!$G:$G,$C12, Datenblatt!$R:$R,">="&G$8,Datenblatt!$R:$R,"<="&EOMONTH(G$8,11)) - SUMIFS(Datenblatt!$M:$M, Datenblatt!$E:$E,$C12, Datenblatt!$R:$R,">="&G$8,Datenblatt!$R:$R,"<="&EOMONTH(G$8,11)), "") -> 0 | H12: =IF(ISNUMBER($C12), SUMIFS(Datenblatt!$M:$M, Datenblatt!$G:$G,$C12, Datenblatt!$R:$R,">="&H$8,Datenblatt!$R:$R,"<="&EOMONTH(H$8,11)) - SUMIFS(Datenblatt!$M:$M, Datenblatt!$E:$E,$C12, Datenblatt!$R:$R,">="&H$8,Datenblatt!$R:$R,"<="&EOMONTH(H$8,11)), "") -> 0 | I12: =IF(ISNUMBER($C12), SUMIFS(Datenblatt!$M:$M, Datenblatt!$G:$G,$C12, Datenblatt!$R:$R,">="&I$8,Datenblatt!$R:$R,"<="&EOMONTH(I$8,11)) - SUMIFS(Datenblatt!$M:$M, Datenblatt!$E:$E,$C12, Datenblatt!$R:$R,">="&I$8,Datenblatt!$R:$R,"<="&EOMONTH(I$8,11)), "") -> 0 | J12: =IF(ISNUMBER($C12), SUMIFS(Datenblatt!$M:$M, Datenblatt!$G:$G,$C12, Datenblatt!$R:$R,">="&J$8,Datenblatt!$R:$R,"<="&EOMONTH(J$8,11)) - SUMIFS(Datenblatt!$M:$M, Datenblatt!$E:$E,$C12, Datenblatt!$R:$R,">="&J$8,Datenblatt!$R:$R,"<="&EOMONTH(J$8,11)), "") -> 0 | K12: =IF(ISNUMBER($C12), SUMIFS(Datenblatt!$M:$M, Datenblatt!$G:$G,$C12, Datenblatt!$R:$R,">="&K$8,Datenblatt!$R:$R,"<="&EOMONTH(K$8,11)) - SUMIFS(Datenblatt!$M:$M, Datenblatt!$E:$E,$C12, Datenblatt!$R:$R,">="&K$8,Datenblatt!$R:$R,"<="&EOMONTH(K$8,11)), "") -> 797.2603665 | L12: =IF(ISNUMBER($C12), SUMIFS(Datenblatt!$M:$M, Datenblatt!$G:$G,$C12, Datenblatt!$R:$R,">="&L$8,Datenblatt!$R:$R,"<="&EOMONTH(L$8,11)) - SUMIFS(Datenblatt!$M:$M, Datenblatt!$E:$E,$C12, Datenblatt!$R:$R,">="&L$8,Datenblatt!$R:$R,"<="&EOMONTH(L$8,11)), "") -> 192.2415763 | M12: =IF(ISNUMBER($C12), SUMIFS(Datenblatt!$M:$M, Datenblatt!$G:$G,$C12, Datenblatt!$R:$R,">="&M$8,Datenblatt!$R:$R,"<="&EOMONTH(M$8,11)) - SUMIFS(Datenblatt!$M:$M, Datenblatt!$E:$E,$C12, Datenblatt!$R:$R,">="&M$8,Datenblatt!$R:$R,"<="&EOMONTH(M$8,11)), "") -> 0 | N12: =IF(ISNUMBER($C12), SUMIFS(Datenblatt!$M:$M, Datenblatt!$G:$G,$C12, Datenblatt!$R:$R,">="&N$8,Datenblatt!$R:$R,"<="&EOMONTH(N$8,11)) - SUMIFS(Datenblatt!$M:$M, Datenblatt!$E:$E,$C12, Datenblatt!$R:$R,">="&N$8,Datenblatt!$R:$R,"<="&EOMONTH(N$8,11)), "") -> 0 | O12: =IF(ISNUMBER($C12), SUMIFS(Datenblatt!$M:$M, Datenblatt!$G:$G,$C12, Datenblatt!$R:$R,">="&O$8,Datenblatt!$R:$R,"<="&EOMONTH(O$8,0)) - SUMIFS(Datenblatt!$M:$M, Datenblatt!$E:$E,$C12, Datenblatt!$R:$R,">="&O$8,Datenblatt!$R:$R,"<="&EOMONTH(O$8,0)), "") -> 0 | P12: =IF(ISNUMBER($C12), SUMIFS(Datenblatt!$M:$M, Datenblatt!$G:$G,$C12, Datenblatt!$R:$R,">="&P$8,Datenblatt!$R:$R,"<="&EOMONTH(P$8,0)) - SUMIFS(Datenblatt!$M:$M, Datenblatt!$E:$E,$C12, Datenblatt!$R:$R,">="&P$8,Datenblatt!$R:$R,"<="&EOMONTH(P$8,0)), "") -> 0 | Q12: =IF(ISNUMBER($C12), SUMIFS(Datenblatt!$M:$M, Datenblatt!$G:$G,$C12, Datenblatt!$R:$R,">="&Q$8,Datenblatt!$R:$R,"<="&EOMONTH(Q$8,0)) - SUMIFS(Datenblatt!$M:$M, Datenblatt!$E:$E,$C12, Datenblatt!$R:$R,">="&Q$8,Datenblatt!$R:$R,"<="&EOMONTH(Q$8,0)), "") -> 0 | R12: =IF(ISNUMBER($C12), SUMIFS(Datenblatt!$M:$M, Datenblatt!$G:$G,$C12, Datenblatt!$R:$R,">="&R$8,Datenblatt!$R:$R,"<="&EOMONTH(R$8,0)) - SUMIFS(Datenblatt!$M:$M, Datenblatt!$E:$E,$C12, Datenblatt!$R:$R,">="&R$8,Datenblatt!$R:$R,"<="&EOMONTH(R$8,0)), "") -> 0 | S12: =IF(ISNUMBER($C12), SUMIFS(Datenblatt!$M:$M, Datenblatt!$G:$G,$C12, Datenblatt!$R:$R,">="&S$8,Datenblatt!$R:$R,"<="&EOMONTH(S$8,0)) - SUMIFS(Datenblatt!$M:$M, Datenblatt!$E:$E,$C12, Datenblatt!$R:$R,">="&S$8,Datenblatt!$R:$R,"<="&EOMONTH(S$8,0)), "") -> 0 | T12: =IF(ISNUMBER($C12), SUMIFS(Datenblatt!$M:$M, Datenblatt!$G:$G,$C12, Datenblatt!$R:$R,">="&T$8,Datenblatt!$R:$R,"<="&EOMONTH(T$8,0)) - SUMIFS(Datenblatt!$M:$M, Datenblatt!$E:$E,$C12, Datenblatt!$R:$R,">="&T$8,Datenblatt!$R:$R,"<="&EOMONTH(T$8,0)), "") -> 0 | U12: =IF(ISNUMBER($C12), SUMIFS(Datenblatt!$M:$M, Datenblatt!$G:$G,$C12, Datenblatt!$R:$R,">="&U$8,Datenblatt!$R:$R,"<="&EOMONTH(U$8,0)) - SUMIFS(Datenblatt!$M:$M, Datenblatt!$E:$E,$C12, Datenblatt!$R:$R,">="&U$8,Datenblatt!$R:$R,"<="&EOMONTH(U$8,0)), "") -> 0 | V12: =IF(ISNUMBER($C12), SUMIFS(Datenblatt!$M:$M, Datenblatt!$G:$G,$C12, Datenblatt!$R:$R,">="&V$8,Datenblatt!$R:$R,"<="&EOMONTH(V$8,0)) - SUMIFS(Datenblatt!$M:$M, Datenblatt!$E:$E,$C12, Datenblatt!$R:$R,">="&V$8,Datenblatt!$R:$R,"<="&EOMONTH(V$8,0)), "") -> 0 | W12: =IF(ISNUMBER($C12), SUMIFS(Datenblatt!$M:$M, Datenblatt!$G:$G,$C12, Datenblatt!$R:$R,">="&W$8,Datenblatt!$R:$R,"<="&EOMONTH(W$8,0)) - SUMIFS(Datenblatt!$M:$M, Datenblatt!$E:$E,$C12, Datenblatt!$R:$R,">="&W$8,Datenblatt!$R:$R,"<="&EOMONTH(W$8,0)), "") -> 0 | X12: =IF(ISNUMBER($C12), SUMIFS(Datenblatt!$M:$M, Datenblatt!$G:$G,$C12, Datenblatt!$R:$R,">="&X$8,Datenblatt!$R:$R,"<="&EOMONTH(X$8,0)) - SUMIFS(Datenblatt!$M:$M, Datenblatt!$E:$E,$C12, Datenblatt!$R:$R,">="&X$8,Datenblatt!$R:$R,"<="&EOMONTH(X$8,0)), "") -> 0 | Y12: =IF(ISNUMBER($C12), SUMIFS(Datenblatt!$M:$M, Datenblatt!$G:$G,$C12, Datenblatt!$R:$R,">="&Y$8,Datenblatt!$R:$R,"<="&EOMONTH(Y$8,0)) - SUMIFS(Datenblatt!$M:$M, Datenblatt!$E:$E,$C12, Datenblatt!$R:$R,">="&Y$8,Datenblatt!$R:$R,"<="&EOMONTH(Y$8,0)), "") -> 0 | Z12: =IF(ISNUMBER($C12), SUMIFS(Datenblatt!$M:$M, Datenblatt!$G:$G,$C12, Datenblatt!$R:$R,">="&Z$8,Datenblatt!$R:$R,"<="&EOMONTH(Z$8,0)) - SUMIFS(Datenblatt!$M:$M, Datenblatt!$E:$E,$C12, Datenblatt!$R:$R,">="&Z$8,Datenblatt!$R:$R,"<="&EOMONTH(Z$8,0)), "") -> 0 | AA12: =IF(ISNUMBER($C12), SUMIFS(Datenblatt!$M:$M, Datenblatt!$G:$G,$C12, Datenblatt!$R:$R,">="&AA$8,Datenblatt!$R:$R,"<="&EOMONTH(AA$8,0)) - SUMIFS(Datenblatt!$M:$M, Datenblatt!$E:$E,$C12, Datenblatt!$R:$R,">="&AA$8,Datenblatt!$R:$R,"<="&EOMONTH(AA$8,0)), "") -> 0 | AB12: =IF(ISNUMBER($C12), SUMIFS(Datenblatt!$M:$M, Datenblatt!$G:$G,$C12, Datenblatt!$R:$R,">="&AB$8,Datenblatt!$R:$R,"<="&EOMONTH(AB$8,0)) - SUMIFS(Datenblatt!$M:$M, Datenblatt!$E:$E,$C12, Datenblatt!$R:$R,">="&AB$8,Datenblatt!$R:$R,"<="&EOMONTH(AB$8,0)), "") -> 0 | AC12: =IF(ISNUMBER($C12), SUMIFS(Datenblatt!$M:$M, Datenblatt!$G:$G,$C12, Datenblatt!$R:$R,">="&AC$8,Datenblatt!$R:$R,"<="&EOMONTH(AC$8,0)) - SUMIFS(Datenblatt!$M:$M, Datenblatt!$E:$E,$C12, Datenblatt!$R:$R,">="&AC$8,Datenblatt!$R:$R,"<="&EOMONTH(AC$8,0)), "") -> 0 | AD12: =IF(ISNUMBER($C12), SUMIFS(Datenblatt!$M:$M, Datenblatt!$G:$G,$C12, Datenblatt!$R:$R,">="&AD$8,Datenblatt!$R:$R,"<="&EOMONTH(AD$8,0)) - SUMIFS(Datenblatt!$M:$M, Datenblatt!$E:$E,$C12, Datenblatt!$R:$R,">="&AD$8,Datenblatt!$R:$R,"<="&EOMONTH(AD$8,0)), "") -> 0 | AE12: =IF(ISNUMBER($C12), SUMIFS(Datenblatt!$M:$M, Datenblatt!$G:$G,$C12, Datenblatt!$R:$R,">="&AE$8,Datenblatt!$R:$R,"<="&EOMONTH(AE$8,0)) - SUMIFS(Datenblatt!$M:$M, Datenblatt!$E:$E,$C12, Datenblatt!$R:$R,">="&AE$8,Datenblatt!$R:$R,"<="&EOMONTH(AE$8,0)), "") -> 0 | AF12: =IF(ISNUMBER($C12), SUMIFS(Datenblatt!$M:$M, Datenblatt!$G:$G,$C12, Datenblatt!$R:$R,">="&AF$8,Datenblatt!$R:$R,"<="&EOMONTH(AF$8,0)) - SUMIFS(Datenblatt!$M:$M, Datenblatt!$E:$E,$C12, Datenblatt!$R:$R,">="&AF$8,Datenblatt!$R:$R,"<="&EOMONTH(AF$8,0)), "") -> 0 | AG12: =IF(ISNUMBER($C12), SUMIFS(Datenblatt!$M:$M, Datenblatt!$G:$G,$C12, Datenblatt!$R:$R,">="&AG$8,Datenblatt!$R:$R,"<="&EOMONTH(AG$8,0)) - SUMIFS(Datenblatt!$M:$M, Datenblatt!$E:$E,$C12, Datenblatt!$R:$R,">="&AG$8,Datenblatt!$R:$R,"<="&EOMONTH(AG$8,0)), "") -> 0 | AH12: =IF(ISNUMBER($C12), SUMIFS(Datenblatt!$M:$M, Datenblatt!$G:$G,$C12, Datenblatt!$R:$R,">="&AH$8,Datenblatt!$R:$R,"<="&EOMONTH(AH$8,0)) - SUMIFS(Datenblatt!$M:$M, Datenblatt!$E:$E,$C12, Datenblatt!$R:$R,">="&AH$8,Datenblatt!$R:$R,"<="&EOMONTH(AH$8,0)), "") -> 0 | AI12: =IF(ISNUMBER($C12), SUMIFS(Datenblatt!$M:$M, Datenblatt!$G:$G,$C12, Datenblatt!$R:$R,">="&AI$8,Datenblatt!$R:$R,"<="&EOMONTH(AI$8,0)) - SUMIFS(Datenblatt!$M:$M, Datenblatt!$E:$E,$C12, Datenblatt!$R:$R,">="&AI$8,Datenblatt!$R:$R,"<="&EOMONTH(AI$8,0)), "") -> 0 | AJ12: =IF(ISNUMBER($C12), SUMIFS(Datenblatt!$M:$M, Datenblatt!$G:$G,$C12, Datenblatt!$R:$R,">="&AJ$8,Datenblatt!$R:$R,"<="&EOMONTH(AJ$8,0)) - SUMIFS(Datenblatt!$M:$M, Datenblatt!$E:$E,$C12, Datenblatt!$R:$R,">="&AJ$8,Datenblatt!$R:$R,"<="&EOMONTH(AJ$8,0)), "") -> 0 | AK12: =IF(ISNUMBER($C12), SUMIFS(Datenblatt!$M:$M, Datenblatt!$G:$G,$C12, Datenblatt!$R:$R,">="&AK$8,Datenblatt!$R:$R,"<="&EOMONTH(AK$8,0)) - SUMIFS(Datenblatt!$M:$M, Datenblatt!$E:$E,$C12, Datenblatt!$R:$R,">="&AK$8,Datenblatt!$R:$R,"<="&EOMONTH(AK$8,0)), "") -> 0 | AL12: =IF(ISNUMBER($C12), SUMIFS(Datenblatt!$M:$M, Datenblatt!$G:$G,$C12, Datenblatt!$R:$R,">="&AL$8,Datenblatt!$R:$R,"<="&EOMONTH(AL$8,0)) - SUMIFS(Datenblatt!$M:$M, Datenblatt!$E:$E,$C12, Datenblatt!$R:$R,">="&AL$8,Datenblatt!$R:$R,"<="&EOMONTH(AL$8,0)), "") -> 0 | AM12: =IF(ISNUMBER($C12), SUMIFS(Datenblatt!$M:$M, Datenblatt!$G:$G,$C12, Datenblatt!$R:$R,">="&AM$8,Datenblatt!$R:$R,"<="&EOMONTH(AM$8,0)) - SUMIFS(Datenblatt!$M:$M, Datenblatt!$E:$E,$C12, Datenblatt!$R:$R,">="&AM$8,Datenblatt!$R:$R,"<="&EOMONTH(AM$8,0)), "") -> 0 | AN12: =IF(ISNUMBER($C12), SUMIFS(Datenblatt!$M:$M, Datenblatt!$G:$G,$C12, Datenblatt!$R:$R,">="&AN$8,Datenblatt!$R:$R,"<="&EOMONTH(AN$8,0)) - SUMIFS(Datenblatt!$M:$M, Datenblatt!$E:$E,$C12, Datenblatt!$R:$R,">="&AN$8,Datenblatt!$R:$R,"<="&EOMONTH(AN$8,0)), "") -> 0 | AO12: =IF(ISNUMBER($C12), SUMIFS(Datenblatt!$M:$M, Datenblatt!$G:$G,$C12, Datenblatt!$R:$R,">="&AO$8,Datenblatt!$R:$R,"<="&EOMONTH(AO$8,0)) - SUMIFS(Datenblatt!$M:$M, Datenblatt!$E:$E,$C12, Datenblatt!$R:$R,">="&AO$8,Datenblatt!$R:$R,"<="&EOMONTH(AO$8,0)), "") -> 0 | AP12: =IF(ISNUMBER($C12), SUMIFS(Datenblatt!$M:$M, Datenblatt!$G:$G,$C12, Datenblatt!$R:$R,">="&AP$8,Datenblatt!$R:$R,"<="&EOMONTH(AP$8,0)) - SUMIFS(Datenblatt!$M:$M, Datenblatt!$E:$E,$C12, Datenblatt!$R:$R,">="&AP$8,Datenblatt!$R:$R,"<="&EOMONTH(AP$8,0)), "") -> 0 | AQ12: =IF(ISNUMBER($C12), SUMIFS(Datenblatt!$M:$M, Datenblatt!$G:$G,$C12, Datenblatt!$R:$R,">="&AQ$8,Datenblatt!$R:$R,"<="&EOMONTH(AQ$8,0)) - SUMIFS(Datenblatt!$M:$M, Datenblatt!$E:$E,$C12, Datenblatt!$R:$R,">="&AQ$8,Datenblatt!$R:$R,"<="&EOMONTH(AQ$8,0)), "") -> 0 | AR12: =IF(ISNUMBER($C12), SUMIFS(Datenblatt!$M:$M, Datenblatt!$G:$G,$C12, Datenblatt!$R:$R,">="&AR$8,Datenblatt!$R:$R,"<="&EOMONTH(AR$8,0)) - SUMIFS(Datenblatt!$M:$M, Datenblatt!$E:$E,$C12, Datenblatt!$R:$R,">="&AR$8,Datenblatt!$R:$R,"<="&EOMONTH(AR$8,0)), "") -> 0 | AS12: =IF(ISNUMBER($C12), SUMIFS(Datenblatt!$M:$M, Datenblatt!$G:$G,$C12, Datenblatt!$R:$R,">="&AS$8,Datenblatt!$R:$R,"<="&EOMONTH(AS$8,0)) - SUMIFS(Datenblatt!$M:$M, Datenblatt!$E:$E,$C12, Datenblatt!$R:$R,">="&AS$8,Datenblatt!$R:$R,"<="&EOMONTH(AS$8,0)), "") -> 0 | AT12: =IF(ISNUMBER($C12), SUMIFS(Datenblatt!$M:$M, Datenblatt!$G:$G,$C12, Datenblatt!$R:$R,">="&AT$8,Datenblatt!$R:$R,"<="&EOMONTH(AT$8,0)) - SUMIFS(Datenblatt!$M:$M, Datenblatt!$E:$E,$C12, Datenblatt!$R:$R,">="&AT$8,Datenblatt!$R:$R,"<="&EOMONTH(AT$8,0)), "") -> 0 | AU12: =IF(ISNUMBER($C12), SUMIFS(Datenblatt!$M:$M, Datenblatt!$G:$G,$C12, Datenblatt!$R:$R,">="&AU$8,Datenblatt!$R:$R,"<="&EOMONTH(AU$8,0)) - SUMIFS(Datenblatt!$M:$M, Datenblatt!$E:$E,$C12, Datenblatt!$R:$R,">="&AU$8,Datenblatt!$R:$R,"<="&EOMONTH(AU$8,0)), "") -> 0 | AV12: =IF(ISNUMBER($C12), SUMIFS(Datenblatt!$M:$M, Datenblatt!$G:$G,$C12, Datenblatt!$R:$R,">="&AV$8,Datenblatt!$R:$R,"<="&EOMONTH(AV$8,0)) - SUMIFS(Datenblatt!$M:$M, Datenblatt!$E:$E,$C12, Datenblatt!$R:$R,">="&AV$8,Datenblatt!$R:$R,"<="&EOMONTH(AV$8,0)), "") -> 0 | AW12: =IF(ISNUMBER($C12), SUMIFS(Datenblatt!$M:$M, Datenblatt!$G:$G,$C12, Datenblatt!$R:$R,">="&AW$8,Datenblatt!$R:$R,"<="&EOMONTH(AW$8,0)) - SUMIFS(Datenblatt!$M:$M, Datenblatt!$E:$E,$C12, Datenblatt!$R:$R,">="&AW$8,Datenblatt!$R:$R,"<="&EOMONTH(AW$8,0)), "") -> 0 | AX12: =IF(ISNUMBER($C12), SUMIFS(Datenblatt!$M:$M, Datenblatt!$G:$G,$C12, Datenblatt!$R:$R,">="&AX$8,Datenblatt!$R:$R,"<="&EOMONTH(AX$8,0)) - SUMIFS(Datenblatt!$M:$M, Datenblatt!$E:$E,$C12, Datenblatt!$R:$R,">="&AX$8,Datenblatt!$R:$R,"<="&EOMONTH(AX$8,0)), "") -> 0 | AY12: =IF(ISNUMBER($C12), SUMIFS(Datenblatt!$M:$M, Datenblatt!$G:$G,$C12, Datenblatt!$R:$R,">="&AY$8,Datenblatt!$R:$R,"<="&EOMONTH(AY$8,0)) - SUMIFS(Datenblatt!$M:$M, Datenblatt!$E:$E,$C12, Datenblatt!$R:$R,">="&AY$8,Datenblatt!$R:$R,"<="&EOMONTH(AY$8,0)), "") -> 0 | AZ12: =IF(ISNUMBER($C12), SUMIFS(Datenblatt!$M:$M, Datenblatt!$G:$G,$C12, Datenblatt!$R:$R,">="&AZ$8,Datenblatt!$R:$R,"<="&EOMONTH(AZ$8,0)) - SUMIFS(Datenblatt!$M:$M, Datenblatt!$E:$E,$C12, Datenblatt!$R:$R,">="&AZ$8,Datenblatt!$R:$R,"<="&EOMONTH(AZ$8,0)), "") -> 0 | BA12: =IF(ISNUMBER($C12), SUMIFS(Datenblatt!$M:$M, Datenblatt!$G:$G,$C12, Datenblatt!$R:$R,">="&BA$8,Datenblatt!$R:$R,"<="&EOMONTH(BA$8,0)) - SUMIFS(Datenblatt!$M:$M, Datenblatt!$E:$E,$C12, Datenblatt!$R:$R,">="&BA$8,Datenblatt!$R:$R,"<="&EOMONTH(BA$8,0)), "") -> 0 | BB12: =IF(ISNUMBER($C12), SUMIFS(Datenblatt!$M:$M, Datenblatt!$G:$G,$C12, Datenblatt!$R:$R,">="&BB$8,Datenblatt!$R:$R,"<="&EOMONTH(BB$8,0)) - SUMIFS(Datenblatt!$M:$M, Datenblatt!$E:$E,$C12, Datenblatt!$R:$R,">="&BB$8,Datenblatt!$R:$R,"<="&EOMONTH(BB$8,0)), "") -> 0 | BC12: =IF(ISNUMBER($C12), SUMIFS(Datenblatt!$M:$M, Datenblatt!$G:$G,$C12, Datenblatt!$R:$R,">="&BC$8,Datenblatt!$R:$R,"<="&EOMONTH(BC$8,0)) - SUMIFS(Datenblatt!$M:$M, Datenblatt!$E:$E,$C12, Datenblatt!$R:$R,">="&BC$8,Datenblatt!$R:$R,"<="&EOMONTH(BC$8,0)), "") -> 0 | BD12: =IF(ISNUMBER($C12), SUMIFS(Datenblatt!$M:$M, Datenblatt!$G:$G,$C12, Datenblatt!$R:$R,">="&BD$8,Datenblatt!$R:$R,"<="&EOMONTH(BD$8,0)) - SUMIFS(Datenblatt!$M:$M, Datenblatt!$E:$E,$C12, Datenblatt!$R:$R,">="&BD$8,Datenblatt!$R:$R,"<="&EOMONTH(BD$8,0)), "") -> 0 | BE12: =IF(ISNUMBER($C12), SUMIFS(Datenblatt!$M:$M, Datenblatt!$G:$G,$C12, Datenblatt!$R:$R,">="&BE$8,Datenblatt!$R:$R,"<="&EOMONTH(BE$8,0)) - SUMIFS(Datenblatt!$M:$M, Datenblatt!$E:$E,$C12, Datenblatt!$R:$R,">="&BE$8,Datenblatt!$R:$R,"<="&EOMONTH(BE$8,0)), "") -> 0 | BF12: =IF(ISNUMBER($C12), SUMIFS(Datenblatt!$M:$M, Datenblatt!$G:$G,$C12, Datenblatt!$R:$R,">="&BF$8,Datenblatt!$R:$R,"<="&EOMONTH(BF$8,0)) - SUMIFS(Datenblatt!$M:$M, Datenblatt!$E:$E,$C12, Datenblatt!$R:$R,">="&BF$8,Datenblatt!$R:$R,"<="&EOMONTH(BF$8,0)), "") -> 0 | BG12: =IF(ISNUMBER($C12), SUMIFS(Datenblatt!$M:$M, Datenblatt!$G:$G,$C12, Datenblatt!$R:$R,">="&BG$8,Datenblatt!$R:$R,"<="&EOMONTH(BG$8,0)) - SUMIFS(Datenblatt!$M:$M, Datenblatt!$E:$E,$C12, Datenblatt!$R:$R,">="&BG$8,Datenblatt!$R:$R,"<="&EOMONTH(BG$8,0)), "") -> 0 | BH12: =IF(ISNUMBER($C12), SUMIFS(Datenblatt!$M:$M, Datenblatt!$G:$G,$C12, Datenblatt!$R:$R,">="&BH$8,Datenblatt!$R:$R,"<="&EOMONTH(BH$8,0)) - SUMIFS(Datenblatt!$M:$M, Datenblatt!$E:$E,$C12, Datenblatt!$R:$R,">="&BH$8,Datenblatt!$R:$R,"<="&EOMONTH(BH$8,0)), "") -> 0 | BI12: =IF(ISNUMBER($C12), SUMIFS(Datenblatt!$M:$M, Datenblatt!$G:$G,$C12, Datenblatt!$R:$R,">="&BI$8,Datenblatt!$R:$R,"<="&EOMONTH(BI$8,0)) - SUMIFS(Datenblatt!$M:$M, Datenblatt!$E:$E,$C12, Datenblatt!$R:$R,">="&BI$8,Datenblatt!$R:$R,"<="&EOMONTH(BI$8,0)), "") -> 0 | BJ12: =IF(ISNUMBER($C12), SUMIFS(Datenblatt!$M:$M, Datenblatt!$G:$G,$C12, Datenblatt!$R:$R,">="&BJ$8,Datenblatt!$R:$R,"<="&EOMONTH(BJ$8,0)) - SUMIFS(Datenblatt!$M:$M, Datenblatt!$E:$E,$C12, Datenblatt!$R:$R,">="&BJ$8,Datenblatt!$R:$R,"<="&EOMONTH(BJ$8,0)), "") -> 0 | BK12: =IF(ISNUMBER($C12), SUMIFS(Datenblatt!$M:$M, Datenblatt!$G:$G,$C12, Datenblatt!$R:$R,">="&BK$8,Datenblatt!$R:$R,"<="&EOMONTH(BK$8,0)) - SUMIFS(Datenblatt!$M:$M, Datenblatt!$E:$E,$C12, Datenblatt!$R:$R,">="&BK$8,Datenblatt!$R:$R,"<="&EOMONTH(BK$8,0)), "") -> 0 | BL12: =IF(ISNUMBER($C12), SUMIFS(Datenblatt!$M:$M, Datenblatt!$G:$G,$C12, Datenblatt!$R:$R,">="&BL$8,Datenblatt!$R:$R,"<="&EOMONTH(BL$8,0)) - SUMIFS(Datenblatt!$M:$M, Datenblatt!$E:$E,$C12, Datenblatt!$R:$R,">="&BL$8,Datenblatt!$R:$R,"<="&EOMONTH(BL$8,0)), "") -> 0 | BM12: =IF(ISNUMBER($C12), SUMIFS(Datenblatt!$M:$M, Datenblatt!$G:$G,$C12, Datenblatt!$R:$R,">="&BM$8,Datenblatt!$R:$R,"<="&EOMONTH(BM$8,0)) - SUMIFS(Datenblatt!$M:$M, Datenblatt!$E:$E,$C12, Datenblatt!$R:$R,">="&BM$8,Datenblatt!$R:$R,"<="&EOMONTH(BM$8,0)), "") -> 0 | BN12: =IF(ISNUMBER($C12), SUMIFS(Datenblatt!$M:$M, Datenblatt!$G:$G,$C12, Datenblatt!$R:$R,">="&BN$8,Datenblatt!$R:$R,"<="&EOMONTH(BN$8,0)) - SUMIFS(Datenblatt!$M:$M, Datenblatt!$E:$E,$C12, Datenblatt!$R:$R,">="&BN$8,Datenblatt!$R:$R,"<="&EOMONTH(BN$8,0)), "") -> 0 | BO12: =IF(ISNUMBER($C12), SUMIFS(Datenblatt!$M:$M, Datenblatt!$G:$G,$C12, Datenblatt!$R:$R,">="&BO$8,Datenblatt!$R:$R,"<="&EOMONTH(BO$8,0)) - SUMIFS(Datenblatt!$M:$M, Datenblatt!$E:$E,$C12, Datenblatt!$R:$R,">="&BO$8,Datenblatt!$R:$R,"<="&EOMONTH(BO$8,0)), "") -> 0 | BP12: =IF(ISNUMBER($C12), SUMIFS(Datenblatt!$M:$M, Datenblatt!$G:$G,$C12, Datenblatt!$R:$R,">="&BP$8,Datenblatt!$R:$R,"<="&EOMONTH(BP$8,0)) - SUMIFS(Datenblatt!$M:$M, Datenblatt!$E:$E,$C12, Datenblatt!$R:$R,">="&BP$8,Datenblatt!$R:$R,"<="&EOMONTH(BP$8,0)), "") -> 0 | BQ12: =IF(ISNUMBER($C12), SUMIFS(Datenblatt!$M:$M, Datenblatt!$G:$G,$C12, Datenblatt!$R:$R,">="&BQ$8,Datenblatt!$R:$R,"<="&EOMONTH(BQ$8,0)) - SUMIFS(Datenblatt!$M:$M, Datenblatt!$E:$E,$C12, Datenblatt!$R:$R,">="&BQ$8,Datenblatt!$R:$R,"<="&EOMONTH(BQ$8,0)), "") -> 0 | BR12: =IF(ISNUMBER($C12), SUMIFS(Datenblatt!$M:$M, Datenblatt!$G:$G,$C12, Datenblatt!$R:$R,">="&BR$8,Datenblatt!$R:$R,"<="&EOMONTH(BR$8,0)) - SUMIFS(Datenblatt!$M:$M, Datenblatt!$E:$E,$C12, Datenblatt!$R:$R,">="&BR$8,Datenblatt!$R:$R,"<="&EOMONTH(BR$8,0)), "") -> 0 | BS12: =IF(ISNUMBER($C12), SUMIFS(Datenblatt!$M:$M, Datenblatt!$G:$G,$C12, Datenblatt!$R:$R,">="&BS$8,Datenblatt!$R:$R,"<="&EOMONTH(BS$8,0)) - SUMIFS(Datenblatt!$M:$M, Datenblatt!$E:$E,$C12, Datenblatt!$R:$R,">="&BS$8,Datenblatt!$R:$R,"<="&EOMONTH(BS$8,0)), "") -> 0 | BT12: =IF(ISNUMBER($C12), SUMIFS(Datenblatt!$M:$M, Datenblatt!$G:$G,$C12, Datenblatt!$R:$R,">="&BT$8,Datenblatt!$R:$R,"<="&EOMONTH(BT$8,0)) - SUMIFS(Datenblatt!$M:$M, Datenblatt!$E:$E,$C12, Datenblatt!$R:$R,">="&BT$8,Datenblatt!$R:$R,"<="&EOMONTH(BT$8,0)), "") -> 0 | BU12: =IF(ISNUMBER($C12), SUMIFS(Datenblatt!$M:$M, Datenblatt!$G:$G,$C12, Datenblatt!$R:$R,">="&BU$8,Datenblatt!$R:$R,"<="&EOMONTH(BU$8,0)) - SUMIFS(Datenblatt!$M:$M, Datenblatt!$E:$E,$C12, Datenblatt!$R:$R,">="&BU$8,Datenblatt!$R:$R,"<="&EOMONTH(BU$8,0)), "") -> 797.2603665 | BV12: =IF(ISNUMBER($C12), SUMIFS(Datenblatt!$M:$M, Datenblatt!$G:$G,$C12, Datenblatt!$R:$R,">="&BV$8,Datenblatt!$R:$R,"<="&EOMONTH(BV$8,0)) - SUMIFS(Datenblatt!$M:$M, Datenblatt!$E:$E,$C12, Datenblatt!$R:$R,">="&BV$8,Datenblatt!$R:$R,"<="&EOMONTH(BV$8,0)), "") -> 0 | BW12: =IF(ISNUMBER($C12), SUMIFS(Datenblatt!$M:$M, Datenblatt!$G:$G,$C12, Datenblatt!$R:$R,">="&BW$8,Datenblatt!$R:$R,"<="&EOMONTH(BW$8,0)) - SUMIFS(Datenblatt!$M:$M, Datenblatt!$E:$E,$C12, Datenblatt!$R:$R,">="&BW$8,Datenblatt!$R:$R,"<="&EOMONTH(BW$8,0)), "") -> 0 | BX12: =IF(ISNUMBER($C12), SUMIFS(Datenblatt!$M:$M, Datenblatt!$G:$G,$C12, Datenblatt!$R:$R,">="&BX$8,Datenblatt!$R:$R,"<="&EOMONTH(BX$8,0)) - SUMIFS(Datenblatt!$M:$M, Datenblatt!$E:$E,$C12, Datenblatt!$R:$R,">="&BX$8,Datenblatt!$R:$R,"<="&EOMONTH(BX$8,0)), "") -> 0 | BY12: =IF(ISNUMBER($C12), SUMIFS(Datenblatt!$M:$M, Datenblatt!$G:$G,$C12, Datenblatt!$R:$R,">="&BY$8,Datenblatt!$R:$R,"<="&EOMONTH(BY$8,0)) - SUMIFS(Datenblatt!$M:$M, Datenblatt!$E:$E,$C12, Datenblatt!$R:$R,">="&BY$8,Datenblatt!$R:$R,"<="&EOMONTH(BY$8,0)), "") -> 0 | BZ12: =IF(ISNUMBER($C12), SUMIFS(Datenblatt!$M:$M, Datenblatt!$G:$G,$C12, Datenblatt!$R:$R,">="&BZ$8,Datenblatt!$R:$R,"<="&EOMONTH(BZ$8,0)) - SUMIFS(Datenblatt!$M:$M, Datenblatt!$E:$E,$C12, Datenblatt!$R:$R,">="&BZ$8,Datenblatt!$R:$R,"<="&EOMONTH(BZ$8,0)), "") -> 0 | CA12: =IF(ISNUMBER($C12), SUMIFS(Datenblatt!$M:$M, Datenblatt!$G:$G,$C12, Datenblatt!$R:$R,">="&CA$8,Datenblatt!$R:$R,"<="&EOMONTH(CA$8,0)) - SUMIFS(Datenblatt!$M:$M, Datenblatt!$E:$E,$C12, Datenblatt!$R:$R,">="&CA$8,Datenblatt!$R:$R,"<="&EOMONTH(CA$8,0)), "") -> 0 | CB12: =IF(ISNUMBER($C12), SUMIFS(Datenblatt!$M:$M, Datenblatt!$G:$G,$C12, Datenblatt!$R:$R,">="&CB$8,Datenblatt!$R:$R,"<="&EOMONTH(CB$8,0)) - SUMIFS(Datenblatt!$M:$M, Datenblatt!$E:$E,$C12, Datenblatt!$R:$R,">="&CB$8,Datenblatt!$R:$R,"<="&EOMONTH(CB$8,0)), "") -> 192.2415763 | CC12: =IF(ISNUMBER($C12), SUMIFS(Datenblatt!$M:$M, Datenblatt!$G:$G,$C12, Datenblatt!$R:$R,">="&CC$8,Datenblatt!$R:$R,"<="&EOMONTH(CC$8,0)) - SUMIFS(Datenblatt!$M:$M, Datenblatt!$E:$E,$C12, Datenblatt!$R:$R,">="&CC$8,Datenblatt!$R:$R,"<="&EOMONTH(CC$8,0)), "") -> 0 | CD12: =IF(ISNUMBER($C12), SUMIFS(Datenblatt!$M:$M, Datenblatt!$G:$G,$C12, Datenblatt!$R:$R,">="&CD$8,Datenblatt!$R:$R,"<="&EOMONTH(CD$8,0)) - SUMIFS(Datenblatt!$M:$M, Datenblatt!$E:$E,$C12, Datenblatt!$R:$R,">="&CD$8,Datenblatt!$R:$R,"<="&EOMONTH(CD$8,0)), "") -> 0 | CE12: =IF(ISNUMBER($C12), SUMIFS(Datenblatt!$M:$M, Datenblatt!$G:$G,$C12, Datenblatt!$R:$R,">="&CE$8,Datenblatt!$R:$R,"<="&EOMONTH(CE$8,0)) - SUMIFS(Datenblatt!$M:$M, Datenblatt!$E:$E,$C12, Datenblatt!$R:$R,">="&CE$8,Datenblatt!$R:$R,"<="&EOMONTH(CE$8,0)), "") -> 0 | CF12: =IF(ISNUMBER($C12), SUMIFS(Datenblatt!$M:$M, Datenblatt!$G:$G,$C12, Datenblatt!$R:$R,">="&CF$8,Datenblatt!$R:$R,"<="&EOMONTH(CF$8,0)) - SUMIFS(Datenblatt!$M:$M, Datenblatt!$E:$E,$C12, Datenblatt!$R:$R,">="&CF$8,Datenblatt!$R:$R,"<="&EOMONTH(CF$8,0)), "") -> 0 | CG12: =IF(ISNUMBER($C12), SUMIFS(Datenblatt!$M:$M, Datenblatt!$G:$G,$C12, Datenblatt!$R:$R,">="&CG$8,Datenblatt!$R:$R,"<="&EOMONTH(CG$8,0)) - SUMIFS(Datenblatt!$M:$M, Datenblatt!$E:$E,$C12, Datenblatt!$R:$R,">="&CG$8,Datenblatt!$R:$R,"<="&EOMONTH(CG$8,0)), "") -> 0 | CH12: =IF(ISNUMBER($C12), SUMIFS(Datenblatt!$M:$M, Datenblatt!$G:$G,$C12, Datenblatt!$R:$R,">="&CH$8,Datenblatt!$R:$R,"<="&EOMONTH(CH$8,0)) - SUMIFS(Datenblatt!$M:$M, Datenblatt!$E:$E,$C12, Datenblatt!$R:$R,">="&CH$8,Datenblatt!$R:$R,"<="&EOMONTH(CH$8,0)), "") -> 0 | CI12: =IF(ISNUMBER($C12), SUMIFS(Datenblatt!$M:$M, Datenblatt!$G:$G,$C12, Datenblatt!$R:$R,">="&CI$8,Datenblatt!$R:$R,"<="&EOMONTH(CI$8,0)) - SUMIFS(Datenblatt!$M:$M, Datenblatt!$E:$E,$C12, Datenblatt!$R:$R,">="&CI$8,Datenblatt!$R:$R,"<="&EOMONTH(CI$8,0)), "") -> 0 | CJ12: =IF(ISNUMBER($C12), SUMIFS(Datenblatt!$M:$M, Datenblatt!$G:$G,$C12, Datenblatt!$R:$R,">="&CJ$8,Datenblatt!$R:$R,"<="&EOMONTH(CJ$8,0)) - SUMIFS(Datenblatt!$M:$M, Datenblatt!$E:$E,$C12, Datenblatt!$R:$R,">="&CJ$8,Datenblatt!$R:$R,"<="&EOMONTH(CJ$8,0)), "") -> 0 | CK12: =IF(ISNUMBER($C12), SUMIFS(Datenblatt!$M:$M, Datenblatt!$G:$G,$C12, Datenblatt!$R:$R,">="&CK$8,Datenblatt!$R:$R,"<="&EOMONTH(CK$8,0)) - SUMIFS(Datenblatt!$M:$M, Datenblatt!$E:$E,$C12, Datenblatt!$R:$R,">="&CK$8,Datenblatt!$R:$R,"<="&EOMONTH(CK$8,0)), "") -> 0 | CL12: =IF(ISNUMBER($C12), SUMIFS(Datenblatt!$M:$M, Datenblatt!$G:$G,$C12, Datenblatt!$R:$R,">="&CL$8,Datenblatt!$R:$R,"<="&EOMONTH(CL$8,0)) - SUMIFS(Datenblatt!$M:$M, Datenblatt!$E:$E,$C12, Datenblatt!$R:$R,">="&CL$8,Datenblatt!$R:$R,"<="&EOMONTH(CL$8,0)), "") -> 0 | CM12: =IF(ISNUMBER($C12), SUMIFS(Datenblatt!$M:$M, Datenblatt!$G:$G,$C12, Datenblatt!$R:$R,">="&CM$8,Datenblatt!$R:$R,"<="&EOMONTH(CM$8,0)) - SUMIFS(Datenblatt!$M:$M, Datenblatt!$E:$E,$C12, Datenblatt!$R:$R,">="&CM$8,Datenblatt!$R:$R,"<="&EOMONTH(CM$8,0)), "") -> 0 | CN12: =IF(ISNUMBER($C12), SUMIFS(Datenblatt!$M:$M, Datenblatt!$G:$G,$C12, Datenblatt!$R:$R,">="&CN$8,Datenblatt!$R:$R,"<="&EOMONTH(CN$8,0)) - SUMIFS(Datenblatt!$M:$M, Datenblatt!$E:$E,$C12, Datenblatt!$R:$R,">="&CN$8,Datenblatt!$R:$R,"<="&EOMONTH(CN$8,0)), "") -> 0 | CO12: =IF(ISNUMBER($C12), SUMIFS(Datenblatt!$M:$M, Datenblatt!$G:$G,$C12, Datenblatt!$R:$R,">="&CO$8,Datenblatt!$R:$R,"<="&EOMONTH(CO$8,0)) - SUMIFS(Datenblatt!$M:$M, Datenblatt!$E:$E,$C12, Datenblatt!$R:$R,">="&CO$8,Datenblatt!$R:$R,"<="&EOMONTH(CO$8,0)), "") -> 0 | CP12: =IF(ISNUMBER($C12), SUMIFS(Datenblatt!$M:$M, Datenblatt!$G:$G,$C12, Datenblatt!$R:$R,">="&CP$8,Datenblatt!$R:$R,"<="&EOMONTH(CP$8,0)) - SUMIFS(Datenblatt!$M:$M, Datenblatt!$E:$E,$C12, Datenblatt!$R:$R,">="&CP$8,Datenblatt!$R:$R,"<="&EOMONTH(CP$8,0)), "") -> 0 | CQ12: =IF(ISNUMBER($C12), SUMIFS(Datenblatt!$M:$M, Datenblatt!$G:$G,$C12, Datenblatt!$R:$R,">="&CQ$8,Datenblatt!$R:$R,"<="&EOMONTH(CQ$8,0)) - SUMIFS(Datenblatt!$M:$M, Datenblatt!$E:$E,$C12, Datenblatt!$R:$R,">="&CQ$8,Datenblatt!$R:$R,"<="&EOMONTH(CQ$8,0)), "") -> 0 | CR12: =IF(ISNUMBER($C12), SUMIFS(Datenblatt!$M:$M, Datenblatt!$G:$G,$C12, Datenblatt!$R:$R,">="&CR$8,Datenblatt!$R:$R,"<="&EOMONTH(CR$8,0)) - SUMIFS(Datenblatt!$M:$M, Datenblatt!$E:$E,$C12, Datenblatt!$R:$R,">="&CR$8,Datenblatt!$R:$R,"<="&EOMONTH(CR$8,0)), "") -> 0 | CS12: =IF(ISNUMBER($C12), SUMIFS(Datenblatt!$M:$M, Datenblatt!$G:$G,$C12, Datenblatt!$R:$R,">="&CS$8,Datenblatt!$R:$R,"<="&EOMONTH(CS$8,0)) - SUMIFS(Datenblatt!$M:$M, Datenblatt!$E:$E,$C12, Datenblatt!$R:$R,">="&CS$8,Datenblatt!$R:$R,"<="&EOMONTH(CS$8,0)), "") -> 0 | CT12: =IF(ISNUMBER($C12), SUMIFS(Datenblatt!$M:$M, Datenblatt!$G:$G,$C12, Datenblatt!$R:$R,">="&CT$8,Datenblatt!$R:$R,"<="&EOMONTH(CT$8,0)) - SUMIFS(Datenblatt!$M:$M, Datenblatt!$E:$E,$C12, Datenblatt!$R:$R,">="&CT$8,Datenblatt!$R:$R,"<="&EOMONTH(CT$8,0)), "") -> 0 | CU12: =IF(ISNUMBER($C12), SUMIFS(Datenblatt!$M:$M, Datenblatt!$G:$G,$C12, Datenblatt!$R:$R,">="&CU$8,Datenblatt!$R:$R,"<="&EOMONTH(CU$8,0)) - SUMIFS(Datenblatt!$M:$M, Datenblatt!$E:$E,$C12, Datenblatt!$R:$R,">="&CU$8,Datenblatt!$R:$R,"<="&EOMONTH(CU$8,0)), "") -> 0 | CV12: =IF(ISNUMBER($C12), SUMIFS(Datenblatt!$M:$M, Datenblatt!$G:$G,$C12, Datenblatt!$R:$R,">="&CV$8,Datenblatt!$R:$R,"<="&EOMONTH(CV$8,0)) - SUMIFS(Datenblatt!$M:$M, Datenblatt!$E:$E,$C12, Datenblatt!$R:$R,">="&CV$8,Datenblatt!$R:$R,"<="&EOMONTH(CV$8,0)), "") -> 0 | CW12: =IF(ISNUMBER($C12), SUMIFS(Datenblatt!$M:$M, Datenblatt!$G:$G,$C12, Datenblatt!$R:$R,">="&CW$8,Datenblatt!$R:$R,"<="&EOMONTH(CW$8,0)) - SUMIFS(Datenblatt!$M:$M, Datenblatt!$E:$E,$C12, Datenblatt!$R:$R,">="&CW$8,Datenblatt!$R:$R,"<="&EOMONTH(CW$8,0)), "") -> 0 | CX12: =IF(ISNUMBER($C12), SUMIFS(Datenblatt!$M:$M, Datenblatt!$G:$G,$C12, Datenblatt!$R:$R,">="&CX$8,Datenblatt!$R:$R,"<="&EOMONTH(CX$8,0)) - SUMIFS(Datenblatt!$M:$M, Datenblatt!$E:$E,$C12, Datenblatt!$R:$R,">="&CX$8,Datenblatt!$R:$R,"<="&EOMONTH(CX$8,0)), "") -> 0 | CY12: =IF(ISNUMBER($C12), SUMIFS(Datenblatt!$M:$M, Datenblatt!$G:$G,$C12, Datenblatt!$R:$R,">="&CY$8,Datenblatt!$R:$R,"<="&EOMONTH(CY$8,0)) - SUMIFS(Datenblatt!$M:$M, Datenblatt!$E:$E,$C12, Datenblatt!$R:$R,">="&CY$8,Datenblatt!$R:$R,"<="&EOMONTH(CY$8,0)), "") -> 0 | CZ12: =IF(ISNUMBER($C12), SUMIFS(Datenblatt!$M:$M, Datenblatt!$G:$G,$C12, Datenblatt!$R:$R,">="&CZ$8,Datenblatt!$R:$R,"<="&EOMONTH(CZ$8,0)) - SUMIFS(Datenblatt!$M:$M, Datenblatt!$E:$E,$C12, Datenblatt!$R:$R,">="&CZ$8,Datenblatt!$R:$R,"<="&EOMONTH(CZ$8,0)), "") -> 0 | DA12: =IF(ISNUMBER($C12), SUMIFS(Datenblatt!$M:$M, Datenblatt!$G:$G,$C12, Datenblatt!$R:$R,">="&DA$8,Datenblatt!$R:$R,"<="&EOMONTH(DA$8,0)) - SUMIFS(Datenblatt!$M:$M, Datenblatt!$E:$E,$C12, Datenblatt!$R:$R,">="&DA$8,Datenblatt!$R:$R,"<="&EOMONTH(DA$8,0)), "") -> 0 | DB12: =IF(ISNUMBER($C12), SUMIFS(Datenblatt!$M:$M, Datenblatt!$G:$G,$C12, Datenblatt!$R:$R,">="&DB$8,Datenblatt!$R:$R,"<="&EOMONTH(DB$8,0)) - SUMIFS(Datenblatt!$M:$M, Datenblatt!$E:$E,$C12, Datenblatt!$R:$R,">="&DB$8,Datenblatt!$R:$R,"<="&EOMONTH(DB$8,0)), "") -> 0 | DC12: =IF(ISNUMBER($C12), SUMIFS(Datenblatt!$M:$M, Datenblatt!$G:$G,$C12, Datenblatt!$R:$R,">="&DC$8,Datenblatt!$R:$R,"<="&EOMONTH(DC$8,0)) - SUMIFS(Datenblatt!$M:$M, Datenblatt!$E:$E,$C12, Datenblatt!$R:$R,">="&DC$8,Datenblatt!$R:$R,"<="&EOMONTH(DC$8,0)), "") -> 0 | DD12: =IF(ISNUMBER($C12), SUMIFS(Datenblatt!$M:$M, Datenblatt!$G:$G,$C12, Datenblatt!$R:$R,">="&DD$8,Datenblatt!$R:$R,"<="&EOMONTH(DD$8,0)) - SUMIFS(Datenblatt!$M:$M, Datenblatt!$E:$E,$C12, Datenblatt!$R:$R,">="&DD$8,Datenblatt!$R:$R,"<="&EOMONTH(DD$8,0)), "") -> 0 | DE12: =IF(ISNUMBER($C12), SUMIFS(Datenblatt!$M:$M, Datenblatt!$G:$G,$C12, Datenblatt!$R:$R,">="&DE$8,Datenblatt!$R:$R,"<="&EOMONTH(DE$8,0)) - SUMIFS(Datenblatt!$M:$M, Datenblatt!$E:$E,$C12, Datenblatt!$R:$R,">="&DE$8,Datenblatt!$R:$R,"<="&EOMONTH(DE$8,0)), "") -> 0 | DF12: =IF(ISNUMBER($C12), SUMIFS(Datenblatt!$M:$M, Datenblatt!$G:$G,$C12, Datenblatt!$R:$R,">="&DF$8,Datenblatt!$R:$R,"<="&EOMONTH(DF$8,0)) - SUMIFS(Datenblatt!$M:$M, Datenblatt!$E:$E,$C12, Datenblatt!$R:$R,">="&DF$8,Datenblatt!$R:$R,"<="&EOMONTH(DF$8,0)), "") -> 0
B13: Ertrag | C13: 3809 | D13: MWST Saldosteuersatz | G13: =IF(ISNUMBER($C13), SUMIFS(Datenblatt!$M:$M, Datenblatt!$G:$G,$C13, Datenblatt!$R:$R,">="&G$8,Datenblatt!$R:$R,"<="&EOMONTH(G$8,11)) - SUMIFS(Datenblatt!$M:$M, Datenblatt!$E:$E,$C13, Datenblatt!$R:$R,">="&G$8,Datenblatt!$R:$R,"<="&EOMONTH(G$8,11)), "") -> 0 | H13: =IF(ISNUMBER($C13), SUMIFS(Datenblatt!$M:$M, Datenblatt!$G:$G,$C13, Datenblatt!$R:$R,">="&H$8,Datenblatt!$R:$R,"<="&EOMONTH(H$8,11)) - SUMIFS(Datenblatt!$M:$M, Datenblatt!$E:$E,$C13, Datenblatt!$R:$R,">="&H$8,Datenblatt!$R:$R,"<="&EOMONTH(H$8,11)), "") -> 0 | I13: =IF(ISNUMBER($C13), SUMIFS(Datenblatt!$M:$M, Datenblatt!$G:$G,$C13, Datenblatt!$R:$R,">="&I$8,Datenblatt!$R:$R,"<="&EOMONTH(I$8,11)) - SUMIFS(Datenblatt!$M:$M, Datenblatt!$E:$E,$C13, Datenblatt!$R:$R,">="&I$8,Datenblatt!$R:$R,"<="&EOMONTH(I$8,11)), "") -> 0 | J13: =IF(ISNUMBER($C13), SUMIFS(Datenblatt!$M:$M, Datenblatt!$G:$G,$C13, Datenblatt!$R:$R,">="&J$8,Datenblatt!$R:$R,"<="&EOMONTH(J$8,11)) - SUMIFS(Datenblatt!$M:$M, Datenblatt!$E:$E,$C13, Datenblatt!$R:$R,">="&J$8,Datenblatt!$R:$R,"<="&EOMONTH(J$8,11)), "") -> 0 | K13: =IF(ISNUMBER($C13), SUMIFS(Datenblatt!$M:$M, Datenblatt!$G:$G,$C13, Datenblatt!$R:$R,">="&K$8,Datenblatt!$R:$R,"<="&EOMONTH(K$8,11)) - SUMIFS(Datenblatt!$M:$M, Datenblatt!$E:$E,$C13, Datenblatt!$R:$R,">="&K$8,Datenblatt!$R:$R,"<="&EOMONTH(K$8,11)), "") -> 605.8282141 | L13: =IF(ISNUMBER($C13), SUMIFS(Datenblatt!$M:$M, Datenblatt!$G:$G,$C13, Datenblatt!$R:$R,">="&L$8,Datenblatt!$R:$R,"<="&EOMONTH(L$8,11)) - SUMIFS(Datenblatt!$M:$M, Datenblatt!$E:$E,$C13, Datenblatt!$R:$R,">="&L$8,Datenblatt!$R:$R,"<="&EOMONTH(L$8,11)), "") -> 35.68280807 | M13: =IF(ISNUMBER($C13), SUMIFS(Datenblatt!$M:$M, Datenblatt!$G:$G,$C13, Datenblatt!$R:$R,">="&M$8,Datenblatt!$R:$R,"<="&EOMONTH(M$8,11)) - SUMIFS(Datenblatt!$M:$M, Datenblatt!$E:$E,$C13, Datenblatt!$R:$R,">="&M$8,Datenblatt!$R:$R,"<="&EOMONTH(M$8,11)), "") -> 0 | N13: =IF(ISNUMBER($C13), SUMIFS(Datenblatt!$M:$M, Datenblatt!$G:$G,$C13, Datenblatt!$R:$R,">="&N$8,Datenblatt!$R:$R,"<="&EOMONTH(N$8,11)) - SUMIFS(Datenblatt!$M:$M, Datenblatt!$E:$E,$C13, Datenblatt!$R:$R,">="&N$8,Datenblatt!$R:$R,"<="&EOMONTH(N$8,11)), "") -> 0 | O13: =IF(ISNUMBER($C13), SUMIFS(Datenblatt!$M:$M, Datenblatt!$G:$G,$C13, Datenblatt!$R:$R,">="&O$8,Datenblatt!$R:$R,"<="&EOMONTH(O$8,0)) - SUMIFS(Datenblatt!$M:$M, Datenblatt!$E:$E,$C13, Datenblatt!$R:$R,">="&O$8,Datenblatt!$R:$R,"<="&EOMONTH(O$8,0)), "") -> 0 | P13: =IF(ISNUMBER($C13), SUMIFS(Datenblatt!$M:$M, Datenblatt!$G:$G,$C13, Datenblatt!$R:$R,">="&P$8,Datenblatt!$R:$R,"<="&EOMONTH(P$8,0)) - SUMIFS(Datenblatt!$M:$M, Datenblatt!$E:$E,$C13, Datenblatt!$R:$R,">="&P$8,Datenblatt!$R:$R,"<="&EOMONTH(P$8,0)), "") -> 0 | Q13: =IF(ISNUMBER($C13), SUMIFS(Datenblatt!$M:$M, Datenblatt!$G:$G,$C13, Datenblatt!$R:$R,">="&Q$8,Datenblatt!$R:$R,"<="&EOMONTH(Q$8,0)) - SUMIFS(Datenblatt!$M:$M, Datenblatt!$E:$E,$C13, Datenblatt!$R:$R,">="&Q$8,Datenblatt!$R:$R,"<="&EOMONTH(Q$8,0)), "") -> 0 | R13: =IF(ISNUMBER($C13), SUMIFS(Datenblatt!$M:$M, Datenblatt!$G:$G,$C13, Datenblatt!$R:$R,">="&R$8,Datenblatt!$R:$R,"<="&EOMONTH(R$8,0)) - SUMIFS(Datenblatt!$M:$M, Datenblatt!$E:$E,$C13, Datenblatt!$R:$R,">="&R$8,Datenblatt!$R:$R,"<="&EOMONTH(R$8,0)), "") -> 0 | S13: =IF(ISNUMBER($C13), SUMIFS(Datenblatt!$M:$M, Datenblatt!$G:$G,$C13, Datenblatt!$R:$R,">="&S$8,Datenblatt!$R:$R,"<="&EOMONTH(S$8,0)) - SUMIFS(Datenblatt!$M:$M, Datenblatt!$E:$E,$C13, Datenblatt!$R:$R,">="&S$8,Datenblatt!$R:$R,"<="&EOMONTH(S$8,0)), "") -> 0 | T13: =IF(ISNUMBER($C13), SUMIFS(Datenblatt!$M:$M, Datenblatt!$G:$G,$C13, Datenblatt!$R:$R,">="&T$8,Datenblatt!$R:$R,"<="&EOMONTH(T$8,0)) - SUMIFS(Datenblatt!$M:$M, Datenblatt!$E:$E,$C13, Datenblatt!$R:$R,">="&T$8,Datenblatt!$R:$R,"<="&EOMONTH(T$8,0)), "") -> 0 | U13: =IF(ISNUMBER($C13), SUMIFS(Datenblatt!$M:$M, Datenblatt!$G:$G,$C13, Datenblatt!$R:$R,">="&U$8,Datenblatt!$R:$R,"<="&EOMONTH(U$8,0)) - SUMIFS(Datenblatt!$M:$M, Datenblatt!$E:$E,$C13, Datenblatt!$R:$R,">="&U$8,Datenblatt!$R:$R,"<="&EOMONTH(U$8,0)), "") -> 0 | V13: =IF(ISNUMBER($C13), SUMIFS(Datenblatt!$M:$M, Datenblatt!$G:$G,$C13, Datenblatt!$R:$R,">="&V$8,Datenblatt!$R:$R,"<="&EOMONTH(V$8,0)) - SUMIFS(Datenblatt!$M:$M, Datenblatt!$E:$E,$C13, Datenblatt!$R:$R,">="&V$8,Datenblatt!$R:$R,"<="&EOMONTH(V$8,0)), "") -> 0 | W13: =IF(ISNUMBER($C13), SUMIFS(Datenblatt!$M:$M, Datenblatt!$G:$G,$C13, Datenblatt!$R:$R,">="&W$8,Datenblatt!$R:$R,"<="&EOMONTH(W$8,0)) - SUMIFS(Datenblatt!$M:$M, Datenblatt!$E:$E,$C13, Datenblatt!$R:$R,">="&W$8,Datenblatt!$R:$R,"<="&EOMONTH(W$8,0)), "") -> 0 | X13: =IF(ISNUMBER($C13), SUMIFS(Datenblatt!$M:$M, Datenblatt!$G:$G,$C13, Datenblatt!$R:$R,">="&X$8,Datenblatt!$R:$R,"<="&EOMONTH(X$8,0)) - SUMIFS(Datenblatt!$M:$M, Datenblatt!$E:$E,$C13, Datenblatt!$R:$R,">="&X$8,Datenblatt!$R:$R,"<="&EOMONTH(X$8,0)), "") -> 0 | Y13: =IF(ISNUMBER($C13), SUMIFS(Datenblatt!$M:$M, Datenblatt!$G:$G,$C13, Datenblatt!$R:$R,">="&Y$8,Datenblatt!$R:$R,"<="&EOMONTH(Y$8,0)) - SUMIFS(Datenblatt!$M:$M, Datenblatt!$E:$E,$C13, Datenblatt!$R:$R,">="&Y$8,Datenblatt!$R:$R,"<="&EOMONTH(Y$8,0)), "") -> 0 | Z13: =IF(ISNUMBER($C13), SUMIFS(Datenblatt!$M:$M, Datenblatt!$G:$G,$C13, Datenblatt!$R:$R,">="&Z$8,Datenblatt!$R:$R,"<="&EOMONTH(Z$8,0)) - SUMIFS(Datenblatt!$M:$M, Datenblatt!$E:$E,$C13, Datenblatt!$R:$R,">="&Z$8,Datenblatt!$R:$R,"<="&EOMONTH(Z$8,0)), "") -> 0 | AA13: =IF(ISNUMBER($C13), SUMIFS(Datenblatt!$M:$M, Datenblatt!$G:$G,$C13, Datenblatt!$R:$R,">="&AA$8,Datenblatt!$R:$R,"<="&EOMONTH(AA$8,0)) - SUMIFS(Datenblatt!$M:$M, Datenblatt!$E:$E,$C13, Datenblatt!$R:$R,">="&AA$8,Datenblatt!$R:$R,"<="&EOMONTH(AA$8,0)), "") -> 0 | AB13: =IF(ISNUMBER($C13), SUMIFS(Datenblatt!$M:$M, Datenblatt!$G:$G,$C13, Datenblatt!$R:$R,">="&AB$8,Datenblatt!$R:$R,"<="&EOMONTH(AB$8,0)) - SUMIFS(Datenblatt!$M:$M, Datenblatt!$E:$E,$C13, Datenblatt!$R:$R,">="&AB$8,Datenblatt!$R:$R,"<="&EOMONTH(AB$8,0)), "") -> 0 | AC13: =IF(ISNUMBER($C13), SUMIFS(Datenblatt!$M:$M, Datenblatt!$G:$G,$C13, Datenblatt!$R:$R,">="&AC$8,Datenblatt!$R:$R,"<="&EOMONTH(AC$8,0)) - SUMIFS(Datenblatt!$M:$M, Datenblatt!$E:$E,$C13, Datenblatt!$R:$R,">="&AC$8,Datenblatt!$R:$R,"<="&EOMONTH(AC$8,0)), "") -> 0 | AD13: =IF(ISNUMBER($C13), SUMIFS(Datenblatt!$M:$M, Datenblatt!$G:$G,$C13, Datenblatt!$R:$R,">="&AD$8,Datenblatt!$R:$R,"<="&EOMONTH(AD$8,0)) - SUMIFS(Datenblatt!$M:$M, Datenblatt!$E:$E,$C13, Datenblatt!$R:$R,">="&AD$8,Datenblatt!$R:$R,"<="&EOMONTH(AD$8,0)), "") -> 0 | AE13: =IF(ISNUMBER($C13), SUMIFS(Datenblatt!$M:$M, Datenblatt!$G:$G,$C13, Datenblatt!$R:$R,">="&AE$8,Datenblatt!$R:$R,"<="&EOMONTH(AE$8,0)) - SUMIFS(Datenblatt!$M:$M, Datenblatt!$E:$E,$C13, Datenblatt!$R:$R,">="&AE$8,Datenblatt!$R:$R,"<="&EOMONTH(AE$8,0)), "") -> 0 | AF13: =IF(ISNUMBER($C13), SUMIFS(Datenblatt!$M:$M, Datenblatt!$G:$G,$C13, Datenblatt!$R:$R,">="&AF$8,Datenblatt!$R:$R,"<="&EOMONTH(AF$8,0)) - SUMIFS(Datenblatt!$M:$M, Datenblatt!$E:$E,$C13, Datenblatt!$R:$R,">="&AF$8,Datenblatt!$R:$R,"<="&EOMONTH(AF$8,0)), "") -> 0 | AG13: =IF(ISNUMBER($C13), SUMIFS(Datenblatt!$M:$M, Datenblatt!$G:$G,$C13, Datenblatt!$R:$R,">="&AG$8,Datenblatt!$R:$R,"<="&EOMONTH(AG$8,0)) - SUMIFS(Datenblatt!$M:$M, Datenblatt!$E:$E,$C13, Datenblatt!$R:$R,">="&AG$8,Datenblatt!$R:$R,"<="&EOMONTH(AG$8,0)), "") -> 0 | AH13: =IF(ISNUMBER($C13), SUMIFS(Datenblatt!$M:$M, Datenblatt!$G:$G,$C13, Datenblatt!$R:$R,">="&AH$8,Datenblatt!$R:$R,"<="&EOMONTH(AH$8,0)) - SUMIFS(Datenblatt!$M:$M, Datenblatt!$E:$E,$C13, Datenblatt!$R:$R,">="&AH$8,Datenblatt!$R:$R,"<="&EOMONTH(AH$8,0)), "") -> 0 | AI13: =IF(ISNUMBER($C13), SUMIFS(Datenblatt!$M:$M, Datenblatt!$G:$G,$C13, Datenblatt!$R:$R,">="&AI$8,Datenblatt!$R:$R,"<="&EOMONTH(AI$8,0)) - SUMIFS(Datenblatt!$M:$M, Datenblatt!$E:$E,$C13, Datenblatt!$R:$R,">="&AI$8,Datenblatt!$R:$R,"<="&EOMONTH(AI$8,0)), "") -> 0 | AJ13: =IF(ISNUMBER($C13), SUMIFS(Datenblatt!$M:$M, Datenblatt!$G:$G,$C13, Datenblatt!$R:$R,">="&AJ$8,Datenblatt!$R:$R,"<="&EOMONTH(AJ$8,0)) - SUMIFS(Datenblatt!$M:$M, Datenblatt!$E:$E,$C13, Datenblatt!$R:$R,">="&AJ$8,Datenblatt!$R:$R,"<="&EOMONTH(AJ$8,0)), "") -> 0 | AK13: =IF(ISNUMBER($C13), SUMIFS(Datenblatt!$M:$M, Datenblatt!$G:$G,$C13, Datenblatt!$R:$R,">="&AK$8,Datenblatt!$R:$R,"<="&EOMONTH(AK$8,0)) - SUMIFS(Datenblatt!$M:$M, Datenblatt!$E:$E,$C13, Datenblatt!$R:$R,">="&AK$8,Datenblatt!$R:$R,"<="&EOMONTH(AK$8,0)), "") -> 0 | AL13: =IF(ISNUMBER($C13), SUMIFS(Datenblatt!$M:$M, Datenblatt!$G:$G,$C13, Datenblatt!$R:$R,">="&AL$8,Datenblatt!$R:$R,"<="&EOMONTH(AL$8,0)) - SUMIFS(Datenblatt!$M:$M, Datenblatt!$E:$E,$C13, Datenblatt!$R:$R,">="&AL$8,Datenblatt!$R:$R,"<="&EOMONTH(AL$8,0)), "") -> 0 | AM13: =IF(ISNUMBER($C13), SUMIFS(Datenblatt!$M:$M, Datenblatt!$G:$G,$C13, Datenblatt!$R:$R,">="&AM$8,Datenblatt!$R:$R,"<="&EOMONTH(AM$8,0)) - SUMIFS(Datenblatt!$M:$M, Datenblatt!$E:$E,$C13, Datenblatt!$R:$R,">="&AM$8,Datenblatt!$R:$R,"<="&EOMONTH(AM$8,0)), "") -> 0 | AN13: =IF(ISNUMBER($C13), SUMIFS(Datenblatt!$M:$M, Datenblatt!$G:$G,$C13, Datenblatt!$R:$R,">="&AN$8,Datenblatt!$R:$R,"<="&EOMONTH(AN$8,0)) - SUMIFS(Datenblatt!$M:$M, Datenblatt!$E:$E,$C13, Datenblatt!$R:$R,">="&AN$8,Datenblatt!$R:$R,"<="&EOMONTH(AN$8,0)), "") -> 0 | AO13: =IF(ISNUMBER($C13), SUMIFS(Datenblatt!$M:$M, Datenblatt!$G:$G,$C13, Datenblatt!$R:$R,">="&AO$8,Datenblatt!$R:$R,"<="&EOMONTH(AO$8,0)) - SUMIFS(Datenblatt!$M:$M, Datenblatt!$E:$E,$C13, Datenblatt!$R:$R,">="&AO$8,Datenblatt!$R:$R,"<="&EOMONTH(AO$8,0)), "") -> 0 | AP13: =IF(ISNUMBER($C13), SUMIFS(Datenblatt!$M:$M, Datenblatt!$G:$G,$C13, Datenblatt!$R:$R,">="&AP$8,Datenblatt!$R:$R,"<="&EOMONTH(AP$8,0)) - SUMIFS(Datenblatt!$M:$M, Datenblatt!$E:$E,$C13, Datenblatt!$R:$R,">="&AP$8,Datenblatt!$R:$R,"<="&EOMONTH(AP$8,0)), "") -> 0 | AQ13: =IF(ISNUMBER($C13), SUMIFS(Datenblatt!$M:$M, Datenblatt!$G:$G,$C13, Datenblatt!$R:$R,">="&AQ$8,Datenblatt!$R:$R,"<="&EOMONTH(AQ$8,0)) - SUMIFS(Datenblatt!$M:$M, Datenblatt!$E:$E,$C13, Datenblatt!$R:$R,">="&AQ$8,Datenblatt!$R:$R,"<="&EOMONTH(AQ$8,0)), "") -> 0 | AR13: =IF(ISNUMBER($C13), SUMIFS(Datenblatt!$M:$M, Datenblatt!$G:$G,$C13, Datenblatt!$R:$R,">="&AR$8,Datenblatt!$R:$R,"<="&EOMONTH(AR$8,0)) - SUMIFS(Datenblatt!$M:$M, Datenblatt!$E:$E,$C13, Datenblatt!$R:$R,">="&AR$8,Datenblatt!$R:$R,"<="&EOMONTH(AR$8,0)), "") -> 0 | AS13: =IF(ISNUMBER($C13), SUMIFS(Datenblatt!$M:$M, Datenblatt!$G:$G,$C13, Datenblatt!$R:$R,">="&AS$8,Datenblatt!$R:$R,"<="&EOMONTH(AS$8,0)) - SUMIFS(Datenblatt!$M:$M, Datenblatt!$E:$E,$C13, Datenblatt!$R:$R,">="&AS$8,Datenblatt!$R:$R,"<="&EOMONTH(AS$8,0)), "") -> 0 | AT13: =IF(ISNUMBER($C13), SUMIFS(Datenblatt!$M:$M, Datenblatt!$G:$G,$C13, Datenblatt!$R:$R,">="&AT$8,Datenblatt!$R:$R,"<="&EOMONTH(AT$8,0)) - SUMIFS(Datenblatt!$M:$M, Datenblatt!$E:$E,$C13, Datenblatt!$R:$R,">="&AT$8,Datenblatt!$R:$R,"<="&EOMONTH(AT$8,0)), "") -> 0 | AU13: =IF(ISNUMBER($C13), SUMIFS(Datenblatt!$M:$M, Datenblatt!$G:$G,$C13, Datenblatt!$R:$R,">="&AU$8,Datenblatt!$R:$R,"<="&EOMONTH(AU$8,0)) - SUMIFS(Datenblatt!$M:$M, Datenblatt!$E:$E,$C13, Datenblatt!$R:$R,">="&AU$8,Datenblatt!$R:$R,"<="&EOMONTH(AU$8,0)), "") -> 0 | AV13: =IF(ISNUMBER($C13), SUMIFS(Datenblatt!$M:$M, Datenblatt!$G:$G,$C13, Datenblatt!$R:$R,">="&AV$8,Datenblatt!$R:$R,"<="&EOMONTH(AV$8,0)) - SUMIFS(Datenblatt!$M:$M, Datenblatt!$E:$E,$C13, Datenblatt!$R:$R,">="&AV$8,Datenblatt!$R:$R,"<="&EOMONTH(AV$8,0)), "") -> 0 | AW13: =IF(ISNUMBER($C13), SUMIFS(Datenblatt!$M:$M, Datenblatt!$G:$G,$C13, Datenblatt!$R:$R,">="&AW$8,Datenblatt!$R:$R,"<="&EOMONTH(AW$8,0)) - SUMIFS(Datenblatt!$M:$M, Datenblatt!$E:$E,$C13, Datenblatt!$R:$R,">="&AW$8,Datenblatt!$R:$R,"<="&EOMONTH(AW$8,0)), "") -> 0 | AX13: =IF(ISNUMBER($C13), SUMIFS(Datenblatt!$M:$M, Datenblatt!$G:$G,$C13, Datenblatt!$R:$R,">="&AX$8,Datenblatt!$R:$R,"<="&EOMONTH(AX$8,0)) - SUMIFS(Datenblatt!$M:$M, Datenblatt!$E:$E,$C13, Datenblatt!$R:$R,">="&AX$8,Datenblatt!$R:$R,"<="&EOMONTH(AX$8,0)), "") -> 0 | AY13: =IF(ISNUMBER($C13), SUMIFS(Datenblatt!$M:$M, Datenblatt!$G:$G,$C13, Datenblatt!$R:$R,">="&AY$8,Datenblatt!$R:$R,"<="&EOMONTH(AY$8,0)) - SUMIFS(Datenblatt!$M:$M, Datenblatt!$E:$E,$C13, Datenblatt!$R:$R,">="&AY$8,Datenblatt!$R:$R,"<="&EOMONTH(AY$8,0)), "") -> 0 | AZ13: =IF(ISNUMBER($C13), SUMIFS(Datenblatt!$M:$M, Datenblatt!$G:$G,$C13, Datenblatt!$R:$R,">="&AZ$8,Datenblatt!$R:$R,"<="&EOMONTH(AZ$8,0)) - SUMIFS(Datenblatt!$M:$M, Datenblatt!$E:$E,$C13, Datenblatt!$R:$R,">="&AZ$8,Datenblatt!$R:$R,"<="&EOMONTH(AZ$8,0)), "") -> 0 | BA13: =IF(ISNUMBER($C13), SUMIFS(Datenblatt!$M:$M, Datenblatt!$G:$G,$C13, Datenblatt!$R:$R,">="&BA$8,Datenblatt!$R:$R,"<="&EOMONTH(BA$8,0)) - SUMIFS(Datenblatt!$M:$M, Datenblatt!$E:$E,$C13, Datenblatt!$R:$R,">="&BA$8,Datenblatt!$R:$R,"<="&EOMONTH(BA$8,0)), "") -> 0 | BB13: =IF(ISNUMBER($C13), SUMIFS(Datenblatt!$M:$M, Datenblatt!$G:$G,$C13, Datenblatt!$R:$R,">="&BB$8,Datenblatt!$R:$R,"<="&EOMONTH(BB$8,0)) - SUMIFS(Datenblatt!$M:$M, Datenblatt!$E:$E,$C13, Datenblatt!$R:$R,">="&BB$8,Datenblatt!$R:$R,"<="&EOMONTH(BB$8,0)), "") -> 0 | BC13: =IF(ISNUMBER($C13), SUMIFS(Datenblatt!$M:$M, Datenblatt!$G:$G,$C13, Datenblatt!$R:$R,">="&BC$8,Datenblatt!$R:$R,"<="&EOMONTH(BC$8,0)) - SUMIFS(Datenblatt!$M:$M, Datenblatt!$E:$E,$C13, Datenblatt!$R:$R,">="&BC$8,Datenblatt!$R:$R,"<="&EOMONTH(BC$8,0)), "") -> 0 | BD13: =IF(ISNUMBER($C13), SUMIFS(Datenblatt!$M:$M, Datenblatt!$G:$G,$C13, Datenblatt!$R:$R,">="&BD$8,Datenblatt!$R:$R,"<="&EOMONTH(BD$8,0)) - SUMIFS(Datenblatt!$M:$M, Datenblatt!$E:$E,$C13, Datenblatt!$R:$R,">="&BD$8,Datenblatt!$R:$R,"<="&EOMONTH(BD$8,0)), "") -> 0 | BE13: =IF(ISNUMBER($C13), SUMIFS(Datenblatt!$M:$M, Datenblatt!$G:$G,$C13, Datenblatt!$R:$R,">="&BE$8,Datenblatt!$R:$R,"<="&EOMONTH(BE$8,0)) - SUMIFS(Datenblatt!$M:$M, Datenblatt!$E:$E,$C13, Datenblatt!$R:$R,">="&BE$8,Datenblatt!$R:$R,"<="&EOMONTH(BE$8,0)), "") -> 0 | BF13: =IF(ISNUMBER($C13), SUMIFS(Datenblatt!$M:$M, Datenblatt!$G:$G,$C13, Datenblatt!$R:$R,">="&BF$8,Datenblatt!$R:$R,"<="&EOMONTH(BF$8,0)) - SUMIFS(Datenblatt!$M:$M, Datenblatt!$E:$E,$C13, Datenblatt!$R:$R,">="&BF$8,Datenblatt!$R:$R,"<="&EOMONTH(BF$8,0)), "") -> 0 | BG13: =IF(ISNUMBER($C13), SUMIFS(Datenblatt!$M:$M, Datenblatt!$G:$G,$C13, Datenblatt!$R:$R,">="&BG$8,Datenblatt!$R:$R,"<="&EOMONTH(BG$8,0)) - SUMIFS(Datenblatt!$M:$M, Datenblatt!$E:$E,$C13, Datenblatt!$R:$R,">="&BG$8,Datenblatt!$R:$R,"<="&EOMONTH(BG$8,0)), "") -> 0 | BH13: =IF(ISNUMBER($C13), SUMIFS(Datenblatt!$M:$M, Datenblatt!$G:$G,$C13, Datenblatt!$R:$R,">="&BH$8,Datenblatt!$R:$R,"<="&EOMONTH(BH$8,0)) - SUMIFS(Datenblatt!$M:$M, Datenblatt!$E:$E,$C13, Datenblatt!$R:$R,">="&BH$8,Datenblatt!$R:$R,"<="&EOMONTH(BH$8,0)), "") -> 0 | BI13: =IF(ISNUMBER($C13), SUMIFS(Datenblatt!$M:$M, Datenblatt!$G:$G,$C13, Datenblatt!$R:$R,">="&BI$8,Datenblatt!$R:$R,"<="&EOMONTH(BI$8,0)) - SUMIFS(Datenblatt!$M:$M, Datenblatt!$E:$E,$C13, Datenblatt!$R:$R,">="&BI$8,Datenblatt!$R:$R,"<="&EOMONTH(BI$8,0)), "") -> 0 | BJ13: =IF(ISNUMBER($C13), SUMIFS(Datenblatt!$M:$M, Datenblatt!$G:$G,$C13, Datenblatt!$R:$R,">="&BJ$8,Datenblatt!$R:$R,"<="&EOMONTH(BJ$8,0)) - SUMIFS(Datenblatt!$M:$M, Datenblatt!$E:$E,$C13, Datenblatt!$R:$R,">="&BJ$8,Datenblatt!$R:$R,"<="&EOMONTH(BJ$8,0)), "") -> 0 | BK13: =IF(ISNUMBER($C13), SUMIFS(Datenblatt!$M:$M, Datenblatt!$G:$G,$C13, Datenblatt!$R:$R,">="&BK$8,Datenblatt!$R:$R,"<="&EOMONTH(BK$8,0)) - SUMIFS(Datenblatt!$M:$M, Datenblatt!$E:$E,$C13, Datenblatt!$R:$R,">="&BK$8,Datenblatt!$R:$R,"<="&EOMONTH(BK$8,0)), "") -> 0 | BL13: =IF(ISNUMBER($C13), SUMIFS(Datenblatt!$M:$M, Datenblatt!$G:$G,$C13, Datenblatt!$R:$R,">="&BL$8,Datenblatt!$R:$R,"<="&EOMONTH(BL$8,0)) - SUMIFS(Datenblatt!$M:$M, Datenblatt!$E:$E,$C13, Datenblatt!$R:$R,">="&BL$8,Datenblatt!$R:$R,"<="&EOMONTH(BL$8,0)), "") -> 0 | BM13: =IF(ISNUMBER($C13), SUMIFS(Datenblatt!$M:$M, Datenblatt!$G:$G,$C13, Datenblatt!$R:$R,">="&BM$8,Datenblatt!$R:$R,"<="&EOMONTH(BM$8,0)) - SUMIFS(Datenblatt!$M:$M, Datenblatt!$E:$E,$C13, Datenblatt!$R:$R,">="&BM$8,Datenblatt!$R:$R,"<="&EOMONTH(BM$8,0)), "") -> 0 | BN13: =IF(ISNUMBER($C13), SUMIFS(Datenblatt!$M:$M, Datenblatt!$G:$G,$C13, Datenblatt!$R:$R,">="&BN$8,Datenblatt!$R:$R,"<="&EOMONTH(BN$8,0)) - SUMIFS(Datenblatt!$M:$M, Datenblatt!$E:$E,$C13, Datenblatt!$R:$R,">="&BN$8,Datenblatt!$R:$R,"<="&EOMONTH(BN$8,0)), "") -> 0 | BO13: =IF(ISNUMBER($C13), SUMIFS(Datenblatt!$M:$M, Datenblatt!$G:$G,$C13, Datenblatt!$R:$R,">="&BO$8,Datenblatt!$R:$R,"<="&EOMONTH(BO$8,0)) - SUMIFS(Datenblatt!$M:$M, Datenblatt!$E:$E,$C13, Datenblatt!$R:$R,">="&BO$8,Datenblatt!$R:$R,"<="&EOMONTH(BO$8,0)), "") -> 0 | BP13: =IF(ISNUMBER($C13), SUMIFS(Datenblatt!$M:$M, Datenblatt!$G:$G,$C13, Datenblatt!$R:$R,">="&BP$8,Datenblatt!$R:$R,"<="&EOMONTH(BP$8,0)) - SUMIFS(Datenblatt!$M:$M, Datenblatt!$E:$E,$C13, Datenblatt!$R:$R,">="&BP$8,Datenblatt!$R:$R,"<="&EOMONTH(BP$8,0)), "") -> 0 | BQ13: =IF(ISNUMBER($C13), SUMIFS(Datenblatt!$M:$M, Datenblatt!$G:$G,$C13, Datenblatt!$R:$R,">="&BQ$8,Datenblatt!$R:$R,"<="&EOMONTH(BQ$8,0)) - SUMIFS(Datenblatt!$M:$M, Datenblatt!$E:$E,$C13, Datenblatt!$R:$R,">="&BQ$8,Datenblatt!$R:$R,"<="&EOMONTH(BQ$8,0)), "") -> 0 | BR13: =IF(ISNUMBER($C13), SUMIFS(Datenblatt!$M:$M, Datenblatt!$G:$G,$C13, Datenblatt!$R:$R,">="&BR$8,Datenblatt!$R:$R,"<="&EOMONTH(BR$8,0)) - SUMIFS(Datenblatt!$M:$M, Datenblatt!$E:$E,$C13, Datenblatt!$R:$R,">="&BR$8,Datenblatt!$R:$R,"<="&EOMONTH(BR$8,0)), "") -> 0 | BS13: =IF(ISNUMBER($C13), SUMIFS(Datenblatt!$M:$M, Datenblatt!$G:$G,$C13, Datenblatt!$R:$R,">="&BS$8,Datenblatt!$R:$R,"<="&EOMONTH(BS$8,0)) - SUMIFS(Datenblatt!$M:$M, Datenblatt!$E:$E,$C13, Datenblatt!$R:$R,">="&BS$8,Datenblatt!$R:$R,"<="&EOMONTH(BS$8,0)), "") -> 0 | BT13: =IF(ISNUMBER($C13), SUMIFS(Datenblatt!$M:$M, Datenblatt!$G:$G,$C13, Datenblatt!$R:$R,">="&BT$8,Datenblatt!$R:$R,"<="&EOMONTH(BT$8,0)) - SUMIFS(Datenblatt!$M:$M, Datenblatt!$E:$E,$C13, Datenblatt!$R:$R,">="&BT$8,Datenblatt!$R:$R,"<="&EOMONTH(BT$8,0)), "") -> 0 | BU13: =IF(ISNUMBER($C13), SUMIFS(Datenblatt!$M:$M, Datenblatt!$G:$G,$C13, Datenblatt!$R:$R,">="&BU$8,Datenblatt!$R:$R,"<="&EOMONTH(BU$8,0)) - SUMIFS(Datenblatt!$M:$M, Datenblatt!$E:$E,$C13, Datenblatt!$R:$R,">="&BU$8,Datenblatt!$R:$R,"<="&EOMONTH(BU$8,0)), "") -> 605.8282141 | BV13: =IF(ISNUMBER($C13), SUMIFS(Datenblatt!$M:$M, Datenblatt!$G:$G,$C13, Datenblatt!$R:$R,">="&BV$8,Datenblatt!$R:$R,"<="&EOMONTH(BV$8,0)) - SUMIFS(Datenblatt!$M:$M, Datenblatt!$E:$E,$C13, Datenblatt!$R:$R,">="&BV$8,Datenblatt!$R:$R,"<="&EOMONTH(BV$8,0)), "") -> 0 | BW13: =IF(ISNUMBER($C13), SUMIFS(Datenblatt!$M:$M, Datenblatt!$G:$G,$C13, Datenblatt!$R:$R,">="&BW$8,Datenblatt!$R:$R,"<="&EOMONTH(BW$8,0)) - SUMIFS(Datenblatt!$M:$M, Datenblatt!$E:$E,$C13, Datenblatt!$R:$R,">="&BW$8,Datenblatt!$R:$R,"<="&EOMONTH(BW$8,0)), "") -> 0 | BX13: =IF(ISNUMBER($C13), SUMIFS(Datenblatt!$M:$M, Datenblatt!$G:$G,$C13, Datenblatt!$R:$R,">="&BX$8,Datenblatt!$R:$R,"<="&EOMONTH(BX$8,0)) - SUMIFS(Datenblatt!$M:$M, Datenblatt!$E:$E,$C13, Datenblatt!$R:$R,">="&BX$8,Datenblatt!$R:$R,"<="&EOMONTH(BX$8,0)), "") -> 0 | BY13: =IF(ISNUMBER($C13), SUMIFS(Datenblatt!$M:$M, Datenblatt!$G:$G,$C13, Datenblatt!$R:$R,">="&BY$8,Datenblatt!$R:$R,"<="&EOMONTH(BY$8,0)) - SUMIFS(Datenblatt!$M:$M, Datenblatt!$E:$E,$C13, Datenblatt!$R:$R,">="&BY$8,Datenblatt!$R:$R,"<="&EOMONTH(BY$8,0)), "") -> 0 | BZ13: =IF(ISNUMBER($C13), SUMIFS(Datenblatt!$M:$M, Datenblatt!$G:$G,$C13, Datenblatt!$R:$R,">="&BZ$8,Datenblatt!$R:$R,"<="&EOMONTH(BZ$8,0)) - SUMIFS(Datenblatt!$M:$M, Datenblatt!$E:$E,$C13, Datenblatt!$R:$R,">="&BZ$8,Datenblatt!$R:$R,"<="&EOMONTH(BZ$8,0)), "") -> 0 | CA13: =IF(ISNUMBER($C13), SUMIFS(Datenblatt!$M:$M, Datenblatt!$G:$G,$C13, Datenblatt!$R:$R,">="&CA$8,Datenblatt!$R:$R,"<="&EOMONTH(CA$8,0)) - SUMIFS(Datenblatt!$M:$M, Datenblatt!$E:$E,$C13, Datenblatt!$R:$R,">="&CA$8,Datenblatt!$R:$R,"<="&EOMONTH(CA$8,0)), "") -> 0 | CB13: =IF(ISNUMBER($C13), SUMIFS(Datenblatt!$M:$M, Datenblatt!$G:$G,$C13, Datenblatt!$R:$R,">="&CB$8,Datenblatt!$R:$R,"<="&EOMONTH(CB$8,0)) - SUMIFS(Datenblatt!$M:$M, Datenblatt!$E:$E,$C13, Datenblatt!$R:$R,">="&CB$8,Datenblatt!$R:$R,"<="&EOMONTH(CB$8,0)), "") -> 35.68280807 | CC13: =IF(ISNUMBER($C13), SUMIFS(Datenblatt!$M:$M, Datenblatt!$G:$G,$C13, Datenblatt!$R:$R,">="&CC$8,Datenblatt!$R:$R,"<="&EOMONTH(CC$8,0)) - SUMIFS(Datenblatt!$M:$M, Datenblatt!$E:$E,$C13, Datenblatt!$R:$R,">="&CC$8,Datenblatt!$R:$R,"<="&EOMONTH(CC$8,0)), "") -> 0 | CD13: =IF(ISNUMBER($C13), SUMIFS(Datenblatt!$M:$M, Datenblatt!$G:$G,$C13, Datenblatt!$R:$R,">="&CD$8,Datenblatt!$R:$R,"<="&EOMONTH(CD$8,0)) - SUMIFS(Datenblatt!$M:$M, Datenblatt!$E:$E,$C13, Datenblatt!$R:$R,">="&CD$8,Datenblatt!$R:$R,"<="&EOMONTH(CD$8,0)), "") -> 0 | CE13: =IF(ISNUMBER($C13), SUMIFS(Datenblatt!$M:$M, Datenblatt!$G:$G,$C13, Datenblatt!$R:$R,">="&CE$8,Datenblatt!$R:$R,"<="&EOMONTH(CE$8,0)) - SUMIFS(Datenblatt!$M:$M, Datenblatt!$E:$E,$C13, Datenblatt!$R:$R,">="&CE$8,Datenblatt!$R:$R,"<="&EOMONTH(CE$8,0)), "") -> 0 | CF13: =IF(ISNUMBER($C13), SUMIFS(Datenblatt!$M:$M, Datenblatt!$G:$G,$C13, Datenblatt!$R:$R,">="&CF$8,Datenblatt!$R:$R,"<="&EOMONTH(CF$8,0)) - SUMIFS(Datenblatt!$M:$M, Datenblatt!$E:$E,$C13, Datenblatt!$R:$R,">="&CF$8,Datenblatt!$R:$R,"<="&EOMONTH(CF$8,0)), "") -> 0 | CG13: =IF(ISNUMBER($C13), SUMIFS(Datenblatt!$M:$M, Datenblatt!$G:$G,$C13, Datenblatt!$R:$R,">="&CG$8,Datenblatt!$R:$R,"<="&EOMONTH(CG$8,0)) - SUMIFS(Datenblatt!$M:$M, Datenblatt!$E:$E,$C13, Datenblatt!$R:$R,">="&CG$8,Datenblatt!$R:$R,"<="&EOMONTH(CG$8,0)), "") -> 0 | CH13: =IF(ISNUMBER($C13), SUMIFS(Datenblatt!$M:$M, Datenblatt!$G:$G,$C13, Datenblatt!$R:$R,">="&CH$8,Datenblatt!$R:$R,"<="&EOMONTH(CH$8,0)) - SUMIFS(Datenblatt!$M:$M, Datenblatt!$E:$E,$C13, Datenblatt!$R:$R,">="&CH$8,Datenblatt!$R:$R,"<="&EOMONTH(CH$8,0)), "") -> 0 | CI13: =IF(ISNUMBER($C13), SUMIFS(Datenblatt!$M:$M, Datenblatt!$G:$G,$C13, Datenblatt!$R:$R,">="&CI$8,Datenblatt!$R:$R,"<="&EOMONTH(CI$8,0)) - SUMIFS(Datenblatt!$M:$M, Datenblatt!$E:$E,$C13, Datenblatt!$R:$R,">="&CI$8,Datenblatt!$R:$R,"<="&EOMONTH(CI$8,0)), "") -> 0 | CJ13: =IF(ISNUMBER($C13), SUMIFS(Datenblatt!$M:$M, Datenblatt!$G:$G,$C13, Datenblatt!$R:$R,">="&CJ$8,Datenblatt!$R:$R,"<="&EOMONTH(CJ$8,0)) - SUMIFS(Datenblatt!$M:$M, Datenblatt!$E:$E,$C13, Datenblatt!$R:$R,">="&CJ$8,Datenblatt!$R:$R,"<="&EOMONTH(CJ$8,0)), "") -> 0 | CK13: =IF(ISNUMBER($C13), SUMIFS(Datenblatt!$M:$M, Datenblatt!$G:$G,$C13, Datenblatt!$R:$R,">="&CK$8,Datenblatt!$R:$R,"<="&EOMONTH(CK$8,0)) - SUMIFS(Datenblatt!$M:$M, Datenblatt!$E:$E,$C13, Datenblatt!$R:$R,">="&CK$8,Datenblatt!$R:$R,"<="&EOMONTH(CK$8,0)), "") -> 0 | CL13: =IF(ISNUMBER($C13), SUMIFS(Datenblatt!$M:$M, Datenblatt!$G:$G,$C13, Datenblatt!$R:$R,">="&CL$8,Datenblatt!$R:$R,"<="&EOMONTH(CL$8,0)) - SUMIFS(Datenblatt!$M:$M, Datenblatt!$E:$E,$C13, Datenblatt!$R:$R,">="&CL$8,Datenblatt!$R:$R,"<="&EOMONTH(CL$8,0)), "") -> 0 | CM13: =IF(ISNUMBER($C13), SUMIFS(Datenblatt!$M:$M, Datenblatt!$G:$G,$C13, Datenblatt!$R:$R,">="&CM$8,Datenblatt!$R:$R,"<="&EOMONTH(CM$8,0)) - SUMIFS(Datenblatt!$M:$M, Datenblatt!$E:$E,$C13, Datenblatt!$R:$R,">="&CM$8,Datenblatt!$R:$R,"<="&EOMONTH(CM$8,0)), "") -> 0 | CN13: =IF(ISNUMBER($C13), SUMIFS(Datenblatt!$M:$M, Datenblatt!$G:$G,$C13, Datenblatt!$R:$R,">="&CN$8,Datenblatt!$R:$R,"<="&EOMONTH(CN$8,0)) - SUMIFS(Datenblatt!$M:$M, Datenblatt!$E:$E,$C13, Datenblatt!$R:$R,">="&CN$8,Datenblatt!$R:$R,"<="&EOMONTH(CN$8,0)), "") -> 0 | CO13: =IF(ISNUMBER($C13), SUMIFS(Datenblatt!$M:$M, Datenblatt!$G:$G,$C13, Datenblatt!$R:$R,">="&CO$8,Datenblatt!$R:$R,"<="&EOMONTH(CO$8,0)) - SUMIFS(Datenblatt!$M:$M, Datenblatt!$E:$E,$C13, Datenblatt!$R:$R,">="&CO$8,Datenblatt!$R:$R,"<="&EOMONTH(CO$8,0)), "") -> 0 | CP13: =IF(ISNUMBER($C13), SUMIFS(Datenblatt!$M:$M, Datenblatt!$G:$G,$C13, Datenblatt!$R:$R,">="&CP$8,Datenblatt!$R:$R,"<="&EOMONTH(CP$8,0)) - SUMIFS(Datenblatt!$M:$M, Datenblatt!$E:$E,$C13, Datenblatt!$R:$R,">="&CP$8,Datenblatt!$R:$R,"<="&EOMONTH(CP$8,0)), "") -> 0 | CQ13: =IF(ISNUMBER($C13), SUMIFS(Datenblatt!$M:$M, Datenblatt!$G:$G,$C13, Datenblatt!$R:$R,">="&CQ$8,Datenblatt!$R:$R,"<="&EOMONTH(CQ$8,0)) - SUMIFS(Datenblatt!$M:$M, Datenblatt!$E:$E,$C13, Datenblatt!$R:$R,">="&CQ$8,Datenblatt!$R:$R,"<="&EOMONTH(CQ$8,0)), "") -> 0 | CR13: =IF(ISNUMBER($C13), SUMIFS(Datenblatt!$M:$M, Datenblatt!$G:$G,$C13, Datenblatt!$R:$R,">="&CR$8,Datenblatt!$R:$R,"<="&EOMONTH(CR$8,0)) - SUMIFS(Datenblatt!$M:$M, Datenblatt!$E:$E,$C13, Datenblatt!$R:$R,">="&CR$8,Datenblatt!$R:$R,"<="&EOMONTH(CR$8,0)), "") -> 0 | CS13: =IF(ISNUMBER($C13), SUMIFS(Datenblatt!$M:$M, Datenblatt!$G:$G,$C13, Datenblatt!$R:$R,">="&CS$8,Datenblatt!$R:$R,"<="&EOMONTH(CS$8,0)) - SUMIFS(Datenblatt!$M:$M, Datenblatt!$E:$E,$C13, Datenblatt!$R:$R,">="&CS$8,Datenblatt!$R:$R,"<="&EOMONTH(CS$8,0)), "") -> 0 | CT13: =IF(ISNUMBER($C13), SUMIFS(Datenblatt!$M:$M, Datenblatt!$G:$G,$C13, Datenblatt!$R:$R,">="&CT$8,Datenblatt!$R:$R,"<="&EOMONTH(CT$8,0)) - SUMIFS(Datenblatt!$M:$M, Datenblatt!$E:$E,$C13, Datenblatt!$R:$R,">="&CT$8,Datenblatt!$R:$R,"<="&EOMONTH(CT$8,0)), "") -> 0 | CU13: =IF(ISNUMBER($C13), SUMIFS(Datenblatt!$M:$M, Datenblatt!$G:$G,$C13, Datenblatt!$R:$R,">="&CU$8,Datenblatt!$R:$R,"<="&EOMONTH(CU$8,0)) - SUMIFS(Datenblatt!$M:$M, Datenblatt!$E:$E,$C13, Datenblatt!$R:$R,">="&CU$8,Datenblatt!$R:$R,"<="&EOMONTH(CU$8,0)), "") -> 0 | CV13: =IF(ISNUMBER($C13), SUMIFS(Datenblatt!$M:$M, Datenblatt!$G:$G,$C13, Datenblatt!$R:$R,">="&CV$8,Datenblatt!$R:$R,"<="&EOMONTH(CV$8,0)) - SUMIFS(Datenblatt!$M:$M, Datenblatt!$E:$E,$C13, Datenblatt!$R:$R,">="&CV$8,Datenblatt!$R:$R,"<="&EOMONTH(CV$8,0)), "") -> 0 | CW13: =IF(ISNUMBER($C13), SUMIFS(Datenblatt!$M:$M, Datenblatt!$G:$G,$C13, Datenblatt!$R:$R,">="&CW$8,Datenblatt!$R:$R,"<="&EOMONTH(CW$8,0)) - SUMIFS(Datenblatt!$M:$M, Datenblatt!$E:$E,$C13, Datenblatt!$R:$R,">="&CW$8,Datenblatt!$R:$R,"<="&EOMONTH(CW$8,0)), "") -> 0 | CX13: =IF(ISNUMBER($C13), SUMIFS(Datenblatt!$M:$M, Datenblatt!$G:$G,$C13, Datenblatt!$R:$R,">="&CX$8,Datenblatt!$R:$R,"<="&EOMONTH(CX$8,0)) - SUMIFS(Datenblatt!$M:$M, Datenblatt!$E:$E,$C13, Datenblatt!$R:$R,">="&CX$8,Datenblatt!$R:$R,"<="&EOMONTH(CX$8,0)), "") -> 0 | CY13: =IF(ISNUMBER($C13), SUMIFS(Datenblatt!$M:$M, Datenblatt!$G:$G,$C13, Datenblatt!$R:$R,">="&CY$8,Datenblatt!$R:$R,"<="&EOMONTH(CY$8,0)) - SUMIFS(Datenblatt!$M:$M, Datenblatt!$E:$E,$C13, Datenblatt!$R:$R,">="&CY$8,Datenblatt!$R:$R,"<="&EOMONTH(CY$8,0)), "") -> 0 | CZ13: =IF(ISNUMBER($C13), SUMIFS(Datenblatt!$M:$M, Datenblatt!$G:$G,$C13, Datenblatt!$R:$R,">="&CZ$8,Datenblatt!$R:$R,"<="&EOMONTH(CZ$8,0)) - SUMIFS(Datenblatt!$M:$M, Datenblatt!$E:$E,$C13, Datenblatt!$R:$R,">="&CZ$8,Datenblatt!$R:$R,"<="&EOMONTH(CZ$8,0)), "") -> 0 | DA13: =IF(ISNUMBER($C13), SUMIFS(Datenblatt!$M:$M, Datenblatt!$G:$G,$C13, Datenblatt!$R:$R,">="&DA$8,Datenblatt!$R:$R,"<="&EOMONTH(DA$8,0)) - SUMIFS(Datenblatt!$M:$M, Datenblatt!$E:$E,$C13, Datenblatt!$R:$R,">="&DA$8,Datenblatt!$R:$R,"<="&EOMONTH(DA$8,0)), "") -> 0 | DB13: =IF(ISNUMBER($C13), SUMIFS(Datenblatt!$M:$M, Datenblatt!$G:$G,$C13, Datenblatt!$R:$R,">="&DB$8,Datenblatt!$R:$R,"<="&EOMONTH(DB$8,0)) - SUMIFS(Datenblatt!$M:$M, Datenblatt!$E:$E,$C13, Datenblatt!$R:$R,">="&DB$8,Datenblatt!$R:$R,"<="&EOMONTH(DB$8,0)), "") -> 0 | DC13: =IF(ISNUMBER($C13), SUMIFS(Datenblatt!$M:$M, Datenblatt!$G:$G,$C13, Datenblatt!$R:$R,">="&DC$8,Datenblatt!$R:$R,"<="&EOMONTH(DC$8,0)) - SUMIFS(Datenblatt!$M:$M, Datenblatt!$E:$E,$C13, Datenblatt!$R:$R,">="&DC$8,Datenblatt!$R:$R,"<="&EOMONTH(DC$8,0)), "") -> 0 | DD13: =IF(ISNUMBER($C13), SUMIFS(Datenblatt!$M:$M, Datenblatt!$G:$G,$C13, Datenblatt!$R:$R,">="&DD$8,Datenblatt!$R:$R,"<="&EOMONTH(DD$8,0)) - SUMIFS(Datenblatt!$M:$M, Datenblatt!$E:$E,$C13, Datenblatt!$R:$R,">="&DD$8,Datenblatt!$R:$R,"<="&EOMONTH(DD$8,0)), "") -> 0 | DE13: =IF(ISNUMBER($C13), SUMIFS(Datenblatt!$M:$M, Datenblatt!$G:$G,$C13, Datenblatt!$R:$R,">="&DE$8,Datenblatt!$R:$R,"<="&EOMONTH(DE$8,0)) - SUMIFS(Datenblatt!$M:$M, Datenblatt!$E:$E,$C13, Datenblatt!$R:$R,">="&DE$8,Datenblatt!$R:$R,"<="&EOMONTH(DE$8,0)), "") -> 0 | DF13: =IF(ISNUMBER($C13), SUMIFS(Datenblatt!$M:$M, Datenblatt!$G:$G,$C13, Datenblatt!$R:$R,">="&DF$8,Datenblatt!$R:$R,"<="&EOMONTH(DF$8,0)) - SUMIFS(Datenblatt!$M:$M, Datenblatt!$E:$E,$C13, Datenblatt!$R:$R,">="&DF$8,Datenblatt!$R:$R,"<="&EOMONTH(DF$8,0)), "") -> 0
B14: Ertrag | C14: 3298 | D14: Reserve | G14: =IF(ISNUMBER($C14), SUMIFS(Datenblatt!$M:$M, Datenblatt!$G:$G,$C14, Datenblatt!$R:$R,">="&G$8,Datenblatt!$R:$R,"<="&EOMONTH(G$8,11)) - SUMIFS(Datenblatt!$M:$M, Datenblatt!$E:$E,$C14, Datenblatt!$R:$R,">="&G$8,Datenblatt!$R:$R,"<="&EOMONTH(G$8,11)), "") -> 0 | H14: =IF(ISNUMBER($C14), SUMIFS(Datenblatt!$M:$M, Datenblatt!$G:$G,$C14, Datenblatt!$R:$R,">="&H$8,Datenblatt!$R:$R,"<="&EOMONTH(H$8,11)) - SUMIFS(Datenblatt!$M:$M, Datenblatt!$E:$E,$C14, Datenblatt!$R:$R,">="&H$8,Datenblatt!$R:$R,"<="&EOMONTH(H$8,11)), "") -> 0 | I14: =IF(ISNUMBER($C14), SUMIFS(Datenblatt!$M:$M, Datenblatt!$G:$G,$C14, Datenblatt!$R:$R,">="&I$8,Datenblatt!$R:$R,"<="&EOMONTH(I$8,11)) - SUMIFS(Datenblatt!$M:$M, Datenblatt!$E:$E,$C14, Datenblatt!$R:$R,">="&I$8,Datenblatt!$R:$R,"<="&EOMONTH(I$8,11)), "") -> 0 | J14: =IF(ISNUMBER($C14), SUMIFS(Datenblatt!$M:$M, Datenblatt!$G:$G,$C14, Datenblatt!$R:$R,">="&J$8,Datenblatt!$R:$R,"<="&EOMONTH(J$8,11)) - SUMIFS(Datenblatt!$M:$M, Datenblatt!$E:$E,$C14, Datenblatt!$R:$R,">="&J$8,Datenblatt!$R:$R,"<="&EOMONTH(J$8,11)), "") -> 0 | K14: =IF(ISNUMBER($C14), SUMIFS(Datenblatt!$M:$M, Datenblatt!$G:$G,$C14, Datenblatt!$R:$R,">="&K$8,Datenblatt!$R:$R,"<="&EOMONTH(K$8,11)) - SUMIFS(Datenblatt!$M:$M, Datenblatt!$E:$E,$C14, Datenblatt!$R:$R,">="&K$8,Datenblatt!$R:$R,"<="&EOMONTH(K$8,11)), "") -> 1059.257116 | L14: =IF(ISNUMBER($C14), SUMIFS(Datenblatt!$M:$M, Datenblatt!$G:$G,$C14, Datenblatt!$R:$R,">="&L$8,Datenblatt!$R:$R,"<="&EOMONTH(L$8,11)) - SUMIFS(Datenblatt!$M:$M, Datenblatt!$E:$E,$C14, Datenblatt!$R:$R,">="&L$8,Datenblatt!$R:$R,"<="&EOMONTH(L$8,11)), "") -> 1143.433849 | M14: =IF(ISNUMBER($C14), SUMIFS(Datenblatt!$M:$M, Datenblatt!$G:$G,$C14, Datenblatt!$R:$R,">="&M$8,Datenblatt!$R:$R,"<="&EOMONTH(M$8,11)) - SUMIFS(Datenblatt!$M:$M, Datenblatt!$E:$E,$C14, Datenblatt!$R:$R,">="&M$8,Datenblatt!$R:$R,"<="&EOMONTH(M$8,11)), "") -> 0 | N14: =IF(ISNUMBER($C14), SUMIFS(Datenblatt!$M:$M, Datenblatt!$G:$G,$C14, Datenblatt!$R:$R,">="&N$8,Datenblatt!$R:$R,"<="&EOMONTH(N$8,11)) - SUMIFS(Datenblatt!$M:$M, Datenblatt!$E:$E,$C14, Datenblatt!$R:$R,">="&N$8,Datenblatt!$R:$R,"<="&EOMONTH(N$8,11)), "") -> 0 | O14: =IF(ISNUMBER($C14), SUMIFS(Datenblatt!$M:$M, Datenblatt!$G:$G,$C14, Datenblatt!$R:$R,">="&O$8,Datenblatt!$R:$R,"<="&EOMONTH(O$8,0)) - SUMIFS(Datenblatt!$M:$M, Datenblatt!$E:$E,$C14, Datenblatt!$R:$R,">="&O$8,Datenblatt!$R:$R,"<="&EOMONTH(O$8,0)), "") -> 0 | P14: =IF(ISNUMBER($C14), SUMIFS(Datenblatt!$M:$M, Datenblatt!$G:$G,$C14, Datenblatt!$R:$R,">="&P$8,Datenblatt!$R:$R,"<="&EOMONTH(P$8,0)) - SUMIFS(Datenblatt!$M:$M, Datenblatt!$E:$E,$C14, Datenblatt!$R:$R,">="&P$8,Datenblatt!$R:$R,"<="&EOMONTH(P$8,0)), "") -> 0 | Q14: =IF(ISNUMBER($C14), SUMIFS(Datenblatt!$M:$M, Datenblatt!$G:$G,$C14, Datenblatt!$R:$R,">="&Q$8,Datenblatt!$R:$R,"<="&EOMONTH(Q$8,0)) - SUMIFS(Datenblatt!$M:$M, Datenblatt!$E:$E,$C14, Datenblatt!$R:$R,">="&Q$8,Datenblatt!$R:$R,"<="&EOMONTH(Q$8,0)), "") -> 0 | R14: =IF(ISNUMBER($C14), SUMIFS(Datenblatt!$M:$M, Datenblatt!$G:$G,$C14, Datenblatt!$R:$R,">="&R$8,Datenblatt!$R:$R,"<="&EOMONTH(R$8,0)) - SUMIFS(Datenblatt!$M:$M, Datenblatt!$E:$E,$C14, Datenblatt!$R:$R,">="&R$8,Datenblatt!$R:$R,"<="&EOMONTH(R$8,0)), "") -> 0 | S14: =IF(ISNUMBER($C14), SUMIFS(Datenblatt!$M:$M, Datenblatt!$G:$G,$C14, Datenblatt!$R:$R,">="&S$8,Datenblatt!$R:$R,"<="&EOMONTH(S$8,0)) - SUMIFS(Datenblatt!$M:$M, Datenblatt!$E:$E,$C14, Datenblatt!$R:$R,">="&S$8,Datenblatt!$R:$R,"<="&EOMONTH(S$8,0)), "") -> 0 | T14: =IF(ISNUMBER($C14), SUMIFS(Datenblatt!$M:$M, Datenblatt!$G:$G,$C14, Datenblatt!$R:$R,">="&T$8,Datenblatt!$R:$R,"<="&EOMONTH(T$8,0)) - SUMIFS(Datenblatt!$M:$M, Datenblatt!$E:$E,$C14, Datenblatt!$R:$R,">="&T$8,Datenblatt!$R:$R,"<="&EOMONTH(T$8,0)), "") -> 0 | U14: =IF(ISNUMBER($C14), SUMIFS(Datenblatt!$M:$M, Datenblatt!$G:$G,$C14, Datenblatt!$R:$R,">="&U$8,Datenblatt!$R:$R,"<="&EOMONTH(U$8,0)) - SUMIFS(Datenblatt!$M:$M, Datenblatt!$E:$E,$C14, Datenblatt!$R:$R,">="&U$8,Datenblatt!$R:$R,"<="&EOMONTH(U$8,0)), "") -> 0 | V14: =IF(ISNUMBER($C14), SUMIFS(Datenblatt!$M:$M, Datenblatt!$G:$G,$C14, Datenblatt!$R:$R,">="&V$8,Datenblatt!$R:$R,"<="&EOMONTH(V$8,0)) - SUMIFS(Datenblatt!$M:$M, Datenblatt!$E:$E,$C14, Datenblatt!$R:$R,">="&V$8,Datenblatt!$R:$R,"<="&EOMONTH(V$8,0)), "") -> 0 | W14: =IF(ISNUMBER($C14), SUMIFS(Datenblatt!$M:$M, Datenblatt!$G:$G,$C14, Datenblatt!$R:$R,">="&W$8,Datenblatt!$R:$R,"<="&EOMONTH(W$8,0)) - SUMIFS(Datenblatt!$M:$M, Datenblatt!$E:$E,$C14, Datenblatt!$R:$R,">="&W$8,Datenblatt!$R:$R,"<="&EOMONTH(W$8,0)), "") -> 0 | X14: =IF(ISNUMBER($C14), SUMIFS(Datenblatt!$M:$M, Datenblatt!$G:$G,$C14, Datenblatt!$R:$R,">="&X$8,Datenblatt!$R:$R,"<="&EOMONTH(X$8,0)) - SUMIFS(Datenblatt!$M:$M, Datenblatt!$E:$E,$C14, Datenblatt!$R:$R,">="&X$8,Datenblatt!$R:$R,"<="&EOMONTH(X$8,0)), "") -> 0 | Y14: =IF(ISNUMBER($C14), SUMIFS(Datenblatt!$M:$M, Datenblatt!$G:$G,$C14, Datenblatt!$R:$R,">="&Y$8,Datenblatt!$R:$R,"<="&EOMONTH(Y$8,0)) - SUMIFS(Datenblatt!$M:$M, Datenblatt!$E:$E,$C14, Datenblatt!$R:$R,">="&Y$8,Datenblatt!$R:$R,"<="&EOMONTH(Y$8,0)), "") -> 0 | Z14: =IF(ISNUMBER($C14), SUMIFS(Datenblatt!$M:$M, Datenblatt!$G:$G,$C14, Datenblatt!$R:$R,">="&Z$8,Datenblatt!$R:$R,"<="&EOMONTH(Z$8,0)) - SUMIFS(Datenblatt!$M:$M, Datenblatt!$E:$E,$C14, Datenblatt!$R:$R,">="&Z$8,Datenblatt!$R:$R,"<="&EOMONTH(Z$8,0)), "") -> 0 | AA14: =IF(ISNUMBER($C14), SUMIFS(Datenblatt!$M:$M, Datenblatt!$G:$G,$C14, Datenblatt!$R:$R,">="&AA$8,Datenblatt!$R:$R,"<="&EOMONTH(AA$8,0)) - SUMIFS(Datenblatt!$M:$M, Datenblatt!$E:$E,$C14, Datenblatt!$R:$R,">="&AA$8,Datenblatt!$R:$R,"<="&EOMONTH(AA$8,0)), "") -> 0 | AB14: =IF(ISNUMBER($C14), SUMIFS(Datenblatt!$M:$M, Datenblatt!$G:$G,$C14, Datenblatt!$R:$R,">="&AB$8,Datenblatt!$R:$R,"<="&EOMONTH(AB$8,0)) - SUMIFS(Datenblatt!$M:$M, Datenblatt!$E:$E,$C14, Datenblatt!$R:$R,">="&AB$8,Datenblatt!$R:$R,"<="&EOMONTH(AB$8,0)), "") -> 0 | AC14: =IF(ISNUMBER($C14), SUMIFS(Datenblatt!$M:$M, Datenblatt!$G:$G,$C14, Datenblatt!$R:$R,">="&AC$8,Datenblatt!$R:$R,"<="&EOMONTH(AC$8,0)) - SUMIFS(Datenblatt!$M:$M, Datenblatt!$E:$E,$C14, Datenblatt!$R:$R,">="&AC$8,Datenblatt!$R:$R,"<="&EOMONTH(AC$8,0)), "") -> 0 | AD14: =IF(ISNUMBER($C14), SUMIFS(Datenblatt!$M:$M, Datenblatt!$G:$G,$C14, Datenblatt!$R:$R,">="&AD$8,Datenblatt!$R:$R,"<="&EOMONTH(AD$8,0)) - SUMIFS(Datenblatt!$M:$M, Datenblatt!$E:$E,$C14, Datenblatt!$R:$R,">="&AD$8,Datenblatt!$R:$R,"<="&EOMONTH(AD$8,0)), "") -> 0 | AE14: =IF(ISNUMBER($C14), SUMIFS(Datenblatt!$M:$M, Datenblatt!$G:$G,$C14, Datenblatt!$R:$R,">="&AE$8,Datenblatt!$R:$R,"<="&EOMONTH(AE$8,0)) - SUMIFS(Datenblatt!$M:$M, Datenblatt!$E:$E,$C14, Datenblatt!$R:$R,">="&AE$8,Datenblatt!$R:$R,"<="&EOMONTH(AE$8,0)), "") -> 0 | AF14: =IF(ISNUMBER($C14), SUMIFS(Datenblatt!$M:$M, Datenblatt!$G:$G,$C14, Datenblatt!$R:$R,">="&AF$8,Datenblatt!$R:$R,"<="&EOMONTH(AF$8,0)) - SUMIFS(Datenblatt!$M:$M, Datenblatt!$E:$E,$C14, Datenblatt!$R:$R,">="&AF$8,Datenblatt!$R:$R,"<="&EOMONTH(AF$8,0)), "") -> 0 | AG14: =IF(ISNUMBER($C14), SUMIFS(Datenblatt!$M:$M, Datenblatt!$G:$G,$C14, Datenblatt!$R:$R,">="&AG$8,Datenblatt!$R:$R,"<="&EOMONTH(AG$8,0)) - SUMIFS(Datenblatt!$M:$M, Datenblatt!$E:$E,$C14, Datenblatt!$R:$R,">="&AG$8,Datenblatt!$R:$R,"<="&EOMONTH(AG$8,0)), "") -> 0 | AH14: =IF(ISNUMBER($C14), SUMIFS(Datenblatt!$M:$M, Datenblatt!$G:$G,$C14, Datenblatt!$R:$R,">="&AH$8,Datenblatt!$R:$R,"<="&EOMONTH(AH$8,0)) - SUMIFS(Datenblatt!$M:$M, Datenblatt!$E:$E,$C14, Datenblatt!$R:$R,">="&AH$8,Datenblatt!$R:$R,"<="&EOMONTH(AH$8,0)), "") -> 0 | AI14: =IF(ISNUMBER($C14), SUMIFS(Datenblatt!$M:$M, Datenblatt!$G:$G,$C14, Datenblatt!$R:$R,">="&AI$8,Datenblatt!$R:$R,"<="&EOMONTH(AI$8,0)) - SUMIFS(Datenblatt!$M:$M, Datenblatt!$E:$E,$C14, Datenblatt!$R:$R,">="&AI$8,Datenblatt!$R:$R,"<="&EOMONTH(AI$8,0)), "") -> 0 | AJ14: =IF(ISNUMBER($C14), SUMIFS(Datenblatt!$M:$M, Datenblatt!$G:$G,$C14, Datenblatt!$R:$R,">="&AJ$8,Datenblatt!$R:$R,"<="&EOMONTH(AJ$8,0)) - SUMIFS(Datenblatt!$M:$M, Datenblatt!$E:$E,$C14, Datenblatt!$R:$R,">="&AJ$8,Datenblatt!$R:$R,"<="&EOMONTH(AJ$8,0)), "") -> 0 | AK14: =IF(ISNUMBER($C14), SUMIFS(Datenblatt!$M:$M, Datenblatt!$G:$G,$C14, Datenblatt!$R:$R,">="&AK$8,Datenblatt!$R:$R,"<="&EOMONTH(AK$8,0)) - SUMIFS(Datenblatt!$M:$M, Datenblatt!$E:$E,$C14, Datenblatt!$R:$R,">="&AK$8,Datenblatt!$R:$R,"<="&EOMONTH(AK$8,0)), "") -> 0 | AL14: =IF(ISNUMBER($C14), SUMIFS(Datenblatt!$M:$M, Datenblatt!$G:$G,$C14, Datenblatt!$R:$R,">="&AL$8,Datenblatt!$R:$R,"<="&EOMONTH(AL$8,0)) - SUMIFS(Datenblatt!$M:$M, Datenblatt!$E:$E,$C14, Datenblatt!$R:$R,">="&AL$8,Datenblatt!$R:$R,"<="&EOMONTH(AL$8,0)), "") -> 0 | AM14: =IF(ISNUMBER($C14), SUMIFS(Datenblatt!$M:$M, Datenblatt!$G:$G,$C14, Datenblatt!$R:$R,">="&AM$8,Datenblatt!$R:$R,"<="&EOMONTH(AM$8,0)) - SUMIFS(Datenblatt!$M:$M, Datenblatt!$E:$E,$C14, Datenblatt!$R:$R,">="&AM$8,Datenblatt!$R:$R,"<="&EOMONTH(AM$8,0)), "") -> 0 | AN14: =IF(ISNUMBER($C14), SUMIFS(Datenblatt!$M:$M, Datenblatt!$G:$G,$C14, Datenblatt!$R:$R,">="&AN$8,Datenblatt!$R:$R,"<="&EOMONTH(AN$8,0)) - SUMIFS(Datenblatt!$M:$M, Datenblatt!$E:$E,$C14, Datenblatt!$R:$R,">="&AN$8,Datenblatt!$R:$R,"<="&EOMONTH(AN$8,0)), "") -> 0 | AO14: =IF(ISNUMBER($C14), SUMIFS(Datenblatt!$M:$M, Datenblatt!$G:$G,$C14, Datenblatt!$R:$R,">="&AO$8,Datenblatt!$R:$R,"<="&EOMONTH(AO$8,0)) - SUMIFS(Datenblatt!$M:$M, Datenblatt!$E:$E,$C14, Datenblatt!$R:$R,">="&AO$8,Datenblatt!$R:$R,"<="&EOMONTH(AO$8,0)), "") -> 0 | AP14: =IF(ISNUMBER($C14), SUMIFS(Datenblatt!$M:$M, Datenblatt!$G:$G,$C14, Datenblatt!$R:$R,">="&AP$8,Datenblatt!$R:$R,"<="&EOMONTH(AP$8,0)) - SUMIFS(Datenblatt!$M:$M, Datenblatt!$E:$E,$C14, Datenblatt!$R:$R,">="&AP$8,Datenblatt!$R:$R,"<="&EOMONTH(AP$8,0)), "") -> 0 | AQ14: =IF(ISNUMBER($C14), SUMIFS(Datenblatt!$M:$M, Datenblatt!$G:$G,$C14, Datenblatt!$R:$R,">="&AQ$8,Datenblatt!$R:$R,"<="&EOMONTH(AQ$8,0)) - SUMIFS(Datenblatt!$M:$M, Datenblatt!$E:$E,$C14, Datenblatt!$R:$R,">="&AQ$8,Datenblatt!$R:$R,"<="&EOMONTH(AQ$8,0)), "") -> 0 | AR14: =IF(ISNUMBER($C14), SUMIFS(Datenblatt!$M:$M, Datenblatt!$G:$G,$C14, Datenblatt!$R:$R,">="&AR$8,Datenblatt!$R:$R,"<="&EOMONTH(AR$8,0)) - SUMIFS(Datenblatt!$M:$M, Datenblatt!$E:$E,$C14, Datenblatt!$R:$R,">="&AR$8,Datenblatt!$R:$R,"<="&EOMONTH(AR$8,0)), "") -> 0 | AS14: =IF(ISNUMBER($C14), SUMIFS(Datenblatt!$M:$M, Datenblatt!$G:$G,$C14, Datenblatt!$R:$R,">="&AS$8,Datenblatt!$R:$R,"<="&EOMONTH(AS$8,0)) - SUMIFS(Datenblatt!$M:$M, Datenblatt!$E:$E,$C14, Datenblatt!$R:$R,">="&AS$8,Datenblatt!$R:$R,"<="&EOMONTH(AS$8,0)), "") -> 0 | AT14: =IF(ISNUMBER($C14), SUMIFS(Datenblatt!$M:$M, Datenblatt!$G:$G,$C14, Datenblatt!$R:$R,">="&AT$8,Datenblatt!$R:$R,"<="&EOMONTH(AT$8,0)) - SUMIFS(Datenblatt!$M:$M, Datenblatt!$E:$E,$C14, Datenblatt!$R:$R,">="&AT$8,Datenblatt!$R:$R,"<="&EOMONTH(AT$8,0)), "") -> 0 | AU14: =IF(ISNUMBER($C14), SUMIFS(Datenblatt!$M:$M, Datenblatt!$G:$G,$C14, Datenblatt!$R:$R,">="&AU$8,Datenblatt!$R:$R,"<="&EOMONTH(AU$8,0)) - SUMIFS(Datenblatt!$M:$M, Datenblatt!$E:$E,$C14, Datenblatt!$R:$R,">="&AU$8,Datenblatt!$R:$R,"<="&EOMONTH(AU$8,0)), "") -> 0 | AV14: =IF(ISNUMBER($C14), SUMIFS(Datenblatt!$M:$M, Datenblatt!$G:$G,$C14, Datenblatt!$R:$R,">="&AV$8,Datenblatt!$R:$R,"<="&EOMONTH(AV$8,0)) - SUMIFS(Datenblatt!$M:$M, Datenblatt!$E:$E,$C14, Datenblatt!$R:$R,">="&AV$8,Datenblatt!$R:$R,"<="&EOMONTH(AV$8,0)), "") -> 0 | AW14: =IF(ISNUMBER($C14), SUMIFS(Datenblatt!$M:$M, Datenblatt!$G:$G,$C14, Datenblatt!$R:$R,">="&AW$8,Datenblatt!$R:$R,"<="&EOMONTH(AW$8,0)) - SUMIFS(Datenblatt!$M:$M, Datenblatt!$E:$E,$C14, Datenblatt!$R:$R,">="&AW$8,Datenblatt!$R:$R,"<="&EOMONTH(AW$8,0)), "") -> 0 | AX14: =IF(ISNUMBER($C14), SUMIFS(Datenblatt!$M:$M, Datenblatt!$G:$G,$C14, Datenblatt!$R:$R,">="&AX$8,Datenblatt!$R:$R,"<="&EOMONTH(AX$8,0)) - SUMIFS(Datenblatt!$M:$M, Datenblatt!$E:$E,$C14, Datenblatt!$R:$R,">="&AX$8,Datenblatt!$R:$R,"<="&EOMONTH(AX$8,0)), "") -> 0 | AY14: =IF(ISNUMBER($C14), SUMIFS(Datenblatt!$M:$M, Datenblatt!$G:$G,$C14, Datenblatt!$R:$R,">="&AY$8,Datenblatt!$R:$R,"<="&EOMONTH(AY$8,0)) - SUMIFS(Datenblatt!$M:$M, Datenblatt!$E:$E,$C14, Datenblatt!$R:$R,">="&AY$8,Datenblatt!$R:$R,"<="&EOMONTH(AY$8,0)), "") -> 0 | AZ14: =IF(ISNUMBER($C14), SUMIFS(Datenblatt!$M:$M, Datenblatt!$G:$G,$C14, Datenblatt!$R:$R,">="&AZ$8,Datenblatt!$R:$R,"<="&EOMONTH(AZ$8,0)) - SUMIFS(Datenblatt!$M:$M, Datenblatt!$E:$E,$C14, Datenblatt!$R:$R,">="&AZ$8,Datenblatt!$R:$R,"<="&EOMONTH(AZ$8,0)), "") -> 0 | BA14: =IF(ISNUMBER($C14), SUMIFS(Datenblatt!$M:$M, Datenblatt!$G:$G,$C14, Datenblatt!$R:$R,">="&BA$8,Datenblatt!$R:$R,"<="&EOMONTH(BA$8,0)) - SUMIFS(Datenblatt!$M:$M, Datenblatt!$E:$E,$C14, Datenblatt!$R:$R,">="&BA$8,Datenblatt!$R:$R,"<="&EOMONTH(BA$8,0)), "") -> 0 | BB14: =IF(ISNUMBER($C14), SUMIFS(Datenblatt!$M:$M, Datenblatt!$G:$G,$C14, Datenblatt!$R:$R,">="&BB$8,Datenblatt!$R:$R,"<="&EOMONTH(BB$8,0)) - SUMIFS(Datenblatt!$M:$M, Datenblatt!$E:$E,$C14, Datenblatt!$R:$R,">="&BB$8,Datenblatt!$R:$R,"<="&EOMONTH(BB$8,0)), "") -> 0 | BC14: =IF(ISNUMBER($C14), SUMIFS(Datenblatt!$M:$M, Datenblatt!$G:$G,$C14, Datenblatt!$R:$R,">="&BC$8,Datenblatt!$R:$R,"<="&EOMONTH(BC$8,0)) - SUMIFS(Datenblatt!$M:$M, Datenblatt!$E:$E,$C14, Datenblatt!$R:$R,">="&BC$8,Datenblatt!$R:$R,"<="&EOMONTH(BC$8,0)), "") -> 0 | BD14: =IF(ISNUMBER($C14), SUMIFS(Datenblatt!$M:$M, Datenblatt!$G:$G,$C14, Datenblatt!$R:$R,">="&BD$8,Datenblatt!$R:$R,"<="&EOMONTH(BD$8,0)) - SUMIFS(Datenblatt!$M:$M, Datenblatt!$E:$E,$C14, Datenblatt!$R:$R,">="&BD$8,Datenblatt!$R:$R,"<="&EOMONTH(BD$8,0)), "") -> 0 | BE14: =IF(ISNUMBER($C14), SUMIFS(Datenblatt!$M:$M, Datenblatt!$G:$G,$C14, Datenblatt!$R:$R,">="&BE$8,Datenblatt!$R:$R,"<="&EOMONTH(BE$8,0)) - SUMIFS(Datenblatt!$M:$M, Datenblatt!$E:$E,$C14, Datenblatt!$R:$R,">="&BE$8,Datenblatt!$R:$R,"<="&EOMONTH(BE$8,0)), "") -> 0 | BF14: =IF(ISNUMBER($C14), SUMIFS(Datenblatt!$M:$M, Datenblatt!$G:$G,$C14, Datenblatt!$R:$R,">="&BF$8,Datenblatt!$R:$R,"<="&EOMONTH(BF$8,0)) - SUMIFS(Datenblatt!$M:$M, Datenblatt!$E:$E,$C14, Datenblatt!$R:$R,">="&BF$8,Datenblatt!$R:$R,"<="&EOMONTH(BF$8,0)), "") -> 0 | BG14: =IF(ISNUMBER($C14), SUMIFS(Datenblatt!$M:$M, Datenblatt!$G:$G,$C14, Datenblatt!$R:$R,">="&BG$8,Datenblatt!$R:$R,"<="&EOMONTH(BG$8,0)) - SUMIFS(Datenblatt!$M:$M, Datenblatt!$E:$E,$C14, Datenblatt!$R:$R,">="&BG$8,Datenblatt!$R:$R,"<="&EOMONTH(BG$8,0)), "") -> 0 | BH14: =IF(ISNUMBER($C14), SUMIFS(Datenblatt!$M:$M, Datenblatt!$G:$G,$C14, Datenblatt!$R:$R,">="&BH$8,Datenblatt!$R:$R,"<="&EOMONTH(BH$8,0)) - SUMIFS(Datenblatt!$M:$M, Datenblatt!$E:$E,$C14, Datenblatt!$R:$R,">="&BH$8,Datenblatt!$R:$R,"<="&EOMONTH(BH$8,0)), "") -> 0 | BI14: =IF(ISNUMBER($C14), SUMIFS(Datenblatt!$M:$M, Datenblatt!$G:$G,$C14, Datenblatt!$R:$R,">="&BI$8,Datenblatt!$R:$R,"<="&EOMONTH(BI$8,0)) - SUMIFS(Datenblatt!$M:$M, Datenblatt!$E:$E,$C14, Datenblatt!$R:$R,">="&BI$8,Datenblatt!$R:$R,"<="&EOMONTH(BI$8,0)), "") -> 0 | BJ14: =IF(ISNUMBER($C14), SUMIFS(Datenblatt!$M:$M, Datenblatt!$G:$G,$C14, Datenblatt!$R:$R,">="&BJ$8,Datenblatt!$R:$R,"<="&EOMONTH(BJ$8,0)) - SUMIFS(Datenblatt!$M:$M, Datenblatt!$E:$E,$C14, Datenblatt!$R:$R,">="&BJ$8,Datenblatt!$R:$R,"<="&EOMONTH(BJ$8,0)), "") -> 0 | BK14: =IF(ISNUMBER($C14), SUMIFS(Datenblatt!$M:$M, Datenblatt!$G:$G,$C14, Datenblatt!$R:$R,">="&BK$8,Datenblatt!$R:$R,"<="&EOMONTH(BK$8,0)) - SUMIFS(Datenblatt!$M:$M, Datenblatt!$E:$E,$C14, Datenblatt!$R:$R,">="&BK$8,Datenblatt!$R:$R,"<="&EOMONTH(BK$8,0)), "") -> 0 | BL14: =IF(ISNUMBER($C14), SUMIFS(Datenblatt!$M:$M, Datenblatt!$G:$G,$C14, Datenblatt!$R:$R,">="&BL$8,Datenblatt!$R:$R,"<="&EOMONTH(BL$8,0)) - SUMIFS(Datenblatt!$M:$M, Datenblatt!$E:$E,$C14, Datenblatt!$R:$R,">="&BL$8,Datenblatt!$R:$R,"<="&EOMONTH(BL$8,0)), "") -> 0 | BM14: =IF(ISNUMBER($C14), SUMIFS(Datenblatt!$M:$M, Datenblatt!$G:$G,$C14, Datenblatt!$R:$R,">="&BM$8,Datenblatt!$R:$R,"<="&EOMONTH(BM$8,0)) - SUMIFS(Datenblatt!$M:$M, Datenblatt!$E:$E,$C14, Datenblatt!$R:$R,">="&BM$8,Datenblatt!$R:$R,"<="&EOMONTH(BM$8,0)), "") -> 0 | BN14: =IF(ISNUMBER($C14), SUMIFS(Datenblatt!$M:$M, Datenblatt!$G:$G,$C14, Datenblatt!$R:$R,">="&BN$8,Datenblatt!$R:$R,"<="&EOMONTH(BN$8,0)) - SUMIFS(Datenblatt!$M:$M, Datenblatt!$E:$E,$C14, Datenblatt!$R:$R,">="&BN$8,Datenblatt!$R:$R,"<="&EOMONTH(BN$8,0)), "") -> 0 | BO14: =IF(ISNUMBER($C14), SUMIFS(Datenblatt!$M:$M, Datenblatt!$G:$G,$C14, Datenblatt!$R:$R,">="&BO$8,Datenblatt!$R:$R,"<="&EOMONTH(BO$8,0)) - SUMIFS(Datenblatt!$M:$M, Datenblatt!$E:$E,$C14, Datenblatt!$R:$R,">="&BO$8,Datenblatt!$R:$R,"<="&EOMONTH(BO$8,0)), "") -> 0 | BP14: =IF(ISNUMBER($C14), SUMIFS(Datenblatt!$M:$M, Datenblatt!$G:$G,$C14, Datenblatt!$R:$R,">="&BP$8,Datenblatt!$R:$R,"<="&EOMONTH(BP$8,0)) - SUMIFS(Datenblatt!$M:$M, Datenblatt!$E:$E,$C14, Datenblatt!$R:$R,">="&BP$8,Datenblatt!$R:$R,"<="&EOMONTH(BP$8,0)), "") -> 0 | BQ14: =IF(ISNUMBER($C14), SUMIFS(Datenblatt!$M:$M, Datenblatt!$G:$G,$C14, Datenblatt!$R:$R,">="&BQ$8,Datenblatt!$R:$R,"<="&EOMONTH(BQ$8,0)) - SUMIFS(Datenblatt!$M:$M, Datenblatt!$E:$E,$C14, Datenblatt!$R:$R,">="&BQ$8,Datenblatt!$R:$R,"<="&EOMONTH(BQ$8,0)), "") -> 0 | BR14: =IF(ISNUMBER($C14), SUMIFS(Datenblatt!$M:$M, Datenblatt!$G:$G,$C14, Datenblatt!$R:$R,">="&BR$8,Datenblatt!$R:$R,"<="&EOMONTH(BR$8,0)) - SUMIFS(Datenblatt!$M:$M, Datenblatt!$E:$E,$C14, Datenblatt!$R:$R,">="&BR$8,Datenblatt!$R:$R,"<="&EOMONTH(BR$8,0)), "") -> 0 | BS14: =IF(ISNUMBER($C14), SUMIFS(Datenblatt!$M:$M, Datenblatt!$G:$G,$C14, Datenblatt!$R:$R,">="&BS$8,Datenblatt!$R:$R,"<="&EOMONTH(BS$8,0)) - SUMIFS(Datenblatt!$M:$M, Datenblatt!$E:$E,$C14, Datenblatt!$R:$R,">="&BS$8,Datenblatt!$R:$R,"<="&EOMONTH(BS$8,0)), "") -> 0 | BT14: =IF(ISNUMBER($C14), SUMIFS(Datenblatt!$M:$M, Datenblatt!$G:$G,$C14, Datenblatt!$R:$R,">="&BT$8,Datenblatt!$R:$R,"<="&EOMONTH(BT$8,0)) - SUMIFS(Datenblatt!$M:$M, Datenblatt!$E:$E,$C14, Datenblatt!$R:$R,">="&BT$8,Datenblatt!$R:$R,"<="&EOMONTH(BT$8,0)), "") -> 0 | BU14: =IF(ISNUMBER($C14), SUMIFS(Datenblatt!$M:$M, Datenblatt!$G:$G,$C14, Datenblatt!$R:$R,">="&BU$8,Datenblatt!$R:$R,"<="&EOMONTH(BU$8,0)) - SUMIFS(Datenblatt!$M:$M, Datenblatt!$E:$E,$C14, Datenblatt!$R:$R,">="&BU$8,Datenblatt!$R:$R,"<="&EOMONTH(BU$8,0)), "") -> 0 | BV14: =IF(ISNUMBER($C14), SUMIFS(Datenblatt!$M:$M, Datenblatt!$G:$G,$C14, Datenblatt!$R:$R,">="&BV$8,Datenblatt!$R:$R,"<="&EOMONTH(BV$8,0)) - SUMIFS(Datenblatt!$M:$M, Datenblatt!$E:$E,$C14, Datenblatt!$R:$R,">="&BV$8,Datenblatt!$R:$R,"<="&EOMONTH(BV$8,0)), "") -> 1059.257116 | BW14: =IF(ISNUMBER($C14), SUMIFS(Datenblatt!$M:$M, Datenblatt!$G:$G,$C14, Datenblatt!$R:$R,">="&BW$8,Datenblatt!$R:$R,"<="&EOMONTH(BW$8,0)) - SUMIFS(Datenblatt!$M:$M, Datenblatt!$E:$E,$C14, Datenblatt!$R:$R,">="&BW$8,Datenblatt!$R:$R,"<="&EOMONTH(BW$8,0)), "") -> 0 | BX14: =IF(ISNUMBER($C14), SUMIFS(Datenblatt!$M:$M, Datenblatt!$G:$G,$C14, Datenblatt!$R:$R,">="&BX$8,Datenblatt!$R:$R,"<="&EOMONTH(BX$8,0)) - SUMIFS(Datenblatt!$M:$M, Datenblatt!$E:$E,$C14, Datenblatt!$R:$R,">="&BX$8,Datenblatt!$R:$R,"<="&EOMONTH(BX$8,0)), "") -> 0 | BY14: =IF(ISNUMBER($C14), SUMIFS(Datenblatt!$M:$M, Datenblatt!$G:$G,$C14, Datenblatt!$R:$R,">="&BY$8,Datenblatt!$R:$R,"<="&EOMONTH(BY$8,0)) - SUMIFS(Datenblatt!$M:$M, Datenblatt!$E:$E,$C14, Datenblatt!$R:$R,">="&BY$8,Datenblatt!$R:$R,"<="&EOMONTH(BY$8,0)), "") -> 0 | BZ14: =IF(ISNUMBER($C14), SUMIFS(Datenblatt!$M:$M, Datenblatt!$G:$G,$C14, Datenblatt!$R:$R,">="&BZ$8,Datenblatt!$R:$R,"<="&EOMONTH(BZ$8,0)) - SUMIFS(Datenblatt!$M:$M, Datenblatt!$E:$E,$C14, Datenblatt!$R:$R,">="&BZ$8,Datenblatt!$R:$R,"<="&EOMONTH(BZ$8,0)), "") -> 0 | CA14: =IF(ISNUMBER($C14), SUMIFS(Datenblatt!$M:$M, Datenblatt!$G:$G,$C14, Datenblatt!$R:$R,">="&CA$8,Datenblatt!$R:$R,"<="&EOMONTH(CA$8,0)) - SUMIFS(Datenblatt!$M:$M, Datenblatt!$E:$E,$C14, Datenblatt!$R:$R,">="&CA$8,Datenblatt!$R:$R,"<="&EOMONTH(CA$8,0)), "") -> 0 | CB14: =IF(ISNUMBER($C14), SUMIFS(Datenblatt!$M:$M, Datenblatt!$G:$G,$C14, Datenblatt!$R:$R,">="&CB$8,Datenblatt!$R:$R,"<="&EOMONTH(CB$8,0)) - SUMIFS(Datenblatt!$M:$M, Datenblatt!$E:$E,$C14, Datenblatt!$R:$R,">="&CB$8,Datenblatt!$R:$R,"<="&EOMONTH(CB$8,0)), "") -> 1143.433849 | CC14: =IF(ISNUMBER($C14), SUMIFS(Datenblatt!$M:$M, Datenblatt!$G:$G,$C14, Datenblatt!$R:$R,">="&CC$8,Datenblatt!$R:$R,"<="&EOMONTH(CC$8,0)) - SUMIFS(Datenblatt!$M:$M, Datenblatt!$E:$E,$C14, Datenblatt!$R:$R,">="&CC$8,Datenblatt!$R:$R,"<="&EOMONTH(CC$8,0)), "") -> 0 | CD14: =IF(ISNUMBER($C14), SUMIFS(Datenblatt!$M:$M, Datenblatt!$G:$G,$C14, Datenblatt!$R:$R,">="&CD$8,Datenblatt!$R:$R,"<="&EOMONTH(CD$8,0)) - SUMIFS(Datenblatt!$M:$M, Datenblatt!$E:$E,$C14, Datenblatt!$R:$R,">="&CD$8,Datenblatt!$R:$R,"<="&EOMONTH(CD$8,0)), "") -> 0 | CE14: =IF(ISNUMBER($C14), SUMIFS(Datenblatt!$M:$M, Datenblatt!$G:$G,$C14, Datenblatt!$R:$R,">="&CE$8,Datenblatt!$R:$R,"<="&EOMONTH(CE$8,0)) - SUMIFS(Datenblatt!$M:$M, Datenblatt!$E:$E,$C14, Datenblatt!$R:$R,">="&CE$8,Datenblatt!$R:$R,"<="&EOMONTH(CE$8,0)), "") -> 0 | CF14: =IF(ISNUMBER($C14), SUMIFS(Datenblatt!$M:$M, Datenblatt!$G:$G,$C14, Datenblatt!$R:$R,">="&CF$8,Datenblatt!$R:$R,"<="&EOMONTH(CF$8,0)) - SUMIFS(Datenblatt!$M:$M, Datenblatt!$E:$E,$C14, Datenblatt!$R:$R,">="&CF$8,Datenblatt!$R:$R,"<="&EOMONTH(CF$8,0)), "") -> 0 | CG14: =IF(ISNUMBER($C14), SUMIFS(Datenblatt!$M:$M, Datenblatt!$G:$G,$C14, Datenblatt!$R:$R,">="&CG$8,Datenblatt!$R:$R,"<="&EOMONTH(CG$8,0)) - SUMIFS(Datenblatt!$M:$M, Datenblatt!$E:$E,$C14, Datenblatt!$R:$R,">="&CG$8,Datenblatt!$R:$R,"<="&EOMONTH(CG$8,0)), "") -> 0 | CH14: =IF(ISNUMBER($C14), SUMIFS(Datenblatt!$M:$M, Datenblatt!$G:$G,$C14, Datenblatt!$R:$R,">="&CH$8,Datenblatt!$R:$R,"<="&EOMONTH(CH$8,0)) - SUMIFS(Datenblatt!$M:$M, Datenblatt!$E:$E,$C14, Datenblatt!$R:$R,">="&CH$8,Datenblatt!$R:$R,"<="&EOMONTH(CH$8,0)), "") -> 0 | CI14: =IF(ISNUMBER($C14), SUMIFS(Datenblatt!$M:$M, Datenblatt!$G:$G,$C14, Datenblatt!$R:$R,">="&CI$8,Datenblatt!$R:$R,"<="&EOMONTH(CI$8,0)) - SUMIFS(Datenblatt!$M:$M, Datenblatt!$E:$E,$C14, Datenblatt!$R:$R,">="&CI$8,Datenblatt!$R:$R,"<="&EOMONTH(CI$8,0)), "") -> 0 | CJ14: =IF(ISNUMBER($C14), SUMIFS(Datenblatt!$M:$M, Datenblatt!$G:$G,$C14, Datenblatt!$R:$R,">="&CJ$8,Datenblatt!$R:$R,"<="&EOMONTH(CJ$8,0)) - SUMIFS(Datenblatt!$M:$M, Datenblatt!$E:$E,$C14, Datenblatt!$R:$R,">="&CJ$8,Datenblatt!$R:$R,"<="&EOMONTH(CJ$8,0)), "") -> 0 | CK14: =IF(ISNUMBER($C14), SUMIFS(Datenblatt!$M:$M, Datenblatt!$G:$G,$C14, Datenblatt!$R:$R,">="&CK$8,Datenblatt!$R:$R,"<="&EOMONTH(CK$8,0)) - SUMIFS(Datenblatt!$M:$M, Datenblatt!$E:$E,$C14, Datenblatt!$R:$R,">="&CK$8,Datenblatt!$R:$R,"<="&EOMONTH(CK$8,0)), "") -> 0 | CL14: =IF(ISNUMBER($C14), SUMIFS(Datenblatt!$M:$M, Datenblatt!$G:$G,$C14, Datenblatt!$R:$R,">="&CL$8,Datenblatt!$R:$R,"<="&EOMONTH(CL$8,0)) - SUMIFS(Datenblatt!$M:$M, Datenblatt!$E:$E,$C14, Datenblatt!$R:$R,">="&CL$8,Datenblatt!$R:$R,"<="&EOMONTH(CL$8,0)), "") -> 0 | CM14: =IF(ISNUMBER($C14), SUMIFS(Datenblatt!$M:$M, Datenblatt!$G:$G,$C14, Datenblatt!$R:$R,">="&CM$8,Datenblatt!$R:$R,"<="&EOMONTH(CM$8,0)) - SUMIFS(Datenblatt!$M:$M, Datenblatt!$E:$E,$C14, Datenblatt!$R:$R,">="&CM$8,Datenblatt!$R:$R,"<="&EOMONTH(CM$8,0)), "") -> 0 | CN14: =IF(ISNUMBER($C14), SUMIFS(Datenblatt!$M:$M, Datenblatt!$G:$G,$C14, Datenblatt!$R:$R,">="&CN$8,Datenblatt!$R:$R,"<="&EOMONTH(CN$8,0)) - SUMIFS(Datenblatt!$M:$M, Datenblatt!$E:$E,$C14, Datenblatt!$R:$R,">="&CN$8,Datenblatt!$R:$R,"<="&EOMONTH(CN$8,0)), "") -> 0 | CO14: =IF(ISNUMBER($C14), SUMIFS(Datenblatt!$M:$M, Datenblatt!$G:$G,$C14, Datenblatt!$R:$R,">="&CO$8,Datenblatt!$R:$R,"<="&EOMONTH(CO$8,0)) - SUMIFS(Datenblatt!$M:$M, Datenblatt!$E:$E,$C14, Datenblatt!$R:$R,">="&CO$8,Datenblatt!$R:$R,"<="&EOMONTH(CO$8,0)), "") -> 0 | CP14: =IF(ISNUMBER($C14), SUMIFS(Datenblatt!$M:$M, Datenblatt!$G:$G,$C14, Datenblatt!$R:$R,">="&CP$8,Datenblatt!$R:$R,"<="&EOMONTH(CP$8,0)) - SUMIFS(Datenblatt!$M:$M, Datenblatt!$E:$E,$C14, Datenblatt!$R:$R,">="&CP$8,Datenblatt!$R:$R,"<="&EOMONTH(CP$8,0)), "") -> 0 | CQ14: =IF(ISNUMBER($C14), SUMIFS(Datenblatt!$M:$M, Datenblatt!$G:$G,$C14, Datenblatt!$R:$R,">="&CQ$8,Datenblatt!$R:$R,"<="&EOMONTH(CQ$8,0)) - SUMIFS(Datenblatt!$M:$M, Datenblatt!$E:$E,$C14, Datenblatt!$R:$R,">="&CQ$8,Datenblatt!$R:$R,"<="&EOMONTH(CQ$8,0)), "") -> 0 | CR14: =IF(ISNUMBER($C14), SUMIFS(Datenblatt!$M:$M, Datenblatt!$G:$G,$C14, Datenblatt!$R:$R,">="&CR$8,Datenblatt!$R:$R,"<="&EOMONTH(CR$8,0)) - SUMIFS(Datenblatt!$M:$M, Datenblatt!$E:$E,$C14, Datenblatt!$R:$R,">="&CR$8,Datenblatt!$R:$R,"<="&EOMONTH(CR$8,0)), "") -> 0 | CS14: =IF(ISNUMBER($C14), SUMIFS(Datenblatt!$M:$M, Datenblatt!$G:$G,$C14, Datenblatt!$R:$R,">="&CS$8,Datenblatt!$R:$R,"<="&EOMONTH(CS$8,0)) - SUMIFS(Datenblatt!$M:$M, Datenblatt!$E:$E,$C14, Datenblatt!$R:$R,">="&CS$8,Datenblatt!$R:$R,"<="&EOMONTH(CS$8,0)), "") -> 0 | CT14: =IF(ISNUMBER($C14), SUMIFS(Datenblatt!$M:$M, Datenblatt!$G:$G,$C14, Datenblatt!$R:$R,">="&CT$8,Datenblatt!$R:$R,"<="&EOMONTH(CT$8,0)) - SUMIFS(Datenblatt!$M:$M, Datenblatt!$E:$E,$C14, Datenblatt!$R:$R,">="&CT$8,Datenblatt!$R:$R,"<="&EOMONTH(CT$8,0)), "") -> 0 | CU14: =IF(ISNUMBER($C14), SUMIFS(Datenblatt!$M:$M, Datenblatt!$G:$G,$C14, Datenblatt!$R:$R,">="&CU$8,Datenblatt!$R:$R,"<="&EOMONTH(CU$8,0)) - SUMIFS(Datenblatt!$M:$M, Datenblatt!$E:$E,$C14, Datenblatt!$R:$R,">="&CU$8,Datenblatt!$R:$R,"<="&EOMONTH(CU$8,0)), "") -> 0 | CV14: =IF(ISNUMBER($C14), SUMIFS(Datenblatt!$M:$M, Datenblatt!$G:$G,$C14, Datenblatt!$R:$R,">="&CV$8,Datenblatt!$R:$R,"<="&EOMONTH(CV$8,0)) - SUMIFS(Datenblatt!$M:$M, Datenblatt!$E:$E,$C14, Datenblatt!$R:$R,">="&CV$8,Datenblatt!$R:$R,"<="&EOMONTH(CV$8,0)), "") -> 0 | CW14: =IF(ISNUMBER($C14), SUMIFS(Datenblatt!$M:$M, Datenblatt!$G:$G,$C14, Datenblatt!$R:$R,">="&CW$8,Datenblatt!$R:$R,"<="&EOMONTH(CW$8,0)) - SUMIFS(Datenblatt!$M:$M, Datenblatt!$E:$E,$C14, Datenblatt!$R:$R,">="&CW$8,Datenblatt!$R:$R,"<="&EOMONTH(CW$8,0)), "") -> 0 | CX14: =IF(ISNUMBER($C14), SUMIFS(Datenblatt!$M:$M, Datenblatt!$G:$G,$C14, Datenblatt!$R:$R,">="&CX$8,Datenblatt!$R:$R,"<="&EOMONTH(CX$8,0)) - SUMIFS(Datenblatt!$M:$M, Datenblatt!$E:$E,$C14, Datenblatt!$R:$R,">="&CX$8,Datenblatt!$R:$R,"<="&EOMONTH(CX$8,0)), "") -> 0 | CY14: =IF(ISNUMBER($C14), SUMIFS(Datenblatt!$M:$M, Datenblatt!$G:$G,$C14, Datenblatt!$R:$R,">="&CY$8,Datenblatt!$R:$R,"<="&EOMONTH(CY$8,0)) - SUMIFS(Datenblatt!$M:$M, Datenblatt!$E:$E,$C14, Datenblatt!$R:$R,">="&CY$8,Datenblatt!$R:$R,"<="&EOMONTH(CY$8,0)), "") -> 0 | CZ14: =IF(ISNUMBER($C14), SUMIFS(Datenblatt!$M:$M, Datenblatt!$G:$G,$C14, Datenblatt!$R:$R,">="&CZ$8,Datenblatt!$R:$R,"<="&EOMONTH(CZ$8,0)) - SUMIFS(Datenblatt!$M:$M, Datenblatt!$E:$E,$C14, Datenblatt!$R:$R,">="&CZ$8,Datenblatt!$R:$R,"<="&EOMONTH(CZ$8,0)), "") -> 0 | DA14: =IF(ISNUMBER($C14), SUMIFS(Datenblatt!$M:$M, Datenblatt!$G:$G,$C14, Datenblatt!$R:$R,">="&DA$8,Datenblatt!$R:$R,"<="&EOMONTH(DA$8,0)) - SUMIFS(Datenblatt!$M:$M, Datenblatt!$E:$E,$C14, Datenblatt!$R:$R,">="&DA$8,Datenblatt!$R:$R,"<="&EOMONTH(DA$8,0)), "") -> 0 | DB14: =IF(ISNUMBER($C14), SUMIFS(Datenblatt!$M:$M, Datenblatt!$G:$G,$C14, Datenblatt!$R:$R,">="&DB$8,Datenblatt!$R:$R,"<="&EOMONTH(DB$8,0)) - SUMIFS(Datenblatt!$M:$M, Datenblatt!$E:$E,$C14, Datenblatt!$R:$R,">="&DB$8,Datenblatt!$R:$R,"<="&EOMONTH(DB$8,0)), "") -> 0 | DC14: =IF(ISNUMBER($C14), SUMIFS(Datenblatt!$M:$M, Datenblatt!$G:$G,$C14, Datenblatt!$R:$R,">="&DC$8,Datenblatt!$R:$R,"<="&EOMONTH(DC$8,0)) - SUMIFS(Datenblatt!$M:$M, Datenblatt!$E:$E,$C14, Datenblatt!$R:$R,">="&DC$8,Datenblatt!$R:$R,"<="&EOMONTH(DC$8,0)), "") -> 0 | DD14: =IF(ISNUMBER($C14), SUMIFS(Datenblatt!$M:$M, Datenblatt!$G:$G,$C14, Datenblatt!$R:$R,">="&DD$8,Datenblatt!$R:$R,"<="&EOMONTH(DD$8,0)) - SUMIFS(Datenblatt!$M:$M, Datenblatt!$E:$E,$C14, Datenblatt!$R:$R,">="&DD$8,Datenblatt!$R:$R,"<="&EOMONTH(DD$8,0)), "") -> 0 | DE14: =IF(ISNUMBER($C14), SUMIFS(Datenblatt!$M:$M, Datenblatt!$G:$G,$C14, Datenblatt!$R:$R,">="&DE$8,Datenblatt!$R:$R,"<="&EOMONTH(DE$8,0)) - SUMIFS(Datenblatt!$M:$M, Datenblatt!$E:$E,$C14, Datenblatt!$R:$R,">="&DE$8,Datenblatt!$R:$R,"<="&EOMONTH(DE$8,0)), "") -> 0 | DF14: =IF(ISNUMBER($C14), SUMIFS(Datenblatt!$M:$M, Datenblatt!$G:$G,$C14, Datenblatt!$R:$R,">="&DF$8,Datenblatt!$R:$R,"<="&EOMONTH(DF$8,0)) - SUMIFS(Datenblatt!$M:$M, Datenblatt!$E:$E,$C14, Datenblatt!$R:$R,">="&DF$8,Datenblatt!$R:$R,"<="&EOMONTH(DF$8,0)), "") -> 0
